Workbook

Sheet טיימר עבודות
BJ1: שעת התחלה 1 | BL1: שעון
BJ2: =$J$60 ->  | BK2: עבודות | BL2: =CONCATENATE(IF(TEXT(NOW(),"DDDD")="שבת","מוצאי שבת",TEXT(NOW(),"DDDD")),CHAR(10),TEXT(NOW(),"dd/mm/yyyy"),CHAR(10),TEXT(NOW(),"hh:mm:ss")) -> יום ראשון 28/07/2024 16:34:38
Q3: =" יומי: " & TEXT(TODAY(),"dd/mm/yyyy") -> יומי: 28/07/2024 | U3: =" שבועי: שבוע " & TEXT(WEEKNUM(TODAY()),0)& " (" & YEAR(TODAY())& ")" -> שבועי: שבוע 31 (2024) | Y3: =" חודשי: חודש " & TEXT(MONTH(TODAY()),0) & " (" & YEAR(TODAY())& ")" -> חודשי: חודש 7 (2024) | AC3: סך הכל | AG3: יעד דינמי | AL3: שמות העבודות | AM3: שכר לשעה | AN3: מטבע | AO3: שעות | AP3: שכר בשקלים | AQ3: שכר בדולרים | AR3: חיובים נוספים | AS3: זיכויים / שולם | AT3: לתשלום | AU3: הערות | BJ3: שעת התחלה 2 | BK3: כל העבודות
Q4: עבודה | R4: כל העבודות | U4: עבודה | V4: כל העבודות | Y4: עבודה | Z4: כל העבודות | AC4: עבודה | AD4: כל העבודות | AG4: התחלה | AH4: 2024-07-23 | AL4: הקלדה | AM4: 50 | AO4: =IF(AL4="","", IFERROR(IF(SUMIFS(טבלה1[שעות],טבלה1[שם העבודה],טבלה2[[#This Row],[שמות העבודות]])=0,"", SUMIFS(טבלה1[שעות],טבלה1[שם העבודה],טבלה2[[#This Row],[שמות העבודות]])),"")) -> 3.081927431 | AP4: =IFERROR(IF(OR(טבלה2[[#This Row],[שכר לשעה]]="",טבלה2[[#This Row],[שעות]]=""),"",IF( IF(OR(טבלה2[[#This Row],[מטבע]]="₪",AND(מטבע="שקלים",טבלה2[[#This Row],[מטבע]]="")), טבלה2[[#This Row],[שכר לשעה]]*טבלה2[[#This Row],[שעות]]*24, IF(OR(טבלה2[[#This Row],[מטבע]]="$",AND(מטבע="דולרים",טבלה2[[#This Row],[מטבע]]="")), טבלה2[[#This Row],[שכר לשעה]]*טבלה2[[#This Row],[שעות]]*24*שער,""))=0,"", IF(OR(טבלה2[[#This Row],[מטבע]]="₪",AND(מטבע="שקלים",טבלה2[[#This Row],[מטבע]]="")), טבלה2[[#This Row],[שכר לשעה]]*טבלה2[[#This Row],[שעות]]*24, IF(OR(טבלה2[[#This Row],[מטבע]]="$",AND(מטבע="דולרים",טבלה2[[#This Row],[מטבע]]="")), טבלה2[[#This Row],[שכר לשעה]]*טבלה2[[#This Row],[שעות]]*24*שער,"")))),"") -> 3698.312917 | AQ4: =IFERROR(IF(OR(טבלה2[[#This Row],[שכר לשעה]]="",טבלה2[[#This Row],[שעות]]=""),"",IF( IF(OR(טבלה2[[#This Row],[מטבע]]="$",AND(מטבע="דולרים",טבלה2[[#This Row],[מטבע]]="")), טבלה2[[#This Row],[שכר לשעה]]*טבלה2[[#This Row],[שעות]]*24, IF(OR(טבלה2[[#This Row],[מטבע]]="₪",AND(מטבע="שקלים",טבלה2[[#This Row],[מטבע]]="")), טבלה2[[#This Row],[שכר לשעה]]*טבלה2[[#This Row],[שעות]]*24/שער,""))=0,"", IF(OR(טבלה2[[#This Row],[מטבע]]="$",AND(מטבע="דולרים",טבלה2[[#This Row],[מטבע]]="")), טבלה2[[#This Row],[שכר לשעה]]*טבלה2[[#This Row],[שעות]]*24, IF(OR(טבלה2[[#This Row],[מטבע]]="₪",AND(מטבע="שקלים",טבלה2[[#This Row],[מטבע]]="")), טבלה2[[#This Row],[שכר לשעה]]*טבלה2[[#This Row],[שעות]]*24/שער,"")))),"") -> 1004.976336 | AR4: 50 | AT4: =IF(טבלה2[[#This Row],[שעות]]="","",IF( IF(OR(טבלה2[[#This Row],[מטבע]]="₪",AND(מטבע="שקלים",טבלה2[[#This Row],[מטבע]]="")),טבלה2[[#This Row],[שכר בשקלים]]+טבלה2[[#This Row],[חיובים נוספים]]-טבלה2[[#This Row],[זיכויים / שולם]], IF(OR(טבלה2[[#This Row],[מטבע]]="$",AND(מטבע="דולרים",טבלה2[[#This Row],[מטבע]]="")),טבלה2[[#This Row],[שכר בדולרים]]+טבלה2[[#This Row],[חיובים נוספים]]-טבלה2[[#This Row],[זיכויים / שולם]],""))=0,"", IF(OR(טבלה2[[#This Row],[מטבע]]="₪",AND(מטבע="שקלים",טבלה2[[#This Row],[מטבע]]="")),טבלה2[[#This Row],[שכר בשקלים]]+טבלה2[[#This Row],[חיובים נוספים]]-טבלה2[[#This Row],[זיכויים / שולם]], IF(OR(טבלה2[[#This Row],[מטבע]]="$",AND(מטבע="דולרים",טבלה2[[#This Row],[מטבע]]="")),טבלה2[[#This Row],[שכר בדולרים]]+טבלה2[[#This Row],[חיובים נוספים]]-טבלה2[[#This Row],[זיכויים / שולם]],"")))) -> 3748.312917 | BJ4: =IF(OR(שעת_התחלה="",שעת_התחלה=0),0,שעת_התחלה) -> 0 | BK4: =IF(טבלה2[[#This Row],[שמות העבודות]]="","",טבלה2[[#This Row],[שמות העבודות]]) -> הקלדה
Q5: שעות | R5: =IF(SUMIFS(טבלה1[שעות],טבלה1[תאריך],"="&(TODAY()),טבלה1[שם העבודה],IF(R4="כל העבודות","<>""",R4))=0,"", SUMIFS(טבלה1[שעות],טבלה1[תאריך],"="&(TODAY()),טבלה1[שם העבודה],IF(R4="כל העבודות","<>""",R4))) -> 0.08358796296 | U5: שעות | V5: =IF(SUMIFS(טבלה1[שעות],טבלה1[תאריך],">="&(TODAY())-WEEKDAY(TODAY())+1,טבלה1[תאריך],"<="&(TODAY())-WEEKDAY(TODAY())+7,טבלה1[שם העבודה],IF(V4="כל העבודות","<>""",V4))=0,"", SUMIFS(טבלה1[שעות],טבלה1[תאריך],">="&(TODAY())-WEEKDAY(TODAY())+1,טבלה1[תאריך],"<="&(TODAY())-WEEKDAY(TODAY())+7,טבלה1[שם העבודה],IF(V4="כל העבודות","<>""",V4))) -> 0.1669675926 | Y5: שעות | Z5: =IF(SUMIFS(טבלה1[שעות],טבלה1[תאריך], ">="&DATE(YEAR(TODAY()),MONTH(TODAY()),1),טבלה1[תאריך], "<="&EOMONTH(TODAY(),0),טבלה1[שם העבודה],IF(Z4="כל העבודות","<>""",Z4))=0,"", SUMIFS(טבלה1[שעות],טבלה1[תאריך], ">="&DATE(YEAR(TODAY()),MONTH(TODAY()),1),טבלה1[תאריך], "<="&EOMONTH(TODAY(),0),טבלה1[שם העבודה],IF(Z4="כל העבודות","<>""",Z4))) -> 2.827818634 | AC5: שעות | AD5: =IF(SUMIFS(טבלה1[שעות],טבלה1[תאריך], ">="&DATE(YEAR(TODAY()),MONTH(TODAY()),1),טבלה1[תאריך], "<="&EOMONTH(TODAY(),0),טבלה1[שם העבודה],IF(AD4="כל העבודות","<>""",AD4))=0,"", SUMIFS(טבלה1[שעות],טבלה1[תאריך], ">="&DATE(YEAR(TODAY()),MONTH(TODAY()),1),טבלה1[תאריך], "<="&EOMONTH(TODAY(),0),טבלה1[שם העבודה],IF(AD4="כל העבודות","<>""",AD4))) -> 2.827818634 | AG5: סוף | AH5: 2024-07-29 | AL5: עימוד | AM5: 10 | AO5: =IF(AL5="","", IFERROR(IF(SUMIFS(טבלה1[שעות],טבלה1[שם העבודה],טבלה2[[#This Row],[שמות העבודות]])=0,"", SUMIFS(טבלה1[שעות],טבלה1[שם העבודה],טבלה2[[#This Row],[שמות העבודות]])),"")) -> 0.5836574074 | AP5: =IFERROR(IF(OR(טבלה2[[#This Row],[שכר לשעה]]="",טבלה2[[#This Row],[שעות]]=""),"",IF( IF(OR(טבלה2[[#This Row],[מטבע]]="₪",AND(מטבע="שקלים",טבלה2[[#This Row],[מטבע]]="")), טבלה2[[#This Row],[שכר לשעה]]*טבלה2[[#This Row],[שעות]]*24, IF(OR(טבלה2[[#This Row],[מטבע]]="$",AND(מטבע="דולרים",טבלה2[[#This Row],[מטבע]]="")), טבלה2[[#This Row],[שכר לשעה]]*טבלה2[[#This Row],[שעות]]*24*שער,""))=0,"", IF(OR(טבלה2[[#This Row],[מטבע]]="₪",AND(מטבע="שקלים",טבלה2[[#This Row],[מטבע]]="")), טבלה2[[#This Row],[שכר לשעה]]*טבלה2[[#This Row],[שעות]]*24, IF(OR(טבלה2[[#This Row],[מטבע]]="$",AND(מטבע="דולרים",טבלה2[[#This Row],[מטבע]]="")), טבלה2[[#This Row],[שכר לשעה]]*טבלה2[[#This Row],[שעות]]*24*שער,"")))),"") -> 140.0777778 | AQ5: =IFERROR(IF(OR(טבלה2[[#This Row],[שכר לשעה]]="",טבלה2[[#This Row],[שעות]]=""),"",IF( IF(OR(טבלה2[[#This Row],[מטבע]]="$",AND(מטבע="דולרים",טבלה2[[#This Row],[מטבע]]="")), טבלה2[[#This Row],[שכר לשעה]]*טבלה2[[#This Row],[שעות]]*24, IF(OR(טבלה2[[#This Row],[מטבע]]="₪",AND(מטבע="שקלים",טבלה2[[#This Row],[מטבע]]="")), טבלה2[[#This Row],[שכר לשעה]]*טבלה2[[#This Row],[שעות]]*24/שער,""))=0,"", IF(OR(טבלה2[[#This Row],[מטבע]]="$",AND(מטבע="דולרים",טבלה2[[#This Row],[מטבע]]="")), טבלה2[[#This Row],[שכר לשעה]]*טבלה2[[#This Row],[שעות]]*24, IF(OR(טבלה2[[#This Row],[מטבע]]="₪",AND(מטבע="שקלים",טבלה2[[#This Row],[מטבע]]="")), טבלה2[[#This Row],[שכר לשעה]]*טבלה2[[#This Row],[שעות]]*24/שער,"")))),"") -> 38.06461353 | AT5: =IF(טבלה2[[#This Row],[שעות]]="","",IF( IF(OR(טבלה2[[#This Row],[מטבע]]="₪",AND(מטבע="שקלים",טבלה2[[#This Row],[מטבע]]="")),טבלה2[[#This Row],[שכר בשקלים]]+טבלה2[[#This Row],[חיובים נוספים]]-טבלה2[[#This Row],[זיכויים / שולם]], IF(OR(טבלה2[[#This Row],[מטבע]]="$",AND(מטבע="דולרים",טבלה2[[#This Row],[מטבע]]="")),טבלה2[[#This Row],[שכר בדולרים]]+טבלה2[[#This Row],[חיובים נוספים]]-טבלה2[[#This Row],[זיכויים / שולם]],""))=0,"", IF(OR(טבלה2[[#This Row],[מטבע]]="₪",AND(מטבע="שקלים",טבלה2[[#This Row],[מטבע]]="")),טבלה2[[#This Row],[שכר בשקלים]]+טבלה2[[#This Row],[חיובים נוספים]]-טבלה2[[#This Row],[זיכויים / שולם]], IF(OR(טבלה2[[#This Row],[מטבע]]="$",AND(מטבע="דולרים",טבלה2[[#This Row],[מטבע]]="")),טבלה2[[#This Row],[שכר בדולרים]]+טבלה2[[#This Row],[חיובים נוספים]]-טבלה2[[#This Row],[זיכויים / שולם]],"")))) -> 140.0777778 | BJ5: הפסקה1 | BK5: =IF(טבלה2[[#This Row],[שמות העבודות]]="","",טבלה2[[#This Row],[שמות העבודות]]) -> עימוד
Q6: שכר | R6: =IF(SUMIFS(טבלה1[שכר],טבלה1[תאריך],"="&(TODAY()),טבלה1[שם העבודה],IF(R4="כל העבודות","<>""",R4))=0,"", SUMIFS(טבלה1[שכר],טבלה1[תאריך],"="&(TODAY()),טבלה1[שם העבודה],IF(R4="כל העבודות","<>""",R4))) -> 100.3055556 | U6: שכר | V6: =IF(SUMIFS(טבלה1[שכר],טבלה1[תאריך],">="&(TODAY())-WEEKDAY(TODAY())+1,טבלה1[תאריך],"<="&(TODAY())-WEEKDAY(TODAY())+7,טבלה1[שם העבודה],IF(V4="כל העבודות","<>""",V4))=0,"", SUMIFS(טבלה1[שכר],טבלה1[תאריך],">="&(TODAY())-WEEKDAY(TODAY())+1,טבלה1[תאריך],"<="&(TODAY())-WEEKDAY(TODAY())+7,טבלה1[שם העבודה],IF(V4="כל העבודות","<>""",V4))) -> 120.3166667 | Y6: שכר | Z6: =IF(SUMIFS(טבלה1[שכר],טבלה1[תאריך], ">="&DATE(YEAR(TODAY()),MONTH(TODAY()),1),טבלה1[תאריך], "<="&EOMONTH(TODAY(),0),טבלה1[שם העבודה],IF(Z4="כל העבודות","<>""",Z4))=0,"", SUMIFS(טבלה1[שכר],טבלה1[תאריך], ">="&DATE(YEAR(TODAY()),MONTH(TODAY()),1),טבלה1[תאריך], "<="&EOMONTH(TODAY(),0),טבלה1[שם העבודה],IF(Z4="כל העבודות","<>""",Z4))) -> 3153.249028 | AC6: שכר | AD6: =IF(SUMIFS(טבלה1[שכר],טבלה1[תאריך], ">="&DATE(YEAR(TODAY()),MONTH(TODAY()),1),טבלה1[תאריך], "<="&EOMONTH(TODAY(),0),טבלה1[שם העבודה],IF(AD4="כל העבודות","<>""",AD4))=0,"", SUMIFS(טבלה1[שכר],טבלה1[תאריך], ">="&DATE(YEAR(TODAY()),MONTH(TODAY()),1),טבלה1[תאריך], "<="&EOMONTH(TODAY(),0),טבלה1[שם העבודה],IF(AD4="כל העבודות","<>""",AD4))) -> 3153.249028 | AG6: עבודה | AH6: כל העבודות | AL6: הגהה | AM6: 10 | AO6: =IF(AL6="","", IFERROR(IF(SUMIFS(טבלה1[שעות],טבלה1[שם העבודה],טבלה2[[#This Row],[שמות העבודות]])=0,"", SUMIFS(טבלה1[שעות],טבלה1[שם העבודה],טבלה2[[#This Row],[שמות העבודות]])),"")) -> 0.5002777778 | AP6: =IFERROR(IF(OR(טבלה2[[#This Row],[שכר לשעה]]="",טבלה2[[#This Row],[שעות]]=""),"",IF( IF(OR(טבלה2[[#This Row],[מטבע]]="₪",AND(מטבע="שקלים",טבלה2[[#This Row],[מטבע]]="")), טבלה2[[#This Row],[שכר לשעה]]*טבלה2[[#This Row],[שעות]]*24, IF(OR(טבלה2[[#This Row],[מטבע]]="$",AND(מטבע="דולרים",טבלה2[[#This Row],[מטבע]]="")), טבלה2[[#This Row],[שכר לשעה]]*טבלה2[[#This Row],[שעות]]*24*שער,""))=0,"", IF(OR(טבלה2[[#This Row],[מטבע]]="₪",AND(מטבע="שקלים",טבלה2[[#This Row],[מטבע]]="")), טבלה2[[#This Row],[שכר לשעה]]*טבלה2[[#This Row],[שעות]]*24, IF(OR(טבלה2[[#This Row],[מטבע]]="$",AND(מטבע="דולרים",טבלה2[[#This Row],[מטבע]]="")), טבלה2[[#This Row],[שכר לשעה]]*טבלה2[[#This Row],[שעות]]*24*שער,"")))),"") -> 120.0666667 | AQ6: =IFERROR(IF(OR(טבלה2[[#This Row],[שכר לשעה]]="",טבלה2[[#This Row],[שעות]]=""),"",IF( IF(OR(טבלה2[[#This Row],[מטבע]]="$",AND(מטבע="דולרים",טבלה2[[#This Row],[מטבע]]="")), טבלה2[[#This Row],[שכר לשעה]]*טבלה2[[#This Row],[שעות]]*24, IF(OR(טבלה2[[#This Row],[מטבע]]="₪",AND(מטבע="שקלים",טבלה2[[#This Row],[מטבע]]="")), טבלה2[[#This Row],[שכר לשעה]]*טבלה2[[#This Row],[שעות]]*24/שער,""))=0,"", IF(OR(טבלה2[[#This Row],[מטבע]]="$",AND(מטבע="דולרים",טבלה2[[#This Row],[מטבע]]="")), טבלה2[[#This Row],[שכר לשעה]]*טבלה2[[#This Row],[שעות]]*24, IF(OR(טבלה2[[#This Row],[מטבע]]="₪",AND(מטבע="שקלים",טבלה2[[#This Row],[מטבע]]="")), טבלה2[[#This Row],[שכר לשעה]]*טבלה2[[#This Row],[שעות]]*24/שער,"")))),"") -> 32.62681159 | AT6: =IF(טבלה2[[#This Row],[שעות]]="","",IF( IF(OR(טבלה2[[#This Row],[מטבע]]="₪",AND(מטבע="שקלים",טבלה2[[#This Row],[מטבע]]="")),טבלה2[[#This Row],[שכר בשקלים]]+טבלה2[[#This Row],[חיובים נוספים]]-טבלה2[[#This Row],[זיכויים / שולם]], IF(OR(טבלה2[[#This Row],[מטבע]]="$",AND(מטבע="דולרים",טבלה2[[#This Row],[מטבע]]="")),טבלה2[[#This Row],[שכר בדולרים]]+טבלה2[[#This Row],[חיובים נוספים]]-טבלה2[[#This Row],[זיכויים / שולם]],""))=0,"", IF(OR(טבלה2[[#This Row],[מטבע]]="₪",AND(מטבע="שקלים",טבלה2[[#This Row],[מטבע]]="")),טבלה2[[#This Row],[שכר בשקלים]]+טבלה2[[#This Row],[חיובים נוספים]]-טבלה2[[#This Row],[זיכויים / שולם]], IF(OR(טבלה2[[#This Row],[מטבע]]="$",AND(מטבע="דולרים",טבלה2[[#This Row],[מטבע]]="")),טבלה2[[#This Row],[שכר בדולרים]]+טבלה2[[#This Row],[חיובים נוספים]]-טבלה2[[#This Row],[זיכויים / שולם]],"")))) -> 120.0666667 | BK6: =IF(טבלה2[[#This Row],[שמות העבודות]]="","",טבלה2[[#This Row],[שמות העבודות]]) -> הגהה
Q7: אחוזים | R7: =IF(OR(R8="",R6=""),"", IF(R6>=R8,"הגעת ליעד!",R6 /R8)) -> הגעת ליעד! | U7: אחוזים | V7: =IF(OR(V8="",V6=""),"", IF(V6>=V8,"הגעת ליעד!",V6 /V8)) -> 0.1203166667 | Y7: אחוזים | Z7: =IF(OR(Z8="",Z6=""),"", IF(Z6>=Z8,"הגעת ליעד!",Z6 /Z8)) -> 0.6306498056 | AC7: אחוזים | AD7: =IF(OR(AD8="",AD6=""),"", IF(AD6>=AD8,"הגעת ליעד!",AD6 /AD8)) -> 0.3153249028 | AG7: שעות | AH7: =IF(SUMIFS(טבלה1[שעות],טבלה1[תאריך],">="&AH4,טבלה1[תאריך],"<"&AH5,טבלה1[שם העבודה],IF(AH6="כל העבודות","<>""",AH6))=0,"", SUMIFS(טבלה1[שעות],טבלה1[תאריך],">="&AH4,טבלה1[תאריך],"<"&AH5,טבלה1[שם העבודה],IF(AH6="כל העבודות","<>""",AH6))) -> 2.240740741 | AL7: מכון תורה אור | AM7: 10 | AO7: =IF(AL7="","", IFERROR(IF(SUMIFS(טבלה1[שעות],טבלה1[שם העבודה],טבלה2[[#This Row],[שמות העבודות]])=0,"", SUMIFS(טבלה1[שעות],טבלה1[שם העבודה],טבלה2[[#This Row],[שמות העבודות]])),"")) -> 7.277152778 | AP7: =IFERROR(IF(OR(טבלה2[[#This Row],[שכר לשעה]]="",טבלה2[[#This Row],[שעות]]=""),"",IF( IF(OR(טבלה2[[#This Row],[מטבע]]="₪",AND(מטבע="שקלים",טבלה2[[#This Row],[מטבע]]="")), טבלה2[[#This Row],[שכר לשעה]]*טבלה2[[#This Row],[שעות]]*24, IF(OR(טבלה2[[#This Row],[מטבע]]="$",AND(מטבע="דולרים",טבלה2[[#This Row],[מטבע]]="")), טבלה2[[#This Row],[שכר לשעה]]*טבלה2[[#This Row],[שעות]]*24*שער,""))=0,"", IF(OR(טבלה2[[#This Row],[מטבע]]="₪",AND(מטבע="שקלים",טבלה2[[#This Row],[מטבע]]="")), טבלה2[[#This Row],[שכר לשעה]]*טבלה2[[#This Row],[שעות]]*24, IF(OR(טבלה2[[#This Row],[מטבע]]="$",AND(מטבע="דולרים",טבלה2[[#This Row],[מטבע]]="")), טבלה2[[#This Row],[שכר לשעה]]*טבלה2[[#This Row],[שעות]]*24*שער,"")))),"") -> 1746.516667 | AQ7: =IFERROR(IF(OR(טבלה2[[#This Row],[שכר לשעה]]="",טבלה2[[#This Row],[שעות]]=""),"",IF( IF(OR(טבלה2[[#This Row],[מטבע]]="$",AND(מטבע="דולרים",טבלה2[[#This Row],[מטבע]]="")), טבלה2[[#This Row],[שכר לשעה]]*טבלה2[[#This Row],[שעות]]*24, IF(OR(טבלה2[[#This Row],[מטבע]]="₪",AND(מטבע="שקלים",טבלה2[[#This Row],[מטבע]]="")), טבלה2[[#This Row],[שכר לשעה]]*טבלה2[[#This Row],[שעות]]*24/שער,""))=0,"", IF(OR(טבלה2[[#This Row],[מטבע]]="$",AND(מטבע="דולרים",טבלה2[[#This Row],[מטבע]]="")), טבלה2[[#This Row],[שכר לשעה]]*טבלה2[[#This Row],[שעות]]*24, IF(OR(טבלה2[[#This Row],[מטבע]]="₪",AND(מטבע="שקלים",טבלה2[[#This Row],[מטבע]]="")), טבלה2[[#This Row],[שכר לשעה]]*טבלה2[[#This Row],[שעות]]*24/שער,"")))),"") -> 474.5969203 | AT7: =IF(טבלה2[[#This Row],[שעות]]="","",IF( IF(OR(טבלה2[[#This Row],[מטבע]]="₪",AND(מטבע="שקלים",טבלה2[[#This Row],[מטבע]]="")),טבלה2[[#This Row],[שכר בשקלים]]+טבלה2[[#This Row],[חיובים נוספים]]-טבלה2[[#This Row],[זיכויים / שולם]], IF(OR(טבלה2[[#This Row],[מטבע]]="$",AND(מטבע="דולרים",טבלה2[[#This Row],[מטבע]]="")),טבלה2[[#This Row],[שכר בדולרים]]+טבלה2[[#This Row],[חיובים נוספים]]-טבלה2[[#This Row],[זיכויים / שולם]],""))=0,"", IF(OR(טבלה2[[#This Row],[מטבע]]="₪",AND(מטבע="שקלים",טבלה2[[#This Row],[מטבע]]="")),טבלה2[[#This Row],[שכר בשקלים]]+טבלה2[[#This Row],[חיובים נוספים]]-טבלה2[[#This Row],[זיכויים / שולם]], IF(OR(טבלה2[[#This Row],[מטבע]]="$",AND(מטבע="דולרים",טבלה2[[#This Row],[מטבע]]="")),טבלה2[[#This Row],[שכר בדולרים]]+טבלה2[[#This Row],[חיובים נוספים]]-טבלה2[[#This Row],[זיכויים / שולם]],"")))) -> 1746.516667 | BJ7: הפסקה2 | BK7: =IF(טבלה2[[#This Row],[שמות העבודות]]="","",טבלה2[[#This Row],[שמות העבודות]]) -> מכון תורה אור
C8: סה"כ | E8: שעות- | F8: =IF(SUBTOTAL(109,טבלה1[שעות])=0,"",SUBTOTAL(109,טבלה1[שעות])) -> 11.44301539 | I8: שכר- | J8: =IF(SUBTOTAL(109,טבלה1[שכר])=0,"",SUBTOTAL(109,טבלה1[שכר])) -> 5704.974028 | Q8: יעד | R8: 100 | U8: יעד | V8: 1000 | Y8: יעד | Z8: 5000 | AC8: יעד | AD8: 10000 | AG8: שכר | AH8: =IF(SUMIFS(טבלה1[שכר],טבלה1[תאריך],">="&AH4,טבלה1[תאריך],"<"&AH5,טבלה1[שם העבודה],IF(AH6="כל העבודות","<>""",AH6))=0,"", SUMIFS(טבלה1[שכר],טבלה1[תאריך],">="&AH4,טבלה1[תאריך],"<"&AH5,טבלה1[שם העבודה],IF(AH6="כל העבודות","<>""",AH6))) -> 2528.8 | AL8: מכון אורה | AM8: 1 | AO8: =IF(AL8="","", IFERROR(IF(SUMIFS(טבלה1[שעות],טבלה1[שם העבודה],טבלה2[[#This Row],[שמות העבודות]])=0,"", SUMIFS(טבלה1[שעות],טבלה1[שם העבודה],טבלה2[[#This Row],[שמות העבודות]])),"")) ->  | AP8: =IFERROR(IF(OR(טבלה2[[#This Row],[שכר לשעה]]="",טבלה2[[#This Row],[שעות]]=""),"",IF( IF(OR(טבלה2[[#This Row],[מטבע]]="₪",AND(מטבע="שקלים",טבלה2[[#This Row],[מטבע]]="")), טבלה2[[#This Row],[שכר לשעה]]*טבלה2[[#This Row],[שעות]]*24, IF(OR(טבלה2[[#This Row],[מטבע]]="$",AND(מטבע="דולרים",טבלה2[[#This Row],[מטבע]]="")), טבלה2[[#This Row],[שכר לשעה]]*טבלה2[[#This Row],[שעות]]*24*שער,""))=0,"", IF(OR(טבלה2[[#This Row],[מטבע]]="₪",AND(מטבע="שקלים",טבלה2[[#This Row],[מטבע]]="")), טבלה2[[#This Row],[שכר לשעה]]*טבלה2[[#This Row],[שעות]]*24, IF(OR(טבלה2[[#This Row],[מטבע]]="$",AND(מטבע="דולרים",טבלה2[[#This Row],[מטבע]]="")), טבלה2[[#This Row],[שכר לשעה]]*טבלה2[[#This Row],[שעות]]*24*שער,"")))),"") ->  | AQ8: =IFERROR(IF(OR(טבלה2[[#This Row],[שכר לשעה]]="",טבלה2[[#This Row],[שעות]]=""),"",IF( IF(OR(טבלה2[[#This Row],[מטבע]]="$",AND(מטבע="דולרים",טבלה2[[#This Row],[מטבע]]="")), טבלה2[[#This Row],[שכר לשעה]]*טבלה2[[#This Row],[שעות]]*24, IF(OR(טבלה2[[#This Row],[מטבע]]="₪",AND(מטבע="שקלים",טבלה2[[#This Row],[מטבע]]="")), טבלה2[[#This Row],[שכר לשעה]]*טבלה2[[#This Row],[שעות]]*24/שער,""))=0,"", IF(OR(טבלה2[[#This Row],[מטבע]]="$",AND(מטבע="דולרים",טבלה2[[#This Row],[מטבע]]="")), טבלה2[[#This Row],[שכר לשעה]]*טבלה2[[#This Row],[שעות]]*24, IF(OR(טבלה2[[#This Row],[מטבע]]="₪",AND(מטבע="שקלים",טבלה2[[#This Row],[מטבע]]="")), טבלה2[[#This Row],[שכר לשעה]]*טבלה2[[#This Row],[שעות]]*24/שער,"")))),"") ->  | AT8: =IF(טבלה2[[#This Row],[שעות]]="","",IF( IF(OR(טבלה2[[#This Row],[מטבע]]="₪",AND(מטבע="שקלים",טבלה2[[#This Row],[מטבע]]="")),טבלה2[[#This Row],[שכר בשקלים]]+טבלה2[[#This Row],[חיובים נוספים]]-טבלה2[[#This Row],[זיכויים / שולם]], IF(OR(טבלה2[[#This Row],[מטבע]]="$",AND(מטבע="דולרים",טבלה2[[#This Row],[מטבע]]="")),טבלה2[[#This Row],[שכר בדולרים]]+טבלה2[[#This Row],[חיובים נוספים]]-טבלה2[[#This Row],[זיכויים / שולם]],""))=0,"", IF(OR(טבלה2[[#This Row],[מטבע]]="₪",AND(מטבע="שקלים",טבלה2[[#This Row],[מטבע]]="")),טבלה2[[#This Row],[שכר בשקלים]]+טבלה2[[#This Row],[חיובים נוספים]]-טבלה2[[#This Row],[זיכויים / שולם]], IF(OR(טבלה2[[#This Row],[מטבע]]="$",AND(מטבע="דולרים",טבלה2[[#This Row],[מטבע]]="")),טבלה2[[#This Row],[שכר בדולרים]]+טבלה2[[#This Row],[חיובים נוספים]]-טבלה2[[#This Row],[זיכויים / שולם]],"")))) ->  | BJ8: =IF(הפסקה1="",0,MOD(MOD(NOW(),1)-הפסקה1,1)) -> 0 | BK8: =IF(טבלה2[[#This Row],[שמות העבודות]]="","",טבלה2[[#This Row],[שמות העבודות]]) -> מכון אורה
AG9: אחוזים | AH9: =IF(OR(AH10="",AH8=""),"", IF(AH8>=AH10,"הגעת ליעד!",AH8 /AH10)) -> 0.50576 | AO9: =IF(AL9="","", IFERROR(IF(SUMIFS(טבלה1[שעות],טבלה1[שם העבודה],טבלה2[[#This Row],[שמות העבודות]])=0,"", SUMIFS(טבלה1[שעות],טבלה1[שם העבודה],טבלה2[[#This Row],[שמות העבודות]])),"")) ->  | AP9: =IFERROR(IF(OR(טבלה2[[#This Row],[שכר לשעה]]="",טבלה2[[#This Row],[שעות]]=""),"",IF( IF(OR(טבלה2[[#This Row],[מטבע]]="₪",AND(מטבע="שקלים",טבלה2[[#This Row],[מטבע]]="")), טבלה2[[#This Row],[שכר לשעה]]*טבלה2[[#This Row],[שעות]]*24, IF(OR(טבלה2[[#This Row],[מטבע]]="$",AND(מטבע="דולרים",טבלה2[[#This Row],[מטבע]]="")), טבלה2[[#This Row],[שכר לשעה]]*טבלה2[[#This Row],[שעות]]*24*שער,""))=0,"", IF(OR(טבלה2[[#This Row],[מטבע]]="₪",AND(מטבע="שקלים",טבלה2[[#This Row],[מטבע]]="")), טבלה2[[#This Row],[שכר לשעה]]*טבלה2[[#This Row],[שעות]]*24, IF(OR(טבלה2[[#This Row],[מטבע]]="$",AND(מטבע="דולרים",טבלה2[[#This Row],[מטבע]]="")), טבלה2[[#This Row],[שכר לשעה]]*טבלה2[[#This Row],[שעות]]*24*שער,"")))),"") ->  | AQ9: =IFERROR(IF(OR(טבלה2[[#This Row],[שכר לשעה]]="",טבלה2[[#This Row],[שעות]]=""),"",IF( IF(OR(טבלה2[[#This Row],[מטבע]]="$",AND(מטבע="דולרים",טבלה2[[#This Row],[מטבע]]="")), טבלה2[[#This Row],[שכר לשעה]]*טבלה2[[#This Row],[שעות]]*24, IF(OR(טבלה2[[#This Row],[מטבע]]="₪",AND(מטבע="שקלים",טבלה2[[#This Row],[מטבע]]="")), טבלה2[[#This Row],[שכר לשעה]]*טבלה2[[#This Row],[שעות]]*24/שער,""))=0,"", IF(OR(טבלה2[[#This Row],[מטבע]]="$",AND(מטבע="דולרים",טבלה2[[#This Row],[מטבע]]="")), טבלה2[[#This Row],[שכר לשעה]]*טבלה2[[#This Row],[שעות]]*24, IF(OR(טבלה2[[#This Row],[מטבע]]="₪",AND(מטבע="שקלים",טבלה2[[#This Row],[מטבע]]="")), טבלה2[[#This Row],[שכר לשעה]]*טבלה2[[#This Row],[שעות]]*24/שער,"")))),"") ->  | AT9: =IF(טבלה2[[#This Row],[שעות]]="","",IF( IF(OR(טבלה2[[#This Row],[מטבע]]="₪",AND(מטבע="שקלים",טבלה2[[#This Row],[מטבע]]="")),טבלה2[[#This Row],[שכר בשקלים]]+טבלה2[[#This Row],[חיובים נוספים]]-טבלה2[[#This Row],[זיכויים / שולם]], IF(OR(טבלה2[[#This Row],[מטבע]]="$",AND(מטבע="דולרים",טבלה2[[#This Row],[מטבע]]="")),טבלה2[[#This Row],[שכר בדולרים]]+טבלה2[[#This Row],[חיובים נוספים]]-טבלה2[[#This Row],[זיכויים / שולם]],""))=0,"", IF(OR(טבלה2[[#This Row],[מטבע]]="₪",AND(מטבע="שקלים",טבלה2[[#This Row],[מטבע]]="")),טבלה2[[#This Row],[שכר בשקלים]]+טבלה2[[#This Row],[חיובים נוספים]]-טבלה2[[#This Row],[זיכויים / שולם]], IF(OR(טבלה2[[#This Row],[מטבע]]="$",AND(מטבע="דולרים",טבלה2[[#This Row],[מטבע]]="")),טבלה2[[#This Row],[שכר בדולרים]]+טבלה2[[#This Row],[חיובים נוספים]]-טבלה2[[#This Row],[זיכויים / שולם]],"")))) ->  | BJ9: הודעת אישור | BK9: =IF(טבלה2[[#This Row],[שמות העבודות]]="","",טבלה2[[#This Row],[שמות העבודות]]) -> 
B10: עמודה2 | C10: יום | D10: תאריך | E10: התחלה | F10: שם העבודה | G10: סיום | H10: הוספת דקות | I10: הפחתת דקות | J10: שעות | K10: שכר | L10: חודש | M10: הערות | AG10: יעד | AH10: 5000 | AO10: =IF(AL10="","", IFERROR(IF(SUMIFS(טבלה1[שעות],טבלה1[שם העבודה],טבלה2[[#This Row],[שמות העבודות]])=0,"", SUMIFS(טבלה1[שעות],טבלה1[שם העבודה],טבלה2[[#This Row],[שמות העבודות]])),"")) ->  | AP10: =IFERROR(IF(OR(טבלה2[[#This Row],[שכר לשעה]]="",טבלה2[[#This Row],[שעות]]=""),"",IF( IF(OR(טבלה2[[#This Row],[מטבע]]="₪",AND(מטבע="שקלים",טבלה2[[#This Row],[מטבע]]="")), טבלה2[[#This Row],[שכר לשעה]]*טבלה2[[#This Row],[שעות]]*24, IF(OR(טבלה2[[#This Row],[מטבע]]="$",AND(מטבע="דולרים",טבלה2[[#This Row],[מטבע]]="")), טבלה2[[#This Row],[שכר לשעה]]*טבלה2[[#This Row],[שעות]]*24*שער,""))=0,"", IF(OR(טבלה2[[#This Row],[מטבע]]="₪",AND(מטבע="שקלים",טבלה2[[#This Row],[מטבע]]="")), טבלה2[[#This Row],[שכר לשעה]]*טבלה2[[#This Row],[שעות]]*24, IF(OR(טבלה2[[#This Row],[מטבע]]="$",AND(מטבע="דולרים",טבלה2[[#This Row],[מטבע]]="")), טבלה2[[#This Row],[שכר לשעה]]*טבלה2[[#This Row],[שעות]]*24*שער,"")))),"") ->  | AQ10: =IFERROR(IF(OR(טבלה2[[#This Row],[שכר לשעה]]="",טבלה2[[#This Row],[שעות]]=""),"",IF( IF(OR(טבלה2[[#This Row],[מטבע]]="$",AND(מטבע="דולרים",טבלה2[[#This Row],[מטבע]]="")), טבלה2[[#This Row],[שכר לשעה]]*טבלה2[[#This Row],[שעות]]*24, IF(OR(טבלה2[[#This Row],[מטבע]]="₪",AND(מטבע="שקלים",טבלה2[[#This Row],[מטבע]]="")), טבלה2[[#This Row],[שכר לשעה]]*טבלה2[[#This Row],[שעות]]*24/שער,""))=0,"", IF(OR(טבלה2[[#This Row],[מטבע]]="$",AND(מטבע="דולרים",טבלה2[[#This Row],[מטבע]]="")), טבלה2[[#This Row],[שכר לשעה]]*טבלה2[[#This Row],[שעות]]*24, IF(OR(טבלה2[[#This Row],[מטבע]]="₪",AND(מטבע="שקלים",טבלה2[[#This Row],[מטבע]]="")), טבלה2[[#This Row],[שכר לשעה]]*טבלה2[[#This Row],[שעות]]*24/שער,"")))),"") ->  | AT10: =IF(טבלה2[[#This Row],[שעות]]="","",IF( IF(OR(טבלה2[[#This Row],[מטבע]]="₪",AND(מטבע="שקלים",טבלה2[[#This Row],[מטבע]]="")),טבלה2[[#This Row],[שכר בשקלים]]+טבלה2[[#This Row],[חיובים נוספים]]-טבלה2[[#This Row],[זיכויים / שולם]], IF(OR(טבלה2[[#This Row],[מטבע]]="$",AND(מטבע="דולרים",טבלה2[[#This Row],[מטבע]]="")),טבלה2[[#This Row],[שכר בדולרים]]+טבלה2[[#This Row],[חיובים נוספים]]-טבלה2[[#This Row],[זיכויים / שולם]],""))=0,"", IF(OR(טבלה2[[#This Row],[מטבע]]="₪",AND(מטבע="שקלים",טבלה2[[#This Row],[מטבע]]="")),טבלה2[[#This Row],[שכר בשקלים]]+טבלה2[[#This Row],[חיובים נוספים]]-טבלה2[[#This Row],[זיכויים / שולם]], IF(OR(טבלה2[[#This Row],[מטבע]]="$",AND(מטבע="דולרים",טבלה2[[#This Row],[מטבע]]="")),טבלה2[[#This Row],[שכר בדולרים]]+טבלה2[[#This Row],[חיובים נוספים]]-טבלה2[[#This Row],[זיכויים / שולם]],"")))) ->  | BJ10: מופעל | BK10: =IF(טבלה2[[#This Row],[שמות העבודות]]="","",טבלה2[[#This Row],[שמות העבודות]]) -> 
B11: =IF(AND(טבלה1[[#This Row],[תאריך]]="",טבלה1[[#This Row],[התחלה]]="",טבלה1[[#This Row],[שם העבודה]]=""),"",ROW()-10) -> 1 | C11: =IF(טבלה1[[#This Row],[תאריך]]="","",IF(TEXT(טבלה1[[#This Row],[תאריך]],"DDD")="שבת","מוצ""ש",TEXT(טבלה1[[#This Row],[תאריך]],"DDD"))) -> מוצ"ש | D11: 2024-04-13 | E11: 02:44:24 | F11: הקלדה | G11: 04:45:11 | H11: 0.003472222222 | J11: =IF(IF(AND(טבלה1[[#This Row],[התחלה]]="",טבלה1[[#This Row],[סיום]]<>""),"",IF(AND(טבלה1[[#This Row],[התחלה]]<>"",טבלה1[[#This Row],[סיום]]=""), SUM(MOD(MOD(NOW(),1)-טבלה1[[#This Row],[התחלה]],1),טבלה1[[#This Row],[הוספת דקות]],-טבלה1[[#This Row],[הפחתת דקות]]), SUM(MOD(טבלה1[[#This Row],[סיום]]-טבלה1[[#This Row],[התחלה]],1),טבלה1[[#This Row],[הוספת דקות]],-טבלה1[[#This Row],[הפחתת דקות]])))<=0,"", IF(AND(טבלה1[[#This Row],[התחלה]]="",טבלה1[[#This Row],[סיום]]<>""),"",IF(AND(טבלה1[[#This Row],[התחלה]]<>"",טבלה1[[#This Row],[סיום]]=""), SUM(MOD(MOD(NOW(),1)-טבלה1[[#This Row],[התחלה]],1),טבלה1[[#This Row],[הוספת דקות]],-טבלה1[[#This Row],[הפחתת דקות]]), SUM(MOD(טבלה1[[#This Row],[סיום]]-טבלה1[[#This Row],[התחלה]],1),טבלה1[[#This Row],[הוספת דקות]],-טבלה1[[#This Row],[הפחתת דקות]])))) -> 0.08734953704 | K11: =IF(טבלה1[[#This Row],[שעות]]="","",IFERROR( IF(IF(AND(מטבע="שקלים",VLOOKUP(טבלה1[[#This Row],[שם העבודה]],טבלה2[],3,FALSE)="$"), VLOOKUP(טבלה1[[#This Row],[שם העבודה]],טבלה2[#All],2,FALSE)*טבלה1[[#This Row],[שעות]]*24*שער, IF(AND(מטבע="דולרים",VLOOKUP(טבלה1[[#This Row],[שם העבודה]],טבלה2[],3,FALSE)="₪"), VLOOKUP(טבלה1[[#This Row],[שם העבודה]],טבלה2[#All],2,FALSE)*טבלה1[[#This Row],[שעות]]*24/שער, VLOOKUP(טבלה1[[#This Row],[שם העבודה]],טבלה2[#All],2,FALSE)*טבלה1[[#This Row],[שעות]]*24))=0,"", IF(AND(מטבע="שקלים",VLOOKUP(טבלה1[[#This Row],[שם העבודה]],טבלה2[],3,FALSE)="$"), VLOOKUP(טבלה1[[#This Row],[שם העבודה]],טבלה2[#All],2,FALSE)*טבלה1[[#This Row],[שעות]]*24*שער, IF(AND(מטבע="דולרים",VLOOKUP(טבלה1[[#This Row],[שם העבודה]],טבלה2[],3,FALSE)="₪"), VLOOKUP(טבלה1[[#This Row],[שם העבודה]],טבלה2[#All],2,FALSE)*טבלה1[[#This Row],[שעות]]*24/שער, VLOOKUP(טבלה1[[#This Row],[שם העבודה]],טבלה2[#All],2,FALSE)*טבלה1[[#This Row],[שעות]]*24))),"")) -> 104.8194444 | L11: =IF(טבלה1[[#This Row],[תאריך]]="","",DATE(YEAR(טבלה1[[#This Row],[תאריך]]),MONTH(טבלה1[[#This Row],[תאריך]]),1)) -> 2024-04-01 | AO11: =IF(AL11="","", IFERROR(IF(SUMIFS(טבלה1[שעות],טבלה1[שם העבודה],טבלה2[[#This Row],[שמות העבודות]])=0,"", SUMIFS(טבלה1[שעות],טבלה1[שם העבודה],טבלה2[[#This Row],[שמות העבודות]])),"")) ->  | AP11: =IFERROR(IF(OR(טבלה2[[#This Row],[שכר לשעה]]="",טבלה2[[#This Row],[שעות]]=""),"",IF( IF(OR(טבלה2[[#This Row],[מטבע]]="₪",AND(מטבע="שקלים",טבלה2[[#This Row],[מטבע]]="")), טבלה2[[#This Row],[שכר לשעה]]*טבלה2[[#This Row],[שעות]]*24, IF(OR(טבלה2[[#This Row],[מטבע]]="$",AND(מטבע="דולרים",טבלה2[[#This Row],[מטבע]]="")), טבלה2[[#This Row],[שכר לשעה]]*טבלה2[[#This Row],[שעות]]*24*שער,""))=0,"", IF(OR(טבלה2[[#This Row],[מטבע]]="₪",AND(מטבע="שקלים",טבלה2[[#This Row],[מטבע]]="")), טבלה2[[#This Row],[שכר לשעה]]*טבלה2[[#This Row],[שעות]]*24, IF(OR(טבלה2[[#This Row],[מטבע]]="$",AND(מטבע="דולרים",טבלה2[[#This Row],[מטבע]]="")), טבלה2[[#This Row],[שכר לשעה]]*טבלה2[[#This Row],[שעות]]*24*שער,"")))),"") ->  | AQ11: =IFERROR(IF(OR(טבלה2[[#This Row],[שכר לשעה]]="",טבלה2[[#This Row],[שעות]]=""),"",IF( IF(OR(טבלה2[[#This Row],[מטבע]]="$",AND(מטבע="דולרים",טבלה2[[#This Row],[מטבע]]="")), טבלה2[[#This Row],[שכר לשעה]]*טבלה2[[#This Row],[שעות]]*24, IF(OR(טבלה2[[#This Row],[מטבע]]="₪",AND(מטבע="שקלים",טבלה2[[#This Row],[מטבע]]="")), טבלה2[[#This Row],[שכר לשעה]]*טבלה2[[#This Row],[שעות]]*24/שער,""))=0,"", IF(OR(טבלה2[[#This Row],[מטבע]]="$",AND(מטבע="דולרים",טבלה2[[#This Row],[מטבע]]="")), טבלה2[[#This Row],[שכר לשעה]]*טבלה2[[#This Row],[שעות]]*24, IF(OR(טבלה2[[#This Row],[מטבע]]="₪",AND(מטבע="שקלים",טבלה2[[#This Row],[מטבע]]="")), טבלה2[[#This Row],[שכר לשעה]]*טבלה2[[#This Row],[שעות]]*24/שער,"")))),"") ->  | AT11: =IF(טבלה2[[#This Row],[שעות]]="","",IF( IF(OR(טבלה2[[#This Row],[מטבע]]="₪",AND(מטבע="שקלים",טבלה2[[#This Row],[מטבע]]="")),טבלה2[[#This Row],[שכר בשקלים]]+טבלה2[[#This Row],[חיובים נוספים]]-טבלה2[[#This Row],[זיכויים / שולם]], IF(OR(טבלה2[[#This Row],[מטבע]]="$",AND(מטבע="דולרים",טבלה2[[#This Row],[מטבע]]="")),טבלה2[[#This Row],[שכר בדולרים]]+טבלה2[[#This Row],[חיובים נוספים]]-טבלה2[[#This Row],[זיכויים / שולם]],""))=0,"", IF(OR(טבלה2[[#This Row],[מטבע]]="₪",AND(מטבע="שקלים",טבלה2[[#This Row],[מטבע]]="")),טבלה2[[#This Row],[שכר בשקלים]]+טבלה2[[#This Row],[חיובים נוספים]]-טבלה2[[#This Row],[זיכויים / שולם]], IF(OR(טבלה2[[#This Row],[מטבע]]="$",AND(מטבע="דולרים",טבלה2[[#This Row],[מטבע]]="")),טבלה2[[#This Row],[שכר בדולרים]]+טבלה2[[#This Row],[חיובים נוספים]]-טבלה2[[#This Row],[זיכויים / שולם]],"")))) ->  | BJ11: עבודה נבחרת | BK11: =IF(טבלה2[[#This Row],[שמות העבודות]]="","",טבלה2[[#This Row],[שמות העבודות]]) -> 
B12: =IF(AND(טבלה1[[#This Row],[תאריך]]="",טבלה1[[#This Row],[התחלה]]="",טבלה1[[#This Row],[שם העבודה]]=""),"",ROW()-10) -> 2 | C12: =IF(טבלה1[[#This Row],[תאריך]]="","",IF(TEXT(טבלה1[[#This Row],[תאריך]],"DDD")="שבת","מוצ""ש",TEXT(טבלה1[[#This Row],[תאריך]],"DDD"))) -> יום א | D12: 2024-04-14 | E12: 02:17:24 | F12: עימוד | G12: 04:17:28 | J12: =IF(IF(AND(טבלה1[[#This Row],[התחלה]]="",טבלה1[[#This Row],[סיום]]<>""),"",IF(AND(טבלה1[[#This Row],[התחלה]]<>"",טבלה1[[#This Row],[סיום]]=""), SUM(MOD(MOD(NOW(),1)-טבלה1[[#This Row],[התחלה]],1),טבלה1[[#This Row],[הוספת דקות]],-טבלה1[[#This Row],[הפחתת דקות]]), SUM(MOD(טבלה1[[#This Row],[סיום]]-טבלה1[[#This Row],[התחלה]],1),טבלה1[[#This Row],[הוספת דקות]],-טבלה1[[#This Row],[הפחתת דקות]])))<=0,"", IF(AND(טבלה1[[#This Row],[התחלה]]="",טבלה1[[#This Row],[סיום]]<>""),"",IF(AND(טבלה1[[#This Row],[התחלה]]<>"",טבלה1[[#This Row],[סיום]]=""), SUM(MOD(MOD(NOW(),1)-טבלה1[[#This Row],[התחלה]],1),טבלה1[[#This Row],[הוספת דקות]],-טבלה1[[#This Row],[הפחתת דקות]]), SUM(MOD(טבלה1[[#This Row],[סיום]]-טבלה1[[#This Row],[התחלה]],1),טבלה1[[#This Row],[הוספת דקות]],-טבלה1[[#This Row],[הפחתת דקות]])))) -> 0.08337962963 | K12: =IF(טבלה1[[#This Row],[שעות]]="","",IFERROR( IF(IF(AND(מטבע="שקלים",VLOOKUP(טבלה1[[#This Row],[שם העבודה]],טבלה2[],3,FALSE)="$"), VLOOKUP(טבלה1[[#This Row],[שם העבודה]],טבלה2[#All],2,FALSE)*טבלה1[[#This Row],[שעות]]*24*שער, IF(AND(מטבע="דולרים",VLOOKUP(טבלה1[[#This Row],[שם העבודה]],טבלה2[],3,FALSE)="₪"), VLOOKUP(טבלה1[[#This Row],[שם העבודה]],טבלה2[#All],2,FALSE)*טבלה1[[#This Row],[שעות]]*24/שער, VLOOKUP(טבלה1[[#This Row],[שם העבודה]],טבלה2[#All],2,FALSE)*טבלה1[[#This Row],[שעות]]*24))=0,"", IF(AND(מטבע="שקלים",VLOOKUP(טבלה1[[#This Row],[שם העבודה]],טבלה2[],3,FALSE)="$"), VLOOKUP(טבלה1[[#This Row],[שם העבודה]],טבלה2[#All],2,FALSE)*טבלה1[[#This Row],[שעות]]*24*שער, IF(AND(מטבע="דולרים",VLOOKUP(טבלה1[[#This Row],[שם העבודה]],טבלה2[],3,FALSE)="₪"), VLOOKUP(טבלה1[[#This Row],[שם העבודה]],טבלה2[#All],2,FALSE)*טבלה1[[#This Row],[שעות]]*24/שער, VLOOKUP(טבלה1[[#This Row],[שם העבודה]],טבלה2[#All],2,FALSE)*טבלה1[[#This Row],[שעות]]*24))),"")) -> 20.01111111 | L12: =IF(טבלה1[[#This Row],[תאריך]]="","",DATE(YEAR(טבלה1[[#This Row],[תאריך]]),MONTH(טבלה1[[#This Row],[תאריך]]),1)) -> 2024-04-01 | AO12: =IF(AL12="","", IFERROR(IF(SUMIFS(טבלה1[שעות],טבלה1[שם העבודה],טבלה2[[#This Row],[שמות העבודות]])=0,"", SUMIFS(טבלה1[שעות],טבלה1[שם העבודה],טבלה2[[#This Row],[שמות העבודות]])),"")) ->  | AP12: =IFERROR(IF(OR(טבלה2[[#This Row],[שכר לשעה]]="",טבלה2[[#This Row],[שעות]]=""),"",IF( IF(OR(טבלה2[[#This Row],[מטבע]]="₪",AND(מטבע="שקלים",טבלה2[[#This Row],[מטבע]]="")), טבלה2[[#This Row],[שכר לשעה]]*טבלה2[[#This Row],[שעות]]*24, IF(OR(טבלה2[[#This Row],[מטבע]]="$",AND(מטבע="דולרים",טבלה2[[#This Row],[מטבע]]="")), טבלה2[[#This Row],[שכר לשעה]]*טבלה2[[#This Row],[שעות]]*24*שער,""))=0,"", IF(OR(טבלה2[[#This Row],[מטבע]]="₪",AND(מטבע="שקלים",טבלה2[[#This Row],[מטבע]]="")), טבלה2[[#This Row],[שכר לשעה]]*טבלה2[[#This Row],[שעות]]*24, IF(OR(טבלה2[[#This Row],[מטבע]]="$",AND(מטבע="דולרים",טבלה2[[#This Row],[מטבע]]="")), טבלה2[[#This Row],[שכר לשעה]]*טבלה2[[#This Row],[שעות]]*24*שער,"")))),"") ->  | AQ12: =IFERROR(IF(OR(טבלה2[[#This Row],[שכר לשעה]]="",טבלה2[[#This Row],[שעות]]=""),"",IF( IF(OR(טבלה2[[#This Row],[מטבע]]="$",AND(מטבע="דולרים",טבלה2[[#This Row],[מטבע]]="")), טבלה2[[#This Row],[שכר לשעה]]*טבלה2[[#This Row],[שעות]]*24, IF(OR(טבלה2[[#This Row],[מטבע]]="₪",AND(מטבע="שקלים",טבלה2[[#This Row],[מטבע]]="")), טבלה2[[#This Row],[שכר לשעה]]*טבלה2[[#This Row],[שעות]]*24/שער,""))=0,"", IF(OR(טבלה2[[#This Row],[מטבע]]="$",AND(מטבע="דולרים",טבלה2[[#This Row],[מטבע]]="")), טבלה2[[#This Row],[שכר לשעה]]*טבלה2[[#This Row],[שעות]]*24, IF(OR(טבלה2[[#This Row],[מטבע]]="₪",AND(מטבע="שקלים",טבלה2[[#This Row],[מטבע]]="")), טבלה2[[#This Row],[שכר לשעה]]*טבלה2[[#This Row],[שעות]]*24/שער,"")))),"") ->  | AT12: =IF(טבלה2[[#This Row],[שעות]]="","",IF( IF(OR(טבלה2[[#This Row],[מטבע]]="₪",AND(מטבע="שקלים",טבלה2[[#This Row],[מטבע]]="")),טבלה2[[#This Row],[שכר בשקלים]]+טבלה2[[#This Row],[חיובים נוספים]]-טבלה2[[#This Row],[זיכויים / שולם]], IF(OR(טבלה2[[#This Row],[מטבע]]="$",AND(מטבע="דולרים",טבלה2[[#This Row],[מטבע]]="")),טבלה2[[#This Row],[שכר בדולרים]]+טבלה2[[#This Row],[חיובים נוספים]]-טבלה2[[#This Row],[זיכויים / שולם]],""))=0,"", IF(OR(טבלה2[[#This Row],[מטבע]]="₪",AND(מטבע="שקלים",טבלה2[[#This Row],[מטבע]]="")),טבלה2[[#This Row],[שכר בשקלים]]+טבלה2[[#This Row],[חיובים נוספים]]-טבלה2[[#This Row],[זיכויים / שולם]], IF(OR(טבלה2[[#This Row],[מטבע]]="$",AND(מטבע="דולרים",טבלה2[[#This Row],[מטבע]]="")),טבלה2[[#This Row],[שכר בדולרים]]+טבלה2[[#This Row],[חיובים נוספים]]-טבלה2[[#This Row],[זיכויים / שולם]],"")))) ->  | BJ12: הקלדה | BK12: =IF(טבלה2[[#This Row],[שמות העבודות]]="","",טבלה2[[#This Row],[שמות העבודות]]) -> 
B13: =IF(AND(טבלה1[[#This Row],[תאריך]]="",טבלה1[[#This Row],[התחלה]]="",טבלה1[[#This Row],[שם העבודה]]=""),"",ROW()-10) -> 3 | C13: =IF(טבלה1[[#This Row],[תאריך]]="","",IF(TEXT(טבלה1[[#This Row],[תאריך]],"DDD")="שבת","מוצ""ש",TEXT(טבלה1[[#This Row],[תאריך]],"DDD"))) -> יום ב | D13: 2024-04-15 | E13: 02:17:24 | F13: הגהה | G13: 04:17:28 | J13: =IF(IF(AND(טבלה1[[#This Row],[התחלה]]="",טבלה1[[#This Row],[סיום]]<>""),"",IF(AND(טבלה1[[#This Row],[התחלה]]<>"",טבלה1[[#This Row],[סיום]]=""), SUM(MOD(MOD(NOW(),1)-טבלה1[[#This Row],[התחלה]],1),טבלה1[[#This Row],[הוספת דקות]],-טבלה1[[#This Row],[הפחתת דקות]]), SUM(MOD(טבלה1[[#This Row],[סיום]]-טבלה1[[#This Row],[התחלה]],1),טבלה1[[#This Row],[הוספת דקות]],-טבלה1[[#This Row],[הפחתת דקות]])))<=0,"", IF(AND(טבלה1[[#This Row],[התחלה]]="",טבלה1[[#This Row],[סיום]]<>""),"",IF(AND(טבלה1[[#This Row],[התחלה]]<>"",טבלה1[[#This Row],[סיום]]=""), SUM(MOD(MOD(NOW(),1)-טבלה1[[#This Row],[התחלה]],1),טבלה1[[#This Row],[הוספת דקות]],-טבלה1[[#This Row],[הפחתת דקות]]), SUM(MOD(טבלה1[[#This Row],[סיום]]-טבלה1[[#This Row],[התחלה]],1),טבלה1[[#This Row],[הוספת דקות]],-טבלה1[[#This Row],[הפחתת דקות]])))) -> 0.08337962963 | K13: =IF(טבלה1[[#This Row],[שעות]]="","",IFERROR( IF(IF(AND(מטבע="שקלים",VLOOKUP(טבלה1[[#This Row],[שם העבודה]],טבלה2[],3,FALSE)="$"), VLOOKUP(טבלה1[[#This Row],[שם העבודה]],טבלה2[#All],2,FALSE)*טבלה1[[#This Row],[שעות]]*24*שער, IF(AND(מטבע="דולרים",VLOOKUP(טבלה1[[#This Row],[שם העבודה]],טבלה2[],3,FALSE)="₪"), VLOOKUP(טבלה1[[#This Row],[שם העבודה]],טבלה2[#All],2,FALSE)*טבלה1[[#This Row],[שעות]]*24/שער, VLOOKUP(טבלה1[[#This Row],[שם העבודה]],טבלה2[#All],2,FALSE)*טבלה1[[#This Row],[שעות]]*24))=0,"", IF(AND(מטבע="שקלים",VLOOKUP(טבלה1[[#This Row],[שם העבודה]],טבלה2[],3,FALSE)="$"), VLOOKUP(טבלה1[[#This Row],[שם העבודה]],טבלה2[#All],2,FALSE)*טבלה1[[#This Row],[שעות]]*24*שער, IF(AND(מטבע="דולרים",VLOOKUP(טבלה1[[#This Row],[שם העבודה]],טבלה2[],3,FALSE)="₪"), VLOOKUP(טבלה1[[#This Row],[שם העבודה]],טבלה2[#All],2,FALSE)*טבלה1[[#This Row],[שעות]]*24/שער, VLOOKUP(טבלה1[[#This Row],[שם העבודה]],טבלה2[#All],2,FALSE)*טבלה1[[#This Row],[שעות]]*24))),"")) -> 20.01111111 | L13: =IF(טבלה1[[#This Row],[תאריך]]="","",DATE(YEAR(טבלה1[[#This Row],[תאריך]]),MONTH(טבלה1[[#This Row],[תאריך]]),1)) -> 2024-04-01 | AO13: =IF(AL13="","", IFERROR(IF(SUMIFS(טבלה1[שעות],טבלה1[שם העבודה],טבלה2[[#This Row],[שמות העבודות]])=0,"", SUMIFS(טבלה1[שעות],טבלה1[שם העבודה],טבלה2[[#This Row],[שמות העבודות]])),"")) ->  | AP13: =IFERROR(IF(OR(טבלה2[[#This Row],[שכר לשעה]]="",טבלה2[[#This Row],[שעות]]=""),"",IF( IF(OR(טבלה2[[#This Row],[מטבע]]="₪",AND(מטבע="שקלים",טבלה2[[#This Row],[מטבע]]="")), טבלה2[[#This Row],[שכר לשעה]]*טבלה2[[#This Row],[שעות]]*24, IF(OR(טבלה2[[#This Row],[מטבע]]="$",AND(מטבע="דולרים",טבלה2[[#This Row],[מטבע]]="")), טבלה2[[#This Row],[שכר לשעה]]*טבלה2[[#This Row],[שעות]]*24*שער,""))=0,"", IF(OR(טבלה2[[#This Row],[מטבע]]="₪",AND(מטבע="שקלים",טבלה2[[#This Row],[מטבע]]="")), טבלה2[[#This Row],[שכר לשעה]]*טבלה2[[#This Row],[שעות]]*24, IF(OR(טבלה2[[#This Row],[מטבע]]="$",AND(מטבע="דולרים",טבלה2[[#This Row],[מטבע]]="")), טבלה2[[#This Row],[שכר לשעה]]*טבלה2[[#This Row],[שעות]]*24*שער,"")))),"") ->  | AQ13: =IFERROR(IF(OR(טבלה2[[#This Row],[שכר לשעה]]="",טבלה2[[#This Row],[שעות]]=""),"",IF( IF(OR(טבלה2[[#This Row],[מטבע]]="$",AND(מטבע="דולרים",טבלה2[[#This Row],[מטבע]]="")), טבלה2[[#This Row],[שכר לשעה]]*טבלה2[[#This Row],[שעות]]*24, IF(OR(טבלה2[[#This Row],[מטבע]]="₪",AND(מטבע="שקלים",טבלה2[[#This Row],[מטבע]]="")), טבלה2[[#This Row],[שכר לשעה]]*טבלה2[[#This Row],[שעות]]*24/שער,""))=0,"", IF(OR(טבלה2[[#This Row],[מטבע]]="$",AND(מטבע="דולרים",טבלה2[[#This Row],[מטבע]]="")), טבלה2[[#This Row],[שכר לשעה]]*טבלה2[[#This Row],[שעות]]*24, IF(OR(טבלה2[[#This Row],[מטבע]]="₪",AND(מטבע="שקלים",טבלה2[[#This Row],[מטבע]]="")), טבלה2[[#This Row],[שכר לשעה]]*טבלה2[[#This Row],[שעות]]*24/שער,"")))),"") ->  | AT13: =IF(טבלה2[[#This Row],[שעות]]="","",IF( IF(OR(טבלה2[[#This Row],[מטבע]]="₪",AND(מטבע="שקלים",טבלה2[[#This Row],[מטבע]]="")),טבלה2[[#This Row],[שכר בשקלים]]+טבלה2[[#This Row],[חיובים נוספים]]-טבלה2[[#This Row],[זיכויים / שולם]], IF(OR(טבלה2[[#This Row],[מטבע]]="$",AND(מטבע="דולרים",טבלה2[[#This Row],[מטבע]]="")),טבלה2[[#This Row],[שכר בדולרים]]+טבלה2[[#This Row],[חיובים נוספים]]-טבלה2[[#This Row],[זיכויים / שולם]],""))=0,"", IF(OR(טבלה2[[#This Row],[מטבע]]="₪",AND(מטבע="שקלים",טבלה2[[#This Row],[מטבע]]="")),טבלה2[[#This Row],[שכר בשקלים]]+טבלה2[[#This Row],[חיובים נוספים]]-טבלה2[[#This Row],[זיכויים / שולם]], IF(OR(טבלה2[[#This Row],[מטבע]]="$",AND(מטבע="דולרים",טבלה2[[#This Row],[מטבע]]="")),טבלה2[[#This Row],[שכר בדולרים]]+טבלה2[[#This Row],[חיובים נוספים]]-טבלה2[[#This Row],[זיכויים / שולם]],"")))) ->  | BJ13: שם עבודה נבחרת | BK13: =IF(טבלה2[[#This Row],[שמות העבודות]]="","",טבלה2[[#This Row],[שמות העבודות]]) -> 
B14: =IF(AND(טבלה1[[#This Row],[תאריך]]="",טבלה1[[#This Row],[התחלה]]="",טבלה1[[#This Row],[שם העבודה]]=""),"",ROW()-10) -> 4 | C14: =IF(טבלה1[[#This Row],[תאריך]]="","",IF(TEXT(טבלה1[[#This Row],[תאריך]],"DDD")="שבת","מוצ""ש",TEXT(טבלה1[[#This Row],[תאריך]],"DDD"))) -> יום ג | D14: 2024-04-16 | E14: 02:17:24 | F14: הקלדה | G14: 04:17:28 | J14: =IF(IF(AND(טבלה1[[#This Row],[התחלה]]="",טבלה1[[#This Row],[סיום]]<>""),"",IF(AND(טבלה1[[#This Row],[התחלה]]<>"",טבלה1[[#This Row],[סיום]]=""), SUM(MOD(MOD(NOW(),1)-טבלה1[[#This Row],[התחלה]],1),טבלה1[[#This Row],[הוספת דקות]],-טבלה1[[#This Row],[הפחתת דקות]]), SUM(MOD(טבלה1[[#This Row],[סיום]]-טבלה1[[#This Row],[התחלה]],1),טבלה1[[#This Row],[הוספת דקות]],-טבלה1[[#This Row],[הפחתת דקות]])))<=0,"", IF(AND(טבלה1[[#This Row],[התחלה]]="",טבלה1[[#This Row],[סיום]]<>""),"",IF(AND(טבלה1[[#This Row],[התחלה]]<>"",טבלה1[[#This Row],[סיום]]=""), SUM(MOD(MOD(NOW(),1)-טבלה1[[#This Row],[התחלה]],1),טבלה1[[#This Row],[הוספת דקות]],-טבלה1[[#This Row],[הפחתת דקות]]), SUM(MOD(טבלה1[[#This Row],[סיום]]-טבלה1[[#This Row],[התחלה]],1),טבלה1[[#This Row],[הוספת דקות]],-טבלה1[[#This Row],[הפחתת דקות]])))) -> 0.08337962963 | K14: =IF(טבלה1[[#This Row],[שעות]]="","",IFERROR( IF(IF(AND(מטבע="שקלים",VLOOKUP(טבלה1[[#This Row],[שם העבודה]],טבלה2[],3,FALSE)="$"), VLOOKUP(טבלה1[[#This Row],[שם העבודה]],טבלה2[#All],2,FALSE)*טבלה1[[#This Row],[שעות]]*24*שער, IF(AND(מטבע="דולרים",VLOOKUP(טבלה1[[#This Row],[שם העבודה]],טבלה2[],3,FALSE)="₪"), VLOOKUP(טבלה1[[#This Row],[שם העבודה]],טבלה2[#All],2,FALSE)*טבלה1[[#This Row],[שעות]]*24/שער, VLOOKUP(טבלה1[[#This Row],[שם העבודה]],טבלה2[#All],2,FALSE)*טבלה1[[#This Row],[שעות]]*24))=0,"", IF(AND(מטבע="שקלים",VLOOKUP(טבלה1[[#This Row],[שם העבודה]],טבלה2[],3,FALSE)="$"), VLOOKUP(טבלה1[[#This Row],[שם העבודה]],טבלה2[#All],2,FALSE)*טבלה1[[#This Row],[שעות]]*24*שער, IF(AND(מטבע="דולרים",VLOOKUP(טבלה1[[#This Row],[שם העבודה]],טבלה2[],3,FALSE)="₪"), VLOOKUP(טבלה1[[#This Row],[שם העבודה]],טבלה2[#All],2,FALSE)*טבלה1[[#This Row],[שעות]]*24/שער, VLOOKUP(טבלה1[[#This Row],[שם העבודה]],טבלה2[#All],2,FALSE)*טבלה1[[#This Row],[שעות]]*24))),"")) -> 100.0555556 | L14: =IF(טבלה1[[#This Row],[תאריך]]="","",DATE(YEAR(טבלה1[[#This Row],[תאריך]]),MONTH(טבלה1[[#This Row],[תאריך]]),1)) -> 2024-04-01 | AO14: =IF(AL14="","", IFERROR(IF(SUMIFS(טבלה1[שעות],טבלה1[שם העבודה],טבלה2[[#This Row],[שמות העבודות]])=0,"", SUMIFS(טבלה1[שעות],טבלה1[שם העבודה],טבלה2[[#This Row],[שמות העבודות]])),"")) ->  | AP14: =IFERROR(IF(OR(טבלה2[[#This Row],[שכר לשעה]]="",טבלה2[[#This Row],[שעות]]=""),"",IF( IF(OR(טבלה2[[#This Row],[מטבע]]="₪",AND(מטבע="שקלים",טבלה2[[#This Row],[מטבע]]="")), טבלה2[[#This Row],[שכר לשעה]]*טבלה2[[#This Row],[שעות]]*24, IF(OR(טבלה2[[#This Row],[מטבע]]="$",AND(מטבע="דולרים",טבלה2[[#This Row],[מטבע]]="")), טבלה2[[#This Row],[שכר לשעה]]*טבלה2[[#This Row],[שעות]]*24*שער,""))=0,"", IF(OR(טבלה2[[#This Row],[מטבע]]="₪",AND(מטבע="שקלים",טבלה2[[#This Row],[מטבע]]="")), טבלה2[[#This Row],[שכר לשעה]]*טבלה2[[#This Row],[שעות]]*24, IF(OR(טבלה2[[#This Row],[מטבע]]="$",AND(מטבע="דולרים",טבלה2[[#This Row],[מטבע]]="")), טבלה2[[#This Row],[שכר לשעה]]*טבלה2[[#This Row],[שעות]]*24*שער,"")))),"") ->  | AQ14: =IFERROR(IF(OR(טבלה2[[#This Row],[שכר לשעה]]="",טבלה2[[#This Row],[שעות]]=""),"",IF( IF(OR(טבלה2[[#This Row],[מטבע]]="$",AND(מטבע="דולרים",טבלה2[[#This Row],[מטבע]]="")), טבלה2[[#This Row],[שכר לשעה]]*טבלה2[[#This Row],[שעות]]*24, IF(OR(טבלה2[[#This Row],[מטבע]]="₪",AND(מטבע="שקלים",טבלה2[[#This Row],[מטבע]]="")), טבלה2[[#This Row],[שכר לשעה]]*טבלה2[[#This Row],[שעות]]*24/שער,""))=0,"", IF(OR(טבלה2[[#This Row],[מטבע]]="$",AND(מטבע="דולרים",טבלה2[[#This Row],[מטבע]]="")), טבלה2[[#This Row],[שכר לשעה]]*טבלה2[[#This Row],[שעות]]*24, IF(OR(טבלה2[[#This Row],[מטבע]]="₪",AND(מטבע="שקלים",טבלה2[[#This Row],[מטבע]]="")), טבלה2[[#This Row],[שכר לשעה]]*טבלה2[[#This Row],[שעות]]*24/שער,"")))),"") ->  | AT14: =IF(טבלה2[[#This Row],[שעות]]="","",IF( IF(OR(טבלה2[[#This Row],[מטבע]]="₪",AND(מטבע="שקלים",טבלה2[[#This Row],[מטבע]]="")),טבלה2[[#This Row],[שכר בשקלים]]+טבלה2[[#This Row],[חיובים נוספים]]-טבלה2[[#This Row],[זיכויים / שולם]], IF(OR(טבלה2[[#This Row],[מטבע]]="$",AND(מטבע="דולרים",טבלה2[[#This Row],[מטבע]]="")),טבלה2[[#This Row],[שכר בדולרים]]+טבלה2[[#This Row],[חיובים נוספים]]-טבלה2[[#This Row],[זיכויים / שולם]],""))=0,"", IF(OR(טבלה2[[#This Row],[מטבע]]="₪",AND(מטבע="שקלים",טבלה2[[#This Row],[מטבע]]="")),טבלה2[[#This Row],[שכר בשקלים]]+טבלה2[[#This Row],[חיובים נוספים]]-טבלה2[[#This Row],[זיכויים / שולם]], IF(OR(טבלה2[[#This Row],[מטבע]]="$",AND(מטבע="דולרים",טבלה2[[#This Row],[מטבע]]="")),טבלה2[[#This Row],[שכר בדולרים]]+טבלה2[[#This Row],[חיובים נוספים]]-טבלה2[[#This Row],[זיכויים / שולם]],"")))) ->  | BJ14: =IF(BJ12="","",BJ12) -> הקלדה | BK14: =IF(טבלה2[[#This Row],[שמות העבודות]]="","",טבלה2[[#This Row],[שמות העבודות]]) -> 
B15: =IF(AND(טבלה1[[#This Row],[תאריך]]="",טבלה1[[#This Row],[התחלה]]="",טבלה1[[#This Row],[שם העבודה]]=""),"",ROW()-10) -> 5 | C15: =IF(טבלה1[[#This Row],[תאריך]]="","",IF(TEXT(טבלה1[[#This Row],[תאריך]],"DDD")="שבת","מוצ""ש",TEXT(טבלה1[[#This Row],[תאריך]],"DDD"))) -> יום ד | D15: 2024-04-17 | E15: 02:17:24 | F15: עימוד | G15: 04:17:28 | J15: =IF(IF(AND(טבלה1[[#This Row],[התחלה]]="",טבלה1[[#This Row],[סיום]]<>""),"",IF(AND(טבלה1[[#This Row],[התחלה]]<>"",טבלה1[[#This Row],[סיום]]=""), SUM(MOD(MOD(NOW(),1)-טבלה1[[#This Row],[התחלה]],1),טבלה1[[#This Row],[הוספת דקות]],-טבלה1[[#This Row],[הפחתת דקות]]), SUM(MOD(טבלה1[[#This Row],[סיום]]-טבלה1[[#This Row],[התחלה]],1),טבלה1[[#This Row],[הוספת דקות]],-טבלה1[[#This Row],[הפחתת דקות]])))<=0,"", IF(AND(טבלה1[[#This Row],[התחלה]]="",טבלה1[[#This Row],[סיום]]<>""),"",IF(AND(טבלה1[[#This Row],[התחלה]]<>"",טבלה1[[#This Row],[סיום]]=""), SUM(MOD(MOD(NOW(),1)-טבלה1[[#This Row],[התחלה]],1),טבלה1[[#This Row],[הוספת דקות]],-טבלה1[[#This Row],[הפחתת דקות]]), SUM(MOD(טבלה1[[#This Row],[סיום]]-טבלה1[[#This Row],[התחלה]],1),טבלה1[[#This Row],[הוספת דקות]],-טבלה1[[#This Row],[הפחתת דקות]])))) -> 0.08337962963 | K15: =IF(טבלה1[[#This Row],[שעות]]="","",IFERROR( IF(IF(AND(מטבע="שקלים",VLOOKUP(טבלה1[[#This Row],[שם העבודה]],טבלה2[],3,FALSE)="$"), VLOOKUP(טבלה1[[#This Row],[שם העבודה]],טבלה2[#All],2,FALSE)*טבלה1[[#This Row],[שעות]]*24*שער, IF(AND(מטבע="דולרים",VLOOKUP(טבלה1[[#This Row],[שם העבודה]],טבלה2[],3,FALSE)="₪"), VLOOKUP(טבלה1[[#This Row],[שם העבודה]],טבלה2[#All],2,FALSE)*טבלה1[[#This Row],[שעות]]*24/שער, VLOOKUP(טבלה1[[#This Row],[שם העבודה]],טבלה2[#All],2,FALSE)*טבלה1[[#This Row],[שעות]]*24))=0,"", IF(AND(מטבע="שקלים",VLOOKUP(טבלה1[[#This Row],[שם העבודה]],טבלה2[],3,FALSE)="$"), VLOOKUP(טבלה1[[#This Row],[שם העבודה]],טבלה2[#All],2,FALSE)*טבלה1[[#This Row],[שעות]]*24*שער, IF(AND(מטבע="דולרים",VLOOKUP(טבלה1[[#This Row],[שם העבודה]],טבלה2[],3,FALSE)="₪"), VLOOKUP(טבלה1[[#This Row],[שם העבודה]],טבלה2[#All],2,FALSE)*טבלה1[[#This Row],[שעות]]*24/שער, VLOOKUP(טבלה1[[#This Row],[שם העבודה]],טבלה2[#All],2,FALSE)*טבלה1[[#This Row],[שעות]]*24))),"")) -> 20.01111111 | L15: =IF(טבלה1[[#This Row],[תאריך]]="","",DATE(YEAR(טבלה1[[#This Row],[תאריך]]),MONTH(טבלה1[[#This Row],[תאריך]]),1)) -> 2024-04-01 | Y15: מחשבון דולר | AE15: עדכון אוטומטי לשער הדולר ניתן לבצע באמצעות הלחצן שבתפריט 'אפשרויות' | AO15: =IF(AL15="","", IFERROR(IF(SUMIFS(טבלה1[שעות],טבלה1[שם העבודה],טבלה2[[#This Row],[שמות העבודות]])=0,"", SUMIFS(טבלה1[שעות],טבלה1[שם העבודה],טבלה2[[#This Row],[שמות העבודות]])),"")) ->  | AP15: =IFERROR(IF(OR(טבלה2[[#This Row],[שכר לשעה]]="",טבלה2[[#This Row],[שעות]]=""),"",IF( IF(OR(טבלה2[[#This Row],[מטבע]]="₪",AND(מטבע="שקלים",טבלה2[[#This Row],[מטבע]]="")), טבלה2[[#This Row],[שכר לשעה]]*טבלה2[[#This Row],[שעות]]*24, IF(OR(טבלה2[[#This Row],[מטבע]]="$",AND(מטבע="דולרים",טבלה2[[#This Row],[מטבע]]="")), טבלה2[[#This Row],[שכר לשעה]]*טבלה2[[#This Row],[שעות]]*24*שער,""))=0,"", IF(OR(טבלה2[[#This Row],[מטבע]]="₪",AND(מטבע="שקלים",טבלה2[[#This Row],[מטבע]]="")), טבלה2[[#This Row],[שכר לשעה]]*טבלה2[[#This Row],[שעות]]*24, IF(OR(טבלה2[[#This Row],[מטבע]]="$",AND(מטבע="דולרים",טבלה2[[#This Row],[מטבע]]="")), טבלה2[[#This Row],[שכר לשעה]]*טבלה2[[#This Row],[שעות]]*24*שער,"")))),"") ->  | AQ15: =IFERROR(IF(OR(טבלה2[[#This Row],[שכר לשעה]]="",טבלה2[[#This Row],[שעות]]=""),"",IF( IF(OR(טבלה2[[#This Row],[מטבע]]="$",AND(מטבע="דולרים",טבלה2[[#This Row],[מטבע]]="")), טבלה2[[#This Row],[שכר לשעה]]*טבלה2[[#This Row],[שעות]]*24, IF(OR(טבלה2[[#This Row],[מטבע]]="₪",AND(מטבע="שקלים",טבלה2[[#This Row],[מטבע]]="")), טבלה2[[#This Row],[שכר לשעה]]*טבלה2[[#This Row],[שעות]]*24/שער,""))=0,"", IF(OR(טבלה2[[#This Row],[מטבע]]="$",AND(מטבע="דולרים",טבלה2[[#This Row],[מטבע]]="")), טבלה2[[#This Row],[שכר לשעה]]*טבלה2[[#This Row],[שעות]]*24, IF(OR(טבלה2[[#This Row],[מטבע]]="₪",AND(מטבע="שקלים",טבלה2[[#This Row],[מטבע]]="")), טבלה2[[#This Row],[שכר לשעה]]*טבלה2[[#This Row],[שעות]]*24/שער,"")))),"") ->  | AT15: =IF(טבלה2[[#This Row],[שעות]]="","",IF( IF(OR(טבלה2[[#This Row],[מטבע]]="₪",AND(מטבע="שקלים",טבלה2[[#This Row],[מטבע]]="")),טבלה2[[#This Row],[שכר בשקלים]]+טבלה2[[#This Row],[חיובים נוספים]]-טבלה2[[#This Row],[זיכויים / שולם]], IF(OR(טבלה2[[#This Row],[מטבע]]="$",AND(מטבע="דולרים",טבלה2[[#This Row],[מטבע]]="")),טבלה2[[#This Row],[שכר בדולרים]]+טבלה2[[#This Row],[חיובים נוספים]]-טבלה2[[#This Row],[זיכויים / שולם]],""))=0,"", IF(OR(טבלה2[[#This Row],[מטבע]]="₪",AND(מטבע="שקלים",טבלה2[[#This Row],[מטבע]]="")),טבלה2[[#This Row],[שכר בשקלים]]+טבלה2[[#This Row],[חיובים נוספים]]-טבלה2[[#This Row],[זיכויים / שולם]], IF(OR(טבלה2[[#This Row],[מטבע]]="$",AND(מטבע="דולרים",טבלה2[[#This Row],[מטבע]]="")),טבלה2[[#This Row],[שכר בדולרים]]+טבלה2[[#This Row],[חיובים נוספים]]-טבלה2[[#This Row],[זיכויים / שולם]],"")))) ->  | BJ15: סיסמת הגיליון | BK15: =IF(טבלה2[[#This Row],[שמות העבודות]]="","",טבלה2[[#This Row],[שמות העבודות]]) -> 
B16: =IF(AND(טבלה1[[#This Row],[תאריך]]="",טבלה1[[#This Row],[התחלה]]="",טבלה1[[#This Row],[שם העבודה]]=""),"",ROW()-10) -> 6 | C16: =IF(טבלה1[[#This Row],[תאריך]]="","",IF(TEXT(טבלה1[[#This Row],[תאריך]],"DDD")="שבת","מוצ""ש",TEXT(טבלה1[[#This Row],[תאריך]],"DDD"))) -> יום ו | D16: 2024-05-17 | E16: 02:17:24 | F16: הגהה | G16: 04:17:28 | J16: =IF(IF(AND(טבלה1[[#This Row],[התחלה]]="",טבלה1[[#This Row],[סיום]]<>""),"",IF(AND(טבלה1[[#This Row],[התחלה]]<>"",טבלה1[[#This Row],[סיום]]=""), SUM(MOD(MOD(NOW(),1)-טבלה1[[#This Row],[התחלה]],1),טבלה1[[#This Row],[הוספת דקות]],-טבלה1[[#This Row],[הפחתת דקות]]), SUM(MOD(טבלה1[[#This Row],[סיום]]-טבלה1[[#This Row],[התחלה]],1),טבלה1[[#This Row],[הוספת דקות]],-טבלה1[[#This Row],[הפחתת דקות]])))<=0,"", IF(AND(טבלה1[[#This Row],[התחלה]]="",טבלה1[[#This Row],[סיום]]<>""),"",IF(AND(טבלה1[[#This Row],[התחלה]]<>"",טבלה1[[#This Row],[סיום]]=""), SUM(MOD(MOD(NOW(),1)-טבלה1[[#This Row],[התחלה]],1),טבלה1[[#This Row],[הוספת דקות]],-טבלה1[[#This Row],[הפחתת דקות]]), SUM(MOD(טבלה1[[#This Row],[סיום]]-טבלה1[[#This Row],[התחלה]],1),טבלה1[[#This Row],[הוספת דקות]],-טבלה1[[#This Row],[הפחתת דקות]])))) -> 0.08337962963 | K16: =IF(טבלה1[[#This Row],[שעות]]="","",IFERROR( IF(IF(AND(מטבע="שקלים",VLOOKUP(טבלה1[[#This Row],[שם העבודה]],טבלה2[],3,FALSE)="$"), VLOOKUP(טבלה1[[#This Row],[שם העבודה]],טבלה2[#All],2,FALSE)*טבלה1[[#This Row],[שעות]]*24*שער, IF(AND(מטבע="דולרים",VLOOKUP(טבלה1[[#This Row],[שם העבודה]],טבלה2[],3,FALSE)="₪"), VLOOKUP(טבלה1[[#This Row],[שם העבודה]],טבלה2[#All],2,FALSE)*טבלה1[[#This Row],[שעות]]*24/שער, VLOOKUP(טבלה1[[#This Row],[שם העבודה]],טבלה2[#All],2,FALSE)*טבלה1[[#This Row],[שעות]]*24))=0,"", IF(AND(מטבע="שקלים",VLOOKUP(טבלה1[[#This Row],[שם העבודה]],טבלה2[],3,FALSE)="$"), VLOOKUP(טבלה1[[#This Row],[שם העבודה]],טבלה2[#All],2,FALSE)*טבלה1[[#This Row],[שעות]]*24*שער, IF(AND(מטבע="דולרים",VLOOKUP(טבלה1[[#This Row],[שם העבודה]],טבלה2[],3,FALSE)="₪"), VLOOKUP(טבלה1[[#This Row],[שם העבודה]],טבלה2[#All],2,FALSE)*טבלה1[[#This Row],[שעות]]*24/שער, VLOOKUP(טבלה1[[#This Row],[שם העבודה]],טבלה2[#All],2,FALSE)*טבלה1[[#This Row],[שעות]]*24))),"")) -> 20.01111111 | L16: =IF(טבלה1[[#This Row],[תאריך]]="","",DATE(YEAR(טבלה1[[#This Row],[תאריך]]),MONTH(טבלה1[[#This Row],[תאריך]]),1)) -> 2024-05-01 | AO16: =IF(AL16="","", IFERROR(IF(SUMIFS(טבלה1[שעות],טבלה1[שם העבודה],טבלה2[[#This Row],[שמות העבודות]])=0,"", SUMIFS(טבלה1[שעות],טבלה1[שם העבודה],טבלה2[[#This Row],[שמות העבודות]])),"")) ->  | AP16: =IFERROR(IF(OR(טבלה2[[#This Row],[שכר לשעה]]="",טבלה2[[#This Row],[שעות]]=""),"",IF( IF(OR(טבלה2[[#This Row],[מטבע]]="₪",AND(מטבע="שקלים",טבלה2[[#This Row],[מטבע]]="")), טבלה2[[#This Row],[שכר לשעה]]*טבלה2[[#This Row],[שעות]]*24, IF(OR(טבלה2[[#This Row],[מטבע]]="$",AND(מטבע="דולרים",טבלה2[[#This Row],[מטבע]]="")), טבלה2[[#This Row],[שכר לשעה]]*טבלה2[[#This Row],[שעות]]*24*שער,""))=0,"", IF(OR(טבלה2[[#This Row],[מטבע]]="₪",AND(מטבע="שקלים",טבלה2[[#This Row],[מטבע]]="")), טבלה2[[#This Row],[שכר לשעה]]*טבלה2[[#This Row],[שעות]]*24, IF(OR(טבלה2[[#This Row],[מטבע]]="$",AND(מטבע="דולרים",טבלה2[[#This Row],[מטבע]]="")), טבלה2[[#This Row],[שכר לשעה]]*טבלה2[[#This Row],[שעות]]*24*שער,"")))),"") ->  | AQ16: =IFERROR(IF(OR(טבלה2[[#This Row],[שכר לשעה]]="",טבלה2[[#This Row],[שעות]]=""),"",IF( IF(OR(טבלה2[[#This Row],[מטבע]]="$",AND(מטבע="דולרים",טבלה2[[#This Row],[מטבע]]="")), טבלה2[[#This Row],[שכר לשעה]]*טבלה2[[#This Row],[שעות]]*24, IF(OR(טבלה2[[#This Row],[מטבע]]="₪",AND(מטבע="שקלים",טבלה2[[#This Row],[מטבע]]="")), טבלה2[[#This Row],[שכר לשעה]]*טבלה2[[#This Row],[שעות]]*24/שער,""))=0,"", IF(OR(טבלה2[[#This Row],[מטבע]]="$",AND(מטבע="דולרים",טבלה2[[#This Row],[מטבע]]="")), טבלה2[[#This Row],[שכר לשעה]]*טבלה2[[#This Row],[שעות]]*24, IF(OR(טבלה2[[#This Row],[מטבע]]="₪",AND(מטבע="שקלים",טבלה2[[#This Row],[מטבע]]="")), טבלה2[[#This Row],[שכר לשעה]]*טבלה2[[#This Row],[שעות]]*24/שער,"")))),"") ->  | AT16: =IF(טבלה2[[#This Row],[שעות]]="","",IF( IF(OR(טבלה2[[#This Row],[מטבע]]="₪",AND(מטבע="שקלים",טבלה2[[#This Row],[מטבע]]="")),טבלה2[[#This Row],[שכר בשקלים]]+טבלה2[[#This Row],[חיובים נוספים]]-טבלה2[[#This Row],[זיכויים / שולם]], IF(OR(טבלה2[[#This Row],[מטבע]]="$",AND(מטבע="דולרים",טבלה2[[#This Row],[מטבע]]="")),טבלה2[[#This Row],[שכר בדולרים]]+טבלה2[[#This Row],[חיובים נוספים]]-טבלה2[[#This Row],[זיכויים / שולם]],""))=0,"", IF(OR(טבלה2[[#This Row],[מטבע]]="₪",AND(מטבע="שקלים",טבלה2[[#This Row],[מטבע]]="")),טבלה2[[#This Row],[שכר בשקלים]]+טבלה2[[#This Row],[חיובים נוספים]]-טבלה2[[#This Row],[זיכויים / שולם]], IF(OR(טבלה2[[#This Row],[מטבע]]="$",AND(מטבע="דולרים",טבלה2[[#This Row],[מטבע]]="")),טבלה2[[#This Row],[שכר בדולרים]]+טבלה2[[#This Row],[חיובים נוספים]]-טבלה2[[#This Row],[זיכויים / שולם]],"")))) ->  | BJ16: 1234 | BK16: =IF(טבלה2[[#This Row],[שמות העבודות]]="","",טבלה2[[#This Row],[שמות העבודות]]) -> 
B17: =IF(AND(טבלה1[[#This Row],[תאריך]]="",טבלה1[[#This Row],[התחלה]]="",טבלה1[[#This Row],[שם העבודה]]=""),"",ROW()-10) -> 7 | C17: =IF(טבלה1[[#This Row],[תאריך]]="","",IF(TEXT(טבלה1[[#This Row],[תאריך]],"DDD")="שבת","מוצ""ש",TEXT(טבלה1[[#This Row],[תאריך]],"DDD"))) -> מוצ"ש | D17: 2024-05-18 | E17: 02:17:24 | F17: הקלדה | G17: 04:17:28 | J17: =IF(IF(AND(טבלה1[[#This Row],[התחלה]]="",טבלה1[[#This Row],[סיום]]<>""),"",IF(AND(טבלה1[[#This Row],[התחלה]]<>"",טבלה1[[#This Row],[סיום]]=""), SUM(MOD(MOD(NOW(),1)-טבלה1[[#This Row],[התחלה]],1),טבלה1[[#This Row],[הוספת דקות]],-טבלה1[[#This Row],[הפחתת דקות]]), SUM(MOD(טבלה1[[#This Row],[סיום]]-טבלה1[[#This Row],[התחלה]],1),טבלה1[[#This Row],[הוספת דקות]],-טבלה1[[#This Row],[הפחתת דקות]])))<=0,"", IF(AND(טבלה1[[#This Row],[התחלה]]="",טבלה1[[#This Row],[סיום]]<>""),"",IF(AND(טבלה1[[#This Row],[התחלה]]<>"",טבלה1[[#This Row],[סיום]]=""), SUM(MOD(MOD(NOW(),1)-טבלה1[[#This Row],[התחלה]],1),טבלה1[[#This Row],[הוספת דקות]],-טבלה1[[#This Row],[הפחתת דקות]]), SUM(MOD(טבלה1[[#This Row],[סיום]]-טבלה1[[#This Row],[התחלה]],1),טבלה1[[#This Row],[הוספת דקות]],-טבלה1[[#This Row],[הפחתת דקות]])))) -> 0.08337962963 | K17: =IF(טבלה1[[#This Row],[שעות]]="","",IFERROR( IF(IF(AND(מטבע="שקלים",VLOOKUP(טבלה1[[#This Row],[שם העבודה]],טבלה2[],3,FALSE)="$"), VLOOKUP(טבלה1[[#This Row],[שם העבודה]],טבלה2[#All],2,FALSE)*טבלה1[[#This Row],[שעות]]*24*שער, IF(AND(מטבע="דולרים",VLOOKUP(טבלה1[[#This Row],[שם העבודה]],טבלה2[],3,FALSE)="₪"), VLOOKUP(טבלה1[[#This Row],[שם העבודה]],טבלה2[#All],2,FALSE)*טבלה1[[#This Row],[שעות]]*24/שער, VLOOKUP(טבלה1[[#This Row],[שם העבודה]],טבלה2[#All],2,FALSE)*טבלה1[[#This Row],[שעות]]*24))=0,"", IF(AND(מטבע="שקלים",VLOOKUP(טבלה1[[#This Row],[שם העבודה]],טבלה2[],3,FALSE)="$"), VLOOKUP(טבלה1[[#This Row],[שם העבודה]],טבלה2[#All],2,FALSE)*טבלה1[[#This Row],[שעות]]*24*שער, IF(AND(מטבע="דולרים",VLOOKUP(טבלה1[[#This Row],[שם העבודה]],טבלה2[],3,FALSE)="₪"), VLOOKUP(טבלה1[[#This Row],[שם העבודה]],טבלה2[#All],2,FALSE)*טבלה1[[#This Row],[שעות]]*24/שער, VLOOKUP(טבלה1[[#This Row],[שם העבודה]],טבלה2[#All],2,FALSE)*טבלה1[[#This Row],[שעות]]*24))),"")) -> 100.0555556 | L17: =IF(טבלה1[[#This Row],[תאריך]]="","",DATE(YEAR(טבלה1[[#This Row],[תאריך]]),MONTH(טבלה1[[#This Row],[תאריך]]),1)) -> 2024-05-01 | Q17: שער הדולר בשקלים | S17: תאריך שינוי אחרון | AO17: =IF(AL17="","", IFERROR(IF(SUMIFS(טבלה1[שעות],טבלה1[שם העבודה],טבלה2[[#This Row],[שמות העבודות]])=0,"", SUMIFS(טבלה1[שעות],טבלה1[שם העבודה],טבלה2[[#This Row],[שמות העבודות]])),"")) ->  | AP17: =IFERROR(IF(OR(טבלה2[[#This Row],[שכר לשעה]]="",טבלה2[[#This Row],[שעות]]=""),"",IF( IF(OR(טבלה2[[#This Row],[מטבע]]="₪",AND(מטבע="שקלים",טבלה2[[#This Row],[מטבע]]="")), טבלה2[[#This Row],[שכר לשעה]]*טבלה2[[#This Row],[שעות]]*24, IF(OR(טבלה2[[#This Row],[מטבע]]="$",AND(מטבע="דולרים",טבלה2[[#This Row],[מטבע]]="")), טבלה2[[#This Row],[שכר לשעה]]*טבלה2[[#This Row],[שעות]]*24*שער,""))=0,"", IF(OR(טבלה2[[#This Row],[מטבע]]="₪",AND(מטבע="שקלים",טבלה2[[#This Row],[מטבע]]="")), טבלה2[[#This Row],[שכר לשעה]]*טבלה2[[#This Row],[שעות]]*24, IF(OR(טבלה2[[#This Row],[מטבע]]="$",AND(מטבע="דולרים",טבלה2[[#This Row],[מטבע]]="")), טבלה2[[#This Row],[שכר לשעה]]*טבלה2[[#This Row],[שעות]]*24*שער,"")))),"") ->  | AQ17: =IFERROR(IF(OR(טבלה2[[#This Row],[שכר לשעה]]="",טבלה2[[#This Row],[שעות]]=""),"",IF( IF(OR(טבלה2[[#This Row],[מטבע]]="$",AND(מטבע="דולרים",טבלה2[[#This Row],[מטבע]]="")), טבלה2[[#This Row],[שכר לשעה]]*טבלה2[[#This Row],[שעות]]*24, IF(OR(טבלה2[[#This Row],[מטבע]]="₪",AND(מטבע="שקלים",טבלה2[[#This Row],[מטבע]]="")), טבלה2[[#This Row],[שכר לשעה]]*טבלה2[[#This Row],[שעות]]*24/שער,""))=0,"", IF(OR(טבלה2[[#This Row],[מטבע]]="$",AND(מטבע="דולרים",טבלה2[[#This Row],[מטבע]]="")), טבלה2[[#This Row],[שכר לשעה]]*טבלה2[[#This Row],[שעות]]*24, IF(OR(טבלה2[[#This Row],[מטבע]]="₪",AND(מטבע="שקלים",טבלה2[[#This Row],[מטבע]]="")), טבלה2[[#This Row],[שכר לשעה]]*טבלה2[[#This Row],[שעות]]*24/שער,"")))),"") ->  | AT17: =IF(טבלה2[[#This Row],[שעות]]="","",IF( IF(OR(טבלה2[[#This Row],[מטבע]]="₪",AND(מטבע="שקלים",טבלה2[[#This Row],[מטבע]]="")),טבלה2[[#This Row],[שכר בשקלים]]+טבלה2[[#This Row],[חיובים נוספים]]-טבלה2[[#This Row],[זיכויים / שולם]], IF(OR(טבלה2[[#This Row],[מטבע]]="$",AND(מטבע="דולרים",טבלה2[[#This Row],[מטבע]]="")),טבלה2[[#This Row],[שכר בדולרים]]+טבלה2[[#This Row],[חיובים נוספים]]-טבלה2[[#This Row],[זיכויים / שולם]],""))=0,"", IF(OR(טבלה2[[#This Row],[מטבע]]="₪",AND(מטבע="שקלים",טבלה2[[#This Row],[מטבע]]="")),טבלה2[[#This Row],[שכר בשקלים]]+טבלה2[[#This Row],[חיובים נוספים]]-טבלה2[[#This Row],[זיכויים / שולם]], IF(OR(טבלה2[[#This Row],[מטבע]]="$",AND(מטבע="דולרים",טבלה2[[#This Row],[מטבע]]="")),טבלה2[[#This Row],[שכר בדולרים]]+טבלה2[[#This Row],[חיובים נוספים]]-טבלה2[[#This Row],[זיכויים / שולם]],"")))) ->  | BJ17: הקלקה כפולה | BK17: =IF(טבלה2[[#This Row],[שמות העבודות]]="","",טבלה2[[#This Row],[שמות העבודות]]) -> 
B18: =IF(AND(טבלה1[[#This Row],[תאריך]]="",טבלה1[[#This Row],[התחלה]]="",טבלה1[[#This Row],[שם העבודה]]=""),"",ROW()-10) -> 8 | C18: =IF(טבלה1[[#This Row],[תאריך]]="","",IF(TEXT(טבלה1[[#This Row],[תאריך]],"DDD")="שבת","מוצ""ש",TEXT(טבלה1[[#This Row],[תאריך]],"DDD"))) -> יום א | D18: 2024-05-19 | E18: 02:17:24 | F18: עימוד | G18: 04:17:28 | J18: =IF(IF(AND(טבלה1[[#This Row],[התחלה]]="",טבלה1[[#This Row],[סיום]]<>""),"",IF(AND(טבלה1[[#This Row],[התחלה]]<>"",טבלה1[[#This Row],[סיום]]=""), SUM(MOD(MOD(NOW(),1)-טבלה1[[#This Row],[התחלה]],1),טבלה1[[#This Row],[הוספת דקות]],-טבלה1[[#This Row],[הפחתת דקות]]), SUM(MOD(טבלה1[[#This Row],[סיום]]-טבלה1[[#This Row],[התחלה]],1),טבלה1[[#This Row],[הוספת דקות]],-טבלה1[[#This Row],[הפחתת דקות]])))<=0,"", IF(AND(טבלה1[[#This Row],[התחלה]]="",טבלה1[[#This Row],[סיום]]<>""),"",IF(AND(טבלה1[[#This Row],[התחלה]]<>"",טבלה1[[#This Row],[סיום]]=""), SUM(MOD(MOD(NOW(),1)-טבלה1[[#This Row],[התחלה]],1),טבלה1[[#This Row],[הוספת דקות]],-טבלה1[[#This Row],[הפחתת דקות]]), SUM(MOD(טבלה1[[#This Row],[סיום]]-טבלה1[[#This Row],[התחלה]],1),טבלה1[[#This Row],[הוספת דקות]],-טבלה1[[#This Row],[הפחתת דקות]])))) -> 0.08337962963 | K18: =IF(טבלה1[[#This Row],[שעות]]="","",IFERROR( IF(IF(AND(מטבע="שקלים",VLOOKUP(טבלה1[[#This Row],[שם העבודה]],טבלה2[],3,FALSE)="$"), VLOOKUP(טבלה1[[#This Row],[שם העבודה]],טבלה2[#All],2,FALSE)*טבלה1[[#This Row],[שעות]]*24*שער, IF(AND(מטבע="דולרים",VLOOKUP(טבלה1[[#This Row],[שם העבודה]],טבלה2[],3,FALSE)="₪"), VLOOKUP(טבלה1[[#This Row],[שם העבודה]],טבלה2[#All],2,FALSE)*טבלה1[[#This Row],[שעות]]*24/שער, VLOOKUP(טבלה1[[#This Row],[שם העבודה]],טבלה2[#All],2,FALSE)*טבלה1[[#This Row],[שעות]]*24))=0,"", IF(AND(מטבע="שקלים",VLOOKUP(טבלה1[[#This Row],[שם העבודה]],טבלה2[],3,FALSE)="$"), VLOOKUP(טבלה1[[#This Row],[שם העבודה]],טבלה2[#All],2,FALSE)*טבלה1[[#This Row],[שעות]]*24*שער, IF(AND(מטבע="דולרים",VLOOKUP(טבלה1[[#This Row],[שם העבודה]],טבלה2[],3,FALSE)="₪"), VLOOKUP(טבלה1[[#This Row],[שם העבודה]],טבלה2[#All],2,FALSE)*טבלה1[[#This Row],[שעות]]*24/שער, VLOOKUP(טבלה1[[#This Row],[שם העבודה]],טבלה2[#All],2,FALSE)*טבלה1[[#This Row],[שעות]]*24))),"")) -> 20.01111111 | L18: =IF(טבלה1[[#This Row],[תאריך]]="","",DATE(YEAR(טבלה1[[#This Row],[תאריך]]),MONTH(טבלה1[[#This Row],[תאריך]]),1)) -> 2024-05-01 | X18: משקל לדולר | AB18: מדולר לשקל | AO18: =IF(AL18="","", IFERROR(IF(SUMIFS(טבלה1[שעות],טבלה1[שם העבודה],טבלה2[[#This Row],[שמות העבודות]])=0,"", SUMIFS(טבלה1[שעות],טבלה1[שם העבודה],טבלה2[[#This Row],[שמות העבודות]])),"")) ->  | AP18: =IFERROR(IF(OR(טבלה2[[#This Row],[שכר לשעה]]="",טבלה2[[#This Row],[שעות]]=""),"",IF( IF(OR(טבלה2[[#This Row],[מטבע]]="₪",AND(מטבע="שקלים",טבלה2[[#This Row],[מטבע]]="")), טבלה2[[#This Row],[שכר לשעה]]*טבלה2[[#This Row],[שעות]]*24, IF(OR(טבלה2[[#This Row],[מטבע]]="$",AND(מטבע="דולרים",טבלה2[[#This Row],[מטבע]]="")), טבלה2[[#This Row],[שכר לשעה]]*טבלה2[[#This Row],[שעות]]*24*שער,""))=0,"", IF(OR(טבלה2[[#This Row],[מטבע]]="₪",AND(מטבע="שקלים",טבלה2[[#This Row],[מטבע]]="")), טבלה2[[#This Row],[שכר לשעה]]*טבלה2[[#This Row],[שעות]]*24, IF(OR(טבלה2[[#This Row],[מטבע]]="$",AND(מטבע="דולרים",טבלה2[[#This Row],[מטבע]]="")), טבלה2[[#This Row],[שכר לשעה]]*טבלה2[[#This Row],[שעות]]*24*שער,"")))),"") ->  | AQ18: =IFERROR(IF(OR(טבלה2[[#This Row],[שכר לשעה]]="",טבלה2[[#This Row],[שעות]]=""),"",IF( IF(OR(טבלה2[[#This Row],[מטבע]]="$",AND(מטבע="דולרים",טבלה2[[#This Row],[מטבע]]="")), טבלה2[[#This Row],[שכר לשעה]]*טבלה2[[#This Row],[שעות]]*24, IF(OR(טבלה2[[#This Row],[מטבע]]="₪",AND(מטבע="שקלים",טבלה2[[#This Row],[מטבע]]="")), טבלה2[[#This Row],[שכר לשעה]]*טבלה2[[#This Row],[שעות]]*24/שער,""))=0,"", IF(OR(טבלה2[[#This Row],[מטבע]]="$",AND(מטבע="דולרים",טבלה2[[#This Row],[מטבע]]="")), טבלה2[[#This Row],[שכר לשעה]]*טבלה2[[#This Row],[שעות]]*24, IF(OR(טבלה2[[#This Row],[מטבע]]="₪",AND(מטבע="שקלים",טבלה2[[#This Row],[מטבע]]="")), טבלה2[[#This Row],[שכר לשעה]]*טבלה2[[#This Row],[שעות]]*24/שער,"")))),"") ->  | AT18: =IF(טבלה2[[#This Row],[שעות]]="","",IF( IF(OR(טבלה2[[#This Row],[מטבע]]="₪",AND(מטבע="שקלים",טבלה2[[#This Row],[מטבע]]="")),טבלה2[[#This Row],[שכר בשקלים]]+טבלה2[[#This Row],[חיובים נוספים]]-טבלה2[[#This Row],[זיכויים / שולם]], IF(OR(טבלה2[[#This Row],[מטבע]]="$",AND(מטבע="דולרים",טבלה2[[#This Row],[מטבע]]="")),טבלה2[[#This Row],[שכר בדולרים]]+טבלה2[[#This Row],[חיובים נוספים]]-טבלה2[[#This Row],[זיכויים / שולם]],""))=0,"", IF(OR(טבלה2[[#This Row],[מטבע]]="₪",AND(מטבע="שקלים",טבלה2[[#This Row],[מטבע]]="")),טבלה2[[#This Row],[שכר בשקלים]]+טבלה2[[#This Row],[חיובים נוספים]]-טבלה2[[#This Row],[זיכויים / שולם]], IF(OR(טבלה2[[#This Row],[מטבע]]="$",AND(מטבע="דולרים",טבלה2[[#This Row],[מטבע]]="")),טבלה2[[#This Row],[שכר בדולרים]]+טבלה2[[#This Row],[חיובים נוספים]]-טבלה2[[#This Row],[זיכויים / שולם]],"")))) ->  | BJ18: מופעל | BK18: =IF(טבלה2[[#This Row],[שמות העבודות]]="","",טבלה2[[#This Row],[שמות העבודות]]) -> 
B19: =IF(AND(טבלה1[[#This Row],[תאריך]]="",טבלה1[[#This Row],[התחלה]]="",טבלה1[[#This Row],[שם העבודה]]=""),"",ROW()-10) -> 9 | C19: =IF(טבלה1[[#This Row],[תאריך]]="","",IF(TEXT(טבלה1[[#This Row],[תאריך]],"DDD")="שבת","מוצ""ש",TEXT(טבלה1[[#This Row],[תאריך]],"DDD"))) -> יום ב | D19: 2024-05-20 | E19: 02:17:24 | F19: הגהה | G19: 04:17:28 | J19: =IF(IF(AND(טבלה1[[#This Row],[התחלה]]="",טבלה1[[#This Row],[סיום]]<>""),"",IF(AND(טבלה1[[#This Row],[התחלה]]<>"",טבלה1[[#This Row],[סיום]]=""), SUM(MOD(MOD(NOW(),1)-טבלה1[[#This Row],[התחלה]],1),טבלה1[[#This Row],[הוספת דקות]],-טבלה1[[#This Row],[הפחתת דקות]]), SUM(MOD(טבלה1[[#This Row],[סיום]]-טבלה1[[#This Row],[התחלה]],1),טבלה1[[#This Row],[הוספת דקות]],-טבלה1[[#This Row],[הפחתת דקות]])))<=0,"", IF(AND(טבלה1[[#This Row],[התחלה]]="",טבלה1[[#This Row],[סיום]]<>""),"",IF(AND(טבלה1[[#This Row],[התחלה]]<>"",טבלה1[[#This Row],[סיום]]=""), SUM(MOD(MOD(NOW(),1)-טבלה1[[#This Row],[התחלה]],1),טבלה1[[#This Row],[הוספת דקות]],-טבלה1[[#This Row],[הפחתת דקות]]), SUM(MOD(טבלה1[[#This Row],[סיום]]-טבלה1[[#This Row],[התחלה]],1),טבלה1[[#This Row],[הוספת דקות]],-טבלה1[[#This Row],[הפחתת דקות]])))) -> 0.08337962963 | K19: =IF(טבלה1[[#This Row],[שעות]]="","",IFERROR( IF(IF(AND(מטבע="שקלים",VLOOKUP(טבלה1[[#This Row],[שם העבודה]],טבלה2[],3,FALSE)="$"), VLOOKUP(טבלה1[[#This Row],[שם העבודה]],טבלה2[#All],2,FALSE)*טבלה1[[#This Row],[שעות]]*24*שער, IF(AND(מטבע="דולרים",VLOOKUP(טבלה1[[#This Row],[שם העבודה]],טבלה2[],3,FALSE)="₪"), VLOOKUP(טבלה1[[#This Row],[שם העבודה]],טבלה2[#All],2,FALSE)*טבלה1[[#This Row],[שעות]]*24/שער, VLOOKUP(טבלה1[[#This Row],[שם העבודה]],טבלה2[#All],2,FALSE)*טבלה1[[#This Row],[שעות]]*24))=0,"", IF(AND(מטבע="שקלים",VLOOKUP(טבלה1[[#This Row],[שם העבודה]],טבלה2[],3,FALSE)="$"), VLOOKUP(טבלה1[[#This Row],[שם העבודה]],טבלה2[#All],2,FALSE)*טבלה1[[#This Row],[שעות]]*24*שער, IF(AND(מטבע="דולרים",VLOOKUP(טבלה1[[#This Row],[שם העבודה]],טבלה2[],3,FALSE)="₪"), VLOOKUP(טבלה1[[#This Row],[שם העבודה]],טבלה2[#All],2,FALSE)*טבלה1[[#This Row],[שעות]]*24/שער, VLOOKUP(טבלה1[[#This Row],[שם העבודה]],טבלה2[#All],2,FALSE)*טבלה1[[#This Row],[שעות]]*24))),"")) -> 20.01111111 | L19: =IF(טבלה1[[#This Row],[תאריך]]="","",DATE(YEAR(טבלה1[[#This Row],[תאריך]]),MONTH(טבלה1[[#This Row],[תאריך]]),1)) -> 2024-05-01 | Q19: 3.68 | S19: 2024-07-26T09:23:03.665 | X19: שקלים | Z19: 50 | AB19: דולרים | AD19: 50 | AO19: =IF(AL19="","", IFERROR(IF(SUMIFS(טבלה1[שעות],טבלה1[שם העבודה],טבלה2[[#This Row],[שמות העבודות]])=0,"", SUMIFS(טבלה1[שעות],טבלה1[שם העבודה],טבלה2[[#This Row],[שמות העבודות]])),"")) ->  | AP19: =IFERROR(IF(OR(טבלה2[[#This Row],[שכר לשעה]]="",טבלה2[[#This Row],[שעות]]=""),"",IF( IF(OR(טבלה2[[#This Row],[מטבע]]="₪",AND(מטבע="שקלים",טבלה2[[#This Row],[מטבע]]="")), טבלה2[[#This Row],[שכר לשעה]]*טבלה2[[#This Row],[שעות]]*24, IF(OR(טבלה2[[#This Row],[מטבע]]="$",AND(מטבע="דולרים",טבלה2[[#This Row],[מטבע]]="")), טבלה2[[#This Row],[שכר לשעה]]*טבלה2[[#This Row],[שעות]]*24*שער,""))=0,"", IF(OR(טבלה2[[#This Row],[מטבע]]="₪",AND(מטבע="שקלים",טבלה2[[#This Row],[מטבע]]="")), טבלה2[[#This Row],[שכר לשעה]]*טבלה2[[#This Row],[שעות]]*24, IF(OR(טבלה2[[#This Row],[מטבע]]="$",AND(מטבע="דולרים",טבלה2[[#This Row],[מטבע]]="")), טבלה2[[#This Row],[שכר לשעה]]*טבלה2[[#This Row],[שעות]]*24*שער,"")))),"") ->  | AQ19: =IFERROR(IF(OR(טבלה2[[#This Row],[שכר לשעה]]="",טבלה2[[#This Row],[שעות]]=""),"",IF( IF(OR(טבלה2[[#This Row],[מטבע]]="$",AND(מטבע="דולרים",טבלה2[[#This Row],[מטבע]]="")), טבלה2[[#This Row],[שכר לשעה]]*טבלה2[[#This Row],[שעות]]*24, IF(OR(טבלה2[[#This Row],[מטבע]]="₪",AND(מטבע="שקלים",טבלה2[[#This Row],[מטבע]]="")), טבלה2[[#This Row],[שכר לשעה]]*טבלה2[[#This Row],[שעות]]*24/שער,""))=0,"", IF(OR(טבלה2[[#This Row],[מטבע]]="$",AND(מטבע="דולרים",טבלה2[[#This Row],[מטבע]]="")), טבלה2[[#This Row],[שכר לשעה]]*טבלה2[[#This Row],[שעות]]*24, IF(OR(טבלה2[[#This Row],[מטבע]]="₪",AND(מטבע="שקלים",טבלה2[[#This Row],[מטבע]]="")), טבלה2[[#This Row],[שכר לשעה]]*טבלה2[[#This Row],[שעות]]*24/שער,"")))),"") ->  | AT19: =IF(טבלה2[[#This Row],[שעות]]="","",IF( IF(OR(טבלה2[[#This Row],[מטבע]]="₪",AND(מטבע="שקלים",טבלה2[[#This Row],[מטבע]]="")),טבלה2[[#This Row],[שכר בשקלים]]+טבלה2[[#This Row],[חיובים נוספים]]-טבלה2[[#This Row],[זיכויים / שולם]], IF(OR(טבלה2[[#This Row],[מטבע]]="$",AND(מטבע="דולרים",טבלה2[[#This Row],[מטבע]]="")),טבלה2[[#This Row],[שכר בדולרים]]+טבלה2[[#This Row],[חיובים נוספים]]-טבלה2[[#This Row],[זיכויים / שולם]],""))=0,"", IF(OR(טבלה2[[#This Row],[מטבע]]="₪",AND(מטבע="שקלים",טבלה2[[#This Row],[מטבע]]="")),טבלה2[[#This Row],[שכר בשקלים]]+טבלה2[[#This Row],[חיובים נוספים]]-טבלה2[[#This Row],[זיכויים / שולם]], IF(OR(טבלה2[[#This Row],[מטבע]]="$",AND(מטבע="דולרים",טבלה2[[#This Row],[מטבע]]="")),טבלה2[[#This Row],[שכר בדולרים]]+טבלה2[[#This Row],[חיובים נוספים]]-טבלה2[[#This Row],[זיכויים / שולם]],"")))) ->  | BJ19: עיצוב מותנה | BK19: =IF(טבלה2[[#This Row],[שמות העבודות]]="","",טבלה2[[#This Row],[שמות העבודות]]) -> 
B20: =IF(AND(טבלה1[[#This Row],[תאריך]]="",טבלה1[[#This Row],[התחלה]]="",טבלה1[[#This Row],[שם העבודה]]=""),"",ROW()-10) -> 10 | C20: =IF(טבלה1[[#This Row],[תאריך]]="","",IF(TEXT(טבלה1[[#This Row],[תאריך]],"DDD")="שבת","מוצ""ש",TEXT(טבלה1[[#This Row],[תאריך]],"DDD"))) -> יום ג | D20: 2024-05-21 | E20: 02:17:24 | F20: הקלדה | G20: 04:17:28 | J20: =IF(IF(AND(טבלה1[[#This Row],[התחלה]]="",טבלה1[[#This Row],[סיום]]<>""),"",IF(AND(טבלה1[[#This Row],[התחלה]]<>"",טבלה1[[#This Row],[סיום]]=""), SUM(MOD(MOD(NOW(),1)-טבלה1[[#This Row],[התחלה]],1),טבלה1[[#This Row],[הוספת דקות]],-טבלה1[[#This Row],[הפחתת דקות]]), SUM(MOD(טבלה1[[#This Row],[סיום]]-טבלה1[[#This Row],[התחלה]],1),טבלה1[[#This Row],[הוספת דקות]],-טבלה1[[#This Row],[הפחתת דקות]])))<=0,"", IF(AND(טבלה1[[#This Row],[התחלה]]="",טבלה1[[#This Row],[סיום]]<>""),"",IF(AND(טבלה1[[#This Row],[התחלה]]<>"",טבלה1[[#This Row],[סיום]]=""), SUM(MOD(MOD(NOW(),1)-טבלה1[[#This Row],[התחלה]],1),טבלה1[[#This Row],[הוספת דקות]],-טבלה1[[#This Row],[הפחתת דקות]]), SUM(MOD(טבלה1[[#This Row],[סיום]]-טבלה1[[#This Row],[התחלה]],1),טבלה1[[#This Row],[הוספת דקות]],-טבלה1[[#This Row],[הפחתת דקות]])))) -> 0.08337962963 | K20: =IF(טבלה1[[#This Row],[שעות]]="","",IFERROR( IF(IF(AND(מטבע="שקלים",VLOOKUP(טבלה1[[#This Row],[שם העבודה]],טבלה2[],3,FALSE)="$"), VLOOKUP(טבלה1[[#This Row],[שם העבודה]],טבלה2[#All],2,FALSE)*טבלה1[[#This Row],[שעות]]*24*שער, IF(AND(מטבע="דולרים",VLOOKUP(טבלה1[[#This Row],[שם העבודה]],טבלה2[],3,FALSE)="₪"), VLOOKUP(טבלה1[[#This Row],[שם העבודה]],טבלה2[#All],2,FALSE)*טבלה1[[#This Row],[שעות]]*24/שער, VLOOKUP(טבלה1[[#This Row],[שם העבודה]],טבלה2[#All],2,FALSE)*טבלה1[[#This Row],[שעות]]*24))=0,"", IF(AND(מטבע="שקלים",VLOOKUP(טבלה1[[#This Row],[שם העבודה]],טבלה2[],3,FALSE)="$"), VLOOKUP(טבלה1[[#This Row],[שם העבודה]],טבלה2[#All],2,FALSE)*טבלה1[[#This Row],[שעות]]*24*שער, IF(AND(מטבע="דולרים",VLOOKUP(טבלה1[[#This Row],[שם העבודה]],טבלה2[],3,FALSE)="₪"), VLOOKUP(טבלה1[[#This Row],[שם העבודה]],טבלה2[#All],2,FALSE)*טבלה1[[#This Row],[שעות]]*24/שער, VLOOKUP(טבלה1[[#This Row],[שם העבודה]],טבלה2[#All],2,FALSE)*טבלה1[[#This Row],[שעות]]*24))),"")) -> 100.0555556 | L20: =IF(טבלה1[[#This Row],[תאריך]]="","",DATE(YEAR(טבלה1[[#This Row],[תאריך]]),MONTH(טבלה1[[#This Row],[תאריך]]),1)) -> 2024-05-01 | X20: דולרים | Z20: =IF(Z19/שער=0,0,Z19/שער) -> 13.58695652 | AB20: שקלים | AD20: =IF(AD19*שער=0,0,AD19*שער) -> 184 | AO20: =IF(AL20="","", IFERROR(IF(SUMIFS(טבלה1[שעות],טבלה1[שם העבודה],טבלה2[[#This Row],[שמות העבודות]])=0,"", SUMIFS(טבלה1[שעות],טבלה1[שם העבודה],טבלה2[[#This Row],[שמות העבודות]])),"")) ->  | AP20: =IFERROR(IF(OR(טבלה2[[#This Row],[שכר לשעה]]="",טבלה2[[#This Row],[שעות]]=""),"",IF( IF(OR(טבלה2[[#This Row],[מטבע]]="₪",AND(מטבע="שקלים",טבלה2[[#This Row],[מטבע]]="")), טבלה2[[#This Row],[שכר לשעה]]*טבלה2[[#This Row],[שעות]]*24, IF(OR(טבלה2[[#This Row],[מטבע]]="$",AND(מטבע="דולרים",טבלה2[[#This Row],[מטבע]]="")), טבלה2[[#This Row],[שכר לשעה]]*טבלה2[[#This Row],[שעות]]*24*שער,""))=0,"", IF(OR(טבלה2[[#This Row],[מטבע]]="₪",AND(מטבע="שקלים",טבלה2[[#This Row],[מטבע]]="")), טבלה2[[#This Row],[שכר לשעה]]*טבלה2[[#This Row],[שעות]]*24, IF(OR(טבלה2[[#This Row],[מטבע]]="$",AND(מטבע="דולרים",טבלה2[[#This Row],[מטבע]]="")), טבלה2[[#This Row],[שכר לשעה]]*טבלה2[[#This Row],[שעות]]*24*שער,"")))),"") ->  | AQ20: =IFERROR(IF(OR(טבלה2[[#This Row],[שכר לשעה]]="",טבלה2[[#This Row],[שעות]]=""),"",IF( IF(OR(טבלה2[[#This Row],[מטבע]]="$",AND(מטבע="דולרים",טבלה2[[#This Row],[מטבע]]="")), טבלה2[[#This Row],[שכר לשעה]]*טבלה2[[#This Row],[שעות]]*24, IF(OR(טבלה2[[#This Row],[מטבע]]="₪",AND(מטבע="שקלים",טבלה2[[#This Row],[מטבע]]="")), טבלה2[[#This Row],[שכר לשעה]]*טבלה2[[#This Row],[שעות]]*24/שער,""))=0,"", IF(OR(טבלה2[[#This Row],[מטבע]]="$",AND(מטבע="דולרים",טבלה2[[#This Row],[מטבע]]="")), טבלה2[[#This Row],[שכר לשעה]]*טבלה2[[#This Row],[שעות]]*24, IF(OR(טבלה2[[#This Row],[מטבע]]="₪",AND(מטבע="שקלים",טבלה2[[#This Row],[מטבע]]="")), טבלה2[[#This Row],[שכר לשעה]]*טבלה2[[#This Row],[שעות]]*24/שער,"")))),"") ->  | AT20: =IF(טבלה2[[#This Row],[שעות]]="","",IF( IF(OR(טבלה2[[#This Row],[מטבע]]="₪",AND(מטבע="שקלים",טבלה2[[#This Row],[מטבע]]="")),טבלה2[[#This Row],[שכר בשקלים]]+טבלה2[[#This Row],[חיובים נוספים]]-טבלה2[[#This Row],[זיכויים / שולם]], IF(OR(טבלה2[[#This Row],[מטבע]]="$",AND(מטבע="דולרים",טבלה2[[#This Row],[מטבע]]="")),טבלה2[[#This Row],[שכר בדולרים]]+טבלה2[[#This Row],[חיובים נוספים]]-טבלה2[[#This Row],[זיכויים / שולם]],""))=0,"", IF(OR(טבלה2[[#This Row],[מטבע]]="₪",AND(מטבע="שקלים",טבלה2[[#This Row],[מטבע]]="")),טבלה2[[#This Row],[שכר בשקלים]]+טבלה2[[#This Row],[חיובים נוספים]]-טבלה2[[#This Row],[זיכויים / שולם]], IF(OR(טבלה2[[#This Row],[מטבע]]="$",AND(מטבע="דולרים",טבלה2[[#This Row],[מטבע]]="")),טבלה2[[#This Row],[שכר בדולרים]]+טבלה2[[#This Row],[חיובים נוספים]]-טבלה2[[#This Row],[זיכויים / שולם]],"")))) ->  | BJ20: מושבת | BK20: =IF(טבלה2[[#This Row],[שמות העבודות]]="","",טבלה2[[#This Row],[שמות העבודות]]) -> 
B21: =IF(AND(טבלה1[[#This Row],[תאריך]]="",טבלה1[[#This Row],[התחלה]]="",טבלה1[[#This Row],[שם העבודה]]=""),"",ROW()-10) -> 11 | C21: =IF(טבלה1[[#This Row],[תאריך]]="","",IF(TEXT(טבלה1[[#This Row],[תאריך]],"DDD")="שבת","מוצ""ש",TEXT(טבלה1[[#This Row],[תאריך]],"DDD"))) -> יום ו | D21: 2024-06-21 | E21: 02:17:24 | F21: עימוד | G21: 04:17:28 | J21: =IF(IF(AND(טבלה1[[#This Row],[התחלה]]="",טבלה1[[#This Row],[סיום]]<>""),"",IF(AND(טבלה1[[#This Row],[התחלה]]<>"",טבלה1[[#This Row],[סיום]]=""), SUM(MOD(MOD(NOW(),1)-טבלה1[[#This Row],[התחלה]],1),טבלה1[[#This Row],[הוספת דקות]],-טבלה1[[#This Row],[הפחתת דקות]]), SUM(MOD(טבלה1[[#This Row],[סיום]]-טבלה1[[#This Row],[התחלה]],1),טבלה1[[#This Row],[הוספת דקות]],-טבלה1[[#This Row],[הפחתת דקות]])))<=0,"", IF(AND(טבלה1[[#This Row],[התחלה]]="",טבלה1[[#This Row],[סיום]]<>""),"",IF(AND(טבלה1[[#This Row],[התחלה]]<>"",טבלה1[[#This Row],[סיום]]=""), SUM(MOD(MOD(NOW(),1)-טבלה1[[#This Row],[התחלה]],1),טבלה1[[#This Row],[הוספת דקות]],-טבלה1[[#This Row],[הפחתת דקות]]), SUM(MOD(טבלה1[[#This Row],[סיום]]-טבלה1[[#This Row],[התחלה]],1),טבלה1[[#This Row],[הוספת דקות]],-טבלה1[[#This Row],[הפחתת דקות]])))) -> 0.08337962963 | K21: =IF(טבלה1[[#This Row],[שעות]]="","",IFERROR( IF(IF(AND(מטבע="שקלים",VLOOKUP(טבלה1[[#This Row],[שם העבודה]],טבלה2[],3,FALSE)="$"), VLOOKUP(טבלה1[[#This Row],[שם העבודה]],טבלה2[#All],2,FALSE)*טבלה1[[#This Row],[שעות]]*24*שער, IF(AND(מטבע="דולרים",VLOOKUP(טבלה1[[#This Row],[שם העבודה]],טבלה2[],3,FALSE)="₪"), VLOOKUP(טבלה1[[#This Row],[שם העבודה]],טבלה2[#All],2,FALSE)*טבלה1[[#This Row],[שעות]]*24/שער, VLOOKUP(טבלה1[[#This Row],[שם העבודה]],טבלה2[#All],2,FALSE)*טבלה1[[#This Row],[שעות]]*24))=0,"", IF(AND(מטבע="שקלים",VLOOKUP(טבלה1[[#This Row],[שם העבודה]],טבלה2[],3,FALSE)="$"), VLOOKUP(טבלה1[[#This Row],[שם העבודה]],טבלה2[#All],2,FALSE)*טבלה1[[#This Row],[שעות]]*24*שער, IF(AND(מטבע="דולרים",VLOOKUP(טבלה1[[#This Row],[שם העבודה]],טבלה2[],3,FALSE)="₪"), VLOOKUP(טבלה1[[#This Row],[שם העבודה]],טבלה2[#All],2,FALSE)*טבלה1[[#This Row],[שעות]]*24/שער, VLOOKUP(טבלה1[[#This Row],[שם העבודה]],טבלה2[#All],2,FALSE)*טבלה1[[#This Row],[שעות]]*24))),"")) -> 20.01111111 | L21: =IF(טבלה1[[#This Row],[תאריך]]="","",DATE(YEAR(טבלה1[[#This Row],[תאריך]]),MONTH(טבלה1[[#This Row],[תאריך]]),1)) -> 2024-06-01 | AO21: =IF(AL21="","", IFERROR(IF(SUMIFS(טבלה1[שעות],טבלה1[שם העבודה],טבלה2[[#This Row],[שמות העבודות]])=0,"", SUMIFS(טבלה1[שעות],טבלה1[שם העבודה],טבלה2[[#This Row],[שמות העבודות]])),"")) ->  | AP21: =IFERROR(IF(OR(טבלה2[[#This Row],[שכר לשעה]]="",טבלה2[[#This Row],[שעות]]=""),"",IF( IF(OR(טבלה2[[#This Row],[מטבע]]="₪",AND(מטבע="שקלים",טבלה2[[#This Row],[מטבע]]="")), טבלה2[[#This Row],[שכר לשעה]]*טבלה2[[#This Row],[שעות]]*24, IF(OR(טבלה2[[#This Row],[מטבע]]="$",AND(מטבע="דולרים",טבלה2[[#This Row],[מטבע]]="")), טבלה2[[#This Row],[שכר לשעה]]*טבלה2[[#This Row],[שעות]]*24*שער,""))=0,"", IF(OR(טבלה2[[#This Row],[מטבע]]="₪",AND(מטבע="שקלים",טבלה2[[#This Row],[מטבע]]="")), טבלה2[[#This Row],[שכר לשעה]]*טבלה2[[#This Row],[שעות]]*24, IF(OR(טבלה2[[#This Row],[מטבע]]="$",AND(מטבע="דולרים",טבלה2[[#This Row],[מטבע]]="")), טבלה2[[#This Row],[שכר לשעה]]*טבלה2[[#This Row],[שעות]]*24*שער,"")))),"") ->  | AQ21: =IFERROR(IF(OR(טבלה2[[#This Row],[שכר לשעה]]="",טבלה2[[#This Row],[שעות]]=""),"",IF( IF(OR(טבלה2[[#This Row],[מטבע]]="$",AND(מטבע="דולרים",טבלה2[[#This Row],[מטבע]]="")), טבלה2[[#This Row],[שכר לשעה]]*טבלה2[[#This Row],[שעות]]*24, IF(OR(טבלה2[[#This Row],[מטבע]]="₪",AND(מטבע="שקלים",טבלה2[[#This Row],[מטבע]]="")), טבלה2[[#This Row],[שכר לשעה]]*טבלה2[[#This Row],[שעות]]*24/שער,""))=0,"", IF(OR(טבלה2[[#This Row],[מטבע]]="$",AND(מטבע="דולרים",טבלה2[[#This Row],[מטבע]]="")), טבלה2[[#This Row],[שכר לשעה]]*טבלה2[[#This Row],[שעות]]*24, IF(OR(טבלה2[[#This Row],[מטבע]]="₪",AND(מטבע="שקלים",טבלה2[[#This Row],[מטבע]]="")), טבלה2[[#This Row],[שכר לשעה]]*טבלה2[[#This Row],[שעות]]*24/שער,"")))),"") ->  | AT21: =IF(טבלה2[[#This Row],[שעות]]="","",IF( IF(OR(טבלה2[[#This Row],[מטבע]]="₪",AND(מטבע="שקלים",טבלה2[[#This Row],[מטבע]]="")),טבלה2[[#This Row],[שכר בשקלים]]+טבלה2[[#This Row],[חיובים נוספים]]-טבלה2[[#This Row],[זיכויים / שולם]], IF(OR(טבלה2[[#This Row],[מטבע]]="$",AND(מטבע="דולרים",טבלה2[[#This Row],[מטבע]]="")),טבלה2[[#This Row],[שכר בדולרים]]+טבלה2[[#This Row],[חיובים נוספים]]-טבלה2[[#This Row],[זיכויים / שולם]],""))=0,"", IF(OR(טבלה2[[#This Row],[מטבע]]="₪",AND(מטבע="שקלים",טבלה2[[#This Row],[מטבע]]="")),טבלה2[[#This Row],[שכר בשקלים]]+טבלה2[[#This Row],[חיובים נוספים]]-טבלה2[[#This Row],[זיכויים / שולם]], IF(OR(טבלה2[[#This Row],[מטבע]]="$",AND(מטבע="דולרים",טבלה2[[#This Row],[מטבע]]="")),טבלה2[[#This Row],[שכר בדולרים]]+טבלה2[[#This Row],[חיובים נוספים]]-טבלה2[[#This Row],[זיכויים / שולם]],"")))) ->  | BJ21: שמירה אוטומטית | BK21: =IF(טבלה2[[#This Row],[שמות העבודות]]="","",טבלה2[[#This Row],[שמות העבודות]]) -> 
B22: =IF(AND(טבלה1[[#This Row],[תאריך]]="",טבלה1[[#This Row],[התחלה]]="",טבלה1[[#This Row],[שם העבודה]]=""),"",ROW()-10) -> 12 | C22: =IF(טבלה1[[#This Row],[תאריך]]="","",IF(TEXT(טבלה1[[#This Row],[תאריך]],"DDD")="שבת","מוצ""ש",TEXT(טבלה1[[#This Row],[תאריך]],"DDD"))) -> מוצ"ש | D22: 2024-06-22 | E22: 02:17:24 | F22: הגהה | G22: 04:17:28 | J22: =IF(IF(AND(טבלה1[[#This Row],[התחלה]]="",טבלה1[[#This Row],[סיום]]<>""),"",IF(AND(טבלה1[[#This Row],[התחלה]]<>"",טבלה1[[#This Row],[סיום]]=""), SUM(MOD(MOD(NOW(),1)-טבלה1[[#This Row],[התחלה]],1),טבלה1[[#This Row],[הוספת דקות]],-טבלה1[[#This Row],[הפחתת דקות]]), SUM(MOD(טבלה1[[#This Row],[סיום]]-טבלה1[[#This Row],[התחלה]],1),טבלה1[[#This Row],[הוספת דקות]],-טבלה1[[#This Row],[הפחתת דקות]])))<=0,"", IF(AND(טבלה1[[#This Row],[התחלה]]="",טבלה1[[#This Row],[סיום]]<>""),"",IF(AND(טבלה1[[#This Row],[התחלה]]<>"",טבלה1[[#This Row],[סיום]]=""), SUM(MOD(MOD(NOW(),1)-טבלה1[[#This Row],[התחלה]],1),טבלה1[[#This Row],[הוספת דקות]],-טבלה1[[#This Row],[הפחתת דקות]]), SUM(MOD(טבלה1[[#This Row],[סיום]]-טבלה1[[#This Row],[התחלה]],1),טבלה1[[#This Row],[הוספת דקות]],-טבלה1[[#This Row],[הפחתת דקות]])))) -> 0.08337962963 | K22: =IF(טבלה1[[#This Row],[שעות]]="","",IFERROR( IF(IF(AND(מטבע="שקלים",VLOOKUP(טבלה1[[#This Row],[שם העבודה]],טבלה2[],3,FALSE)="$"), VLOOKUP(טבלה1[[#This Row],[שם העבודה]],טבלה2[#All],2,FALSE)*טבלה1[[#This Row],[שעות]]*24*שער, IF(AND(מטבע="דולרים",VLOOKUP(טבלה1[[#This Row],[שם העבודה]],טבלה2[],3,FALSE)="₪"), VLOOKUP(טבלה1[[#This Row],[שם העבודה]],טבלה2[#All],2,FALSE)*טבלה1[[#This Row],[שעות]]*24/שער, VLOOKUP(טבלה1[[#This Row],[שם העבודה]],טבלה2[#All],2,FALSE)*טבלה1[[#This Row],[שעות]]*24))=0,"", IF(AND(מטבע="שקלים",VLOOKUP(טבלה1[[#This Row],[שם העבודה]],טבלה2[],3,FALSE)="$"), VLOOKUP(טבלה1[[#This Row],[שם העבודה]],טבלה2[#All],2,FALSE)*טבלה1[[#This Row],[שעות]]*24*שער, IF(AND(מטבע="דולרים",VLOOKUP(טבלה1[[#This Row],[שם העבודה]],טבלה2[],3,FALSE)="₪"), VLOOKUP(טבלה1[[#This Row],[שם העבודה]],טבלה2[#All],2,FALSE)*טבלה1[[#This Row],[שעות]]*24/שער, VLOOKUP(טבלה1[[#This Row],[שם העבודה]],טבלה2[#All],2,FALSE)*טבלה1[[#This Row],[שעות]]*24))),"")) -> 20.01111111 | L22: =IF(טבלה1[[#This Row],[תאריך]]="","",DATE(YEAR(טבלה1[[#This Row],[תאריך]]),MONTH(טבלה1[[#This Row],[תאריך]]),1)) -> 2024-06-01 | AO22: =IF(AL22="","", IFERROR(IF(SUMIFS(טבלה1[שעות],טבלה1[שם העבודה],טבלה2[[#This Row],[שמות העבודות]])=0,"", SUMIFS(טבלה1[שעות],טבלה1[שם העבודה],טבלה2[[#This Row],[שמות העבודות]])),"")) ->  | AP22: =IFERROR(IF(OR(טבלה2[[#This Row],[שכר לשעה]]="",טבלה2[[#This Row],[שעות]]=""),"",IF( IF(OR(טבלה2[[#This Row],[מטבע]]="₪",AND(מטבע="שקלים",טבלה2[[#This Row],[מטבע]]="")), טבלה2[[#This Row],[שכר לשעה]]*טבלה2[[#This Row],[שעות]]*24, IF(OR(טבלה2[[#This Row],[מטבע]]="$",AND(מטבע="דולרים",טבלה2[[#This Row],[מטבע]]="")), טבלה2[[#This Row],[שכר לשעה]]*טבלה2[[#This Row],[שעות]]*24*שער,""))=0,"", IF(OR(טבלה2[[#This Row],[מטבע]]="₪",AND(מטבע="שקלים",טבלה2[[#This Row],[מטבע]]="")), טבלה2[[#This Row],[שכר לשעה]]*טבלה2[[#This Row],[שעות]]*24, IF(OR(טבלה2[[#This Row],[מטבע]]="$",AND(מטבע="דולרים",טבלה2[[#This Row],[מטבע]]="")), טבלה2[[#This Row],[שכר לשעה]]*טבלה2[[#This Row],[שעות]]*24*שער,"")))),"") ->  | AQ22: =IFERROR(IF(OR(טבלה2[[#This Row],[שכר לשעה]]="",טבלה2[[#This Row],[שעות]]=""),"",IF( IF(OR(טבלה2[[#This Row],[מטבע]]="$",AND(מטבע="דולרים",טבלה2[[#This Row],[מטבע]]="")), טבלה2[[#This Row],[שכר לשעה]]*טבלה2[[#This Row],[שעות]]*24, IF(OR(טבלה2[[#This Row],[מטבע]]="₪",AND(מטבע="שקלים",טבלה2[[#This Row],[מטבע]]="")), טבלה2[[#This Row],[שכר לשעה]]*טבלה2[[#This Row],[שעות]]*24/שער,""))=0,"", IF(OR(טבלה2[[#This Row],[מטבע]]="$",AND(מטבע="דולרים",טבלה2[[#This Row],[מטבע]]="")), טבלה2[[#This Row],[שכר לשעה]]*טבלה2[[#This Row],[שעות]]*24, IF(OR(טבלה2[[#This Row],[מטבע]]="₪",AND(מטבע="שקלים",טבלה2[[#This Row],[מטבע]]="")), טבלה2[[#This Row],[שכר לשעה]]*טבלה2[[#This Row],[שעות]]*24/שער,"")))),"") ->  | AT22: =IF(טבלה2[[#This Row],[שעות]]="","",IF( IF(OR(טבלה2[[#This Row],[מטבע]]="₪",AND(מטבע="שקלים",טבלה2[[#This Row],[מטבע]]="")),טבלה2[[#This Row],[שכר בשקלים]]+טבלה2[[#This Row],[חיובים נוספים]]-טבלה2[[#This Row],[זיכויים / שולם]], IF(OR(טבלה2[[#This Row],[מטבע]]="$",AND(מטבע="דולרים",טבלה2[[#This Row],[מטבע]]="")),טבלה2[[#This Row],[שכר בדולרים]]+טבלה2[[#This Row],[חיובים נוספים]]-טבלה2[[#This Row],[זיכויים / שולם]],""))=0,"", IF(OR(טבלה2[[#This Row],[מטבע]]="₪",AND(מטבע="שקלים",טבלה2[[#This Row],[מטבע]]="")),טבלה2[[#This Row],[שכר בשקלים]]+טבלה2[[#This Row],[חיובים נוספים]]-טבלה2[[#This Row],[זיכויים / שולם]], IF(OR(טבלה2[[#This Row],[מטבע]]="$",AND(מטבע="דולרים",טבלה2[[#This Row],[מטבע]]="")),טבלה2[[#This Row],[שכר בדולרים]]+טבלה2[[#This Row],[חיובים נוספים]]-טבלה2[[#This Row],[זיכויים / שולם]],"")))) ->  | BJ22: מושבת | BK22: =IF(טבלה2[[#This Row],[שמות העבודות]]="","",טבלה2[[#This Row],[שמות העבודות]]) -> 
B23: =IF(AND(טבלה1[[#This Row],[תאריך]]="",טבלה1[[#This Row],[התחלה]]="",טבלה1[[#This Row],[שם העבודה]]=""),"",ROW()-10) -> 13 | C23: =IF(טבלה1[[#This Row],[תאריך]]="","",IF(TEXT(טבלה1[[#This Row],[תאריך]],"DDD")="שבת","מוצ""ש",TEXT(טבלה1[[#This Row],[תאריך]],"DDD"))) -> יום א | D23: 2024-06-23 | E23: 02:17:24 | F23: הקלדה | G23: 04:17:28 | J23: =IF(IF(AND(טבלה1[[#This Row],[התחלה]]="",טבלה1[[#This Row],[סיום]]<>""),"",IF(AND(טבלה1[[#This Row],[התחלה]]<>"",טבלה1[[#This Row],[סיום]]=""), SUM(MOD(MOD(NOW(),1)-טבלה1[[#This Row],[התחלה]],1),טבלה1[[#This Row],[הוספת דקות]],-טבלה1[[#This Row],[הפחתת דקות]]), SUM(MOD(טבלה1[[#This Row],[סיום]]-טבלה1[[#This Row],[התחלה]],1),טבלה1[[#This Row],[הוספת דקות]],-טבלה1[[#This Row],[הפחתת דקות]])))<=0,"", IF(AND(טבלה1[[#This Row],[התחלה]]="",טבלה1[[#This Row],[סיום]]<>""),"",IF(AND(טבלה1[[#This Row],[התחלה]]<>"",טבלה1[[#This Row],[סיום]]=""), SUM(MOD(MOD(NOW(),1)-טבלה1[[#This Row],[התחלה]],1),טבלה1[[#This Row],[הוספת דקות]],-טבלה1[[#This Row],[הפחתת דקות]]), SUM(MOD(טבלה1[[#This Row],[סיום]]-טבלה1[[#This Row],[התחלה]],1),טבלה1[[#This Row],[הוספת דקות]],-טבלה1[[#This Row],[הפחתת דקות]])))) -> 0.08337962963 | K23: =IF(טבלה1[[#This Row],[שעות]]="","",IFERROR( IF(IF(AND(מטבע="שקלים",VLOOKUP(טבלה1[[#This Row],[שם העבודה]],טבלה2[],3,FALSE)="$"), VLOOKUP(טבלה1[[#This Row],[שם העבודה]],טבלה2[#All],2,FALSE)*טבלה1[[#This Row],[שעות]]*24*שער, IF(AND(מטבע="דולרים",VLOOKUP(טבלה1[[#This Row],[שם העבודה]],טבלה2[],3,FALSE)="₪"), VLOOKUP(טבלה1[[#This Row],[שם העבודה]],טבלה2[#All],2,FALSE)*טבלה1[[#This Row],[שעות]]*24/שער, VLOOKUP(טבלה1[[#This Row],[שם העבודה]],טבלה2[#All],2,FALSE)*טבלה1[[#This Row],[שעות]]*24))=0,"", IF(AND(מטבע="שקלים",VLOOKUP(טבלה1[[#This Row],[שם העבודה]],טבלה2[],3,FALSE)="$"), VLOOKUP(טבלה1[[#This Row],[שם העבודה]],טבלה2[#All],2,FALSE)*טבלה1[[#This Row],[שעות]]*24*שער, IF(AND(מטבע="דולרים",VLOOKUP(טבלה1[[#This Row],[שם העבודה]],טבלה2[],3,FALSE)="₪"), VLOOKUP(טבלה1[[#This Row],[שם העבודה]],טבלה2[#All],2,FALSE)*טבלה1[[#This Row],[שעות]]*24/שער, VLOOKUP(טבלה1[[#This Row],[שם העבודה]],טבלה2[#All],2,FALSE)*טבלה1[[#This Row],[שעות]]*24))),"")) -> 100.0555556 | L23: =IF(טבלה1[[#This Row],[תאריך]]="","",DATE(YEAR(טבלה1[[#This Row],[תאריך]]),MONTH(טבלה1[[#This Row],[תאריך]]),1)) -> 2024-06-01 | AO23: =IF(AL23="","", IFERROR(IF(SUMIFS(טבלה1[שעות],טבלה1[שם העבודה],טבלה2[[#This Row],[שמות העבודות]])=0,"", SUMIFS(טבלה1[שעות],טבלה1[שם העבודה],טבלה2[[#This Row],[שמות העבודות]])),"")) ->  | AP23: =IFERROR(IF(OR(טבלה2[[#This Row],[שכר לשעה]]="",טבלה2[[#This Row],[שעות]]=""),"",IF( IF(OR(טבלה2[[#This Row],[מטבע]]="₪",AND(מטבע="שקלים",טבלה2[[#This Row],[מטבע]]="")), טבלה2[[#This Row],[שכר לשעה]]*טבלה2[[#This Row],[שעות]]*24, IF(OR(טבלה2[[#This Row],[מטבע]]="$",AND(מטבע="דולרים",טבלה2[[#This Row],[מטבע]]="")), טבלה2[[#This Row],[שכר לשעה]]*טבלה2[[#This Row],[שעות]]*24*שער,""))=0,"", IF(OR(טבלה2[[#This Row],[מטבע]]="₪",AND(מטבע="שקלים",טבלה2[[#This Row],[מטבע]]="")), טבלה2[[#This Row],[שכר לשעה]]*טבלה2[[#This Row],[שעות]]*24, IF(OR(טבלה2[[#This Row],[מטבע]]="$",AND(מטבע="דולרים",טבלה2[[#This Row],[מטבע]]="")), טבלה2[[#This Row],[שכר לשעה]]*טבלה2[[#This Row],[שעות]]*24*שער,"")))),"") ->  | AQ23: =IFERROR(IF(OR(טבלה2[[#This Row],[שכר לשעה]]="",טבלה2[[#This Row],[שעות]]=""),"",IF( IF(OR(טבלה2[[#This Row],[מטבע]]="$",AND(מטבע="דולרים",טבלה2[[#This Row],[מטבע]]="")), טבלה2[[#This Row],[שכר לשעה]]*טבלה2[[#This Row],[שעות]]*24, IF(OR(טבלה2[[#This Row],[מטבע]]="₪",AND(מטבע="שקלים",טבלה2[[#This Row],[מטבע]]="")), טבלה2[[#This Row],[שכר לשעה]]*טבלה2[[#This Row],[שעות]]*24/שער,""))=0,"", IF(OR(טבלה2[[#This Row],[מטבע]]="$",AND(מטבע="דולרים",טבלה2[[#This Row],[מטבע]]="")), טבלה2[[#This Row],[שכר לשעה]]*טבלה2[[#This Row],[שעות]]*24, IF(OR(טבלה2[[#This Row],[מטבע]]="₪",AND(מטבע="שקלים",טבלה2[[#This Row],[מטבע]]="")), טבלה2[[#This Row],[שכר לשעה]]*טבלה2[[#This Row],[שעות]]*24/שער,"")))),"") ->  | AT23: =IF(טבלה2[[#This Row],[שעות]]="","",IF( IF(OR(טבלה2[[#This Row],[מטבע]]="₪",AND(מטבע="שקלים",טבלה2[[#This Row],[מטבע]]="")),טבלה2[[#This Row],[שכר בשקלים]]+טבלה2[[#This Row],[חיובים נוספים]]-טבלה2[[#This Row],[זיכויים / שולם]], IF(OR(טבלה2[[#This Row],[מטבע]]="$",AND(מטבע="דולרים",טבלה2[[#This Row],[מטבע]]="")),טבלה2[[#This Row],[שכר בדולרים]]+טבלה2[[#This Row],[חיובים נוספים]]-טבלה2[[#This Row],[זיכויים / שולם]],""))=0,"", IF(OR(טבלה2[[#This Row],[מטבע]]="₪",AND(מטבע="שקלים",טבלה2[[#This Row],[מטבע]]="")),טבלה2[[#This Row],[שכר בשקלים]]+טבלה2[[#This Row],[חיובים נוספים]]-טבלה2[[#This Row],[זיכויים / שולם]], IF(OR(טבלה2[[#This Row],[מטבע]]="$",AND(מטבע="דולרים",טבלה2[[#This Row],[מטבע]]="")),טבלה2[[#This Row],[שכר בדולרים]]+טבלה2[[#This Row],[חיובים נוספים]]-טבלה2[[#This Row],[זיכויים / שולם]],"")))) ->  | BJ23: מטבע | BK23: =IF(טבלה2[[#This Row],[שמות העבודות]]="","",טבלה2[[#This Row],[שמות העבודות]]) -> 
B24: =IF(AND(טבלה1[[#This Row],[תאריך]]="",טבלה1[[#This Row],[התחלה]]="",טבלה1[[#This Row],[שם העבודה]]=""),"",ROW()-10) -> 14 | C24: =IF(טבלה1[[#This Row],[תאריך]]="","",IF(TEXT(טבלה1[[#This Row],[תאריך]],"DDD")="שבת","מוצ""ש",TEXT(טבלה1[[#This Row],[תאריך]],"DDD"))) -> יום ב | D24: 2024-06-24 | E24: 02:17:24 | F24: עימוד | G24: 04:17:28 | J24: =IF(IF(AND(טבלה1[[#This Row],[התחלה]]="",טבלה1[[#This Row],[סיום]]<>""),"",IF(AND(טבלה1[[#This Row],[התחלה]]<>"",טבלה1[[#This Row],[סיום]]=""), SUM(MOD(MOD(NOW(),1)-טבלה1[[#This Row],[התחלה]],1),טבלה1[[#This Row],[הוספת דקות]],-טבלה1[[#This Row],[הפחתת דקות]]), SUM(MOD(טבלה1[[#This Row],[סיום]]-טבלה1[[#This Row],[התחלה]],1),טבלה1[[#This Row],[הוספת דקות]],-טבלה1[[#This Row],[הפחתת דקות]])))<=0,"", IF(AND(טבלה1[[#This Row],[התחלה]]="",טבלה1[[#This Row],[סיום]]<>""),"",IF(AND(טבלה1[[#This Row],[התחלה]]<>"",טבלה1[[#This Row],[סיום]]=""), SUM(MOD(MOD(NOW(),1)-טבלה1[[#This Row],[התחלה]],1),טבלה1[[#This Row],[הוספת דקות]],-טבלה1[[#This Row],[הפחתת דקות]]), SUM(MOD(טבלה1[[#This Row],[סיום]]-טבלה1[[#This Row],[התחלה]],1),טבלה1[[#This Row],[הוספת דקות]],-טבלה1[[#This Row],[הפחתת דקות]])))) -> 0.08337962963 | K24: =IF(טבלה1[[#This Row],[שעות]]="","",IFERROR( IF(IF(AND(מטבע="שקלים",VLOOKUP(טבלה1[[#This Row],[שם העבודה]],טבלה2[],3,FALSE)="$"), VLOOKUP(טבלה1[[#This Row],[שם העבודה]],טבלה2[#All],2,FALSE)*טבלה1[[#This Row],[שעות]]*24*שער, IF(AND(מטבע="דולרים",VLOOKUP(טבלה1[[#This Row],[שם העבודה]],טבלה2[],3,FALSE)="₪"), VLOOKUP(טבלה1[[#This Row],[שם העבודה]],טבלה2[#All],2,FALSE)*טבלה1[[#This Row],[שעות]]*24/שער, VLOOKUP(טבלה1[[#This Row],[שם העבודה]],טבלה2[#All],2,FALSE)*טבלה1[[#This Row],[שעות]]*24))=0,"", IF(AND(מטבע="שקלים",VLOOKUP(טבלה1[[#This Row],[שם העבודה]],טבלה2[],3,FALSE)="$"), VLOOKUP(טבלה1[[#This Row],[שם העבודה]],טבלה2[#All],2,FALSE)*טבלה1[[#This Row],[שעות]]*24*שער, IF(AND(מטבע="דולרים",VLOOKUP(טבלה1[[#This Row],[שם העבודה]],טבלה2[],3,FALSE)="₪"), VLOOKUP(טבלה1[[#This Row],[שם העבודה]],טבלה2[#All],2,FALSE)*טבלה1[[#This Row],[שעות]]*24/שער, VLOOKUP(טבלה1[[#This Row],[שם העבודה]],טבלה2[#All],2,FALSE)*טבלה1[[#This Row],[שעות]]*24))),"")) -> 20.01111111 | L24: =IF(טבלה1[[#This Row],[תאריך]]="","",DATE(YEAR(טבלה1[[#This Row],[תאריך]]),MONTH(טבלה1[[#This Row],[תאריך]]),1)) -> 2024-06-01 | AO24: =IF(AL24="","", IFERROR(IF(SUMIFS(טבלה1[שעות],טבלה1[שם העבודה],טבלה2[[#This Row],[שמות העבודות]])=0,"", SUMIFS(טבלה1[שעות],טבלה1[שם העבודה],טבלה2[[#This Row],[שמות העבודות]])),"")) ->  | AP24: =IFERROR(IF(OR(טבלה2[[#This Row],[שכר לשעה]]="",טבלה2[[#This Row],[שעות]]=""),"",IF( IF(OR(טבלה2[[#This Row],[מטבע]]="₪",AND(מטבע="שקלים",טבלה2[[#This Row],[מטבע]]="")), טבלה2[[#This Row],[שכר לשעה]]*טבלה2[[#This Row],[שעות]]*24, IF(OR(טבלה2[[#This Row],[מטבע]]="$",AND(מטבע="דולרים",טבלה2[[#This Row],[מטבע]]="")), טבלה2[[#This Row],[שכר לשעה]]*טבלה2[[#This Row],[שעות]]*24*שער,""))=0,"", IF(OR(טבלה2[[#This Row],[מטבע]]="₪",AND(מטבע="שקלים",טבלה2[[#This Row],[מטבע]]="")), טבלה2[[#This Row],[שכר לשעה]]*טבלה2[[#This Row],[שעות]]*24, IF(OR(טבלה2[[#This Row],[מטבע]]="$",AND(מטבע="דולרים",טבלה2[[#This Row],[מטבע]]="")), טבלה2[[#This Row],[שכר לשעה]]*טבלה2[[#This Row],[שעות]]*24*שער,"")))),"") ->  | AQ24: =IFERROR(IF(OR(טבלה2[[#This Row],[שכר לשעה]]="",טבלה2[[#This Row],[שעות]]=""),"",IF( IF(OR(טבלה2[[#This Row],[מטבע]]="$",AND(מטבע="דולרים",טבלה2[[#This Row],[מטבע]]="")), טבלה2[[#This Row],[שכר לשעה]]*טבלה2[[#This Row],[שעות]]*24, IF(OR(טבלה2[[#This Row],[מטבע]]="₪",AND(מטבע="שקלים",טבלה2[[#This Row],[מטבע]]="")), טבלה2[[#This Row],[שכר לשעה]]*טבלה2[[#This Row],[שעות]]*24/שער,""))=0,"", IF(OR(טבלה2[[#This Row],[מטבע]]="$",AND(מטבע="דולרים",טבלה2[[#This Row],[מטבע]]="")), טבלה2[[#This Row],[שכר לשעה]]*טבלה2[[#This Row],[שעות]]*24, IF(OR(טבלה2[[#This Row],[מטבע]]="₪",AND(מטבע="שקלים",טבלה2[[#This Row],[מטבע]]="")), טבלה2[[#This Row],[שכר לשעה]]*טבלה2[[#This Row],[שעות]]*24/שער,"")))),"") ->  | AT24: =IF(טבלה2[[#This Row],[שעות]]="","",IF( IF(OR(טבלה2[[#This Row],[מטבע]]="₪",AND(מטבע="שקלים",טבלה2[[#This Row],[מטבע]]="")),טבלה2[[#This Row],[שכר בשקלים]]+טבלה2[[#This Row],[חיובים נוספים]]-טבלה2[[#This Row],[זיכויים / שולם]], IF(OR(טבלה2[[#This Row],[מטבע]]="$",AND(מטבע="דולרים",טבלה2[[#This Row],[מטבע]]="")),טבלה2[[#This Row],[שכר בדולרים]]+טבלה2[[#This Row],[חיובים נוספים]]-טבלה2[[#This Row],[זיכויים / שולם]],""))=0,"", IF(OR(טבלה2[[#This Row],[מטבע]]="₪",AND(מטבע="שקלים",טבלה2[[#This Row],[מטבע]]="")),טבלה2[[#This Row],[שכר בשקלים]]+טבלה2[[#This Row],[חיובים נוספים]]-טבלה2[[#This Row],[זיכויים / שולם]], IF(OR(טבלה2[[#This Row],[מטבע]]="$",AND(מטבע="דולרים",טבלה2[[#This Row],[מטבע]]="")),טבלה2[[#This Row],[שכר בדולרים]]+טבלה2[[#This Row],[חיובים נוספים]]-טבלה2[[#This Row],[זיכויים / שולם]],"")))) ->  | BJ24: שקלים | BK24: =IF(טבלה2[[#This Row],[שמות העבודות]]="","",טבלה2[[#This Row],[שמות העבודות]]) -> 
B25: =IF(AND(טבלה1[[#This Row],[תאריך]]="",טבלה1[[#This Row],[התחלה]]="",טבלה1[[#This Row],[שם העבודה]]=""),"",ROW()-10) -> 15 | C25: =IF(טבלה1[[#This Row],[תאריך]]="","",IF(TEXT(טבלה1[[#This Row],[תאריך]],"DDD")="שבת","מוצ""ש",TEXT(טבלה1[[#This Row],[תאריך]],"DDD"))) -> יום ג | D25: 2024-06-25 | E25: 02:17:24 | F25: הגהה | G25: 04:17:28 | J25: =IF(IF(AND(טבלה1[[#This Row],[התחלה]]="",טבלה1[[#This Row],[סיום]]<>""),"",IF(AND(טבלה1[[#This Row],[התחלה]]<>"",טבלה1[[#This Row],[סיום]]=""), SUM(MOD(MOD(NOW(),1)-טבלה1[[#This Row],[התחלה]],1),טבלה1[[#This Row],[הוספת דקות]],-טבלה1[[#This Row],[הפחתת דקות]]), SUM(MOD(טבלה1[[#This Row],[סיום]]-טבלה1[[#This Row],[התחלה]],1),טבלה1[[#This Row],[הוספת דקות]],-טבלה1[[#This Row],[הפחתת דקות]])))<=0,"", IF(AND(טבלה1[[#This Row],[התחלה]]="",טבלה1[[#This Row],[סיום]]<>""),"",IF(AND(טבלה1[[#This Row],[התחלה]]<>"",טבלה1[[#This Row],[סיום]]=""), SUM(MOD(MOD(NOW(),1)-טבלה1[[#This Row],[התחלה]],1),טבלה1[[#This Row],[הוספת דקות]],-טבלה1[[#This Row],[הפחתת דקות]]), SUM(MOD(טבלה1[[#This Row],[סיום]]-טבלה1[[#This Row],[התחלה]],1),טבלה1[[#This Row],[הוספת דקות]],-טבלה1[[#This Row],[הפחתת דקות]])))) -> 0.08337962963 | K25: =IF(טבלה1[[#This Row],[שעות]]="","",IFERROR( IF(IF(AND(מטבע="שקלים",VLOOKUP(טבלה1[[#This Row],[שם העבודה]],טבלה2[],3,FALSE)="$"), VLOOKUP(טבלה1[[#This Row],[שם העבודה]],טבלה2[#All],2,FALSE)*טבלה1[[#This Row],[שעות]]*24*שער, IF(AND(מטבע="דולרים",VLOOKUP(טבלה1[[#This Row],[שם העבודה]],טבלה2[],3,FALSE)="₪"), VLOOKUP(טבלה1[[#This Row],[שם העבודה]],טבלה2[#All],2,FALSE)*טבלה1[[#This Row],[שעות]]*24/שער, VLOOKUP(טבלה1[[#This Row],[שם העבודה]],טבלה2[#All],2,FALSE)*טבלה1[[#This Row],[שעות]]*24))=0,"", IF(AND(מטבע="שקלים",VLOOKUP(טבלה1[[#This Row],[שם העבודה]],טבלה2[],3,FALSE)="$"), VLOOKUP(טבלה1[[#This Row],[שם העבודה]],טבלה2[#All],2,FALSE)*טבלה1[[#This Row],[שעות]]*24*שער, IF(AND(מטבע="דולרים",VLOOKUP(טבלה1[[#This Row],[שם העבודה]],טבלה2[],3,FALSE)="₪"), VLOOKUP(טבלה1[[#This Row],[שם העבודה]],טבלה2[#All],2,FALSE)*טבלה1[[#This Row],[שעות]]*24/שער, VLOOKUP(טבלה1[[#This Row],[שם העבודה]],טבלה2[#All],2,FALSE)*טבלה1[[#This Row],[שעות]]*24))),"")) -> 20.01111111 | L25: =IF(טבלה1[[#This Row],[תאריך]]="","",DATE(YEAR(טבלה1[[#This Row],[תאריך]]),MONTH(טבלה1[[#This Row],[תאריך]]),1)) -> 2024-06-01 | AO25: =IF(AL25="","", IFERROR(IF(SUMIFS(טבלה1[שעות],טבלה1[שם העבודה],טבלה2[[#This Row],[שמות העבודות]])=0,"", SUMIFS(טבלה1[שעות],טבלה1[שם העבודה],טבלה2[[#This Row],[שמות העבודות]])),"")) ->  | AP25: =IFERROR(IF(OR(טבלה2[[#This Row],[שכר לשעה]]="",טבלה2[[#This Row],[שעות]]=""),"",IF( IF(OR(טבלה2[[#This Row],[מטבע]]="₪",AND(מטבע="שקלים",טבלה2[[#This Row],[מטבע]]="")), טבלה2[[#This Row],[שכר לשעה]]*טבלה2[[#This Row],[שעות]]*24, IF(OR(טבלה2[[#This Row],[מטבע]]="$",AND(מטבע="דולרים",טבלה2[[#This Row],[מטבע]]="")), טבלה2[[#This Row],[שכר לשעה]]*טבלה2[[#This Row],[שעות]]*24*שער,""))=0,"", IF(OR(טבלה2[[#This Row],[מטבע]]="₪",AND(מטבע="שקלים",טבלה2[[#This Row],[מטבע]]="")), טבלה2[[#This Row],[שכר לשעה]]*טבלה2[[#This Row],[שעות]]*24, IF(OR(טבלה2[[#This Row],[מטבע]]="$",AND(מטבע="דולרים",טבלה2[[#This Row],[מטבע]]="")), טבלה2[[#This Row],[שכר לשעה]]*טבלה2[[#This Row],[שעות]]*24*שער,"")))),"") ->  | AQ25: =IFERROR(IF(OR(טבלה2[[#This Row],[שכר לשעה]]="",טבלה2[[#This Row],[שעות]]=""),"",IF( IF(OR(טבלה2[[#This Row],[מטבע]]="$",AND(מטבע="דולרים",טבלה2[[#This Row],[מטבע]]="")), טבלה2[[#This Row],[שכר לשעה]]*טבלה2[[#This Row],[שעות]]*24, IF(OR(טבלה2[[#This Row],[מטבע]]="₪",AND(מטבע="שקלים",טבלה2[[#This Row],[מטבע]]="")), טבלה2[[#This Row],[שכר לשעה]]*טבלה2[[#This Row],[שעות]]*24/שער,""))=0,"", IF(OR(טבלה2[[#This Row],[מטבע]]="$",AND(מטבע="דולרים",טבלה2[[#This Row],[מטבע]]="")), טבלה2[[#This Row],[שכר לשעה]]*טבלה2[[#This Row],[שעות]]*24, IF(OR(טבלה2[[#This Row],[מטבע]]="₪",AND(מטבע="שקלים",טבלה2[[#This Row],[מטבע]]="")), טבלה2[[#This Row],[שכר לשעה]]*טבלה2[[#This Row],[שעות]]*24/שער,"")))),"") ->  | AT25: =IF(טבלה2[[#This Row],[שעות]]="","",IF( IF(OR(טבלה2[[#This Row],[מטבע]]="₪",AND(מטבע="שקלים",טבלה2[[#This Row],[מטבע]]="")),טבלה2[[#This Row],[שכר בשקלים]]+טבלה2[[#This Row],[חיובים נוספים]]-טבלה2[[#This Row],[זיכויים / שולם]], IF(OR(טבלה2[[#This Row],[מטבע]]="$",AND(מטבע="דולרים",טבלה2[[#This Row],[מטבע]]="")),טבלה2[[#This Row],[שכר בדולרים]]+טבלה2[[#This Row],[חיובים נוספים]]-טבלה2[[#This Row],[זיכויים / שולם]],""))=0,"", IF(OR(טבלה2[[#This Row],[מטבע]]="₪",AND(מטבע="שקלים",טבלה2[[#This Row],[מטבע]]="")),טבלה2[[#This Row],[שכר בשקלים]]+טבלה2[[#This Row],[חיובים נוספים]]-טבלה2[[#This Row],[זיכויים / שולם]], IF(OR(טבלה2[[#This Row],[מטבע]]="$",AND(מטבע="דולרים",טבלה2[[#This Row],[מטבע]]="")),טבלה2[[#This Row],[שכר בדולרים]]+טבלה2[[#This Row],[חיובים נוספים]]-טבלה2[[#This Row],[זיכויים / שולם]],"")))) ->  | BK25: =IF(טבלה2[[#This Row],[שמות העבודות]]="","",טבלה2[[#This Row],[שמות העבודות]]) -> 
B26: =IF(AND(טבלה1[[#This Row],[תאריך]]="",טבלה1[[#This Row],[התחלה]]="",טבלה1[[#This Row],[שם העבודה]]=""),"",ROW()-10) -> 16 | C26: =IF(טבלה1[[#This Row],[תאריך]]="","",IF(TEXT(טבלה1[[#This Row],[תאריך]],"DDD")="שבת","מוצ""ש",TEXT(טבלה1[[#This Row],[תאריך]],"DDD"))) -> יום ד | D26: 2024-06-26 | E26: 02:17:24 | F26: הקלדה | G26: 04:17:28 | J26: =IF(IF(AND(טבלה1[[#This Row],[התחלה]]="",טבלה1[[#This Row],[סיום]]<>""),"",IF(AND(טבלה1[[#This Row],[התחלה]]<>"",טבלה1[[#This Row],[סיום]]=""), SUM(MOD(MOD(NOW(),1)-טבלה1[[#This Row],[התחלה]],1),טבלה1[[#This Row],[הוספת דקות]],-טבלה1[[#This Row],[הפחתת דקות]]), SUM(MOD(טבלה1[[#This Row],[סיום]]-טבלה1[[#This Row],[התחלה]],1),טבלה1[[#This Row],[הוספת דקות]],-טבלה1[[#This Row],[הפחתת דקות]])))<=0,"", IF(AND(טבלה1[[#This Row],[התחלה]]="",טבלה1[[#This Row],[סיום]]<>""),"",IF(AND(טבלה1[[#This Row],[התחלה]]<>"",טבלה1[[#This Row],[סיום]]=""), SUM(MOD(MOD(NOW(),1)-טבלה1[[#This Row],[התחלה]],1),טבלה1[[#This Row],[הוספת דקות]],-טבלה1[[#This Row],[הפחתת דקות]]), SUM(MOD(טבלה1[[#This Row],[סיום]]-טבלה1[[#This Row],[התחלה]],1),טבלה1[[#This Row],[הוספת דקות]],-טבלה1[[#This Row],[הפחתת דקות]])))) -> 0.08337962963 | K26: =IF(טבלה1[[#This Row],[שעות]]="","",IFERROR( IF(IF(AND(מטבע="שקלים",VLOOKUP(טבלה1[[#This Row],[שם העבודה]],טבלה2[],3,FALSE)="$"), VLOOKUP(טבלה1[[#This Row],[שם העבודה]],טבלה2[#All],2,FALSE)*טבלה1[[#This Row],[שעות]]*24*שער, IF(AND(מטבע="דולרים",VLOOKUP(טבלה1[[#This Row],[שם העבודה]],טבלה2[],3,FALSE)="₪"), VLOOKUP(טבלה1[[#This Row],[שם העבודה]],טבלה2[#All],2,FALSE)*טבלה1[[#This Row],[שעות]]*24/שער, VLOOKUP(טבלה1[[#This Row],[שם העבודה]],טבלה2[#All],2,FALSE)*טבלה1[[#This Row],[שעות]]*24))=0,"", IF(AND(מטבע="שקלים",VLOOKUP(טבלה1[[#This Row],[שם העבודה]],טבלה2[],3,FALSE)="$"), VLOOKUP(טבלה1[[#This Row],[שם העבודה]],טבלה2[#All],2,FALSE)*טבלה1[[#This Row],[שעות]]*24*שער, IF(AND(מטבע="דולרים",VLOOKUP(טבלה1[[#This Row],[שם העבודה]],טבלה2[],3,FALSE)="₪"), VLOOKUP(טבלה1[[#This Row],[שם העבודה]],טבלה2[#All],2,FALSE)*טבלה1[[#This Row],[שעות]]*24/שער, VLOOKUP(טבלה1[[#This Row],[שם העבודה]],טבלה2[#All],2,FALSE)*טבלה1[[#This Row],[שעות]]*24))),"")) -> 100.0555556 | L26: =IF(טבלה1[[#This Row],[תאריך]]="","",DATE(YEAR(טבלה1[[#This Row],[תאריך]]),MONTH(טבלה1[[#This Row],[תאריך]]),1)) -> 2024-06-01 | AO26: =IF(AL26="","", IFERROR(IF(SUMIFS(טבלה1[שעות],טבלה1[שם העבודה],טבלה2[[#This Row],[שמות העבודות]])=0,"", SUMIFS(טבלה1[שעות],טבלה1[שם העבודה],טבלה2[[#This Row],[שמות העבודות]])),"")) ->  | AP26: =IFERROR(IF(OR(טבלה2[[#This Row],[שכר לשעה]]="",טבלה2[[#This Row],[שעות]]=""),"",IF( IF(OR(טבלה2[[#This Row],[מטבע]]="₪",AND(מטבע="שקלים",טבלה2[[#This Row],[מטבע]]="")), טבלה2[[#This Row],[שכר לשעה]]*טבלה2[[#This Row],[שעות]]*24, IF(OR(טבלה2[[#This Row],[מטבע]]="$",AND(מטבע="דולרים",טבלה2[[#This Row],[מטבע]]="")), טבלה2[[#This Row],[שכר לשעה]]*טבלה2[[#This Row],[שעות]]*24*שער,""))=0,"", IF(OR(טבלה2[[#This Row],[מטבע]]="₪",AND(מטבע="שקלים",טבלה2[[#This Row],[מטבע]]="")), טבלה2[[#This Row],[שכר לשעה]]*טבלה2[[#This Row],[שעות]]*24, IF(OR(טבלה2[[#This Row],[מטבע]]="$",AND(מטבע="דולרים",טבלה2[[#This Row],[מטבע]]="")), טבלה2[[#This Row],[שכר לשעה]]*טבלה2[[#This Row],[שעות]]*24*שער,"")))),"") ->  | AQ26: =IFERROR(IF(OR(טבלה2[[#This Row],[שכר לשעה]]="",טבלה2[[#This Row],[שעות]]=""),"",IF( IF(OR(טבלה2[[#This Row],[מטבע]]="$",AND(מטבע="דולרים",טבלה2[[#This Row],[מטבע]]="")), טבלה2[[#This Row],[שכר לשעה]]*טבלה2[[#This Row],[שעות]]*24, IF(OR(טבלה2[[#This Row],[מטבע]]="₪",AND(מטבע="שקלים",טבלה2[[#This Row],[מטבע]]="")), טבלה2[[#This Row],[שכר לשעה]]*טבלה2[[#This Row],[שעות]]*24/שער,""))=0,"", IF(OR(טבלה2[[#This Row],[מטבע]]="$",AND(מטבע="דולרים",טבלה2[[#This Row],[מטבע]]="")), טבלה2[[#This Row],[שכר לשעה]]*טבלה2[[#This Row],[שעות]]*24, IF(OR(טבלה2[[#This Row],[מטבע]]="₪",AND(מטבע="שקלים",טבלה2[[#This Row],[מטבע]]="")), טבלה2[[#This Row],[שכר לשעה]]*טבלה2[[#This Row],[שעות]]*24/שער,"")))),"") ->  | AT26: =IF(טבלה2[[#This Row],[שעות]]="","",IF( IF(OR(טבלה2[[#This Row],[מטבע]]="₪",AND(מטבע="שקלים",טבלה2[[#This Row],[מטבע]]="")),טבלה2[[#This Row],[שכר בשקלים]]+טבלה2[[#This Row],[חיובים נוספים]]-טבלה2[[#This Row],[זיכויים / שולם]], IF(OR(טבלה2[[#This Row],[מטבע]]="$",AND(מטבע="דולרים",טבלה2[[#This Row],[מטבע]]="")),טבלה2[[#This Row],[שכר בדולרים]]+טבלה2[[#This Row],[חיובים נוספים]]-טבלה2[[#This Row],[זיכויים / שולם]],""))=0,"", IF(OR(טבלה2[[#This Row],[מטבע]]="₪",AND(מטבע="שקלים",טבלה2[[#This Row],[מטבע]]="")),טבלה2[[#This Row],[שכר בשקלים]]+טבלה2[[#This Row],[חיובים נוספים]]-טבלה2[[#This Row],[זיכויים / שולם]], IF(OR(טבלה2[[#This Row],[מטבע]]="$",AND(מטבע="דולרים",טבלה2[[#This Row],[מטבע]]="")),טבלה2[[#This Row],[שכר בדולרים]]+טבלה2[[#This Row],[חיובים נוספים]]-טבלה2[[#This Row],[זיכויים / שולם]],"")))) ->  | BJ26: אימות נתונים | BK26: =IF(טבלה2[[#This Row],[שמות העבודות]]="","",טבלה2[[#This Row],[שמות העבודות]]) -> 
B27: =IF(AND(טבלה1[[#This Row],[תאריך]]="",טבלה1[[#This Row],[התחלה]]="",טבלה1[[#This Row],[שם העבודה]]=""),"",ROW()-10) -> 17 | C27: =IF(טבלה1[[#This Row],[תאריך]]="","",IF(TEXT(טבלה1[[#This Row],[תאריך]],"DDD")="שבת","מוצ""ש",TEXT(טבלה1[[#This Row],[תאריך]],"DDD"))) -> יום ו | D27: 2024-07-26 | E27: 02:17:24 | F27: עימוד | G27: 04:17:28 | J27: =IF(IF(AND(טבלה1[[#This Row],[התחלה]]="",טבלה1[[#This Row],[סיום]]<>""),"",IF(AND(טבלה1[[#This Row],[התחלה]]<>"",טבלה1[[#This Row],[סיום]]=""), SUM(MOD(MOD(NOW(),1)-טבלה1[[#This Row],[התחלה]],1),טבלה1[[#This Row],[הוספת דקות]],-טבלה1[[#This Row],[הפחתת דקות]]), SUM(MOD(טבלה1[[#This Row],[סיום]]-טבלה1[[#This Row],[התחלה]],1),טבלה1[[#This Row],[הוספת דקות]],-טבלה1[[#This Row],[הפחתת דקות]])))<=0,"", IF(AND(טבלה1[[#This Row],[התחלה]]="",טבלה1[[#This Row],[סיום]]<>""),"",IF(AND(טבלה1[[#This Row],[התחלה]]<>"",טבלה1[[#This Row],[סיום]]=""), SUM(MOD(MOD(NOW(),1)-טבלה1[[#This Row],[התחלה]],1),טבלה1[[#This Row],[הוספת דקות]],-טבלה1[[#This Row],[הפחתת דקות]]), SUM(MOD(טבלה1[[#This Row],[סיום]]-טבלה1[[#This Row],[התחלה]],1),טבלה1[[#This Row],[הוספת דקות]],-טבלה1[[#This Row],[הפחתת דקות]])))) -> 0.08337962963 | K27: =IF(טבלה1[[#This Row],[שעות]]="","",IFERROR( IF(IF(AND(מטבע="שקלים",VLOOKUP(טבלה1[[#This Row],[שם העבודה]],טבלה2[],3,FALSE)="$"), VLOOKUP(טבלה1[[#This Row],[שם העבודה]],טבלה2[#All],2,FALSE)*טבלה1[[#This Row],[שעות]]*24*שער, IF(AND(מטבע="דולרים",VLOOKUP(טבלה1[[#This Row],[שם העבודה]],טבלה2[],3,FALSE)="₪"), VLOOKUP(טבלה1[[#This Row],[שם העבודה]],טבלה2[#All],2,FALSE)*טבלה1[[#This Row],[שעות]]*24/שער, VLOOKUP(טבלה1[[#This Row],[שם העבודה]],טבלה2[#All],2,FALSE)*טבלה1[[#This Row],[שעות]]*24))=0,"", IF(AND(מטבע="שקלים",VLOOKUP(טבלה1[[#This Row],[שם העבודה]],טבלה2[],3,FALSE)="$"), VLOOKUP(טבלה1[[#This Row],[שם העבודה]],טבלה2[#All],2,FALSE)*טבלה1[[#This Row],[שעות]]*24*שער, IF(AND(מטבע="דולרים",VLOOKUP(טבלה1[[#This Row],[שם העבודה]],טבלה2[],3,FALSE)="₪"), VLOOKUP(טבלה1[[#This Row],[שם העבודה]],טבלה2[#All],2,FALSE)*טבלה1[[#This Row],[שעות]]*24/שער, VLOOKUP(טבלה1[[#This Row],[שם העבודה]],טבלה2[#All],2,FALSE)*טבלה1[[#This Row],[שעות]]*24))),"")) -> 20.01111111 | L27: =IF(טבלה1[[#This Row],[תאריך]]="","",DATE(YEAR(טבלה1[[#This Row],[תאריך]]),MONTH(טבלה1[[#This Row],[תאריך]]),1)) -> 2024-07-01 | AO27: =IF(AL27="","", IFERROR(IF(SUMIFS(טבלה1[שעות],טבלה1[שם העבודה],טבלה2[[#This Row],[שמות העבודות]])=0,"", SUMIFS(טבלה1[שעות],טבלה1[שם העבודה],טבלה2[[#This Row],[שמות העבודות]])),"")) ->  | AP27: =IFERROR(IF(OR(טבלה2[[#This Row],[שכר לשעה]]="",טבלה2[[#This Row],[שעות]]=""),"",IF( IF(OR(טבלה2[[#This Row],[מטבע]]="₪",AND(מטבע="שקלים",טבלה2[[#This Row],[מטבע]]="")), טבלה2[[#This Row],[שכר לשעה]]*טבלה2[[#This Row],[שעות]]*24, IF(OR(טבלה2[[#This Row],[מטבע]]="$",AND(מטבע="דולרים",טבלה2[[#This Row],[מטבע]]="")), טבלה2[[#This Row],[שכר לשעה]]*טבלה2[[#This Row],[שעות]]*24*שער,""))=0,"", IF(OR(טבלה2[[#This Row],[מטבע]]="₪",AND(מטבע="שקלים",טבלה2[[#This Row],[מטבע]]="")), טבלה2[[#This Row],[שכר לשעה]]*טבלה2[[#This Row],[שעות]]*24, IF(OR(טבלה2[[#This Row],[מטבע]]="$",AND(מטבע="דולרים",טבלה2[[#This Row],[מטבע]]="")), טבלה2[[#This Row],[שכר לשעה]]*טבלה2[[#This Row],[שעות]]*24*שער,"")))),"") ->  | AQ27: =IFERROR(IF(OR(טבלה2[[#This Row],[שכר לשעה]]="",טבלה2[[#This Row],[שעות]]=""),"",IF( IF(OR(טבלה2[[#This Row],[מטבע]]="$",AND(מטבע="דולרים",טבלה2[[#This Row],[מטבע]]="")), טבלה2[[#This Row],[שכר לשעה]]*טבלה2[[#This Row],[שעות]]*24, IF(OR(טבלה2[[#This Row],[מטבע]]="₪",AND(מטבע="שקלים",טבלה2[[#This Row],[מטבע]]="")), טבלה2[[#This Row],[שכר לשעה]]*טבלה2[[#This Row],[שעות]]*24/שער,""))=0,"", IF(OR(טבלה2[[#This Row],[מטבע]]="$",AND(מטבע="דולרים",טבלה2[[#This Row],[מטבע]]="")), טבלה2[[#This Row],[שכר לשעה]]*טבלה2[[#This Row],[שעות]]*24, IF(OR(טבלה2[[#This Row],[מטבע]]="₪",AND(מטבע="שקלים",טבלה2[[#This Row],[מטבע]]="")), טבלה2[[#This Row],[שכר לשעה]]*טבלה2[[#This Row],[שעות]]*24/שער,"")))),"") ->  | AT27: =IF(טבלה2[[#This Row],[שעות]]="","",IF( IF(OR(טבלה2[[#This Row],[מטבע]]="₪",AND(מטבע="שקלים",טבלה2[[#This Row],[מטבע]]="")),טבלה2[[#This Row],[שכר בשקלים]]+טבלה2[[#This Row],[חיובים נוספים]]-טבלה2[[#This Row],[זיכויים / שולם]], IF(OR(טבלה2[[#This Row],[מטבע]]="$",AND(מטבע="דולרים",טבלה2[[#This Row],[מטבע]]="")),טבלה2[[#This Row],[שכר בדולרים]]+טבלה2[[#This Row],[חיובים נוספים]]-טבלה2[[#This Row],[זיכויים / שולם]],""))=0,"", IF(OR(טבלה2[[#This Row],[מטבע]]="₪",AND(מטבע="שקלים",טבלה2[[#This Row],[מטבע]]="")),טבלה2[[#This Row],[שכר בשקלים]]+טבלה2[[#This Row],[חיובים נוספים]]-טבלה2[[#This Row],[זיכויים / שולם]], IF(OR(טבלה2[[#This Row],[מטבע]]="$",AND(מטבע="דולרים",טבלה2[[#This Row],[מטבע]]="")),טבלה2[[#This Row],[שכר בדולרים]]+טבלה2[[#This Row],[חיובים נוספים]]-טבלה2[[#This Row],[זיכויים / שולם]],"")))) ->  | BJ27: =BJ30-3 -> 2024-07-25 | BK27: =IF(טבלה2[[#This Row],[שמות העבודות]]="","",טבלה2[[#This Row],[שמות העבודות]]) -> 
B28: =IF(AND(טבלה1[[#This Row],[תאריך]]="",טבלה1[[#This Row],[התחלה]]="",טבלה1[[#This Row],[שם העבודה]]=""),"",ROW()-10) -> 18 | C28: =IF(טבלה1[[#This Row],[תאריך]]="","",IF(TEXT(טבלה1[[#This Row],[תאריך]],"DDD")="שבת","מוצ""ש",TEXT(טבלה1[[#This Row],[תאריך]],"DDD"))) -> מוצ"ש | D28: 2024-07-27 | E28: 02:17:24 | F28: הגהה | G28: 04:17:28 | J28: =IF(IF(AND(טבלה1[[#This Row],[התחלה]]="",טבלה1[[#This Row],[סיום]]<>""),"",IF(AND(טבלה1[[#This Row],[התחלה]]<>"",טבלה1[[#This Row],[סיום]]=""), SUM(MOD(MOD(NOW(),1)-טבלה1[[#This Row],[התחלה]],1),טבלה1[[#This Row],[הוספת דקות]],-טבלה1[[#This Row],[הפחתת דקות]]), SUM(MOD(טבלה1[[#This Row],[סיום]]-טבלה1[[#This Row],[התחלה]],1),טבלה1[[#This Row],[הוספת דקות]],-טבלה1[[#This Row],[הפחתת דקות]])))<=0,"", IF(AND(טבלה1[[#This Row],[התחלה]]="",טבלה1[[#This Row],[סיום]]<>""),"",IF(AND(טבלה1[[#This Row],[התחלה]]<>"",טבלה1[[#This Row],[סיום]]=""), SUM(MOD(MOD(NOW(),1)-טבלה1[[#This Row],[התחלה]],1),טבלה1[[#This Row],[הוספת דקות]],-טבלה1[[#This Row],[הפחתת דקות]]), SUM(MOD(טבלה1[[#This Row],[סיום]]-טבלה1[[#This Row],[התחלה]],1),טבלה1[[#This Row],[הוספת דקות]],-טבלה1[[#This Row],[הפחתת דקות]])))) -> 0.08337962963 | K28: =IF(טבלה1[[#This Row],[שעות]]="","",IFERROR( IF(IF(AND(מטבע="שקלים",VLOOKUP(טבלה1[[#This Row],[שם העבודה]],טבלה2[],3,FALSE)="$"), VLOOKUP(טבלה1[[#This Row],[שם העבודה]],טבלה2[#All],2,FALSE)*טבלה1[[#This Row],[שעות]]*24*שער, IF(AND(מטבע="דולרים",VLOOKUP(טבלה1[[#This Row],[שם העבודה]],טבלה2[],3,FALSE)="₪"), VLOOKUP(טבלה1[[#This Row],[שם העבודה]],טבלה2[#All],2,FALSE)*טבלה1[[#This Row],[שעות]]*24/שער, VLOOKUP(טבלה1[[#This Row],[שם העבודה]],טבלה2[#All],2,FALSE)*טבלה1[[#This Row],[שעות]]*24))=0,"", IF(AND(מטבע="שקלים",VLOOKUP(טבלה1[[#This Row],[שם העבודה]],טבלה2[],3,FALSE)="$"), VLOOKUP(טבלה1[[#This Row],[שם העבודה]],טבלה2[#All],2,FALSE)*טבלה1[[#This Row],[שעות]]*24*שער, IF(AND(מטבע="דולרים",VLOOKUP(טבלה1[[#This Row],[שם העבודה]],טבלה2[],3,FALSE)="₪"), VLOOKUP(טבלה1[[#This Row],[שם העבודה]],טבלה2[#All],2,FALSE)*טבלה1[[#This Row],[שעות]]*24/שער, VLOOKUP(טבלה1[[#This Row],[שם העבודה]],טבלה2[#All],2,FALSE)*טבלה1[[#This Row],[שעות]]*24))),"")) -> 20.01111111 | L28: =IF(טבלה1[[#This Row],[תאריך]]="","",DATE(YEAR(טבלה1[[#This Row],[תאריך]]),MONTH(טבלה1[[#This Row],[תאריך]]),1)) -> 2024-07-01 | AO28: =IF(AL28="","", IFERROR(IF(SUMIFS(טבלה1[שעות],טבלה1[שם העבודה],טבלה2[[#This Row],[שמות העבודות]])=0,"", SUMIFS(טבלה1[שעות],טבלה1[שם העבודה],טבלה2[[#This Row],[שמות העבודות]])),"")) ->  | AP28: =IFERROR(IF(OR(טבלה2[[#This Row],[שכר לשעה]]="",טבלה2[[#This Row],[שעות]]=""),"",IF( IF(OR(טבלה2[[#This Row],[מטבע]]="₪",AND(מטבע="שקלים",טבלה2[[#This Row],[מטבע]]="")), טבלה2[[#This Row],[שכר לשעה]]*טבלה2[[#This Row],[שעות]]*24, IF(OR(טבלה2[[#This Row],[מטבע]]="$",AND(מטבע="דולרים",טבלה2[[#This Row],[מטבע]]="")), טבלה2[[#This Row],[שכר לשעה]]*טבלה2[[#This Row],[שעות]]*24*שער,""))=0,"", IF(OR(טבלה2[[#This Row],[מטבע]]="₪",AND(מטבע="שקלים",טבלה2[[#This Row],[מטבע]]="")), טבלה2[[#This Row],[שכר לשעה]]*טבלה2[[#This Row],[שעות]]*24, IF(OR(טבלה2[[#This Row],[מטבע]]="$",AND(מטבע="דולרים",טבלה2[[#This Row],[מטבע]]="")), טבלה2[[#This Row],[שכר לשעה]]*טבלה2[[#This Row],[שעות]]*24*שער,"")))),"") ->  | AQ28: =IFERROR(IF(OR(טבלה2[[#This Row],[שכר לשעה]]="",טבלה2[[#This Row],[שעות]]=""),"",IF( IF(OR(טבלה2[[#This Row],[מטבע]]="$",AND(מטבע="דולרים",טבלה2[[#This Row],[מטבע]]="")), טבלה2[[#This Row],[שכר לשעה]]*טבלה2[[#This Row],[שעות]]*24, IF(OR(טבלה2[[#This Row],[מטבע]]="₪",AND(מטבע="שקלים",טבלה2[[#This Row],[מטבע]]="")), טבלה2[[#This Row],[שכר לשעה]]*טבלה2[[#This Row],[שעות]]*24/שער,""))=0,"", IF(OR(טבלה2[[#This Row],[מטבע]]="$",AND(מטבע="דולרים",טבלה2[[#This Row],[מטבע]]="")), טבלה2[[#This Row],[שכר לשעה]]*טבלה2[[#This Row],[שעות]]*24, IF(OR(טבלה2[[#This Row],[מטבע]]="₪",AND(מטבע="שקלים",טבלה2[[#This Row],[מטבע]]="")), טבלה2[[#This Row],[שכר לשעה]]*טבלה2[[#This Row],[שעות]]*24/שער,"")))),"") ->  | AT28: =IF(טבלה2[[#This Row],[שעות]]="","",IF( IF(OR(טבלה2[[#This Row],[מטבע]]="₪",AND(מטבע="שקלים",טבלה2[[#This Row],[מטבע]]="")),טבלה2[[#This Row],[שכר בשקלים]]+טבלה2[[#This Row],[חיובים נוספים]]-טבלה2[[#This Row],[זיכויים / שולם]], IF(OR(טבלה2[[#This Row],[מטבע]]="$",AND(מטבע="דולרים",טבלה2[[#This Row],[מטבע]]="")),טבלה2[[#This Row],[שכר בדולרים]]+טבלה2[[#This Row],[חיובים נוספים]]-טבלה2[[#This Row],[זיכויים / שולם]],""))=0,"", IF(OR(טבלה2[[#This Row],[מטבע]]="₪",AND(מטבע="שקלים",טבלה2[[#This Row],[מטבע]]="")),טבלה2[[#This Row],[שכר בשקלים]]+טבלה2[[#This Row],[חיובים נוספים]]-טבלה2[[#This Row],[זיכויים / שולם]], IF(OR(טבלה2[[#This Row],[מטבע]]="$",AND(מטבע="דולרים",טבלה2[[#This Row],[מטבע]]="")),טבלה2[[#This Row],[שכר בדולרים]]+טבלה2[[#This Row],[חיובים נוספים]]-טבלה2[[#This Row],[זיכויים / שולם]],"")))) ->  | BJ28: =BJ30-2 -> 2024-07-26 | BK28: =IF(טבלה2[[#This Row],[שמות העבודות]]="","",טבלה2[[#This Row],[שמות העבודות]]) -> 
B29: =IF(AND(טבלה1[[#This Row],[תאריך]]="",טבלה1[[#This Row],[התחלה]]="",טבלה1[[#This Row],[שם העבודה]]=""),"",ROW()-10) -> 19 | C29: =IF(טבלה1[[#This Row],[תאריך]]="","",IF(TEXT(טבלה1[[#This Row],[תאריך]],"DDD")="שבת","מוצ""ש",TEXT(טבלה1[[#This Row],[תאריך]],"DDD"))) -> יום א | D29: 2024-07-28 | E29: 02:17:24 | F29: הקלדה | G29: 04:17:28 | J29: =IF(IF(AND(טבלה1[[#This Row],[התחלה]]="",טבלה1[[#This Row],[סיום]]<>""),"",IF(AND(טבלה1[[#This Row],[התחלה]]<>"",טבלה1[[#This Row],[סיום]]=""), SUM(MOD(MOD(NOW(),1)-טבלה1[[#This Row],[התחלה]],1),טבלה1[[#This Row],[הוספת דקות]],-טבלה1[[#This Row],[הפחתת דקות]]), SUM(MOD(טבלה1[[#This Row],[סיום]]-טבלה1[[#This Row],[התחלה]],1),טבלה1[[#This Row],[הוספת דקות]],-טבלה1[[#This Row],[הפחתת דקות]])))<=0,"", IF(AND(טבלה1[[#This Row],[התחלה]]="",טבלה1[[#This Row],[סיום]]<>""),"",IF(AND(טבלה1[[#This Row],[התחלה]]<>"",טבלה1[[#This Row],[סיום]]=""), SUM(MOD(MOD(NOW(),1)-טבלה1[[#This Row],[התחלה]],1),טבלה1[[#This Row],[הוספת דקות]],-טבלה1[[#This Row],[הפחתת דקות]]), SUM(MOD(טבלה1[[#This Row],[סיום]]-טבלה1[[#This Row],[התחלה]],1),טבלה1[[#This Row],[הוספת דקות]],-טבלה1[[#This Row],[הפחתת דקות]])))) -> 0.08337962963 | K29: =IF(טבלה1[[#This Row],[שעות]]="","",IFERROR( IF(IF(AND(מטבע="שקלים",VLOOKUP(טבלה1[[#This Row],[שם העבודה]],טבלה2[],3,FALSE)="$"), VLOOKUP(טבלה1[[#This Row],[שם העבודה]],טבלה2[#All],2,FALSE)*טבלה1[[#This Row],[שעות]]*24*שער, IF(AND(מטבע="דולרים",VLOOKUP(טבלה1[[#This Row],[שם העבודה]],טבלה2[],3,FALSE)="₪"), VLOOKUP(טבלה1[[#This Row],[שם העבודה]],טבלה2[#All],2,FALSE)*טבלה1[[#This Row],[שעות]]*24/שער, VLOOKUP(טבלה1[[#This Row],[שם העבודה]],טבלה2[#All],2,FALSE)*טבלה1[[#This Row],[שעות]]*24))=0,"", IF(AND(מטבע="שקלים",VLOOKUP(טבלה1[[#This Row],[שם העבודה]],טבלה2[],3,FALSE)="$"), VLOOKUP(טבלה1[[#This Row],[שם העבודה]],טבלה2[#All],2,FALSE)*טבלה1[[#This Row],[שעות]]*24*שער, IF(AND(מטבע="דולרים",VLOOKUP(טבלה1[[#This Row],[שם העבודה]],טבלה2[],3,FALSE)="₪"), VLOOKUP(טבלה1[[#This Row],[שם העבודה]],טבלה2[#All],2,FALSE)*טבלה1[[#This Row],[שעות]]*24/שער, VLOOKUP(טבלה1[[#This Row],[שם העבודה]],טבלה2[#All],2,FALSE)*טבלה1[[#This Row],[שעות]]*24))),"")) -> 100.0555556 | L29: =IF(טבלה1[[#This Row],[תאריך]]="","",DATE(YEAR(טבלה1[[#This Row],[תאריך]]),MONTH(טבלה1[[#This Row],[תאריך]]),1)) -> 2024-07-01 | AO29: =IF(AL29="","", IFERROR(IF(SUMIFS(טבלה1[שעות],טבלה1[שם העבודה],טבלה2[[#This Row],[שמות העבודות]])=0,"", SUMIFS(טבלה1[שעות],טבלה1[שם העבודה],טבלה2[[#This Row],[שמות העבודות]])),"")) ->  | AP29: =IFERROR(IF(OR(טבלה2[[#This Row],[שכר לשעה]]="",טבלה2[[#This Row],[שעות]]=""),"",IF( IF(OR(טבלה2[[#This Row],[מטבע]]="₪",AND(מטבע="שקלים",טבלה2[[#This Row],[מטבע]]="")), טבלה2[[#This Row],[שכר לשעה]]*טבלה2[[#This Row],[שעות]]*24, IF(OR(טבלה2[[#This Row],[מטבע]]="$",AND(מטבע="דולרים",טבלה2[[#This Row],[מטבע]]="")), טבלה2[[#This Row],[שכר לשעה]]*טבלה2[[#This Row],[שעות]]*24*שער,""))=0,"", IF(OR(טבלה2[[#This Row],[מטבע]]="₪",AND(מטבע="שקלים",טבלה2[[#This Row],[מטבע]]="")), טבלה2[[#This Row],[שכר לשעה]]*טבלה2[[#This Row],[שעות]]*24, IF(OR(טבלה2[[#This Row],[מטבע]]="$",AND(מטבע="דולרים",טבלה2[[#This Row],[מטבע]]="")), טבלה2[[#This Row],[שכר לשעה]]*טבלה2[[#This Row],[שעות]]*24*שער,"")))),"") ->  | AQ29: =IFERROR(IF(OR(טבלה2[[#This Row],[שכר לשעה]]="",טבלה2[[#This Row],[שעות]]=""),"",IF( IF(OR(טבלה2[[#This Row],[מטבע]]="$",AND(מטבע="דולרים",טבלה2[[#This Row],[מטבע]]="")), טבלה2[[#This Row],[שכר לשעה]]*טבלה2[[#This Row],[שעות]]*24, IF(OR(טבלה2[[#This Row],[מטבע]]="₪",AND(מטבע="שקלים",טבלה2[[#This Row],[מטבע]]="")), טבלה2[[#This Row],[שכר לשעה]]*טבלה2[[#This Row],[שעות]]*24/שער,""))=0,"", IF(OR(טבלה2[[#This Row],[מטבע]]="$",AND(מטבע="דולרים",טבלה2[[#This Row],[מטבע]]="")), טבלה2[[#This Row],[שכר לשעה]]*טבלה2[[#This Row],[שעות]]*24, IF(OR(טבלה2[[#This Row],[מטבע]]="₪",AND(מטבע="שקלים",טבלה2[[#This Row],[מטבע]]="")), טבלה2[[#This Row],[שכר לשעה]]*טבלה2[[#This Row],[שעות]]*24/שער,"")))),"") ->  | AT29: =IF(טבלה2[[#This Row],[שעות]]="","",IF( IF(OR(טבלה2[[#This Row],[מטבע]]="₪",AND(מטבע="שקלים",טבלה2[[#This Row],[מטבע]]="")),טבלה2[[#This Row],[שכר בשקלים]]+טבלה2[[#This Row],[חיובים נוספים]]-טבלה2[[#This Row],[זיכויים / שולם]], IF(OR(טבלה2[[#This Row],[מטבע]]="$",AND(מטבע="דולרים",טבלה2[[#This Row],[מטבע]]="")),טבלה2[[#This Row],[שכר בדולרים]]+טבלה2[[#This Row],[חיובים נוספים]]-טבלה2[[#This Row],[זיכויים / שולם]],""))=0,"", IF(OR(טבלה2[[#This Row],[מטבע]]="₪",AND(מטבע="שקלים",טבלה2[[#This Row],[מטבע]]="")),טבלה2[[#This Row],[שכר בשקלים]]+טבלה2[[#This Row],[חיובים נוספים]]-טבלה2[[#This Row],[זיכויים / שולם]], IF(OR(טבלה2[[#This Row],[מטבע]]="$",AND(מטבע="דולרים",טבלה2[[#This Row],[מטבע]]="")),טבלה2[[#This Row],[שכר בדולרים]]+טבלה2[[#This Row],[חיובים נוספים]]-טבלה2[[#This Row],[זיכויים / שולם]],"")))) ->  | BJ29: =BJ30-1 -> 2024-07-27 | BK29: =IF(טבלה2[[#This Row],[שמות העבודות]]="","",טבלה2[[#This Row],[שמות העבודות]]) -> 
B30: =IF(AND(טבלה1[[#This Row],[תאריך]]="",טבלה1[[#This Row],[התחלה]]="",טבלה1[[#This Row],[שם העבודה]]=""),"",ROW()-10) -> 20 | C30: =IF(טבלה1[[#This Row],[תאריך]]="","",IF(TEXT(טבלה1[[#This Row],[תאריך]],"DDD")="שבת","מוצ""ש",TEXT(טבלה1[[#This Row],[תאריך]],"DDD"))) -> יום ב | D30: 2024-07-29 | E30: 02:17:24 | F30: עימוד | G30: 04:17:28 | J30: =IF(IF(AND(טבלה1[[#This Row],[התחלה]]="",טבלה1[[#This Row],[סיום]]<>""),"",IF(AND(טבלה1[[#This Row],[התחלה]]<>"",טבלה1[[#This Row],[סיום]]=""), SUM(MOD(MOD(NOW(),1)-טבלה1[[#This Row],[התחלה]],1),טבלה1[[#This Row],[הוספת דקות]],-טבלה1[[#This Row],[הפחתת דקות]]), SUM(MOD(טבלה1[[#This Row],[סיום]]-טבלה1[[#This Row],[התחלה]],1),טבלה1[[#This Row],[הוספת דקות]],-טבלה1[[#This Row],[הפחתת דקות]])))<=0,"", IF(AND(טבלה1[[#This Row],[התחלה]]="",טבלה1[[#This Row],[סיום]]<>""),"",IF(AND(טבלה1[[#This Row],[התחלה]]<>"",טבלה1[[#This Row],[סיום]]=""), SUM(MOD(MOD(NOW(),1)-טבלה1[[#This Row],[התחלה]],1),טבלה1[[#This Row],[הוספת דקות]],-טבלה1[[#This Row],[הפחתת דקות]]), SUM(MOD(טבלה1[[#This Row],[סיום]]-טבלה1[[#This Row],[התחלה]],1),טבלה1[[#This Row],[הוספת דקות]],-טבלה1[[#This Row],[הפחתת דקות]])))) -> 0.08337962963 | K30: =IF(טבלה1[[#This Row],[שעות]]="","",IFERROR( IF(IF(AND(מטבע="שקלים",VLOOKUP(טבלה1[[#This Row],[שם העבודה]],טבלה2[],3,FALSE)="$"), VLOOKUP(טבלה1[[#This Row],[שם העבודה]],טבלה2[#All],2,FALSE)*טבלה1[[#This Row],[שעות]]*24*שער, IF(AND(מטבע="דולרים",VLOOKUP(טבלה1[[#This Row],[שם העבודה]],טבלה2[],3,FALSE)="₪"), VLOOKUP(טבלה1[[#This Row],[שם העבודה]],טבלה2[#All],2,FALSE)*טבלה1[[#This Row],[שעות]]*24/שער, VLOOKUP(טבלה1[[#This Row],[שם העבודה]],טבלה2[#All],2,FALSE)*טבלה1[[#This Row],[שעות]]*24))=0,"", IF(AND(מטבע="שקלים",VLOOKUP(טבלה1[[#This Row],[שם העבודה]],טבלה2[],3,FALSE)="$"), VLOOKUP(טבלה1[[#This Row],[שם העבודה]],טבלה2[#All],2,FALSE)*טבלה1[[#This Row],[שעות]]*24*שער, IF(AND(מטבע="דולרים",VLOOKUP(טבלה1[[#This Row],[שם העבודה]],טבלה2[],3,FALSE)="₪"), VLOOKUP(טבלה1[[#This Row],[שם העבודה]],טבלה2[#All],2,FALSE)*טבלה1[[#This Row],[שעות]]*24/שער, VLOOKUP(טבלה1[[#This Row],[שם העבודה]],טבלה2[#All],2,FALSE)*טבלה1[[#This Row],[שעות]]*24))),"")) -> 20.01111111 | L30: =IF(טבלה1[[#This Row],[תאריך]]="","",DATE(YEAR(טבלה1[[#This Row],[תאריך]]),MONTH(טבלה1[[#This Row],[תאריך]]),1)) -> 2024-07-01 | AO30: =IF(AL30="","", IFERROR(IF(SUMIFS(טבלה1[שעות],טבלה1[שם העבודה],טבלה2[[#This Row],[שמות העבודות]])=0,"", SUMIFS(טבלה1[שעות],טבלה1[שם העבודה],טבלה2[[#This Row],[שמות העבודות]])),"")) ->  | AP30: =IFERROR(IF(OR(טבלה2[[#This Row],[שכר לשעה]]="",טבלה2[[#This Row],[שעות]]=""),"",IF( IF(OR(טבלה2[[#This Row],[מטבע]]="₪",AND(מטבע="שקלים",טבלה2[[#This Row],[מטבע]]="")), טבלה2[[#This Row],[שכר לשעה]]*טבלה2[[#This Row],[שעות]]*24, IF(OR(טבלה2[[#This Row],[מטבע]]="$",AND(מטבע="דולרים",טבלה2[[#This Row],[מטבע]]="")), טבלה2[[#This Row],[שכר לשעה]]*טבלה2[[#This Row],[שעות]]*24*שער,""))=0,"", IF(OR(טבלה2[[#This Row],[מטבע]]="₪",AND(מטבע="שקלים",טבלה2[[#This Row],[מטבע]]="")), טבלה2[[#This Row],[שכר לשעה]]*טבלה2[[#This Row],[שעות]]*24, IF(OR(טבלה2[[#This Row],[מטבע]]="$",AND(מטבע="דולרים",טבלה2[[#This Row],[מטבע]]="")), טבלה2[[#This Row],[שכר לשעה]]*טבלה2[[#This Row],[שעות]]*24*שער,"")))),"") ->  | AQ30: =IFERROR(IF(OR(טבלה2[[#This Row],[שכר לשעה]]="",טבלה2[[#This Row],[שעות]]=""),"",IF( IF(OR(טבלה2[[#This Row],[מטבע]]="$",AND(מטבע="דולרים",טבלה2[[#This Row],[מטבע]]="")), טבלה2[[#This Row],[שכר לשעה]]*טבלה2[[#This Row],[שעות]]*24, IF(OR(טבלה2[[#This Row],[מטבע]]="₪",AND(מטבע="שקלים",טבלה2[[#This Row],[מטבע]]="")), טבלה2[[#This Row],[שכר לשעה]]*טבלה2[[#This Row],[שעות]]*24/שער,""))=0,"", IF(OR(טבלה2[[#This Row],[מטבע]]="$",AND(מטבע="דולרים",טבלה2[[#This Row],[מטבע]]="")), טבלה2[[#This Row],[שכר לשעה]]*טבלה2[[#This Row],[שעות]]*24, IF(OR(טבלה2[[#This Row],[מטבע]]="₪",AND(מטבע="שקלים",טבלה2[[#This Row],[מטבע]]="")), טבלה2[[#This Row],[שכר לשעה]]*טבלה2[[#This Row],[שעות]]*24/שער,"")))),"") ->  | AT30: =IF(טבלה2[[#This Row],[שעות]]="","",IF( IF(OR(טבלה2[[#This Row],[מטבע]]="₪",AND(מטבע="שקלים",טבלה2[[#This Row],[מטבע]]="")),טבלה2[[#This Row],[שכר בשקלים]]+טבלה2[[#This Row],[חיובים נוספים]]-טבלה2[[#This Row],[זיכויים / שולם]], IF(OR(טבלה2[[#This Row],[מטבע]]="$",AND(מטבע="דולרים",טבלה2[[#This Row],[מטבע]]="")),טבלה2[[#This Row],[שכר בדולרים]]+טבלה2[[#This Row],[חיובים נוספים]]-טבלה2[[#This Row],[זיכויים / שולם]],""))=0,"", IF(OR(טבלה2[[#This Row],[מטבע]]="₪",AND(מטבע="שקלים",טבלה2[[#This Row],[מטבע]]="")),טבלה2[[#This Row],[שכר בשקלים]]+טבלה2[[#This Row],[חיובים נוספים]]-טבלה2[[#This Row],[זיכויים / שולם]], IF(OR(טבלה2[[#This Row],[מטבע]]="$",AND(מטבע="דולרים",טבלה2[[#This Row],[מטבע]]="")),טבלה2[[#This Row],[שכר בדולרים]]+טבלה2[[#This Row],[חיובים נוספים]]-טבלה2[[#This Row],[זיכויים / שולם]],"")))) ->  | BJ30: =TODAY() -> 2024-07-28 | BK30: =IF(טבלה2[[#This Row],[שמות העבודות]]="","",טבלה2[[#This Row],[שמות העבודות]]) -> 
B31: =IF(AND(טבלה1[[#This Row],[תאריך]]="",טבלה1[[#This Row],[התחלה]]="",טבלה1[[#This Row],[שם העבודה]]=""),"",ROW()-10) -> 21 | C31: =IF(טבלה1[[#This Row],[תאריך]]="","",IF(TEXT(טבלה1[[#This Row],[תאריך]],"DDD")="שבת","מוצ""ש",TEXT(טבלה1[[#This Row],[תאריך]],"DDD"))) -> יום ג | D31: 2024-05-14 | E31: 01:45:07 | F31: מכון תורה אור | G31: 01:45:30 | J31: =IF(IF(AND(טבלה1[[#This Row],[התחלה]]="",טבלה1[[#This Row],[סיום]]<>""),"",IF(AND(טבלה1[[#This Row],[התחלה]]<>"",טבלה1[[#This Row],[סיום]]=""), SUM(MOD(MOD(NOW(),1)-טבלה1[[#This Row],[התחלה]],1),טבלה1[[#This Row],[הוספת דקות]],-טבלה1[[#This Row],[הפחתת דקות]]), SUM(MOD(טבלה1[[#This Row],[סיום]]-טבלה1[[#This Row],[התחלה]],1),טבלה1[[#This Row],[הוספת דקות]],-טבלה1[[#This Row],[הפחתת דקות]])))<=0,"", IF(AND(טבלה1[[#This Row],[התחלה]]="",טבלה1[[#This Row],[סיום]]<>""),"",IF(AND(טבלה1[[#This Row],[התחלה]]<>"",טבלה1[[#This Row],[סיום]]=""), SUM(MOD(MOD(NOW(),1)-טבלה1[[#This Row],[התחלה]],1),טבלה1[[#This Row],[הוספת דקות]],-טבלה1[[#This Row],[הפחתת דקות]]), SUM(MOD(טבלה1[[#This Row],[סיום]]-טבלה1[[#This Row],[התחלה]],1),טבלה1[[#This Row],[הוספת דקות]],-טבלה1[[#This Row],[הפחתת דקות]])))) -> 0.0002662037037 | K31: =IF(טבלה1[[#This Row],[שעות]]="","",IFERROR( IF(IF(AND(מטבע="שקלים",VLOOKUP(טבלה1[[#This Row],[שם העבודה]],טבלה2[],3,FALSE)="$"), VLOOKUP(טבלה1[[#This Row],[שם העבודה]],טבלה2[#All],2,FALSE)*טבלה1[[#This Row],[שעות]]*24*שער, IF(AND(מטבע="דולרים",VLOOKUP(טבלה1[[#This Row],[שם העבודה]],טבלה2[],3,FALSE)="₪"), VLOOKUP(טבלה1[[#This Row],[שם העבודה]],טבלה2[#All],2,FALSE)*טבלה1[[#This Row],[שעות]]*24/שער, VLOOKUP(טבלה1[[#This Row],[שם העבודה]],טבלה2[#All],2,FALSE)*טבלה1[[#This Row],[שעות]]*24))=0,"", IF(AND(מטבע="שקלים",VLOOKUP(טבלה1[[#This Row],[שם העבודה]],טבלה2[],3,FALSE)="$"), VLOOKUP(טבלה1[[#This Row],[שם העבודה]],טבלה2[#All],2,FALSE)*טבלה1[[#This Row],[שעות]]*24*שער, IF(AND(מטבע="דולרים",VLOOKUP(טבלה1[[#This Row],[שם העבודה]],טבלה2[],3,FALSE)="₪"), VLOOKUP(טבלה1[[#This Row],[שם העבודה]],טבלה2[#All],2,FALSE)*טבלה1[[#This Row],[שעות]]*24/שער, VLOOKUP(טבלה1[[#This Row],[שם העבודה]],טבלה2[#All],2,FALSE)*טבלה1[[#This Row],[שעות]]*24))),"")) -> 0.06388888889 | L31: =IF(טבלה1[[#This Row],[תאריך]]="","",DATE(YEAR(טבלה1[[#This Row],[תאריך]]),MONTH(טבלה1[[#This Row],[תאריך]]),1)) -> 2024-05-01 | AO31: =IF(AL31="","", IFERROR(IF(SUMIFS(טבלה1[שעות],טבלה1[שם העבודה],טבלה2[[#This Row],[שמות העבודות]])=0,"", SUMIFS(טבלה1[שעות],טבלה1[שם העבודה],טבלה2[[#This Row],[שמות העבודות]])),"")) ->  | AP31: =IFERROR(IF(OR(טבלה2[[#This Row],[שכר לשעה]]="",טבלה2[[#This Row],[שעות]]=""),"",IF( IF(OR(טבלה2[[#This Row],[מטבע]]="₪",AND(מטבע="שקלים",טבלה2[[#This Row],[מטבע]]="")), טבלה2[[#This Row],[שכר לשעה]]*טבלה2[[#This Row],[שעות]]*24, IF(OR(טבלה2[[#This Row],[מטבע]]="$",AND(מטבע="דולרים",טבלה2[[#This Row],[מטבע]]="")), טבלה2[[#This Row],[שכר לשעה]]*טבלה2[[#This Row],[שעות]]*24*שער,""))=0,"", IF(OR(טבלה2[[#This Row],[מטבע]]="₪",AND(מטבע="שקלים",טבלה2[[#This Row],[מטבע]]="")), טבלה2[[#This Row],[שכר לשעה]]*טבלה2[[#This Row],[שעות]]*24, IF(OR(טבלה2[[#This Row],[מטבע]]="$",AND(מטבע="דולרים",טבלה2[[#This Row],[מטבע]]="")), טבלה2[[#This Row],[שכר לשעה]]*טבלה2[[#This Row],[שעות]]*24*שער,"")))),"") ->  | AQ31: =IFERROR(IF(OR(טבלה2[[#This Row],[שכר לשעה]]="",טבלה2[[#This Row],[שעות]]=""),"",IF( IF(OR(טבלה2[[#This Row],[מטבע]]="$",AND(מטבע="דולרים",טבלה2[[#This Row],[מטבע]]="")), טבלה2[[#This Row],[שכר לשעה]]*טבלה2[[#This Row],[שעות]]*24, IF(OR(טבלה2[[#This Row],[מטבע]]="₪",AND(מטבע="שקלים",טבלה2[[#This Row],[מטבע]]="")), טבלה2[[#This Row],[שכר לשעה]]*טבלה2[[#This Row],[שעות]]*24/שער,""))=0,"", IF(OR(טבלה2[[#This Row],[מטבע]]="$",AND(מטבע="דולרים",טבלה2[[#This Row],[מטבע]]="")), טבלה2[[#This Row],[שכר לשעה]]*טבלה2[[#This Row],[שעות]]*24, IF(OR(טבלה2[[#This Row],[מטבע]]="₪",AND(מטבע="שקלים",טבלה2[[#This Row],[מטבע]]="")), טבלה2[[#This Row],[שכר לשעה]]*טבלה2[[#This Row],[שעות]]*24/שער,"")))),"") ->  | AT31: =IF(טבלה2[[#This Row],[שעות]]="","",IF( IF(OR(טבלה2[[#This Row],[מטבע]]="₪",AND(מטבע="שקלים",טבלה2[[#This Row],[מטבע]]="")),טבלה2[[#This Row],[שכר בשקלים]]+טבלה2[[#This Row],[חיובים נוספים]]-טבלה2[[#This Row],[זיכויים / שולם]], IF(OR(טבלה2[[#This Row],[מטבע]]="$",AND(מטבע="דולרים",טבלה2[[#This Row],[מטבע]]="")),טבלה2[[#This Row],[שכר בדולרים]]+טבלה2[[#This Row],[חיובים נוספים]]-טבלה2[[#This Row],[זיכויים / שולם]],""))=0,"", IF(OR(טבלה2[[#This Row],[מטבע]]="₪",AND(מטבע="שקלים",טבלה2[[#This Row],[מטבע]]="")),טבלה2[[#This Row],[שכר בשקלים]]+טבלה2[[#This Row],[חיובים נוספים]]-טבלה2[[#This Row],[זיכויים / שולם]], IF(OR(טבלה2[[#This Row],[מטבע]]="$",AND(מטבע="דולרים",טבלה2[[#This Row],[מטבע]]="")),טבלה2[[#This Row],[שכר בדולרים]]+טבלה2[[#This Row],[חיובים נוספים]]-טבלה2[[#This Row],[זיכויים / שולם]],"")))) ->  | BJ31: =BJ30+1 -> 2024-07-29 | BK31: =IF(טבלה2[[#This Row],[שמות העבודות]]="","",טבלה2[[#This Row],[שמות העבודות]]) -> 
B32: =IF(AND(טבלה1[[#This Row],[תאריך]]="",טבלה1[[#This Row],[התחלה]]="",טבלה1[[#This Row],[שם העבודה]]=""),"",ROW()-10) -> 22 | C32: =IF(טבלה1[[#This Row],[תאריך]]="","",IF(TEXT(טבלה1[[#This Row],[תאריך]],"DDD")="שבת","מוצ""ש",TEXT(טבלה1[[#This Row],[תאריך]],"DDD"))) -> יום ג | D32: 2024-05-14 | E32: 02:14:41 | F32: מכון תורה אור | G32: 02:27:55 | J32: =IF(IF(AND(טבלה1[[#This Row],[התחלה]]="",טבלה1[[#This Row],[סיום]]<>""),"",IF(AND(טבלה1[[#This Row],[התחלה]]<>"",טבלה1[[#This Row],[סיום]]=""), SUM(MOD(MOD(NOW(),1)-טבלה1[[#This Row],[התחלה]],1),טבלה1[[#This Row],[הוספת דקות]],-טבלה1[[#This Row],[הפחתת דקות]]), SUM(MOD(טבלה1[[#This Row],[סיום]]-טבלה1[[#This Row],[התחלה]],1),טבלה1[[#This Row],[הוספת דקות]],-טבלה1[[#This Row],[הפחתת דקות]])))<=0,"", IF(AND(טבלה1[[#This Row],[התחלה]]="",טבלה1[[#This Row],[סיום]]<>""),"",IF(AND(טבלה1[[#This Row],[התחלה]]<>"",טבלה1[[#This Row],[סיום]]=""), SUM(MOD(MOD(NOW(),1)-טבלה1[[#This Row],[התחלה]],1),טבלה1[[#This Row],[הוספת דקות]],-טבלה1[[#This Row],[הפחתת דקות]]), SUM(MOD(טבלה1[[#This Row],[סיום]]-טבלה1[[#This Row],[התחלה]],1),טבלה1[[#This Row],[הוספת דקות]],-טבלה1[[#This Row],[הפחתת דקות]])))) -> 0.009189814815 | K32: =IF(טבלה1[[#This Row],[שעות]]="","",IFERROR( IF(IF(AND(מטבע="שקלים",VLOOKUP(טבלה1[[#This Row],[שם העבודה]],טבלה2[],3,FALSE)="$"), VLOOKUP(טבלה1[[#This Row],[שם העבודה]],טבלה2[#All],2,FALSE)*טבלה1[[#This Row],[שעות]]*24*שער, IF(AND(מטבע="דולרים",VLOOKUP(טבלה1[[#This Row],[שם העבודה]],טבלה2[],3,FALSE)="₪"), VLOOKUP(טבלה1[[#This Row],[שם העבודה]],טבלה2[#All],2,FALSE)*טבלה1[[#This Row],[שעות]]*24/שער, VLOOKUP(טבלה1[[#This Row],[שם העבודה]],טבלה2[#All],2,FALSE)*טבלה1[[#This Row],[שעות]]*24))=0,"", IF(AND(מטבע="שקלים",VLOOKUP(טבלה1[[#This Row],[שם העבודה]],טבלה2[],3,FALSE)="$"), VLOOKUP(טבלה1[[#This Row],[שם העבודה]],טבלה2[#All],2,FALSE)*טבלה1[[#This Row],[שעות]]*24*שער, IF(AND(מטבע="דולרים",VLOOKUP(טבלה1[[#This Row],[שם העבודה]],טבלה2[],3,FALSE)="₪"), VLOOKUP(טבלה1[[#This Row],[שם העבודה]],טבלה2[#All],2,FALSE)*טבלה1[[#This Row],[שעות]]*24/שער, VLOOKUP(טבלה1[[#This Row],[שם העבודה]],טבלה2[#All],2,FALSE)*טבלה1[[#This Row],[שעות]]*24))),"")) -> 2.205555556 | L32: =IF(טבלה1[[#This Row],[תאריך]]="","",DATE(YEAR(טבלה1[[#This Row],[תאריך]]),MONTH(טבלה1[[#This Row],[תאריך]]),1)) -> 2024-05-01 | AO32: =IF(AL32="","", IFERROR(IF(SUMIFS(טבלה1[שעות],טבלה1[שם העבודה],טבלה2[[#This Row],[שמות העבודות]])=0,"", SUMIFS(טבלה1[שעות],טבלה1[שם העבודה],טבלה2[[#This Row],[שמות העבודות]])),"")) ->  | AP32: =IFERROR(IF(OR(טבלה2[[#This Row],[שכר לשעה]]="",טבלה2[[#This Row],[שעות]]=""),"",IF( IF(OR(טבלה2[[#This Row],[מטבע]]="₪",AND(מטבע="שקלים",טבלה2[[#This Row],[מטבע]]="")), טבלה2[[#This Row],[שכר לשעה]]*טבלה2[[#This Row],[שעות]]*24, IF(OR(טבלה2[[#This Row],[מטבע]]="$",AND(מטבע="דולרים",טבלה2[[#This Row],[מטבע]]="")), טבלה2[[#This Row],[שכר לשעה]]*טבלה2[[#This Row],[שעות]]*24*שער,""))=0,"", IF(OR(טבלה2[[#This Row],[מטבע]]="₪",AND(מטבע="שקלים",טבלה2[[#This Row],[מטבע]]="")), טבלה2[[#This Row],[שכר לשעה]]*טבלה2[[#This Row],[שעות]]*24, IF(OR(טבלה2[[#This Row],[מטבע]]="$",AND(מטבע="דולרים",טבלה2[[#This Row],[מטבע]]="")), טבלה2[[#This Row],[שכר לשעה]]*טבלה2[[#This Row],[שעות]]*24*שער,"")))),"") ->  | AQ32: =IFERROR(IF(OR(טבלה2[[#This Row],[שכר לשעה]]="",טבלה2[[#This Row],[שעות]]=""),"",IF( IF(OR(טבלה2[[#This Row],[מטבע]]="$",AND(מטבע="דולרים",טבלה2[[#This Row],[מטבע]]="")), טבלה2[[#This Row],[שכר לשעה]]*טבלה2[[#This Row],[שעות]]*24, IF(OR(טבלה2[[#This Row],[מטבע]]="₪",AND(מטבע="שקלים",טבלה2[[#This Row],[מטבע]]="")), טבלה2[[#This Row],[שכר לשעה]]*טבלה2[[#This Row],[שעות]]*24/שער,""))=0,"", IF(OR(טבלה2[[#This Row],[מטבע]]="$",AND(מטבע="דולרים",טבלה2[[#This Row],[מטבע]]="")), טבלה2[[#This Row],[שכר לשעה]]*טבלה2[[#This Row],[שעות]]*24, IF(OR(טבלה2[[#This Row],[מטבע]]="₪",AND(מטבע="שקלים",טבלה2[[#This Row],[מטבע]]="")), טבלה2[[#This Row],[שכר לשעה]]*טבלה2[[#This Row],[שעות]]*24/שער,"")))),"") ->  | AT32: =IF(טבלה2[[#This Row],[שעות]]="","",IF( IF(OR(טבלה2[[#This Row],[מטבע]]="₪",AND(מטבע="שקלים",טבלה2[[#This Row],[מטבע]]="")),טבלה2[[#This Row],[שכר בשקלים]]+טבלה2[[#This Row],[חיובים נוספים]]-טבלה2[[#This Row],[זיכויים / שולם]], IF(OR(טבלה2[[#This Row],[מטבע]]="$",AND(מטבע="דולרים",טבלה2[[#This Row],[מטבע]]="")),טבלה2[[#This Row],[שכר בדולרים]]+טבלה2[[#This Row],[חיובים נוספים]]-טבלה2[[#This Row],[זיכויים / שולם]],""))=0,"", IF(OR(טבלה2[[#This Row],[מטבע]]="₪",AND(מטבע="שקלים",טבלה2[[#This Row],[מטבע]]="")),טבלה2[[#This Row],[שכר בשקלים]]+טבלה2[[#This Row],[חיובים נוספים]]-טבלה2[[#This Row],[זיכויים / שולם]], IF(OR(טבלה2[[#This Row],[מטבע]]="$",AND(מטבע="דולרים",טבלה2[[#This Row],[מטבע]]="")),טבלה2[[#This Row],[שכר בדולרים]]+טבלה2[[#This Row],[חיובים נוספים]]-טבלה2[[#This Row],[זיכויים / שולם]],"")))) ->  | BJ32: =BJ30+2 -> 2024-07-30 | BK32: =IF(טבלה2[[#This Row],[שמות העבודות]]="","",טבלה2[[#This Row],[שמות העבודות]]) -> 
B33: =IF(AND(טבלה1[[#This Row],[תאריך]]="",טבלה1[[#This Row],[התחלה]]="",טבלה1[[#This Row],[שם העבודה]]=""),"",ROW()-10) -> 23 | C33: =IF(טבלה1[[#This Row],[תאריך]]="","",IF(TEXT(טבלה1[[#This Row],[תאריך]],"DDD")="שבת","מוצ""ש",TEXT(טבלה1[[#This Row],[תאריך]],"DDD"))) -> יום ג | D33: 2024-05-14 | E33: 02:27:57 | F33: מכון תורה אור | G33: 02:27:58 | J33: =IF(IF(AND(טבלה1[[#This Row],[התחלה]]="",טבלה1[[#This Row],[סיום]]<>""),"",IF(AND(טבלה1[[#This Row],[התחלה]]<>"",טבלה1[[#This Row],[סיום]]=""), SUM(MOD(MOD(NOW(),1)-טבלה1[[#This Row],[התחלה]],1),טבלה1[[#This Row],[הוספת דקות]],-טבלה1[[#This Row],[הפחתת דקות]]), SUM(MOD(טבלה1[[#This Row],[סיום]]-טבלה1[[#This Row],[התחלה]],1),טבלה1[[#This Row],[הוספת דקות]],-טבלה1[[#This Row],[הפחתת דקות]])))<=0,"", IF(AND(טבלה1[[#This Row],[התחלה]]="",טבלה1[[#This Row],[סיום]]<>""),"",IF(AND(טבלה1[[#This Row],[התחלה]]<>"",טבלה1[[#This Row],[סיום]]=""), SUM(MOD(MOD(NOW(),1)-טבלה1[[#This Row],[התחלה]],1),טבלה1[[#This Row],[הוספת דקות]],-טבלה1[[#This Row],[הפחתת דקות]]), SUM(MOD(טבלה1[[#This Row],[סיום]]-טבלה1[[#This Row],[התחלה]],1),טבלה1[[#This Row],[הוספת דקות]],-טבלה1[[#This Row],[הפחתת דקות]])))) -> 1.157407407e-05 | K33: =IF(טבלה1[[#This Row],[שעות]]="","",IFERROR( IF(IF(AND(מטבע="שקלים",VLOOKUP(טבלה1[[#This Row],[שם העבודה]],טבלה2[],3,FALSE)="$"), VLOOKUP(טבלה1[[#This Row],[שם העבודה]],טבלה2[#All],2,FALSE)*טבלה1[[#This Row],[שעות]]*24*שער, IF(AND(מטבע="דולרים",VLOOKUP(טבלה1[[#This Row],[שם העבודה]],טבלה2[],3,FALSE)="₪"), VLOOKUP(טבלה1[[#This Row],[שם העבודה]],טבלה2[#All],2,FALSE)*טבלה1[[#This Row],[שעות]]*24/שער, VLOOKUP(טבלה1[[#This Row],[שם העבודה]],טבלה2[#All],2,FALSE)*טבלה1[[#This Row],[שעות]]*24))=0,"", IF(AND(מטבע="שקלים",VLOOKUP(טבלה1[[#This Row],[שם העבודה]],טבלה2[],3,FALSE)="$"), VLOOKUP(טבלה1[[#This Row],[שם העבודה]],טבלה2[#All],2,FALSE)*טבלה1[[#This Row],[שעות]]*24*שער, IF(AND(מטבע="דולרים",VLOOKUP(טבלה1[[#This Row],[שם העבודה]],טבלה2[],3,FALSE)="₪"), VLOOKUP(טבלה1[[#This Row],[שם העבודה]],טבלה2[#All],2,FALSE)*טבלה1[[#This Row],[שעות]]*24/שער, VLOOKUP(טבלה1[[#This Row],[שם העבודה]],טבלה2[#All],2,FALSE)*טבלה1[[#This Row],[שעות]]*24))),"")) -> 0.002777777778 | L33: =IF(טבלה1[[#This Row],[תאריך]]="","",DATE(YEAR(טבלה1[[#This Row],[תאריך]]),MONTH(טבלה1[[#This Row],[תאריך]]),1)) -> 2024-05-01 | AO33: =IF(AL33="","", IFERROR(IF(SUMIFS(טבלה1[שעות],טבלה1[שם העבודה],טבלה2[[#This Row],[שמות העבודות]])=0,"", SUMIFS(טבלה1[שעות],טבלה1[שם העבודה],טבלה2[[#This Row],[שמות העבודות]])),"")) ->  | AP33: =IFERROR(IF(OR(טבלה2[[#This Row],[שכר לשעה]]="",טבלה2[[#This Row],[שעות]]=""),"",IF( IF(OR(טבלה2[[#This Row],[מטבע]]="₪",AND(מטבע="שקלים",טבלה2[[#This Row],[מטבע]]="")), טבלה2[[#This Row],[שכר לשעה]]*טבלה2[[#This Row],[שעות]]*24, IF(OR(טבלה2[[#This Row],[מטבע]]="$",AND(מטבע="דולרים",טבלה2[[#This Row],[מטבע]]="")), טבלה2[[#This Row],[שכר לשעה]]*טבלה2[[#This Row],[שעות]]*24*שער,""))=0,"", IF(OR(טבלה2[[#This Row],[מטבע]]="₪",AND(מטבע="שקלים",טבלה2[[#This Row],[מטבע]]="")), טבלה2[[#This Row],[שכר לשעה]]*טבלה2[[#This Row],[שעות]]*24, IF(OR(טבלה2[[#This Row],[מטבע]]="$",AND(מטבע="דולרים",טבלה2[[#This Row],[מטבע]]="")), טבלה2[[#This Row],[שכר לשעה]]*טבלה2[[#This Row],[שעות]]*24*שער,"")))),"") ->  | AQ33: =IFERROR(IF(OR(טבלה2[[#This Row],[שכר לשעה]]="",טבלה2[[#This Row],[שעות]]=""),"",IF( IF(OR(טבלה2[[#This Row],[מטבע]]="$",AND(מטבע="דולרים",טבלה2[[#This Row],[מטבע]]="")), טבלה2[[#This Row],[שכר לשעה]]*טבלה2[[#This Row],[שעות]]*24, IF(OR(טבלה2[[#This Row],[מטבע]]="₪",AND(מטבע="שקלים",טבלה2[[#This Row],[מטבע]]="")), טבלה2[[#This Row],[שכר לשעה]]*טבלה2[[#This Row],[שעות]]*24/שער,""))=0,"", IF(OR(טבלה2[[#This Row],[מטבע]]="$",AND(מטבע="דולרים",טבלה2[[#This Row],[מטבע]]="")), טבלה2[[#This Row],[שכר לשעה]]*טבלה2[[#This Row],[שעות]]*24, IF(OR(טבלה2[[#This Row],[מטבע]]="₪",AND(מטבע="שקלים",טבלה2[[#This Row],[מטבע]]="")), טבלה2[[#This Row],[שכר לשעה]]*טבלה2[[#This Row],[שעות]]*24/שער,"")))),"") ->  | AT33: =IF(טבלה2[[#This Row],[שעות]]="","",IF( IF(OR(טבלה2[[#This Row],[מטבע]]="₪",AND(מטבע="שקלים",טבלה2[[#This Row],[מטבע]]="")),טבלה2[[#This Row],[שכר בשקלים]]+טבלה2[[#This Row],[חיובים נוספים]]-טבלה2[[#This Row],[זיכויים / שולם]], IF(OR(טבלה2[[#This Row],[מטבע]]="$",AND(מטבע="דולרים",טבלה2[[#This Row],[מטבע]]="")),טבלה2[[#This Row],[שכר בדולרים]]+טבלה2[[#This Row],[חיובים נוספים]]-טבלה2[[#This Row],[זיכויים / שולם]],""))=0,"", IF(OR(טבלה2[[#This Row],[מטבע]]="₪",AND(מטבע="שקלים",טבלה2[[#This Row],[מטבע]]="")),טבלה2[[#This Row],[שכר בשקלים]]+טבלה2[[#This Row],[חיובים נוספים]]-טבלה2[[#This Row],[זיכויים / שולם]], IF(OR(טבלה2[[#This Row],[מטבע]]="$",AND(מטבע="דולרים",טבלה2[[#This Row],[מטבע]]="")),טבלה2[[#This Row],[שכר בדולרים]]+טבלה2[[#This Row],[חיובים נוספים]]-טבלה2[[#This Row],[זיכויים / שולם]],"")))) ->  | BJ33: =BJ30+3 -> 2024-07-31 | BK33: =IF(טבלה2[[#This Row],[שמות העבודות]]="","",טבלה2[[#This Row],[שמות העבודות]]) -> 
B34: =IF(AND(טבלה1[[#This Row],[תאריך]]="",טבלה1[[#This Row],[התחלה]]="",טבלה1[[#This Row],[שם העבודה]]=""),"",ROW()-10) -> 24 | C34: =IF(טבלה1[[#This Row],[תאריך]]="","",IF(TEXT(טבלה1[[#This Row],[תאריך]],"DDD")="שבת","מוצ""ש",TEXT(טבלה1[[#This Row],[תאריך]],"DDD"))) -> יום ג | D34: 2024-05-14 | E34: 02:38:22 | F34: מכון תורה אור | G34: 22:15:22 | J34: =IF(IF(AND(טבלה1[[#This Row],[התחלה]]="",טבלה1[[#This Row],[סיום]]<>""),"",IF(AND(טבלה1[[#This Row],[התחלה]]<>"",טבלה1[[#This Row],[סיום]]=""), SUM(MOD(MOD(NOW(),1)-טבלה1[[#This Row],[התחלה]],1),טבלה1[[#This Row],[הוספת דקות]],-טבלה1[[#This Row],[הפחתת דקות]]), SUM(MOD(טבלה1[[#This Row],[סיום]]-טבלה1[[#This Row],[התחלה]],1),טבלה1[[#This Row],[הוספת דקות]],-טבלה1[[#This Row],[הפחתת דקות]])))<=0,"", IF(AND(טבלה1[[#This Row],[התחלה]]="",טבלה1[[#This Row],[סיום]]<>""),"",IF(AND(טבלה1[[#This Row],[התחלה]]<>"",טבלה1[[#This Row],[סיום]]=""), SUM(MOD(MOD(NOW(),1)-טבלה1[[#This Row],[התחלה]],1),טבלה1[[#This Row],[הוספת דקות]],-טבלה1[[#This Row],[הפחתת דקות]]), SUM(MOD(טבלה1[[#This Row],[סיום]]-טבלה1[[#This Row],[התחלה]],1),טבלה1[[#This Row],[הוספת דקות]],-טבלה1[[#This Row],[הפחתת דקות]])))) -> 0.8173611111 | K34: =IF(טבלה1[[#This Row],[שעות]]="","",IFERROR( IF(IF(AND(מטבע="שקלים",VLOOKUP(טבלה1[[#This Row],[שם העבודה]],טבלה2[],3,FALSE)="$"), VLOOKUP(טבלה1[[#This Row],[שם העבודה]],טבלה2[#All],2,FALSE)*טבלה1[[#This Row],[שעות]]*24*שער, IF(AND(מטבע="דולרים",VLOOKUP(טבלה1[[#This Row],[שם העבודה]],טבלה2[],3,FALSE)="₪"), VLOOKUP(טבלה1[[#This Row],[שם העבודה]],טבלה2[#All],2,FALSE)*טבלה1[[#This Row],[שעות]]*24/שער, VLOOKUP(טבלה1[[#This Row],[שם העבודה]],טבלה2[#All],2,FALSE)*טבלה1[[#This Row],[שעות]]*24))=0,"", IF(AND(מטבע="שקלים",VLOOKUP(טבלה1[[#This Row],[שם העבודה]],טבלה2[],3,FALSE)="$"), VLOOKUP(טבלה1[[#This Row],[שם העבודה]],טבלה2[#All],2,FALSE)*טבלה1[[#This Row],[שעות]]*24*שער, IF(AND(מטבע="דולרים",VLOOKUP(טבלה1[[#This Row],[שם העבודה]],טבלה2[],3,FALSE)="₪"), VLOOKUP(טבלה1[[#This Row],[שם העבודה]],טבלה2[#All],2,FALSE)*טבלה1[[#This Row],[שעות]]*24/שער, VLOOKUP(טבלה1[[#This Row],[שם העבודה]],טבלה2[#All],2,FALSE)*טבלה1[[#This Row],[שעות]]*24))),"")) -> 196.1666667 | L34: =IF(טבלה1[[#This Row],[תאריך]]="","",DATE(YEAR(טבלה1[[#This Row],[תאריך]]),MONTH(טבלה1[[#This Row],[תאריך]]),1)) -> 2024-05-01
B35: =IF(AND(טבלה1[[#This Row],[תאריך]]="",טבלה1[[#This Row],[התחלה]]="",טבלה1[[#This Row],[שם העבודה]]=""),"",ROW()-10) -> 25 | C35: =IF(טבלה1[[#This Row],[תאריך]]="","",IF(TEXT(טבלה1[[#This Row],[תאריך]],"DDD")="שבת","מוצ""ש",TEXT(טבלה1[[#This Row],[תאריך]],"DDD"))) -> יום ג | D35: 2024-05-14 | E35: 02:38:31 | F35: מכון תורה אור | G35: 02:38:44 | J35: =IF(IF(AND(טבלה1[[#This Row],[התחלה]]="",טבלה1[[#This Row],[סיום]]<>""),"",IF(AND(טבלה1[[#This Row],[התחלה]]<>"",טבלה1[[#This Row],[סיום]]=""), SUM(MOD(MOD(NOW(),1)-טבלה1[[#This Row],[התחלה]],1),טבלה1[[#This Row],[הוספת דקות]],-טבלה1[[#This Row],[הפחתת דקות]]), SUM(MOD(טבלה1[[#This Row],[סיום]]-טבלה1[[#This Row],[התחלה]],1),טבלה1[[#This Row],[הוספת דקות]],-טבלה1[[#This Row],[הפחתת דקות]])))<=0,"", IF(AND(טבלה1[[#This Row],[התחלה]]="",טבלה1[[#This Row],[סיום]]<>""),"",IF(AND(טבלה1[[#This Row],[התחלה]]<>"",טבלה1[[#This Row],[סיום]]=""), SUM(MOD(MOD(NOW(),1)-טבלה1[[#This Row],[התחלה]],1),טבלה1[[#This Row],[הוספת דקות]],-טבלה1[[#This Row],[הפחתת דקות]]), SUM(MOD(טבלה1[[#This Row],[סיום]]-טבלה1[[#This Row],[התחלה]],1),טבלה1[[#This Row],[הוספת דקות]],-טבלה1[[#This Row],[הפחתת דקות]])))) -> 0.000150462963 | K35: =IF(טבלה1[[#This Row],[שעות]]="","",IFERROR( IF(IF(AND(מטבע="שקלים",VLOOKUP(טבלה1[[#This Row],[שם העבודה]],טבלה2[],3,FALSE)="$"), VLOOKUP(טבלה1[[#This Row],[שם העבודה]],טבלה2[#All],2,FALSE)*טבלה1[[#This Row],[שעות]]*24*שער, IF(AND(מטבע="דולרים",VLOOKUP(טבלה1[[#This Row],[שם העבודה]],טבלה2[],3,FALSE)="₪"), VLOOKUP(טבלה1[[#This Row],[שם העבודה]],טבלה2[#All],2,FALSE)*טבלה1[[#This Row],[שעות]]*24/שער, VLOOKUP(טבלה1[[#This Row],[שם העבודה]],טבלה2[#All],2,FALSE)*טבלה1[[#This Row],[שעות]]*24))=0,"", IF(AND(מטבע="שקלים",VLOOKUP(טבלה1[[#This Row],[שם העבודה]],טבלה2[],3,FALSE)="$"), VLOOKUP(טבלה1[[#This Row],[שם העבודה]],טבלה2[#All],2,FALSE)*טבלה1[[#This Row],[שעות]]*24*שער, IF(AND(מטבע="דולרים",VLOOKUP(טבלה1[[#This Row],[שם העבודה]],טבלה2[],3,FALSE)="₪"), VLOOKUP(טבלה1[[#This Row],[שם העבודה]],טבלה2[#All],2,FALSE)*טבלה1[[#This Row],[שעות]]*24/שער, VLOOKUP(טבלה1[[#This Row],[שם העבודה]],טבלה2[#All],2,FALSE)*טבלה1[[#This Row],[שעות]]*24))),"")) -> 0.03611111111 | L35: =IF(טבלה1[[#This Row],[תאריך]]="","",DATE(YEAR(טבלה1[[#This Row],[תאריך]]),MONTH(טבלה1[[#This Row],[תאריך]]),1)) -> 2024-05-01
B36: =IF(AND(טבלה1[[#This Row],[תאריך]]="",טבלה1[[#This Row],[התחלה]]="",טבלה1[[#This Row],[שם העבודה]]=""),"",ROW()-10) -> 26 | C36: =IF(טבלה1[[#This Row],[תאריך]]="","",IF(TEXT(טבלה1[[#This Row],[תאריך]],"DDD")="שבת","מוצ""ש",TEXT(טבלה1[[#This Row],[תאריך]],"DDD"))) -> יום ג | D36: 2024-05-14 | E36: 02:51:34 | F36: מכון תורה אור | G36: 22:15:12 | J36: =IF(IF(AND(טבלה1[[#This Row],[התחלה]]="",טבלה1[[#This Row],[סיום]]<>""),"",IF(AND(טבלה1[[#This Row],[התחלה]]<>"",טבלה1[[#This Row],[סיום]]=""), SUM(MOD(MOD(NOW(),1)-טבלה1[[#This Row],[התחלה]],1),טבלה1[[#This Row],[הוספת דקות]],-טבלה1[[#This Row],[הפחתת דקות]]), SUM(MOD(טבלה1[[#This Row],[סיום]]-טבלה1[[#This Row],[התחלה]],1),טבלה1[[#This Row],[הוספת דקות]],-טבלה1[[#This Row],[הפחתת דקות]])))<=0,"", IF(AND(טבלה1[[#This Row],[התחלה]]="",טבלה1[[#This Row],[סיום]]<>""),"",IF(AND(טבלה1[[#This Row],[התחלה]]<>"",טבלה1[[#This Row],[סיום]]=""), SUM(MOD(MOD(NOW(),1)-טבלה1[[#This Row],[התחלה]],1),טבלה1[[#This Row],[הוספת דקות]],-טבלה1[[#This Row],[הפחתת דקות]]), SUM(MOD(טבלה1[[#This Row],[סיום]]-טבלה1[[#This Row],[התחלה]],1),טבלה1[[#This Row],[הוספת דקות]],-טבלה1[[#This Row],[הפחתת דקות]])))) -> 0.8080787037 | K36: =IF(טבלה1[[#This Row],[שעות]]="","",IFERROR( IF(IF(AND(מטבע="שקלים",VLOOKUP(טבלה1[[#This Row],[שם העבודה]],טבלה2[],3,FALSE)="$"), VLOOKUP(טבלה1[[#This Row],[שם העבודה]],טבלה2[#All],2,FALSE)*טבלה1[[#This Row],[שעות]]*24*שער, IF(AND(מטבע="דולרים",VLOOKUP(טבלה1[[#This Row],[שם העבודה]],טבלה2[],3,FALSE)="₪"), VLOOKUP(טבלה1[[#This Row],[שם העבודה]],טבלה2[#All],2,FALSE)*טבלה1[[#This Row],[שעות]]*24/שער, VLOOKUP(טבלה1[[#This Row],[שם העבודה]],טבלה2[#All],2,FALSE)*טבלה1[[#This Row],[שעות]]*24))=0,"", IF(AND(מטבע="שקלים",VLOOKUP(טבלה1[[#This Row],[שם העבודה]],טבלה2[],3,FALSE)="$"), VLOOKUP(טבלה1[[#This Row],[שם העבודה]],טבלה2[#All],2,FALSE)*טבלה1[[#This Row],[שעות]]*24*שער, IF(AND(מטבע="דולרים",VLOOKUP(טבלה1[[#This Row],[שם העבודה]],טבלה2[],3,FALSE)="₪"), VLOOKUP(טבלה1[[#This Row],[שם העבודה]],טבלה2[#All],2,FALSE)*טבלה1[[#This Row],[שעות]]*24/שער, VLOOKUP(טבלה1[[#This Row],[שם העבודה]],טבלה2[#All],2,FALSE)*טבלה1[[#This Row],[שעות]]*24))),"")) -> 193.9388889 | L36: =IF(טבלה1[[#This Row],[תאריך]]="","",DATE(YEAR(טבלה1[[#This Row],[תאריך]]),MONTH(טבלה1[[#This Row],[תאריך]]),1)) -> 2024-05-01
B37: =IF(AND(טבלה1[[#This Row],[תאריך]]="",טבלה1[[#This Row],[התחלה]]="",טבלה1[[#This Row],[שם העבודה]]=""),"",ROW()-10) -> 27 | C37: =IF(טבלה1[[#This Row],[תאריך]]="","",IF(TEXT(טבלה1[[#This Row],[תאריך]],"DDD")="שבת","מוצ""ש",TEXT(טבלה1[[#This Row],[תאריך]],"DDD"))) -> יום ג | D37: 2024-05-14 | E37: 02:51:40 | F37: מכון תורה אור | G37: 22:15:13 | J37: =IF(IF(AND(טבלה1[[#This Row],[התחלה]]="",טבלה1[[#This Row],[סיום]]<>""),"",IF(AND(טבלה1[[#This Row],[התחלה]]<>"",טבלה1[[#This Row],[סיום]]=""), SUM(MOD(MOD(NOW(),1)-טבלה1[[#This Row],[התחלה]],1),טבלה1[[#This Row],[הוספת דקות]],-טבלה1[[#This Row],[הפחתת דקות]]), SUM(MOD(טבלה1[[#This Row],[סיום]]-טבלה1[[#This Row],[התחלה]],1),טבלה1[[#This Row],[הוספת דקות]],-טבלה1[[#This Row],[הפחתת דקות]])))<=0,"", IF(AND(טבלה1[[#This Row],[התחלה]]="",טבלה1[[#This Row],[סיום]]<>""),"",IF(AND(טבלה1[[#This Row],[התחלה]]<>"",טבלה1[[#This Row],[סיום]]=""), SUM(MOD(MOD(NOW(),1)-טבלה1[[#This Row],[התחלה]],1),טבלה1[[#This Row],[הוספת דקות]],-טבלה1[[#This Row],[הפחתת דקות]]), SUM(MOD(טבלה1[[#This Row],[סיום]]-טבלה1[[#This Row],[התחלה]],1),טבלה1[[#This Row],[הוספת דקות]],-טבלה1[[#This Row],[הפחתת דקות]])))) -> 0.8080208333 | K37: =IF(טבלה1[[#This Row],[שעות]]="","",IFERROR( IF(IF(AND(מטבע="שקלים",VLOOKUP(טבלה1[[#This Row],[שם העבודה]],טבלה2[],3,FALSE)="$"), VLOOKUP(טבלה1[[#This Row],[שם העבודה]],טבלה2[#All],2,FALSE)*טבלה1[[#This Row],[שעות]]*24*שער, IF(AND(מטבע="דולרים",VLOOKUP(טבלה1[[#This Row],[שם העבודה]],טבלה2[],3,FALSE)="₪"), VLOOKUP(טבלה1[[#This Row],[שם העבודה]],טבלה2[#All],2,FALSE)*טבלה1[[#This Row],[שעות]]*24/שער, VLOOKUP(טבלה1[[#This Row],[שם העבודה]],טבלה2[#All],2,FALSE)*טבלה1[[#This Row],[שעות]]*24))=0,"", IF(AND(מטבע="שקלים",VLOOKUP(טבלה1[[#This Row],[שם העבודה]],טבלה2[],3,FALSE)="$"), VLOOKUP(טבלה1[[#This Row],[שם העבודה]],טבלה2[#All],2,FALSE)*טבלה1[[#This Row],[שעות]]*24*שער, IF(AND(מטבע="דולרים",VLOOKUP(טבלה1[[#This Row],[שם העבודה]],טבלה2[],3,FALSE)="₪"), VLOOKUP(טבלה1[[#This Row],[שם העבודה]],טבלה2[#All],2,FALSE)*טבלה1[[#This Row],[שעות]]*24/שער, VLOOKUP(טבלה1[[#This Row],[שם העבודה]],טבלה2[#All],2,FALSE)*טבלה1[[#This Row],[שעות]]*24))),"")) -> 193.925 | L37: =IF(טבלה1[[#This Row],[תאריך]]="","",DATE(YEAR(טבלה1[[#This Row],[תאריך]]),MONTH(טבלה1[[#This Row],[תאריך]]),1)) -> 2024-05-01 | AP37: עבודות לפי תווים / מילים
B38: =IF(AND(טבלה1[[#This Row],[תאריך]]="",טבלה1[[#This Row],[התחלה]]="",טבלה1[[#This Row],[שם העבודה]]=""),"",ROW()-10) -> 28 | C38: =IF(טבלה1[[#This Row],[תאריך]]="","",IF(TEXT(טבלה1[[#This Row],[תאריך]],"DDD")="שבת","מוצ""ש",TEXT(טבלה1[[#This Row],[תאריך]],"DDD"))) -> יום ג | D38: 2024-05-14 | E38: 02:52:03 | F38: מכון תורה אור | G38: 22:15:13 | J38: =IF(IF(AND(טבלה1[[#This Row],[התחלה]]="",טבלה1[[#This Row],[סיום]]<>""),"",IF(AND(טבלה1[[#This Row],[התחלה]]<>"",טבלה1[[#This Row],[סיום]]=""), SUM(MOD(MOD(NOW(),1)-טבלה1[[#This Row],[התחלה]],1),טבלה1[[#This Row],[הוספת דקות]],-טבלה1[[#This Row],[הפחתת דקות]]), SUM(MOD(טבלה1[[#This Row],[סיום]]-טבלה1[[#This Row],[התחלה]],1),טבלה1[[#This Row],[הוספת דקות]],-טבלה1[[#This Row],[הפחתת דקות]])))<=0,"", IF(AND(טבלה1[[#This Row],[התחלה]]="",טבלה1[[#This Row],[סיום]]<>""),"",IF(AND(טבלה1[[#This Row],[התחלה]]<>"",טבלה1[[#This Row],[סיום]]=""), SUM(MOD(MOD(NOW(),1)-טבלה1[[#This Row],[התחלה]],1),טבלה1[[#This Row],[הוספת דקות]],-טבלה1[[#This Row],[הפחתת דקות]]), SUM(MOD(טבלה1[[#This Row],[סיום]]-טבלה1[[#This Row],[התחלה]],1),טבלה1[[#This Row],[הוספת דקות]],-טבלה1[[#This Row],[הפחתת דקות]])))) -> 0.8077546296 | K38: =IF(טבלה1[[#This Row],[שעות]]="","",IFERROR( IF(IF(AND(מטבע="שקלים",VLOOKUP(טבלה1[[#This Row],[שם העבודה]],טבלה2[],3,FALSE)="$"), VLOOKUP(טבלה1[[#This Row],[שם העבודה]],טבלה2[#All],2,FALSE)*טבלה1[[#This Row],[שעות]]*24*שער, IF(AND(מטבע="דולרים",VLOOKUP(טבלה1[[#This Row],[שם העבודה]],טבלה2[],3,FALSE)="₪"), VLOOKUP(טבלה1[[#This Row],[שם העבודה]],טבלה2[#All],2,FALSE)*טבלה1[[#This Row],[שעות]]*24/שער, VLOOKUP(טבלה1[[#This Row],[שם העבודה]],טבלה2[#All],2,FALSE)*טבלה1[[#This Row],[שעות]]*24))=0,"", IF(AND(מטבע="שקלים",VLOOKUP(טבלה1[[#This Row],[שם העבודה]],טבלה2[],3,FALSE)="$"), VLOOKUP(טבלה1[[#This Row],[שם העבודה]],טבלה2[#All],2,FALSE)*טבלה1[[#This Row],[שעות]]*24*שער, IF(AND(מטבע="דולרים",VLOOKUP(טבלה1[[#This Row],[שם העבודה]],טבלה2[],3,FALSE)="₪"), VLOOKUP(טבלה1[[#This Row],[שם העבודה]],טבלה2[#All],2,FALSE)*טבלה1[[#This Row],[שעות]]*24/שער, VLOOKUP(טבלה1[[#This Row],[שם העבודה]],טבלה2[#All],2,FALSE)*טבלה1[[#This Row],[שעות]]*24))),"")) -> 193.8611111 | L38: =IF(טבלה1[[#This Row],[תאריך]]="","",DATE(YEAR(טבלה1[[#This Row],[תאריך]]),MONTH(טבלה1[[#This Row],[תאריך]]),1)) -> 2024-05-01
B39: =IF(AND(טבלה1[[#This Row],[תאריך]]="",טבלה1[[#This Row],[התחלה]]="",טבלה1[[#This Row],[שם העבודה]]=""),"",ROW()-10) -> 29 | C39: =IF(טבלה1[[#This Row],[תאריך]]="","",IF(TEXT(טבלה1[[#This Row],[תאריך]],"DDD")="שבת","מוצ""ש",TEXT(טבלה1[[#This Row],[תאריך]],"DDD"))) -> יום ג | D39: 2024-05-14 | E39: 02:52:54 | F39: מכון תורה אור | G39: 22:15:14 | J39: =IF(IF(AND(טבלה1[[#This Row],[התחלה]]="",טבלה1[[#This Row],[סיום]]<>""),"",IF(AND(טבלה1[[#This Row],[התחלה]]<>"",טבלה1[[#This Row],[סיום]]=""), SUM(MOD(MOD(NOW(),1)-טבלה1[[#This Row],[התחלה]],1),טבלה1[[#This Row],[הוספת דקות]],-טבלה1[[#This Row],[הפחתת דקות]]), SUM(MOD(טבלה1[[#This Row],[סיום]]-טבלה1[[#This Row],[התחלה]],1),טבלה1[[#This Row],[הוספת דקות]],-טבלה1[[#This Row],[הפחתת דקות]])))<=0,"", IF(AND(טבלה1[[#This Row],[התחלה]]="",טבלה1[[#This Row],[סיום]]<>""),"",IF(AND(טבלה1[[#This Row],[התחלה]]<>"",טבלה1[[#This Row],[סיום]]=""), SUM(MOD(MOD(NOW(),1)-טבלה1[[#This Row],[התחלה]],1),טבלה1[[#This Row],[הוספת דקות]],-טבלה1[[#This Row],[הפחתת דקות]]), SUM(MOD(טבלה1[[#This Row],[סיום]]-טבלה1[[#This Row],[התחלה]],1),טבלה1[[#This Row],[הוספת דקות]],-טבלה1[[#This Row],[הפחתת דקות]])))) -> 0.8071759259 | K39: =IF(טבלה1[[#This Row],[שעות]]="","",IFERROR( IF(IF(AND(מטבע="שקלים",VLOOKUP(טבלה1[[#This Row],[שם העבודה]],טבלה2[],3,FALSE)="$"), VLOOKUP(טבלה1[[#This Row],[שם העבודה]],טבלה2[#All],2,FALSE)*טבלה1[[#This Row],[שעות]]*24*שער, IF(AND(מטבע="דולרים",VLOOKUP(טבלה1[[#This Row],[שם העבודה]],טבלה2[],3,FALSE)="₪"), VLOOKUP(טבלה1[[#This Row],[שם העבודה]],טבלה2[#All],2,FALSE)*טבלה1[[#This Row],[שעות]]*24/שער, VLOOKUP(טבלה1[[#This Row],[שם העבודה]],טבלה2[#All],2,FALSE)*טבלה1[[#This Row],[שעות]]*24))=0,"", IF(AND(מטבע="שקלים",VLOOKUP(טבלה1[[#This Row],[שם העבודה]],טבלה2[],3,FALSE)="$"), VLOOKUP(טבלה1[[#This Row],[שם העבודה]],טבלה2[#All],2,FALSE)*טבלה1[[#This Row],[שעות]]*24*שער, IF(AND(מטבע="דולרים",VLOOKUP(טבלה1[[#This Row],[שם העבודה]],טבלה2[],3,FALSE)="₪"), VLOOKUP(טבלה1[[#This Row],[שם העבודה]],טבלה2[#All],2,FALSE)*טבלה1[[#This Row],[שעות]]*24/שער, VLOOKUP(טבלה1[[#This Row],[שם העבודה]],טבלה2[#All],2,FALSE)*טבלה1[[#This Row],[שעות]]*24))),"")) -> 193.7222222 | L39: =IF(טבלה1[[#This Row],[תאריך]]="","",DATE(YEAR(טבלה1[[#This Row],[תאריך]]),MONTH(טבלה1[[#This Row],[תאריך]]),1)) -> 2024-05-01 | AL39: שמות העבודות | AM39: שכר לתווים | AN39: תווים | AO39: תווים שהוקלדו | AP39: שכר | AQ39: אחוזים | AR39: יעד | AS39: חיובים נוספים | AT39: זיכויים / שולם | AU39: לתשלום
B40: =IF(AND(טבלה1[[#This Row],[תאריך]]="",טבלה1[[#This Row],[התחלה]]="",טבלה1[[#This Row],[שם העבודה]]=""),"",ROW()-10) -> 30 | C40: =IF(טבלה1[[#This Row],[תאריך]]="","",IF(TEXT(טבלה1[[#This Row],[תאריך]],"DDD")="שבת","מוצ""ש",TEXT(טבלה1[[#This Row],[תאריך]],"DDD"))) -> יום ג | D40: 2024-05-14 | E40: 02:59:00 | F40: מכון תורה אור | G40: 22:15:15 | J40: =IF(IF(AND(טבלה1[[#This Row],[התחלה]]="",טבלה1[[#This Row],[סיום]]<>""),"",IF(AND(טבלה1[[#This Row],[התחלה]]<>"",טבלה1[[#This Row],[סיום]]=""), SUM(MOD(MOD(NOW(),1)-טבלה1[[#This Row],[התחלה]],1),טבלה1[[#This Row],[הוספת דקות]],-טבלה1[[#This Row],[הפחתת דקות]]), SUM(MOD(טבלה1[[#This Row],[סיום]]-טבלה1[[#This Row],[התחלה]],1),טבלה1[[#This Row],[הוספת דקות]],-טבלה1[[#This Row],[הפחתת דקות]])))<=0,"", IF(AND(טבלה1[[#This Row],[התחלה]]="",טבלה1[[#This Row],[סיום]]<>""),"",IF(AND(טבלה1[[#This Row],[התחלה]]<>"",טבלה1[[#This Row],[סיום]]=""), SUM(MOD(MOD(NOW(),1)-טבלה1[[#This Row],[התחלה]],1),טבלה1[[#This Row],[הוספת דקות]],-טבלה1[[#This Row],[הפחתת דקות]]), SUM(MOD(טבלה1[[#This Row],[סיום]]-טבלה1[[#This Row],[התחלה]],1),טבלה1[[#This Row],[הוספת דקות]],-טבלה1[[#This Row],[הפחתת דקות]])))) -> 0.8029513889 | K40: =IF(טבלה1[[#This Row],[שעות]]="","",IFERROR( IF(IF(AND(מטבע="שקלים",VLOOKUP(טבלה1[[#This Row],[שם העבודה]],טבלה2[],3,FALSE)="$"), VLOOKUP(טבלה1[[#This Row],[שם העבודה]],טבלה2[#All],2,FALSE)*טבלה1[[#This Row],[שעות]]*24*שער, IF(AND(מטבע="דולרים",VLOOKUP(טבלה1[[#This Row],[שם העבודה]],טבלה2[],3,FALSE)="₪"), VLOOKUP(טבלה1[[#This Row],[שם העבודה]],טבלה2[#All],2,FALSE)*טבלה1[[#This Row],[שעות]]*24/שער, VLOOKUP(טבלה1[[#This Row],[שם העבודה]],טבלה2[#All],2,FALSE)*טבלה1[[#This Row],[שעות]]*24))=0,"", IF(AND(מטבע="שקלים",VLOOKUP(טבלה1[[#This Row],[שם העבודה]],טבלה2[],3,FALSE)="$"), VLOOKUP(טבלה1[[#This Row],[שם העבודה]],טבלה2[#All],2,FALSE)*טבלה1[[#This Row],[שעות]]*24*שער, IF(AND(מטבע="דולרים",VLOOKUP(טבלה1[[#This Row],[שם העבודה]],טבלה2[],3,FALSE)="₪"), VLOOKUP(טבלה1[[#This Row],[שם העבודה]],טבלה2[#All],2,FALSE)*טבלה1[[#This Row],[שעות]]*24/שער, VLOOKUP(טבלה1[[#This Row],[שם העבודה]],טבלה2[#All],2,FALSE)*טבלה1[[#This Row],[שעות]]*24))),"")) -> 192.7083333 | L40: =IF(טבלה1[[#This Row],[תאריך]]="","",DATE(YEAR(טבלה1[[#This Row],[תאריך]]),MONTH(טבלה1[[#This Row],[תאריך]]),1)) -> 2024-05-01 | AL40: הקלדה | AM40: 5 | AN40: 1000 | AO40: 15632 | AP40: =IF(OR(טבלה3[[#This Row],[תווים]]="",טבלה3[[#This Row],[שכר לתווים]]=""),"", IF(טבלה3[[#This Row],[תווים שהוקלדו]]/טבלה3[[#This Row],[תווים]]*טבלה3[[#This Row],[שכר לתווים]]=0,"", טבלה3[[#This Row],[תווים שהוקלדו]]/טבלה3[[#This Row],[תווים]]*טבלה3[[#This Row],[שכר לתווים]])) -> 78.16 | AQ40: =IF(OR(טבלה3[[#This Row],[שכר]]="",טבלה3[[#This Row],[יעד]]=""),"", IF(טבלה3[[#This Row],[שכר]]>=טבלה3[[#This Row],[יעד]],"הגעת ליעד!", טבלה3[[#This Row],[שכר]]/טבלה3[[#This Row],[יעד]])) -> 0.7816 | AR40: 100 | AU40: =IF(טבלה3[[#This Row],[שכר]]="","", IF(SUM(טבלה3[[#This Row],[שכר]])-SUM(טבלה3[[#This Row],[חיובים נוספים]]+טבלה3[[#This Row],[זיכויים / שולם]])=0,"", SUM(טבלה3[[#This Row],[שכר]])-SUM(טבלה3[[#This Row],[חיובים נוספים]]+טבלה3[[#This Row],[זיכויים / שולם]]))) -> 78.16
B41: =IF(AND(טבלה1[[#This Row],[תאריך]]="",טבלה1[[#This Row],[התחלה]]="",טבלה1[[#This Row],[שם העבודה]]=""),"",ROW()-10) -> 31 | C41: =IF(טבלה1[[#This Row],[תאריך]]="","",IF(TEXT(טבלה1[[#This Row],[תאריך]],"DDD")="שבת","מוצ""ש",TEXT(טבלה1[[#This Row],[תאריך]],"DDD"))) -> יום ג | D41: 2024-05-14 | E41: 03:00:13 | F41: מכון תורה אור | G41: 22:15:18 | J41: =IF(IF(AND(טבלה1[[#This Row],[התחלה]]="",טבלה1[[#This Row],[סיום]]<>""),"",IF(AND(טבלה1[[#This Row],[התחלה]]<>"",טבלה1[[#This Row],[סיום]]=""), SUM(MOD(MOD(NOW(),1)-טבלה1[[#This Row],[התחלה]],1),טבלה1[[#This Row],[הוספת דקות]],-טבלה1[[#This Row],[הפחתת דקות]]), SUM(MOD(טבלה1[[#This Row],[סיום]]-טבלה1[[#This Row],[התחלה]],1),טבלה1[[#This Row],[הוספת דקות]],-טבלה1[[#This Row],[הפחתת דקות]])))<=0,"", IF(AND(טבלה1[[#This Row],[התחלה]]="",טבלה1[[#This Row],[סיום]]<>""),"",IF(AND(טבלה1[[#This Row],[התחלה]]<>"",טבלה1[[#This Row],[סיום]]=""), SUM(MOD(MOD(NOW(),1)-טבלה1[[#This Row],[התחלה]],1),טבלה1[[#This Row],[הוספת דקות]],-טבלה1[[#This Row],[הפחתת דקות]]), SUM(MOD(טבלה1[[#This Row],[סיום]]-טבלה1[[#This Row],[התחלה]],1),טבלה1[[#This Row],[הוספת דקות]],-טבלה1[[#This Row],[הפחתת דקות]])))) -> 0.8021412037 | K41: =IF(טבלה1[[#This Row],[שעות]]="","",IFERROR( IF(IF(AND(מטבע="שקלים",VLOOKUP(טבלה1[[#This Row],[שם העבודה]],טבלה2[],3,FALSE)="$"), VLOOKUP(טבלה1[[#This Row],[שם העבודה]],טבלה2[#All],2,FALSE)*טבלה1[[#This Row],[שעות]]*24*שער, IF(AND(מטבע="דולרים",VLOOKUP(טבלה1[[#This Row],[שם העבודה]],טבלה2[],3,FALSE)="₪"), VLOOKUP(טבלה1[[#This Row],[שם העבודה]],טבלה2[#All],2,FALSE)*טבלה1[[#This Row],[שעות]]*24/שער, VLOOKUP(טבלה1[[#This Row],[שם העבודה]],טבלה2[#All],2,FALSE)*טבלה1[[#This Row],[שעות]]*24))=0,"", IF(AND(מטבע="שקלים",VLOOKUP(טבלה1[[#This Row],[שם העבודה]],טבלה2[],3,FALSE)="$"), VLOOKUP(טבלה1[[#This Row],[שם העבודה]],טבלה2[#All],2,FALSE)*טבלה1[[#This Row],[שעות]]*24*שער, IF(AND(מטבע="דולרים",VLOOKUP(טבלה1[[#This Row],[שם העבודה]],טבלה2[],3,FALSE)="₪"), VLOOKUP(טבלה1[[#This Row],[שם העבודה]],טבלה2[#All],2,FALSE)*טבלה1[[#This Row],[שעות]]*24/שער, VLOOKUP(טבלה1[[#This Row],[שם העבודה]],טבלה2[#All],2,FALSE)*טבלה1[[#This Row],[שעות]]*24))),"")) -> 192.5138889 | L41: =IF(טבלה1[[#This Row],[תאריך]]="","",DATE(YEAR(טבלה1[[#This Row],[תאריך]]),MONTH(טבלה1[[#This Row],[תאריך]]),1)) -> 2024-05-01 | AP41: =IF(OR(טבלה3[[#This Row],[תווים]]="",טבלה3[[#This Row],[שכר לתווים]]=""),"", IF(טבלה3[[#This Row],[תווים שהוקלדו]]/טבלה3[[#This Row],[תווים]]*טבלה3[[#This Row],[שכר לתווים]]=0,"", טבלה3[[#This Row],[תווים שהוקלדו]]/טבלה3[[#This Row],[תווים]]*טבלה3[[#This Row],[שכר לתווים]])) ->  | AQ41: =IF(OR(טבלה3[[#This Row],[שכר]]="",טבלה3[[#This Row],[יעד]]=""),"", IF(טבלה3[[#This Row],[שכר]]>=טבלה3[[#This Row],[יעד]],"הגעת ליעד!", טבלה3[[#This Row],[שכר]]/טבלה3[[#This Row],[יעד]])) ->  | AU41: =IF(טבלה3[[#This Row],[שכר]]="","", IF(SUM(טבלה3[[#This Row],[שכר]])-SUM(טבלה3[[#This Row],[חיובים נוספים]]+טבלה3[[#This Row],[זיכויים / שולם]])=0,"", SUM(טבלה3[[#This Row],[שכר]])-SUM(טבלה3[[#This Row],[חיובים נוספים]]+טבלה3[[#This Row],[זיכויים / שולם]]))) -> 
B42: =IF(AND(טבלה1[[#This Row],[תאריך]]="",טבלה1[[#This Row],[התחלה]]="",טבלה1[[#This Row],[שם העבודה]]=""),"",ROW()-10) -> 32 | C42: =IF(טבלה1[[#This Row],[תאריך]]="","",IF(TEXT(טבלה1[[#This Row],[תאריך]],"DDD")="שבת","מוצ""ש",TEXT(טבלה1[[#This Row],[תאריך]],"DDD"))) -> יום ג | D42: 2024-05-14 | E42: 03:00:18 | F42: מכון תורה אור | G42: 22:15:17 | J42: =IF(IF(AND(טבלה1[[#This Row],[התחלה]]="",טבלה1[[#This Row],[סיום]]<>""),"",IF(AND(טבלה1[[#This Row],[התחלה]]<>"",טבלה1[[#This Row],[סיום]]=""), SUM(MOD(MOD(NOW(),1)-טבלה1[[#This Row],[התחלה]],1),טבלה1[[#This Row],[הוספת דקות]],-טבלה1[[#This Row],[הפחתת דקות]]), SUM(MOD(טבלה1[[#This Row],[סיום]]-טבלה1[[#This Row],[התחלה]],1),טבלה1[[#This Row],[הוספת דקות]],-טבלה1[[#This Row],[הפחתת דקות]])))<=0,"", IF(AND(טבלה1[[#This Row],[התחלה]]="",טבלה1[[#This Row],[סיום]]<>""),"",IF(AND(טבלה1[[#This Row],[התחלה]]<>"",טבלה1[[#This Row],[סיום]]=""), SUM(MOD(MOD(NOW(),1)-טבלה1[[#This Row],[התחלה]],1),טבלה1[[#This Row],[הוספת דקות]],-טבלה1[[#This Row],[הפחתת דקות]]), SUM(MOD(טבלה1[[#This Row],[סיום]]-טבלה1[[#This Row],[התחלה]],1),טבלה1[[#This Row],[הוספת דקות]],-טבלה1[[#This Row],[הפחתת דקות]])))) -> 0.8020717593 | K42: =IF(טבלה1[[#This Row],[שעות]]="","",IFERROR( IF(IF(AND(מטבע="שקלים",VLOOKUP(טבלה1[[#This Row],[שם העבודה]],טבלה2[],3,FALSE)="$"), VLOOKUP(טבלה1[[#This Row],[שם העבודה]],טבלה2[#All],2,FALSE)*טבלה1[[#This Row],[שעות]]*24*שער, IF(AND(מטבע="דולרים",VLOOKUP(טבלה1[[#This Row],[שם העבודה]],טבלה2[],3,FALSE)="₪"), VLOOKUP(טבלה1[[#This Row],[שם העבודה]],טבלה2[#All],2,FALSE)*טבלה1[[#This Row],[שעות]]*24/שער, VLOOKUP(טבלה1[[#This Row],[שם העבודה]],טבלה2[#All],2,FALSE)*טבלה1[[#This Row],[שעות]]*24))=0,"", IF(AND(מטבע="שקלים",VLOOKUP(טבלה1[[#This Row],[שם העבודה]],טבלה2[],3,FALSE)="$"), VLOOKUP(טבלה1[[#This Row],[שם העבודה]],טבלה2[#All],2,FALSE)*טבלה1[[#This Row],[שעות]]*24*שער, IF(AND(מטבע="דולרים",VLOOKUP(טבלה1[[#This Row],[שם העבודה]],טבלה2[],3,FALSE)="₪"), VLOOKUP(טבלה1[[#This Row],[שם העבודה]],טבלה2[#All],2,FALSE)*טבלה1[[#This Row],[שעות]]*24/שער, VLOOKUP(טבלה1[[#This Row],[שם העבודה]],טבלה2[#All],2,FALSE)*טבלה1[[#This Row],[שעות]]*24))),"")) -> 192.4972222 | L42: =IF(טבלה1[[#This Row],[תאריך]]="","",DATE(YEAR(טבלה1[[#This Row],[תאריך]]),MONTH(טבלה1[[#This Row],[תאריך]]),1)) -> 2024-05-01 | AP42: =IF(OR(טבלה3[[#This Row],[תווים]]="",טבלה3[[#This Row],[שכר לתווים]]=""),"", IF(טבלה3[[#This Row],[תווים שהוקלדו]]/טבלה3[[#This Row],[תווים]]*טבלה3[[#This Row],[שכר לתווים]]=0,"", טבלה3[[#This Row],[תווים שהוקלדו]]/טבלה3[[#This Row],[תווים]]*טבלה3[[#This Row],[שכר לתווים]])) ->  | AQ42: =IF(OR(טבלה3[[#This Row],[שכר]]="",טבלה3[[#This Row],[יעד]]=""),"", IF(טבלה3[[#This Row],[שכר]]>=טבלה3[[#This Row],[יעד]],"הגעת ליעד!", טבלה3[[#This Row],[שכר]]/טבלה3[[#This Row],[יעד]])) ->  | AU42: =IF(טבלה3[[#This Row],[שכר]]="","", IF(SUM(טבלה3[[#This Row],[שכר]])-SUM(טבלה3[[#This Row],[חיובים נוספים]]+טבלה3[[#This Row],[זיכויים / שולם]])=0,"", SUM(טבלה3[[#This Row],[שכר]])-SUM(טבלה3[[#This Row],[חיובים נוספים]]+טבלה3[[#This Row],[זיכויים / שולם]]))) -> 
B43: =IF(AND(טבלה1[[#This Row],[תאריך]]="",טבלה1[[#This Row],[התחלה]]="",טבלה1[[#This Row],[שם העבודה]]=""),"",ROW()-10) -> 33 | C43: =IF(טבלה1[[#This Row],[תאריך]]="","",IF(TEXT(טבלה1[[#This Row],[תאריך]],"DDD")="שבת","מוצ""ש",TEXT(טבלה1[[#This Row],[תאריך]],"DDD"))) -> יום ג | D43: 2024-05-14 | E43: 03:00:23 | F43: מכון תורה אור | G43: 22:15:19 | J43: =IF(IF(AND(טבלה1[[#This Row],[התחלה]]="",טבלה1[[#This Row],[סיום]]<>""),"",IF(AND(טבלה1[[#This Row],[התחלה]]<>"",טבלה1[[#This Row],[סיום]]=""), SUM(MOD(MOD(NOW(),1)-טבלה1[[#This Row],[התחלה]],1),טבלה1[[#This Row],[הוספת דקות]],-טבלה1[[#This Row],[הפחתת דקות]]), SUM(MOD(טבלה1[[#This Row],[סיום]]-טבלה1[[#This Row],[התחלה]],1),טבלה1[[#This Row],[הוספת דקות]],-טבלה1[[#This Row],[הפחתת דקות]])))<=0,"", IF(AND(טבלה1[[#This Row],[התחלה]]="",טבלה1[[#This Row],[סיום]]<>""),"",IF(AND(טבלה1[[#This Row],[התחלה]]<>"",טבלה1[[#This Row],[סיום]]=""), SUM(MOD(MOD(NOW(),1)-טבלה1[[#This Row],[התחלה]],1),טבלה1[[#This Row],[הוספת דקות]],-טבלה1[[#This Row],[הפחתת דקות]]), SUM(MOD(טבלה1[[#This Row],[סיום]]-טבלה1[[#This Row],[התחלה]],1),טבלה1[[#This Row],[הוספת דקות]],-טבלה1[[#This Row],[הפחתת דקות]])))) -> 0.802037037 | K43: =IF(טבלה1[[#This Row],[שעות]]="","",IFERROR( IF(IF(AND(מטבע="שקלים",VLOOKUP(טבלה1[[#This Row],[שם העבודה]],טבלה2[],3,FALSE)="$"), VLOOKUP(טבלה1[[#This Row],[שם העבודה]],טבלה2[#All],2,FALSE)*טבלה1[[#This Row],[שעות]]*24*שער, IF(AND(מטבע="דולרים",VLOOKUP(טבלה1[[#This Row],[שם העבודה]],טבלה2[],3,FALSE)="₪"), VLOOKUP(טבלה1[[#This Row],[שם העבודה]],טבלה2[#All],2,FALSE)*טבלה1[[#This Row],[שעות]]*24/שער, VLOOKUP(טבלה1[[#This Row],[שם העבודה]],טבלה2[#All],2,FALSE)*טבלה1[[#This Row],[שעות]]*24))=0,"", IF(AND(מטבע="שקלים",VLOOKUP(טבלה1[[#This Row],[שם העבודה]],טבלה2[],3,FALSE)="$"), VLOOKUP(טבלה1[[#This Row],[שם העבודה]],טבלה2[#All],2,FALSE)*טבלה1[[#This Row],[שעות]]*24*שער, IF(AND(מטבע="דולרים",VLOOKUP(טבלה1[[#This Row],[שם העבודה]],טבלה2[],3,FALSE)="₪"), VLOOKUP(טבלה1[[#This Row],[שם העבודה]],טבלה2[#All],2,FALSE)*טבלה1[[#This Row],[שעות]]*24/שער, VLOOKUP(טבלה1[[#This Row],[שם העבודה]],טבלה2[#All],2,FALSE)*טבלה1[[#This Row],[שעות]]*24))),"")) -> 192.4888889 | L43: =IF(טבלה1[[#This Row],[תאריך]]="","",DATE(YEAR(טבלה1[[#This Row],[תאריך]]),MONTH(טבלה1[[#This Row],[תאריך]]),1)) -> 2024-05-01 | AP43: =IF(OR(טבלה3[[#This Row],[תווים]]="",טבלה3[[#This Row],[שכר לתווים]]=""),"", IF(טבלה3[[#This Row],[תווים שהוקלדו]]/טבלה3[[#This Row],[תווים]]*טבלה3[[#This Row],[שכר לתווים]]=0,"", טבלה3[[#This Row],[תווים שהוקלדו]]/טבלה3[[#This Row],[תווים]]*טבלה3[[#This Row],[שכר לתווים]])) ->  | AQ43: =IF(OR(טבלה3[[#This Row],[שכר]]="",טבלה3[[#This Row],[יעד]]=""),"", IF(טבלה3[[#This Row],[שכר]]>=טבלה3[[#This Row],[יעד]],"הגעת ליעד!", טבלה3[[#This Row],[שכר]]/טבלה3[[#This Row],[יעד]])) ->  | AU43: =IF(טבלה3[[#This Row],[שכר]]="","", IF(SUM(טבלה3[[#This Row],[שכר]])-SUM(טבלה3[[#This Row],[חיובים נוספים]]+טבלה3[[#This Row],[זיכויים / שולם]])=0,"", SUM(טבלה3[[#This Row],[שכר]])-SUM(טבלה3[[#This Row],[חיובים נוספים]]+טבלה3[[#This Row],[זיכויים / שולם]]))) -> 
B44: =IF(AND(טבלה1[[#This Row],[תאריך]]="",טבלה1[[#This Row],[התחלה]]="",טבלה1[[#This Row],[שם העבודה]]=""),"",ROW()-10) -> 34 | C44: =IF(טבלה1[[#This Row],[תאריך]]="","",IF(TEXT(טבלה1[[#This Row],[תאריך]],"DDD")="שבת","מוצ""ש",TEXT(טבלה1[[#This Row],[תאריך]],"DDD"))) -> יום ג | D44: 2024-05-14 | E44: 03:06:39 | F44: מכון תורה אור | G44: 03:20:58 | J44: =IF(IF(AND(טבלה1[[#This Row],[התחלה]]="",טבלה1[[#This Row],[סיום]]<>""),"",IF(AND(טבלה1[[#This Row],[התחלה]]<>"",טבלה1[[#This Row],[סיום]]=""), SUM(MOD(MOD(NOW(),1)-טבלה1[[#This Row],[התחלה]],1),טבלה1[[#This Row],[הוספת דקות]],-טבלה1[[#This Row],[הפחתת דקות]]), SUM(MOD(טבלה1[[#This Row],[סיום]]-טבלה1[[#This Row],[התחלה]],1),טבלה1[[#This Row],[הוספת דקות]],-טבלה1[[#This Row],[הפחתת דקות]])))<=0,"", IF(AND(טבלה1[[#This Row],[התחלה]]="",טבלה1[[#This Row],[סיום]]<>""),"",IF(AND(טבלה1[[#This Row],[התחלה]]<>"",טבלה1[[#This Row],[סיום]]=""), SUM(MOD(MOD(NOW(),1)-טבלה1[[#This Row],[התחלה]],1),טבלה1[[#This Row],[הוספת דקות]],-טבלה1[[#This Row],[הפחתת דקות]]), SUM(MOD(טבלה1[[#This Row],[סיום]]-טבלה1[[#This Row],[התחלה]],1),טבלה1[[#This Row],[הוספת דקות]],-טבלה1[[#This Row],[הפחתת דקות]])))) -> 0.00994212963 | K44: =IF(טבלה1[[#This Row],[שעות]]="","",IFERROR( IF(IF(AND(מטבע="שקלים",VLOOKUP(טבלה1[[#This Row],[שם העבודה]],טבלה2[],3,FALSE)="$"), VLOOKUP(טבלה1[[#This Row],[שם העבודה]],טבלה2[#All],2,FALSE)*טבלה1[[#This Row],[שעות]]*24*שער, IF(AND(מטבע="דולרים",VLOOKUP(טבלה1[[#This Row],[שם העבודה]],טבלה2[],3,FALSE)="₪"), VLOOKUP(טבלה1[[#This Row],[שם העבודה]],טבלה2[#All],2,FALSE)*טבלה1[[#This Row],[שעות]]*24/שער, VLOOKUP(טבלה1[[#This Row],[שם העבודה]],טבלה2[#All],2,FALSE)*טבלה1[[#This Row],[שעות]]*24))=0,"", IF(AND(מטבע="שקלים",VLOOKUP(טבלה1[[#This Row],[שם העבודה]],טבלה2[],3,FALSE)="$"), VLOOKUP(טבלה1[[#This Row],[שם העבודה]],טבלה2[#All],2,FALSE)*טבלה1[[#This Row],[שעות]]*24*שער, IF(AND(מטבע="דולרים",VLOOKUP(טבלה1[[#This Row],[שם העבודה]],טבלה2[],3,FALSE)="₪"), VLOOKUP(טבלה1[[#This Row],[שם העבודה]],טבלה2[#All],2,FALSE)*טבלה1[[#This Row],[שעות]]*24/שער, VLOOKUP(טבלה1[[#This Row],[שם העבודה]],טבלה2[#All],2,FALSE)*טבלה1[[#This Row],[שעות]]*24))),"")) -> 2.386111111 | L44: =IF(טבלה1[[#This Row],[תאריך]]="","",DATE(YEAR(טבלה1[[#This Row],[תאריך]]),MONTH(טבלה1[[#This Row],[תאריך]]),1)) -> 2024-05-01 | AP44: =IF(OR(טבלה3[[#This Row],[תווים]]="",טבלה3[[#This Row],[שכר לתווים]]=""),"", IF(טבלה3[[#This Row],[תווים שהוקלדו]]/טבלה3[[#This Row],[תווים]]*טבלה3[[#This Row],[שכר לתווים]]=0,"", טבלה3[[#This Row],[תווים שהוקלדו]]/טבלה3[[#This Row],[תווים]]*טבלה3[[#This Row],[שכר לתווים]])) ->  | AQ44: =IF(OR(טבלה3[[#This Row],[שכר]]="",טבלה3[[#This Row],[יעד]]=""),"", IF(טבלה3[[#This Row],[שכר]]>=טבלה3[[#This Row],[יעד]],"הגעת ליעד!", טבלה3[[#This Row],[שכר]]/טבלה3[[#This Row],[יעד]])) ->  | AU44: =IF(טבלה3[[#This Row],[שכר]]="","", IF(SUM(טבלה3[[#This Row],[שכר]])-SUM(טבלה3[[#This Row],[חיובים נוספים]]+טבלה3[[#This Row],[זיכויים / שולם]])=0,"", SUM(טבלה3[[#This Row],[שכר]])-SUM(טבלה3[[#This Row],[חיובים נוספים]]+טבלה3[[#This Row],[זיכויים / שולם]]))) -> 
B45: =IF(AND(טבלה1[[#This Row],[תאריך]]="",טבלה1[[#This Row],[התחלה]]="",טבלה1[[#This Row],[שם העבודה]]=""),"",ROW()-10) -> 35 | C45: =IF(טבלה1[[#This Row],[תאריך]]="","",IF(TEXT(טבלה1[[#This Row],[תאריך]],"DDD")="שבת","מוצ""ש",TEXT(טבלה1[[#This Row],[תאריך]],"DDD"))) -> יום ד | D45: 2024-07-17 | E45: 17:37:57 | F45: הקלדה | G45: 17:38:39 | J45: =IF(IF(AND(טבלה1[[#This Row],[התחלה]]="",טבלה1[[#This Row],[סיום]]<>""),"",IF(AND(טבלה1[[#This Row],[התחלה]]<>"",טבלה1[[#This Row],[סיום]]=""), SUM(MOD(MOD(NOW(),1)-טבלה1[[#This Row],[התחלה]],1),טבלה1[[#This Row],[הוספת דקות]],-טבלה1[[#This Row],[הפחתת דקות]]), SUM(MOD(טבלה1[[#This Row],[סיום]]-טבלה1[[#This Row],[התחלה]],1),טבלה1[[#This Row],[הוספת דקות]],-טבלה1[[#This Row],[הפחתת דקות]])))<=0,"", IF(AND(טבלה1[[#This Row],[התחלה]]="",טבלה1[[#This Row],[סיום]]<>""),"",IF(AND(טבלה1[[#This Row],[התחלה]]<>"",טבלה1[[#This Row],[סיום]]=""), SUM(MOD(MOD(NOW(),1)-טבלה1[[#This Row],[התחלה]],1),טבלה1[[#This Row],[הוספת דקות]],-טבלה1[[#This Row],[הפחתת דקות]]), SUM(MOD(טבלה1[[#This Row],[סיום]]-טבלה1[[#This Row],[התחלה]],1),טבלה1[[#This Row],[הוספת דקות]],-טבלה1[[#This Row],[הפחתת דקות]])))) -> 0.0004861111111 | K45: =IF(טבלה1[[#This Row],[שעות]]="","",IFERROR( IF(IF(AND(מטבע="שקלים",VLOOKUP(טבלה1[[#This Row],[שם העבודה]],טבלה2[],3,FALSE)="$"), VLOOKUP(טבלה1[[#This Row],[שם העבודה]],טבלה2[#All],2,FALSE)*טבלה1[[#This Row],[שעות]]*24*שער, IF(AND(מטבע="דולרים",VLOOKUP(טבלה1[[#This Row],[שם העבודה]],טבלה2[],3,FALSE)="₪"), VLOOKUP(טבלה1[[#This Row],[שם העבודה]],טבלה2[#All],2,FALSE)*טבלה1[[#This Row],[שעות]]*24/שער, VLOOKUP(טבלה1[[#This Row],[שם העבודה]],טבלה2[#All],2,FALSE)*טבלה1[[#This Row],[שעות]]*24))=0,"", IF(AND(מטבע="שקלים",VLOOKUP(טבלה1[[#This Row],[שם העבודה]],טבלה2[],3,FALSE)="$"), VLOOKUP(טבלה1[[#This Row],[שם העבודה]],טבלה2[#All],2,FALSE)*טבלה1[[#This Row],[שעות]]*24*שער, IF(AND(מטבע="דולרים",VLOOKUP(טבלה1[[#This Row],[שם העבודה]],טבלה2[],3,FALSE)="₪"), VLOOKUP(טבלה1[[#This Row],[שם העבודה]],טבלה2[#All],2,FALSE)*טבלה1[[#This Row],[שעות]]*24/שער, VLOOKUP(טבלה1[[#This Row],[שם העבודה]],טבלה2[#All],2,FALSE)*טבלה1[[#This Row],[שעות]]*24))),"")) -> 0.5833333333 | L45: =IF(טבלה1[[#This Row],[תאריך]]="","",DATE(YEAR(טבלה1[[#This Row],[תאריך]]),MONTH(טבלה1[[#This Row],[תאריך]]),1)) -> 2024-07-01 | AP45: =IF(OR(טבלה3[[#This Row],[תווים]]="",טבלה3[[#This Row],[שכר לתווים]]=""),"", IF(טבלה3[[#This Row],[תווים שהוקלדו]]/טבלה3[[#This Row],[תווים]]*טבלה3[[#This Row],[שכר לתווים]]=0,"", טבלה3[[#This Row],[תווים שהוקלדו]]/טבלה3[[#This Row],[תווים]]*טבלה3[[#This Row],[שכר לתווים]])) ->  | AQ45: =IF(OR(טבלה3[[#This Row],[שכר]]="",טבלה3[[#This Row],[יעד]]=""),"", IF(טבלה3[[#This Row],[שכר]]>=טבלה3[[#This Row],[יעד]],"הגעת ליעד!", טבלה3[[#This Row],[שכר]]/טבלה3[[#This Row],[יעד]])) ->  | AU45: =IF(טבלה3[[#This Row],[שכר]]="","", IF(SUM(טבלה3[[#This Row],[שכר]])-SUM(טבלה3[[#This Row],[חיובים נוספים]]+טבלה3[[#This Row],[זיכויים / שולם]])=0,"", SUM(טבלה3[[#This Row],[שכר]])-SUM(טבלה3[[#This Row],[חיובים נוספים]]+טבלה3[[#This Row],[זיכויים / שולם]]))) -> 
B46: =IF(AND(טבלה1[[#This Row],[תאריך]]="",טבלה1[[#This Row],[התחלה]]="",טבלה1[[#This Row],[שם העבודה]]=""),"",ROW()-10) -> 36 | C46: =IF(טבלה1[[#This Row],[תאריך]]="","",IF(TEXT(טבלה1[[#This Row],[תאריך]],"DDD")="שבת","מוצ""ש",TEXT(טבלה1[[#This Row],[תאריך]],"DDD"))) -> יום ד | D46: 2024-07-17 | E46: 18:59:58 | F46: הקלדה | G46: 19:00:01 | J46: =IF(IF(AND(טבלה1[[#This Row],[התחלה]]="",טבלה1[[#This Row],[סיום]]<>""),"",IF(AND(טבלה1[[#This Row],[התחלה]]<>"",טבלה1[[#This Row],[סיום]]=""), SUM(MOD(MOD(NOW(),1)-טבלה1[[#This Row],[התחלה]],1),טבלה1[[#This Row],[הוספת דקות]],-טבלה1[[#This Row],[הפחתת דקות]]), SUM(MOD(טבלה1[[#This Row],[סיום]]-טבלה1[[#This Row],[התחלה]],1),טבלה1[[#This Row],[הוספת דקות]],-טבלה1[[#This Row],[הפחתת דקות]])))<=0,"", IF(AND(טבלה1[[#This Row],[התחלה]]="",טבלה1[[#This Row],[סיום]]<>""),"",IF(AND(טבלה1[[#This Row],[התחלה]]<>"",טבלה1[[#This Row],[סיום]]=""), SUM(MOD(MOD(NOW(),1)-טבלה1[[#This Row],[התחלה]],1),טבלה1[[#This Row],[הוספת דקות]],-טבלה1[[#This Row],[הפחתת דקות]]), SUM(MOD(טבלה1[[#This Row],[סיום]]-טבלה1[[#This Row],[התחלה]],1),טבלה1[[#This Row],[הוספת דקות]],-טבלה1[[#This Row],[הפחתת דקות]])))) -> 3.472222222e-05 | K46: =IF(טבלה1[[#This Row],[שעות]]="","",IFERROR( IF(IF(AND(מטבע="שקלים",VLOOKUP(טבלה1[[#This Row],[שם העבודה]],טבלה2[],3,FALSE)="$"), VLOOKUP(טבלה1[[#This Row],[שם העבודה]],טבלה2[#All],2,FALSE)*טבלה1[[#This Row],[שעות]]*24*שער, IF(AND(מטבע="דולרים",VLOOKUP(טבלה1[[#This Row],[שם העבודה]],טבלה2[],3,FALSE)="₪"), VLOOKUP(טבלה1[[#This Row],[שם העבודה]],טבלה2[#All],2,FALSE)*טבלה1[[#This Row],[שעות]]*24/שער, VLOOKUP(טבלה1[[#This Row],[שם העבודה]],טבלה2[#All],2,FALSE)*טבלה1[[#This Row],[שעות]]*24))=0,"", IF(AND(מטבע="שקלים",VLOOKUP(טבלה1[[#This Row],[שם העבודה]],טבלה2[],3,FALSE)="$"), VLOOKUP(טבלה1[[#This Row],[שם העבודה]],טבלה2[#All],2,FALSE)*טבלה1[[#This Row],[שעות]]*24*שער, IF(AND(מטבע="דולרים",VLOOKUP(טבלה1[[#This Row],[שם העבודה]],טבלה2[],3,FALSE)="₪"), VLOOKUP(טבלה1[[#This Row],[שם העבודה]],טבלה2[#All],2,FALSE)*טבלה1[[#This Row],[שעות]]*24/שער, VLOOKUP(טבלה1[[#This Row],[שם העבודה]],טבלה2[#All],2,FALSE)*טבלה1[[#This Row],[שעות]]*24))),"")) -> 0.04166666667 | L46: =IF(טבלה1[[#This Row],[תאריך]]="","",DATE(YEAR(טבלה1[[#This Row],[תאריך]]),MONTH(טבלה1[[#This Row],[תאריך]]),1)) -> 2024-07-01 | AP46: =IF(OR(טבלה3[[#This Row],[תווים]]="",טבלה3[[#This Row],[שכר לתווים]]=""),"", IF(טבלה3[[#This Row],[תווים שהוקלדו]]/טבלה3[[#This Row],[תווים]]*טבלה3[[#This Row],[שכר לתווים]]=0,"", טבלה3[[#This Row],[תווים שהוקלדו]]/טבלה3[[#This Row],[תווים]]*טבלה3[[#This Row],[שכר לתווים]])) ->  | AQ46: =IF(OR(טבלה3[[#This Row],[שכר]]="",טבלה3[[#This Row],[יעד]]=""),"", IF(טבלה3[[#This Row],[שכר]]>=טבלה3[[#This Row],[יעד]],"הגעת ליעד!", טבלה3[[#This Row],[שכר]]/טבלה3[[#This Row],[יעד]])) ->  | AU46: =IF(טבלה3[[#This Row],[שכר]]="","", IF(SUM(טבלה3[[#This Row],[שכר]])-SUM(טבלה3[[#This Row],[חיובים נוספים]]+טבלה3[[#This Row],[זיכויים / שולם]])=0,"", SUM(טבלה3[[#This Row],[שכר]])-SUM(טבלה3[[#This Row],[חיובים נוספים]]+טבלה3[[#This Row],[זיכויים / שולם]]))) -> 
B47: =IF(AND(טבלה1[[#This Row],[תאריך]]="",טבלה1[[#This Row],[התחלה]]="",טבלה1[[#This Row],[שם העבודה]]=""),"",ROW()-10) -> 37 | C47: =IF(טבלה1[[#This Row],[תאריך]]="","",IF(TEXT(טבלה1[[#This Row],[תאריך]],"DDD")="שבת","מוצ""ש",TEXT(טבלה1[[#This Row],[תאריך]],"DDD"))) -> יום ו | D47: 2024-07-19 | E47: 01:28:03 | F47: הקלדה | G47: 01:32:39 | I47: 0.0001717592653 | J47: =IF(IF(AND(טבלה1[[#This Row],[התחלה]]="",טבלה1[[#This Row],[סיום]]<>""),"",IF(AND(טבלה1[[#This Row],[התחלה]]<>"",טבלה1[[#This Row],[סיום]]=""), SUM(MOD(MOD(NOW(),1)-טבלה1[[#This Row],[התחלה]],1),טבלה1[[#This Row],[הוספת דקות]],-טבלה1[[#This Row],[הפחתת דקות]]), SUM(MOD(טבלה1[[#This Row],[סיום]]-טבלה1[[#This Row],[התחלה]],1),טבלה1[[#This Row],[הוספת דקות]],-טבלה1[[#This Row],[הפחתת דקות]])))<=0,"", IF(AND(טבלה1[[#This Row],[התחלה]]="",טבלה1[[#This Row],[סיום]]<>""),"",IF(AND(טבלה1[[#This Row],[התחלה]]<>"",טבלה1[[#This Row],[סיום]]=""), SUM(MOD(MOD(NOW(),1)-טבלה1[[#This Row],[התחלה]],1),טבלה1[[#This Row],[הוספת דקות]],-טבלה1[[#This Row],[הפחתת דקות]]), SUM(MOD(טבלה1[[#This Row],[סיום]]-טבלה1[[#This Row],[התחלה]],1),טבלה1[[#This Row],[הוספת דקות]],-טבלה1[[#This Row],[הפחתת דקות]])))) -> 0.003022685179 | K47: =IF(טבלה1[[#This Row],[שעות]]="","",IFERROR( IF(IF(AND(מטבע="שקלים",VLOOKUP(טבלה1[[#This Row],[שם העבודה]],טבלה2[],3,FALSE)="$"), VLOOKUP(טבלה1[[#This Row],[שם העבודה]],טבלה2[#All],2,FALSE)*טבלה1[[#This Row],[שעות]]*24*שער, IF(AND(מטבע="דולרים",VLOOKUP(טבלה1[[#This Row],[שם העבודה]],טבלה2[],3,FALSE)="₪"), VLOOKUP(טבלה1[[#This Row],[שם העבודה]],טבלה2[#All],2,FALSE)*טבלה1[[#This Row],[שעות]]*24/שער, VLOOKUP(טבלה1[[#This Row],[שם העבודה]],טבלה2[#All],2,FALSE)*טבלה1[[#This Row],[שעות]]*24))=0,"", IF(AND(מטבע="שקלים",VLOOKUP(טבלה1[[#This Row],[שם העבודה]],טבלה2[],3,FALSE)="$"), VLOOKUP(טבלה1[[#This Row],[שם העבודה]],טבלה2[#All],2,FALSE)*טבלה1[[#This Row],[שעות]]*24*שער, IF(AND(מטבע="דולרים",VLOOKUP(טבלה1[[#This Row],[שם העבודה]],טבלה2[],3,FALSE)="₪"), VLOOKUP(טבלה1[[#This Row],[שם העבודה]],טבלה2[#All],2,FALSE)*טבלה1[[#This Row],[שעות]]*24/שער, VLOOKUP(טבלה1[[#This Row],[שם העבודה]],טבלה2[#All],2,FALSE)*טבלה1[[#This Row],[שעות]]*24))),"")) -> 3.627222215 | L47: =IF(טבלה1[[#This Row],[תאריך]]="","",DATE(YEAR(טבלה1[[#This Row],[תאריך]]),MONTH(טבלה1[[#This Row],[תאריך]]),1)) -> 2024-07-01 | AP47: =IF(OR(טבלה3[[#This Row],[תווים]]="",טבלה3[[#This Row],[שכר לתווים]]=""),"", IF(טבלה3[[#This Row],[תווים שהוקלדו]]/טבלה3[[#This Row],[תווים]]*טבלה3[[#This Row],[שכר לתווים]]=0,"", טבלה3[[#This Row],[תווים שהוקלדו]]/טבלה3[[#This Row],[תווים]]*טבלה3[[#This Row],[שכר לתווים]])) ->  | AQ47: =IF(OR(טבלה3[[#This Row],[שכר]]="",טבלה3[[#This Row],[יעד]]=""),"", IF(טבלה3[[#This Row],[שכר]]>=טבלה3[[#This Row],[יעד]],"הגעת ליעד!", טבלה3[[#This Row],[שכר]]/טבלה3[[#This Row],[יעד]])) ->  | AU47: =IF(טבלה3[[#This Row],[שכר]]="","", IF(SUM(טבלה3[[#This Row],[שכר]])-SUM(טבלה3[[#This Row],[חיובים נוספים]]+טבלה3[[#This Row],[זיכויים / שולם]])=0,"", SUM(טבלה3[[#This Row],[שכר]])-SUM(טבלה3[[#This Row],[חיובים נוספים]]+טבלה3[[#This Row],[זיכויים / שולם]]))) -> 
B48: =IF(AND(טבלה1[[#This Row],[תאריך]]="",טבלה1[[#This Row],[התחלה]]="",טבלה1[[#This Row],[שם העבודה]]=""),"",ROW()-10) -> 38 | C48: =IF(טבלה1[[#This Row],[תאריך]]="","",IF(TEXT(טבלה1[[#This Row],[תאריך]],"DDD")="שבת","מוצ""ש",TEXT(טבלה1[[#This Row],[תאריך]],"DDD"))) -> יום ו | D48: 2024-07-19 | E48: 01:32:46 | F48: הקלדה | G48: 01:32:53 | I48: 4.201389019e-05 | J48: =IF(IF(AND(טבלה1[[#This Row],[התחלה]]="",טבלה1[[#This Row],[סיום]]<>""),"",IF(AND(טבלה1[[#This Row],[התחלה]]<>"",טבלה1[[#This Row],[סיום]]=""), SUM(MOD(MOD(NOW(),1)-טבלה1[[#This Row],[התחלה]],1),טבלה1[[#This Row],[הוספת דקות]],-טבלה1[[#This Row],[הפחתת דקות]]), SUM(MOD(טבלה1[[#This Row],[סיום]]-טבלה1[[#This Row],[התחלה]],1),טבלה1[[#This Row],[הוספת דקות]],-טבלה1[[#This Row],[הפחתת דקות]])))<=0,"", IF(AND(טבלה1[[#This Row],[התחלה]]="",טבלה1[[#This Row],[סיום]]<>""),"",IF(AND(טבלה1[[#This Row],[התחלה]]<>"",טבלה1[[#This Row],[סיום]]=""), SUM(MOD(MOD(NOW(),1)-טבלה1[[#This Row],[התחלה]],1),טבלה1[[#This Row],[הוספת דקות]],-טבלה1[[#This Row],[הפחתת דקות]]), SUM(MOD(טבלה1[[#This Row],[סיום]]-טבלה1[[#This Row],[התחלה]],1),טבלה1[[#This Row],[הוספת דקות]],-טבלה1[[#This Row],[הפחתת דקות]])))) -> 3.900462833e-05 | K48: =IF(טבלה1[[#This Row],[שעות]]="","",IFERROR( IF(IF(AND(מטבע="שקלים",VLOOKUP(טבלה1[[#This Row],[שם העבודה]],טבלה2[],3,FALSE)="$"), VLOOKUP(טבלה1[[#This Row],[שם העבודה]],טבלה2[#All],2,FALSE)*טבלה1[[#This Row],[שעות]]*24*שער, IF(AND(מטבע="דולרים",VLOOKUP(טבלה1[[#This Row],[שם העבודה]],טבלה2[],3,FALSE)="₪"), VLOOKUP(טבלה1[[#This Row],[שם העבודה]],טבלה2[#All],2,FALSE)*טבלה1[[#This Row],[שעות]]*24/שער, VLOOKUP(טבלה1[[#This Row],[שם העבודה]],טבלה2[#All],2,FALSE)*טבלה1[[#This Row],[שעות]]*24))=0,"", IF(AND(מטבע="שקלים",VLOOKUP(טבלה1[[#This Row],[שם העבודה]],טבלה2[],3,FALSE)="$"), VLOOKUP(טבלה1[[#This Row],[שם העבודה]],טבלה2[#All],2,FALSE)*טבלה1[[#This Row],[שעות]]*24*שער, IF(AND(מטבע="דולרים",VLOOKUP(טבלה1[[#This Row],[שם העבודה]],טבלה2[],3,FALSE)="₪"), VLOOKUP(טבלה1[[#This Row],[שם העבודה]],טבלה2[#All],2,FALSE)*טבלה1[[#This Row],[שעות]]*24/שער, VLOOKUP(טבלה1[[#This Row],[שם העבודה]],טבלה2[#All],2,FALSE)*טבלה1[[#This Row],[שעות]]*24))),"")) -> 0.04680555399 | L48: =IF(טבלה1[[#This Row],[תאריך]]="","",DATE(YEAR(טבלה1[[#This Row],[תאריך]]),MONTH(טבלה1[[#This Row],[תאריך]]),1)) -> 2024-07-01 | AP48: =IF(OR(טבלה3[[#This Row],[תווים]]="",טבלה3[[#This Row],[שכר לתווים]]=""),"", IF(טבלה3[[#This Row],[תווים שהוקלדו]]/טבלה3[[#This Row],[תווים]]*טבלה3[[#This Row],[שכר לתווים]]=0,"", טבלה3[[#This Row],[תווים שהוקלדו]]/טבלה3[[#This Row],[תווים]]*טבלה3[[#This Row],[שכר לתווים]])) ->  | AQ48: =IF(OR(טבלה3[[#This Row],[שכר]]="",טבלה3[[#This Row],[יעד]]=""),"", IF(טבלה3[[#This Row],[שכר]]>=טבלה3[[#This Row],[יעד]],"הגעת ליעד!", טבלה3[[#This Row],[שכר]]/טבלה3[[#This Row],[יעד]])) ->  | AU48: =IF(טבלה3[[#This Row],[שכר]]="","", IF(SUM(טבלה3[[#This Row],[שכר]])-SUM(טבלה3[[#This Row],[חיובים נוספים]]+טבלה3[[#This Row],[זיכויים / שולם]])=0,"", SUM(טבלה3[[#This Row],[שכר]])-SUM(טבלה3[[#This Row],[חיובים נוספים]]+טבלה3[[#This Row],[זיכויים / שולם]]))) -> 
B49: =IF(AND(טבלה1[[#This Row],[תאריך]]="",טבלה1[[#This Row],[התחלה]]="",טבלה1[[#This Row],[שם העבודה]]=""),"",ROW()-10) -> 39 | C49: =IF(טבלה1[[#This Row],[תאריך]]="","",IF(TEXT(טבלה1[[#This Row],[תאריך]],"DDD")="שבת","מוצ""ש",TEXT(טבלה1[[#This Row],[תאריך]],"DDD"))) -> יום ו | D49: 2024-07-19 | E49: 18:26:15 | F49: הקלדה | G49: 18:26:22 | J49: =IF(IF(AND(טבלה1[[#This Row],[התחלה]]="",טבלה1[[#This Row],[סיום]]<>""),"",IF(AND(טבלה1[[#This Row],[התחלה]]<>"",טבלה1[[#This Row],[סיום]]=""), SUM(MOD(MOD(NOW(),1)-טבלה1[[#This Row],[התחלה]],1),טבלה1[[#This Row],[הוספת דקות]],-טבלה1[[#This Row],[הפחתת דקות]]), SUM(MOD(טבלה1[[#This Row],[סיום]]-טבלה1[[#This Row],[התחלה]],1),טבלה1[[#This Row],[הוספת דקות]],-טבלה1[[#This Row],[הפחתת דקות]])))<=0,"", IF(AND(טבלה1[[#This Row],[התחלה]]="",טבלה1[[#This Row],[סיום]]<>""),"",IF(AND(טבלה1[[#This Row],[התחלה]]<>"",טבלה1[[#This Row],[סיום]]=""), SUM(MOD(MOD(NOW(),1)-טבלה1[[#This Row],[התחלה]],1),טבלה1[[#This Row],[הוספת דקות]],-טבלה1[[#This Row],[הפחתת דקות]]), SUM(MOD(טבלה1[[#This Row],[סיום]]-טבלה1[[#This Row],[התחלה]],1),טבלה1[[#This Row],[הוספת דקות]],-טבלה1[[#This Row],[הפחתת דקות]])))) -> 8.101851852e-05 | K49: =IF(טבלה1[[#This Row],[שעות]]="","",IFERROR( IF(IF(AND(מטבע="שקלים",VLOOKUP(טבלה1[[#This Row],[שם העבודה]],טבלה2[],3,FALSE)="$"), VLOOKUP(טבלה1[[#This Row],[שם העבודה]],טבלה2[#All],2,FALSE)*טבלה1[[#This Row],[שעות]]*24*שער, IF(AND(מטבע="דולרים",VLOOKUP(טבלה1[[#This Row],[שם העבודה]],טבלה2[],3,FALSE)="₪"), VLOOKUP(טבלה1[[#This Row],[שם העבודה]],טבלה2[#All],2,FALSE)*טבלה1[[#This Row],[שעות]]*24/שער, VLOOKUP(טבלה1[[#This Row],[שם העבודה]],טבלה2[#All],2,FALSE)*טבלה1[[#This Row],[שעות]]*24))=0,"", IF(AND(מטבע="שקלים",VLOOKUP(טבלה1[[#This Row],[שם העבודה]],טבלה2[],3,FALSE)="$"), VLOOKUP(טבלה1[[#This Row],[שם העבודה]],טבלה2[#All],2,FALSE)*טבלה1[[#This Row],[שעות]]*24*שער, IF(AND(מטבע="דולרים",VLOOKUP(טבלה1[[#This Row],[שם העבודה]],טבלה2[],3,FALSE)="₪"), VLOOKUP(טבלה1[[#This Row],[שם העבודה]],טבלה2[#All],2,FALSE)*טבלה1[[#This Row],[שעות]]*24/שער, VLOOKUP(טבלה1[[#This Row],[שם העבודה]],טבלה2[#All],2,FALSE)*טבלה1[[#This Row],[שעות]]*24))),"")) -> 0.09722222222 | L49: =IF(טבלה1[[#This Row],[תאריך]]="","",DATE(YEAR(טבלה1[[#This Row],[תאריך]]),MONTH(טבלה1[[#This Row],[תאריך]]),1)) -> 2024-07-01 | AP49: =IF(OR(טבלה3[[#This Row],[תווים]]="",טבלה3[[#This Row],[שכר לתווים]]=""),"", IF(טבלה3[[#This Row],[תווים שהוקלדו]]/טבלה3[[#This Row],[תווים]]*טבלה3[[#This Row],[שכר לתווים]]=0,"", טבלה3[[#This Row],[תווים שהוקלדו]]/טבלה3[[#This Row],[תווים]]*טבלה3[[#This Row],[שכר לתווים]])) ->  | AQ49: =IF(OR(טבלה3[[#This Row],[שכר]]="",טבלה3[[#This Row],[יעד]]=""),"", IF(טבלה3[[#This Row],[שכר]]>=טבלה3[[#This Row],[יעד]],"הגעת ליעד!", טבלה3[[#This Row],[שכר]]/טבלה3[[#This Row],[יעד]])) ->  | AU49: =IF(טבלה3[[#This Row],[שכר]]="","", IF(SUM(טבלה3[[#This Row],[שכר]])-SUM(טבלה3[[#This Row],[חיובים נוספים]]+טבלה3[[#This Row],[זיכויים / שולם]])=0,"", SUM(טבלה3[[#This Row],[שכר]])-SUM(טבלה3[[#This Row],[חיובים נוספים]]+טבלה3[[#This Row],[זיכויים / שולם]]))) -> 
B50: =IF(AND(טבלה1[[#This Row],[תאריך]]="",טבלה1[[#This Row],[התחלה]]="",טבלה1[[#This Row],[שם העבודה]]=""),"",ROW()-10) -> 40 | C50: =IF(טבלה1[[#This Row],[תאריך]]="","",IF(TEXT(טבלה1[[#This Row],[תאריך]],"DDD")="שבת","מוצ""ש",TEXT(טבלה1[[#This Row],[תאריך]],"DDD"))) -> יום א | D50: 2024-07-21 | E50: 11:02:47 | F50: הקלדה | G50: 23:02:50 | J50: =IF(IF(AND(טבלה1[[#This Row],[התחלה]]="",טבלה1[[#This Row],[סיום]]<>""),"",IF(AND(טבלה1[[#This Row],[התחלה]]<>"",טבלה1[[#This Row],[סיום]]=""), SUM(MOD(MOD(NOW(),1)-טבלה1[[#This Row],[התחלה]],1),טבלה1[[#This Row],[הוספת דקות]],-טבלה1[[#This Row],[הפחתת דקות]]), SUM(MOD(טבלה1[[#This Row],[סיום]]-טבלה1[[#This Row],[התחלה]],1),טבלה1[[#This Row],[הוספת דקות]],-טבלה1[[#This Row],[הפחתת דקות]])))<=0,"", IF(AND(טבלה1[[#This Row],[התחלה]]="",טבלה1[[#This Row],[סיום]]<>""),"",IF(AND(טבלה1[[#This Row],[התחלה]]<>"",טבלה1[[#This Row],[סיום]]=""), SUM(MOD(MOD(NOW(),1)-טבלה1[[#This Row],[התחלה]],1),טבלה1[[#This Row],[הוספת דקות]],-טבלה1[[#This Row],[הפחתת דקות]]), SUM(MOD(טבלה1[[#This Row],[סיום]]-טבלה1[[#This Row],[התחלה]],1),טבלה1[[#This Row],[הוספת דקות]],-טבלה1[[#This Row],[הפחתת דקות]])))) -> 0.5000347222 | K50: =IF(טבלה1[[#This Row],[שעות]]="","",IFERROR( IF(IF(AND(מטבע="שקלים",VLOOKUP(טבלה1[[#This Row],[שם העבודה]],טבלה2[],3,FALSE)="$"), VLOOKUP(טבלה1[[#This Row],[שם העבודה]],טבלה2[#All],2,FALSE)*טבלה1[[#This Row],[שעות]]*24*שער, IF(AND(מטבע="דולרים",VLOOKUP(טבלה1[[#This Row],[שם העבודה]],טבלה2[],3,FALSE)="₪"), VLOOKUP(טבלה1[[#This Row],[שם העבודה]],טבלה2[#All],2,FALSE)*טבלה1[[#This Row],[שעות]]*24/שער, VLOOKUP(טבלה1[[#This Row],[שם העבודה]],טבלה2[#All],2,FALSE)*טבלה1[[#This Row],[שעות]]*24))=0,"", IF(AND(מטבע="שקלים",VLOOKUP(טבלה1[[#This Row],[שם העבודה]],טבלה2[],3,FALSE)="$"), VLOOKUP(טבלה1[[#This Row],[שם העבודה]],טבלה2[#All],2,FALSE)*טבלה1[[#This Row],[שעות]]*24*שער, IF(AND(מטבע="דולרים",VLOOKUP(טבלה1[[#This Row],[שם העבודה]],טבלה2[],3,FALSE)="₪"), VLOOKUP(טבלה1[[#This Row],[שם העבודה]],טבלה2[#All],2,FALSE)*טבלה1[[#This Row],[שעות]]*24/שער, VLOOKUP(טבלה1[[#This Row],[שם העבודה]],טבלה2[#All],2,FALSE)*טבלה1[[#This Row],[שעות]]*24))),"")) -> 600.0416667 | L50: =IF(טבלה1[[#This Row],[תאריך]]="","",DATE(YEAR(טבלה1[[#This Row],[תאריך]]),MONTH(טבלה1[[#This Row],[תאריך]]),1)) -> 2024-07-01 | AP50: =IF(OR(טבלה3[[#This Row],[תווים]]="",טבלה3[[#This Row],[שכר לתווים]]=""),"", IF(טבלה3[[#This Row],[תווים שהוקלדו]]/טבלה3[[#This Row],[תווים]]*טבלה3[[#This Row],[שכר לתווים]]=0,"", טבלה3[[#This Row],[תווים שהוקלדו]]/טבלה3[[#This Row],[תווים]]*טבלה3[[#This Row],[שכר לתווים]])) ->  | AQ50: =IF(OR(טבלה3[[#This Row],[שכר]]="",טבלה3[[#This Row],[יעד]]=""),"", IF(טבלה3[[#This Row],[שכר]]>=טבלה3[[#This Row],[יעד]],"הגעת ליעד!", טבלה3[[#This Row],[שכר]]/טבלה3[[#This Row],[יעד]])) ->  | AU50: =IF(טבלה3[[#This Row],[שכר]]="","", IF(SUM(טבלה3[[#This Row],[שכר]])-SUM(טבלה3[[#This Row],[חיובים נוספים]]+טבלה3[[#This Row],[זיכויים / שולם]])=0,"", SUM(טבלה3[[#This Row],[שכר]])-SUM(טבלה3[[#This Row],[חיובים נוספים]]+טבלה3[[#This Row],[זיכויים / שולם]]))) -> 
B51: =IF(AND(טבלה1[[#This Row],[תאריך]]="",טבלה1[[#This Row],[התחלה]]="",טבלה1[[#This Row],[שם העבודה]]=""),"",ROW()-10) -> 41 | C51: =IF(טבלה1[[#This Row],[תאריך]]="","",IF(TEXT(טבלה1[[#This Row],[תאריך]],"DDD")="שבת","מוצ""ש",TEXT(טבלה1[[#This Row],[תאריך]],"DDD"))) -> יום ה | D51: 2024-07-25 | E51: 03:02:03 | F51: הקלדה | G51: 11:02:07 | J51: =IF(IF(AND(טבלה1[[#This Row],[התחלה]]="",טבלה1[[#This Row],[סיום]]<>""),"",IF(AND(טבלה1[[#This Row],[התחלה]]<>"",טבלה1[[#This Row],[סיום]]=""), SUM(MOD(MOD(NOW(),1)-טבלה1[[#This Row],[התחלה]],1),טבלה1[[#This Row],[הוספת דקות]],-טבלה1[[#This Row],[הפחתת דקות]]), SUM(MOD(טבלה1[[#This Row],[סיום]]-טבלה1[[#This Row],[התחלה]],1),טבלה1[[#This Row],[הוספת דקות]],-טבלה1[[#This Row],[הפחתת דקות]])))<=0,"", IF(AND(טבלה1[[#This Row],[התחלה]]="",טבלה1[[#This Row],[סיום]]<>""),"",IF(AND(טבלה1[[#This Row],[התחלה]]<>"",טבלה1[[#This Row],[סיום]]=""), SUM(MOD(MOD(NOW(),1)-טבלה1[[#This Row],[התחלה]],1),טבלה1[[#This Row],[הוספת דקות]],-טבלה1[[#This Row],[הפחתת דקות]]), SUM(MOD(טבלה1[[#This Row],[סיום]]-טבלה1[[#This Row],[התחלה]],1),טבלה1[[#This Row],[הוספת דקות]],-טבלה1[[#This Row],[הפחתת דקות]])))) -> 0.3333796296 | K51: =IF(טבלה1[[#This Row],[שעות]]="","",IFERROR( IF(IF(AND(מטבע="שקלים",VLOOKUP(טבלה1[[#This Row],[שם העבודה]],טבלה2[],3,FALSE)="$"), VLOOKUP(טבלה1[[#This Row],[שם העבודה]],טבלה2[#All],2,FALSE)*טבלה1[[#This Row],[שעות]]*24*שער, IF(AND(מטבע="דולרים",VLOOKUP(טבלה1[[#This Row],[שם העבודה]],טבלה2[],3,FALSE)="₪"), VLOOKUP(טבלה1[[#This Row],[שם העבודה]],טבלה2[#All],2,FALSE)*טבלה1[[#This Row],[שעות]]*24/שער, VLOOKUP(טבלה1[[#This Row],[שם העבודה]],טבלה2[#All],2,FALSE)*טבלה1[[#This Row],[שעות]]*24))=0,"", IF(AND(מטבע="שקלים",VLOOKUP(טבלה1[[#This Row],[שם העבודה]],טבלה2[],3,FALSE)="$"), VLOOKUP(טבלה1[[#This Row],[שם העבודה]],טבלה2[#All],2,FALSE)*טבלה1[[#This Row],[שעות]]*24*שער, IF(AND(מטבע="דולרים",VLOOKUP(טבלה1[[#This Row],[שם העבודה]],טבלה2[],3,FALSE)="₪"), VLOOKUP(טבלה1[[#This Row],[שם העבודה]],טבלה2[#All],2,FALSE)*טבלה1[[#This Row],[שעות]]*24/שער, VLOOKUP(טבלה1[[#This Row],[שם העבודה]],טבלה2[#All],2,FALSE)*טבלה1[[#This Row],[שעות]]*24))),"")) -> 400.0555556 | L51: =IF(טבלה1[[#This Row],[תאריך]]="","",DATE(YEAR(טבלה1[[#This Row],[תאריך]]),MONTH(טבלה1[[#This Row],[תאריך]]),1)) -> 2024-07-01 | AP51: =IF(OR(טבלה3[[#This Row],[תווים]]="",טבלה3[[#This Row],[שכר לתווים]]=""),"", IF(טבלה3[[#This Row],[תווים שהוקלדו]]/טבלה3[[#This Row],[תווים]]*טבלה3[[#This Row],[שכר לתווים]]=0,"", טבלה3[[#This Row],[תווים שהוקלדו]]/טבלה3[[#This Row],[תווים]]*טבלה3[[#This Row],[שכר לתווים]])) ->  | AQ51: =IF(OR(טבלה3[[#This Row],[שכר]]="",טבלה3[[#This Row],[יעד]]=""),"", IF(טבלה3[[#This Row],[שכר]]>=טבלה3[[#This Row],[יעד]],"הגעת ליעד!", טבלה3[[#This Row],[שכר]]/טבלה3[[#This Row],[יעד]])) ->  | AU51: =IF(טבלה3[[#This Row],[שכר]]="","", IF(SUM(טבלה3[[#This Row],[שכר]])-SUM(טבלה3[[#This Row],[חיובים נוספים]]+טבלה3[[#This Row],[זיכויים / שולם]])=0,"", SUM(טבלה3[[#This Row],[שכר]])-SUM(טבלה3[[#This Row],[חיובים נוספים]]+טבלה3[[#This Row],[זיכויים / שולם]]))) -> 
B52: =IF(AND(טבלה1[[#This Row],[תאריך]]="",טבלה1[[#This Row],[התחלה]]="",טבלה1[[#This Row],[שם העבודה]]=""),"",ROW()-10) -> 42 | C52: =IF(טבלה1[[#This Row],[תאריך]]="","",IF(TEXT(טבלה1[[#This Row],[תאריך]],"DDD")="שבת","מוצ""ש",TEXT(טבלה1[[#This Row],[תאריך]],"DDD"))) -> יום ו | D52: 2024-07-26 | E52: 04:02:03 | F52: הקלדה | G52: 23:55:06 | J52: =IF(IF(AND(טבלה1[[#This Row],[התחלה]]="",טבלה1[[#This Row],[סיום]]<>""),"",IF(AND(טבלה1[[#This Row],[התחלה]]<>"",טבלה1[[#This Row],[סיום]]=""), SUM(MOD(MOD(NOW(),1)-טבלה1[[#This Row],[התחלה]],1),טבלה1[[#This Row],[הוספת דקות]],-טבלה1[[#This Row],[הפחתת דקות]]), SUM(MOD(טבלה1[[#This Row],[סיום]]-טבלה1[[#This Row],[התחלה]],1),טבלה1[[#This Row],[הוספת דקות]],-טבלה1[[#This Row],[הפחתת דקות]])))<=0,"", IF(AND(טבלה1[[#This Row],[התחלה]]="",טבלה1[[#This Row],[סיום]]<>""),"",IF(AND(טבלה1[[#This Row],[התחלה]]<>"",טבלה1[[#This Row],[סיום]]=""), SUM(MOD(MOD(NOW(),1)-טבלה1[[#This Row],[התחלה]],1),טבלה1[[#This Row],[הוספת דקות]],-טבלה1[[#This Row],[הפחתת דקות]]), SUM(MOD(טבלה1[[#This Row],[סיום]]-טבלה1[[#This Row],[התחלה]],1),טבלה1[[#This Row],[הוספת דקות]],-טבלה1[[#This Row],[הפחתת דקות]])))) -> 0.8285069444 | K52: =IF(טבלה1[[#This Row],[שעות]]="","",IFERROR( IF(IF(AND(מטבע="שקלים",VLOOKUP(טבלה1[[#This Row],[שם העבודה]],טבלה2[],3,FALSE)="$"), VLOOKUP(טבלה1[[#This Row],[שם העבודה]],טבלה2[#All],2,FALSE)*טבלה1[[#This Row],[שעות]]*24*שער, IF(AND(מטבע="דולרים",VLOOKUP(טבלה1[[#This Row],[שם העבודה]],טבלה2[],3,FALSE)="₪"), VLOOKUP(טבלה1[[#This Row],[שם העבודה]],טבלה2[#All],2,FALSE)*טבלה1[[#This Row],[שעות]]*24/שער, VLOOKUP(טבלה1[[#This Row],[שם העבודה]],טבלה2[#All],2,FALSE)*טבלה1[[#This Row],[שעות]]*24))=0,"", IF(AND(מטבע="שקלים",VLOOKUP(טבלה1[[#This Row],[שם העבודה]],טבלה2[],3,FALSE)="$"), VLOOKUP(טבלה1[[#This Row],[שם העבודה]],טבלה2[#All],2,FALSE)*טבלה1[[#This Row],[שעות]]*24*שער, IF(AND(מטבע="דולרים",VLOOKUP(טבלה1[[#This Row],[שם העבודה]],טבלה2[],3,FALSE)="₪"), VLOOKUP(טבלה1[[#This Row],[שם העבודה]],טבלה2[#All],2,FALSE)*טבלה1[[#This Row],[שעות]]*24/שער, VLOOKUP(טבלה1[[#This Row],[שם העבודה]],טבלה2[#All],2,FALSE)*טבלה1[[#This Row],[שעות]]*24))),"")) -> 994.2083333 | L52: =IF(טבלה1[[#This Row],[תאריך]]="","",DATE(YEAR(טבלה1[[#This Row],[תאריך]]),MONTH(טבלה1[[#This Row],[תאריך]]),1)) -> 2024-07-01 | AP52: =IF(OR(טבלה3[[#This Row],[תווים]]="",טבלה3[[#This Row],[שכר לתווים]]=""),"", IF(טבלה3[[#This Row],[תווים שהוקלדו]]/טבלה3[[#This Row],[תווים]]*טבלה3[[#This Row],[שכר לתווים]]=0,"", טבלה3[[#This Row],[תווים שהוקלדו]]/טבלה3[[#This Row],[תווים]]*טבלה3[[#This Row],[שכר לתווים]])) ->  | AQ52: =IF(OR(טבלה3[[#This Row],[שכר]]="",טבלה3[[#This Row],[יעד]]=""),"", IF(טבלה3[[#This Row],[שכר]]>=טבלה3[[#This Row],[יעד]],"הגעת ליעד!", טבלה3[[#This Row],[שכר]]/טבלה3[[#This Row],[יעד]])) ->  | AU52: =IF(טבלה3[[#This Row],[שכר]]="","", IF(SUM(טבלה3[[#This Row],[שכר]])-SUM(טבלה3[[#This Row],[חיובים נוספים]]+טבלה3[[#This Row],[זיכויים / שולם]])=0,"", SUM(טבלה3[[#This Row],[שכר]])-SUM(טבלה3[[#This Row],[חיובים נוספים]]+טבלה3[[#This Row],[זיכויים / שולם]]))) -> 
B53: =IF(AND(טבלה1[[#This Row],[תאריך]]="",טבלה1[[#This Row],[התחלה]]="",טבלה1[[#This Row],[שם העבודה]]=""),"",ROW()-10) -> 43 | C53: =IF(טבלה1[[#This Row],[תאריך]]="","",IF(TEXT(טבלה1[[#This Row],[תאריך]],"DDD")="שבת","מוצ""ש",TEXT(טבלה1[[#This Row],[תאריך]],"DDD"))) -> מוצ"ש | D53: 2024-07-27 | E53: 05:02:03 | F53: הקלדה | G53: 00:55:06 | J53: =IF(IF(AND(טבלה1[[#This Row],[התחלה]]="",טבלה1[[#This Row],[סיום]]<>""),"",IF(AND(טבלה1[[#This Row],[התחלה]]<>"",טבלה1[[#This Row],[סיום]]=""), SUM(MOD(MOD(NOW(),1)-טבלה1[[#This Row],[התחלה]],1),טבלה1[[#This Row],[הוספת דקות]],-טבלה1[[#This Row],[הפחתת דקות]]), SUM(MOD(טבלה1[[#This Row],[סיום]]-טבלה1[[#This Row],[התחלה]],1),טבלה1[[#This Row],[הוספת דקות]],-טבלה1[[#This Row],[הפחתת דקות]])))<=0,"", IF(AND(טבלה1[[#This Row],[התחלה]]="",טבלה1[[#This Row],[סיום]]<>""),"",IF(AND(טבלה1[[#This Row],[התחלה]]<>"",טבלה1[[#This Row],[סיום]]=""), SUM(MOD(MOD(NOW(),1)-טבלה1[[#This Row],[התחלה]],1),טבלה1[[#This Row],[הוספת דקות]],-טבלה1[[#This Row],[הפחתת דקות]]), SUM(MOD(טבלה1[[#This Row],[סיום]]-טבלה1[[#This Row],[התחלה]],1),טבלה1[[#This Row],[הוספת דקות]],-טבלה1[[#This Row],[הפחתת דקות]])))) -> 0.8285069444 | K53: =IF(טבלה1[[#This Row],[שעות]]="","",IFERROR( IF(IF(AND(מטבע="שקלים",VLOOKUP(טבלה1[[#This Row],[שם העבודה]],טבלה2[],3,FALSE)="$"), VLOOKUP(טבלה1[[#This Row],[שם העבודה]],טבלה2[#All],2,FALSE)*טבלה1[[#This Row],[שעות]]*24*שער, IF(AND(מטבע="דולרים",VLOOKUP(טבלה1[[#This Row],[שם העבודה]],טבלה2[],3,FALSE)="₪"), VLOOKUP(טבלה1[[#This Row],[שם העבודה]],טבלה2[#All],2,FALSE)*טבלה1[[#This Row],[שעות]]*24/שער, VLOOKUP(טבלה1[[#This Row],[שם העבודה]],טבלה2[#All],2,FALSE)*טבלה1[[#This Row],[שעות]]*24))=0,"", IF(AND(מטבע="שקלים",VLOOKUP(טבלה1[[#This Row],[שם העבודה]],טבלה2[],3,FALSE)="$"), VLOOKUP(טבלה1[[#This Row],[שם העבודה]],טבלה2[#All],2,FALSE)*טבלה1[[#This Row],[שעות]]*24*שער, IF(AND(מטבע="דולרים",VLOOKUP(טבלה1[[#This Row],[שם העבודה]],טבלה2[],3,FALSE)="₪"), VLOOKUP(טבלה1[[#This Row],[שם העבודה]],טבלה2[#All],2,FALSE)*טבלה1[[#This Row],[שעות]]*24/שער, VLOOKUP(טבלה1[[#This Row],[שם העבודה]],טבלה2[#All],2,FALSE)*טבלה1[[#This Row],[שעות]]*24))),"")) -> 994.2083333 | L53: =IF(טבלה1[[#This Row],[תאריך]]="","",DATE(YEAR(טבלה1[[#This Row],[תאריך]]),MONTH(טבלה1[[#This Row],[תאריך]]),1)) -> 2024-07-01 | AP53: =IF(OR(טבלה3[[#This Row],[תווים]]="",טבלה3[[#This Row],[שכר לתווים]]=""),"", IF(טבלה3[[#This Row],[תווים שהוקלדו]]/טבלה3[[#This Row],[תווים]]*טבלה3[[#This Row],[שכר לתווים]]=0,"", טבלה3[[#This Row],[תווים שהוקלדו]]/טבלה3[[#This Row],[תווים]]*טבלה3[[#This Row],[שכר לתווים]])) ->  | AQ53: =IF(OR(טבלה3[[#This Row],[שכר]]="",טבלה3[[#This Row],[יעד]]=""),"", IF(טבלה3[[#This Row],[שכר]]>=טבלה3[[#This Row],[יעד]],"הגעת ליעד!", טבלה3[[#This Row],[שכר]]/טבלה3[[#This Row],[יעד]])) ->  | AU53: =IF(טבלה3[[#This Row],[שכר]]="","", IF(SUM(טבלה3[[#This Row],[שכר]])-SUM(טבלה3[[#This Row],[חיובים נוספים]]+טבלה3[[#This Row],[זיכויים / שולם]])=0,"", SUM(טבלה3[[#This Row],[שכר]])-SUM(טבלה3[[#This Row],[חיובים נוספים]]+טבלה3[[#This Row],[זיכויים / שולם]]))) -> 
B54: =IF(AND(טבלה1[[#This Row],[תאריך]]="",טבלה1[[#This Row],[התחלה]]="",טבלה1[[#This Row],[שם העבודה]]=""),"",ROW()-10) -> 44 | C54: =IF(טבלה1[[#This Row],[תאריך]]="","",IF(TEXT(טבלה1[[#This Row],[תאריך]],"DDD")="שבת","מוצ""ש",TEXT(טבלה1[[#This Row],[תאריך]],"DDD"))) -> יום א | D54: 2024-07-28 | E54: 01:13:19 | F54: הקלדה | G54: 01:13:25 | J54: =IF(IF(AND(טבלה1[[#This Row],[התחלה]]="",טבלה1[[#This Row],[סיום]]<>""),"",IF(AND(טבלה1[[#This Row],[התחלה]]<>"",טבלה1[[#This Row],[סיום]]=""), SUM(MOD(MOD(NOW(),1)-טבלה1[[#This Row],[התחלה]],1),טבלה1[[#This Row],[הוספת דקות]],-טבלה1[[#This Row],[הפחתת דקות]]), SUM(MOD(טבלה1[[#This Row],[סיום]]-טבלה1[[#This Row],[התחלה]],1),טבלה1[[#This Row],[הוספת דקות]],-טבלה1[[#This Row],[הפחתת דקות]])))<=0,"", IF(AND(טבלה1[[#This Row],[התחלה]]="",טבלה1[[#This Row],[סיום]]<>""),"",IF(AND(טבלה1[[#This Row],[התחלה]]<>"",טבלה1[[#This Row],[סיום]]=""), SUM(MOD(MOD(NOW(),1)-טבלה1[[#This Row],[התחלה]],1),טבלה1[[#This Row],[הוספת דקות]],-טבלה1[[#This Row],[הפחתת דקות]]), SUM(MOD(טבלה1[[#This Row],[סיום]]-טבלה1[[#This Row],[התחלה]],1),טבלה1[[#This Row],[הוספת דקות]],-טבלה1[[#This Row],[הפחתת דקות]])))) -> 6.944444444e-05 | K54: =IF(טבלה1[[#This Row],[שעות]]="","",IFERROR( IF(IF(AND(מטבע="שקלים",VLOOKUP(טבלה1[[#This Row],[שם העבודה]],טבלה2[],3,FALSE)="$"), VLOOKUP(טבלה1[[#This Row],[שם העבודה]],טבלה2[#All],2,FALSE)*טבלה1[[#This Row],[שעות]]*24*שער, IF(AND(מטבע="דולרים",VLOOKUP(טבלה1[[#This Row],[שם העבודה]],טבלה2[],3,FALSE)="₪"), VLOOKUP(טבלה1[[#This Row],[שם העבודה]],טבלה2[#All],2,FALSE)*טבלה1[[#This Row],[שעות]]*24/שער, VLOOKUP(טבלה1[[#This Row],[שם העבודה]],טבלה2[#All],2,FALSE)*טבלה1[[#This Row],[שעות]]*24))=0,"", IF(AND(מטבע="שקלים",VLOOKUP(טבלה1[[#This Row],[שם העבודה]],טבלה2[],3,FALSE)="$"), VLOOKUP(טבלה1[[#This Row],[שם העבודה]],טבלה2[#All],2,FALSE)*טבלה1[[#This Row],[שעות]]*24*שער, IF(AND(מטבע="דולרים",VLOOKUP(טבלה1[[#This Row],[שם העבודה]],טבלה2[],3,FALSE)="₪"), VLOOKUP(טבלה1[[#This Row],[שם העבודה]],טבלה2[#All],2,FALSE)*טבלה1[[#This Row],[שעות]]*24/שער, VLOOKUP(טבלה1[[#This Row],[שם העבודה]],טבלה2[#All],2,FALSE)*טבלה1[[#This Row],[שעות]]*24))),"")) -> 0.08333333333 | L54: =IF(טבלה1[[#This Row],[תאריך]]="","",DATE(YEAR(טבלה1[[#This Row],[תאריך]]),MONTH(טבלה1[[#This Row],[תאריך]]),1)) -> 2024-07-01 | AP54: =IF(OR(טבלה3[[#This Row],[תווים]]="",טבלה3[[#This Row],[שכר לתווים]]=""),"", IF(טבלה3[[#This Row],[תווים שהוקלדו]]/טבלה3[[#This Row],[תווים]]*טבלה3[[#This Row],[שכר לתווים]]=0,"", טבלה3[[#This Row],[תווים שהוקלדו]]/טבלה3[[#This Row],[תווים]]*טבלה3[[#This Row],[שכר לתווים]])) ->  | AQ54: =IF(OR(טבלה3[[#This Row],[שכר]]="",טבלה3[[#This Row],[יעד]]=""),"", IF(טבלה3[[#This Row],[שכר]]>=טבלה3[[#This Row],[יעד]],"הגעת ליעד!", טבלה3[[#This Row],[שכר]]/טבלה3[[#This Row],[יעד]])) ->  | AU54: =IF(טבלה3[[#This Row],[שכר]]="","", IF(SUM(טבלה3[[#This Row],[שכר]])-SUM(טבלה3[[#This Row],[חיובים נוספים]]+טבלה3[[#This Row],[זיכויים / שולם]])=0,"", SUM(טבלה3[[#This Row],[שכר]])-SUM(טבלה3[[#This Row],[חיובים נוספים]]+טבלה3[[#This Row],[זיכויים / שולם]]))) -> 
B55: =IF(AND(טבלה1[[#This Row],[תאריך]]="",טבלה1[[#This Row],[התחלה]]="",טבלה1[[#This Row],[שם העבודה]]=""),"",ROW()-10) -> 45 | C55: =IF(טבלה1[[#This Row],[תאריך]]="","",IF(TEXT(טבלה1[[#This Row],[תאריך]],"DDD")="שבת","מוצ""ש",TEXT(טבלה1[[#This Row],[תאריך]],"DDD"))) -> יום א | D55: 2024-07-28 | E55: 01:13:38 | F55: הקלדה | G55: 01:13:39 | J55: =IF(IF(AND(טבלה1[[#This Row],[התחלה]]="",טבלה1[[#This Row],[סיום]]<>""),"",IF(AND(טבלה1[[#This Row],[התחלה]]<>"",טבלה1[[#This Row],[סיום]]=""), SUM(MOD(MOD(NOW(),1)-טבלה1[[#This Row],[התחלה]],1),טבלה1[[#This Row],[הוספת דקות]],-טבלה1[[#This Row],[הפחתת דקות]]), SUM(MOD(טבלה1[[#This Row],[סיום]]-טבלה1[[#This Row],[התחלה]],1),טבלה1[[#This Row],[הוספת דקות]],-טבלה1[[#This Row],[הפחתת דקות]])))<=0,"", IF(AND(טבלה1[[#This Row],[התחלה]]="",טבלה1[[#This Row],[סיום]]<>""),"",IF(AND(טבלה1[[#This Row],[התחלה]]<>"",טבלה1[[#This Row],[סיום]]=""), SUM(MOD(MOD(NOW(),1)-טבלה1[[#This Row],[התחלה]],1),טבלה1[[#This Row],[הוספת דקות]],-טבלה1[[#This Row],[הפחתת דקות]]), SUM(MOD(טבלה1[[#This Row],[סיום]]-טבלה1[[#This Row],[התחלה]],1),טבלה1[[#This Row],[הוספת דקות]],-טבלה1[[#This Row],[הפחתת דקות]])))) -> 1.157407407e-05 | K55: =IF(טבלה1[[#This Row],[שעות]]="","",IFERROR( IF(IF(AND(מטבע="שקלים",VLOOKUP(טבלה1[[#This Row],[שם העבודה]],טבלה2[],3,FALSE)="$"), VLOOKUP(טבלה1[[#This Row],[שם העבודה]],טבלה2[#All],2,FALSE)*טבלה1[[#This Row],[שעות]]*24*שער, IF(AND(מטבע="דולרים",VLOOKUP(טבלה1[[#This Row],[שם העבודה]],טבלה2[],3,FALSE)="₪"), VLOOKUP(טבלה1[[#This Row],[שם העבודה]],טבלה2[#All],2,FALSE)*טבלה1[[#This Row],[שעות]]*24/שער, VLOOKUP(טבלה1[[#This Row],[שם העבודה]],טבלה2[#All],2,FALSE)*טבלה1[[#This Row],[שעות]]*24))=0,"", IF(AND(מטבע="שקלים",VLOOKUP(טבלה1[[#This Row],[שם העבודה]],טבלה2[],3,FALSE)="$"), VLOOKUP(טבלה1[[#This Row],[שם העבודה]],טבלה2[#All],2,FALSE)*טבלה1[[#This Row],[שעות]]*24*שער, IF(AND(מטבע="דולרים",VLOOKUP(טבלה1[[#This Row],[שם העבודה]],טבלה2[],3,FALSE)="₪"), VLOOKUP(טבלה1[[#This Row],[שם העבודה]],טבלה2[#All],2,FALSE)*טבלה1[[#This Row],[שעות]]*24/שער, VLOOKUP(טבלה1[[#This Row],[שם העבודה]],טבלה2[#All],2,FALSE)*טבלה1[[#This Row],[שעות]]*24))),"")) -> 0.01388888889 | L55: =IF(טבלה1[[#This Row],[תאריך]]="","",DATE(YEAR(טבלה1[[#This Row],[תאריך]]),MONTH(טבלה1[[#This Row],[תאריך]]),1)) -> 2024-07-01 | AP55: =IF(OR(טבלה3[[#This Row],[תווים]]="",טבלה3[[#This Row],[שכר לתווים]]=""),"", IF(טבלה3[[#This Row],[תווים שהוקלדו]]/טבלה3[[#This Row],[תווים]]*טבלה3[[#This Row],[שכר לתווים]]=0,"", טבלה3[[#This Row],[תווים שהוקלדו]]/טבלה3[[#This Row],[תווים]]*טבלה3[[#This Row],[שכר לתווים]])) ->  | AQ55: =IF(OR(טבלה3[[#This Row],[שכר]]="",טבלה3[[#This Row],[יעד]]=""),"", IF(טבלה3[[#This Row],[שכר]]>=טבלה3[[#This Row],[יעד]],"הגעת ליעד!", טבלה3[[#This Row],[שכר]]/טבלה3[[#This Row],[יעד]])) ->  | AU55: =IF(טבלה3[[#This Row],[שכר]]="","", IF(SUM(טבלה3[[#This Row],[שכר]])-SUM(טבלה3[[#This Row],[חיובים נוספים]]+טבלה3[[#This Row],[זיכויים / שולם]])=0,"", SUM(טבלה3[[#This Row],[שכר]])-SUM(טבלה3[[#This Row],[חיובים נוספים]]+טבלה3[[#This Row],[זיכויים / שולם]]))) -> 
B56: =IF(AND(טבלה1[[#This Row],[תאריך]]="",טבלה1[[#This Row],[התחלה]]="",טבלה1[[#This Row],[שם העבודה]]=""),"",ROW()-10) -> 46 | C56: =IF(טבלה1[[#This Row],[תאריך]]="","",IF(TEXT(טבלה1[[#This Row],[תאריך]],"DDD")="שבת","מוצ""ש",TEXT(טבלה1[[#This Row],[תאריך]],"DDD"))) -> יום א | D56: 2024-07-28 | E56: 01:13:48 | F56: הקלדה | G56: 01:13:50 | J56: =IF(IF(AND(טבלה1[[#This Row],[התחלה]]="",טבלה1[[#This Row],[סיום]]<>""),"",IF(AND(טבלה1[[#This Row],[התחלה]]<>"",טבלה1[[#This Row],[סיום]]=""), SUM(MOD(MOD(NOW(),1)-טבלה1[[#This Row],[התחלה]],1),טבלה1[[#This Row],[הוספת דקות]],-טבלה1[[#This Row],[הפחתת דקות]]), SUM(MOD(טבלה1[[#This Row],[סיום]]-טבלה1[[#This Row],[התחלה]],1),טבלה1[[#This Row],[הוספת דקות]],-טבלה1[[#This Row],[הפחתת דקות]])))<=0,"", IF(AND(טבלה1[[#This Row],[התחלה]]="",טבלה1[[#This Row],[סיום]]<>""),"",IF(AND(טבלה1[[#This Row],[התחלה]]<>"",טבלה1[[#This Row],[סיום]]=""), SUM(MOD(MOD(NOW(),1)-טבלה1[[#This Row],[התחלה]],1),טבלה1[[#This Row],[הוספת דקות]],-טבלה1[[#This Row],[הפחתת דקות]]), SUM(MOD(טבלה1[[#This Row],[סיום]]-טבלה1[[#This Row],[התחלה]],1),טבלה1[[#This Row],[הוספת דקות]],-טבלה1[[#This Row],[הפחתת דקות]])))) -> 2.314814815e-05 | K56: =IF(טבלה1[[#This Row],[שעות]]="","",IFERROR( IF(IF(AND(מטבע="שקלים",VLOOKUP(טבלה1[[#This Row],[שם העבודה]],טבלה2[],3,FALSE)="$"), VLOOKUP(טבלה1[[#This Row],[שם העבודה]],טבלה2[#All],2,FALSE)*טבלה1[[#This Row],[שעות]]*24*שער, IF(AND(מטבע="דולרים",VLOOKUP(טבלה1[[#This Row],[שם העבודה]],טבלה2[],3,FALSE)="₪"), VLOOKUP(טבלה1[[#This Row],[שם העבודה]],טבלה2[#All],2,FALSE)*טבלה1[[#This Row],[שעות]]*24/שער, VLOOKUP(טבלה1[[#This Row],[שם העבודה]],טבלה2[#All],2,FALSE)*טבלה1[[#This Row],[שעות]]*24))=0,"", IF(AND(מטבע="שקלים",VLOOKUP(טבלה1[[#This Row],[שם העבודה]],טבלה2[],3,FALSE)="$"), VLOOKUP(טבלה1[[#This Row],[שם העבודה]],טבלה2[#All],2,FALSE)*טבלה1[[#This Row],[שעות]]*24*שער, IF(AND(מטבע="דולרים",VLOOKUP(טבלה1[[#This Row],[שם העבודה]],טבלה2[],3,FALSE)="₪"), VLOOKUP(טבלה1[[#This Row],[שם העבודה]],טבלה2[#All],2,FALSE)*טבלה1[[#This Row],[שעות]]*24/שער, VLOOKUP(טבלה1[[#This Row],[שם העבודה]],טבלה2[#All],2,FALSE)*טבלה1[[#This Row],[שעות]]*24))),"")) -> 0.02777777778 | L56: =IF(טבלה1[[#This Row],[תאריך]]="","",DATE(YEAR(טבלה1[[#This Row],[תאריך]]),MONTH(טבלה1[[#This Row],[תאריך]]),1)) -> 2024-07-01 | AP56: =IF(OR(טבלה3[[#This Row],[תווים]]="",טבלה3[[#This Row],[שכר לתווים]]=""),"", IF(טבלה3[[#This Row],[תווים שהוקלדו]]/טבלה3[[#This Row],[תווים]]*טבלה3[[#This Row],[שכר לתווים]]=0,"", טבלה3[[#This Row],[תווים שהוקלדו]]/טבלה3[[#This Row],[תווים]]*טבלה3[[#This Row],[שכר לתווים]])) ->  | AQ56: =IF(OR(טבלה3[[#This Row],[שכר]]="",טבלה3[[#This Row],[יעד]]=""),"", IF(טבלה3[[#This Row],[שכר]]>=טבלה3[[#This Row],[יעד]],"הגעת ליעד!", טבלה3[[#This Row],[שכר]]/טבלה3[[#This Row],[יעד]])) ->  | AU56: =IF(טבלה3[[#This Row],[שכר]]="","", IF(SUM(טבלה3[[#This Row],[שכר]])-SUM(טבלה3[[#This Row],[חיובים נוספים]]+טבלה3[[#This Row],[זיכויים / שולם]])=0,"", SUM(טבלה3[[#This Row],[שכר]])-SUM(טבלה3[[#This Row],[חיובים נוספים]]+טבלה3[[#This Row],[זיכויים / שולם]]))) -> 
B57: =IF(AND(טבלה1[[#This Row],[תאריך]]="",טבלה1[[#This Row],[התחלה]]="",טבלה1[[#This Row],[שם העבודה]]=""),"",ROW()-10) -> 47 | C57: =IF(טבלה1[[#This Row],[תאריך]]="","",IF(TEXT(טבלה1[[#This Row],[תאריך]],"DDD")="שבת","מוצ""ש",TEXT(טבלה1[[#This Row],[תאריך]],"DDD"))) -> יום א | D57: 2024-07-28 | E57: 01:13:57 | F57: הקלדה | G57: 01:14:03 | J57: =IF(IF(AND(טבלה1[[#This Row],[התחלה]]="",טבלה1[[#This Row],[סיום]]<>""),"",IF(AND(טבלה1[[#This Row],[התחלה]]<>"",טבלה1[[#This Row],[סיום]]=""), SUM(MOD(MOD(NOW(),1)-טבלה1[[#This Row],[התחלה]],1),טבלה1[[#This Row],[הוספת דקות]],-טבלה1[[#This Row],[הפחתת דקות]]), SUM(MOD(טבלה1[[#This Row],[סיום]]-טבלה1[[#This Row],[התחלה]],1),טבלה1[[#This Row],[הוספת דקות]],-טבלה1[[#This Row],[הפחתת דקות]])))<=0,"", IF(AND(טבלה1[[#This Row],[התחלה]]="",טבלה1[[#This Row],[סיום]]<>""),"",IF(AND(טבלה1[[#This Row],[התחלה]]<>"",טבלה1[[#This Row],[סיום]]=""), SUM(MOD(MOD(NOW(),1)-טבלה1[[#This Row],[התחלה]],1),טבלה1[[#This Row],[הוספת דקות]],-טבלה1[[#This Row],[הפחתת דקות]]), SUM(MOD(טבלה1[[#This Row],[סיום]]-טבלה1[[#This Row],[התחלה]],1),טבלה1[[#This Row],[הוספת דקות]],-טבלה1[[#This Row],[הפחתת דקות]])))) -> 6.944444444e-05 | K57: =IF(טבלה1[[#This Row],[שעות]]="","",IFERROR( IF(IF(AND(מטבע="שקלים",VLOOKUP(טבלה1[[#This Row],[שם העבודה]],טבלה2[],3,FALSE)="$"), VLOOKUP(טבלה1[[#This Row],[שם העבודה]],טבלה2[#All],2,FALSE)*טבלה1[[#This Row],[שעות]]*24*שער, IF(AND(מטבע="דולרים",VLOOKUP(טבלה1[[#This Row],[שם העבודה]],טבלה2[],3,FALSE)="₪"), VLOOKUP(טבלה1[[#This Row],[שם העבודה]],טבלה2[#All],2,FALSE)*טבלה1[[#This Row],[שעות]]*24/שער, VLOOKUP(טבלה1[[#This Row],[שם העבודה]],טבלה2[#All],2,FALSE)*טבלה1[[#This Row],[שעות]]*24))=0,"", IF(AND(מטבע="שקלים",VLOOKUP(טבלה1[[#This Row],[שם העבודה]],טבלה2[],3,FALSE)="$"), VLOOKUP(טבלה1[[#This Row],[שם העבודה]],טבלה2[#All],2,FALSE)*טבלה1[[#This Row],[שעות]]*24*שער, IF(AND(מטבע="דולרים",VLOOKUP(טבלה1[[#This Row],[שם העבודה]],טבלה2[],3,FALSE)="₪"), VLOOKUP(טבלה1[[#This Row],[שם העבודה]],טבלה2[#All],2,FALSE)*טבלה1[[#This Row],[שעות]]*24/שער, VLOOKUP(טבלה1[[#This Row],[שם העבודה]],טבלה2[#All],2,FALSE)*טבלה1[[#This Row],[שעות]]*24))),"")) -> 0.08333333333 | L57: =IF(טבלה1[[#This Row],[תאריך]]="","",DATE(YEAR(טבלה1[[#This Row],[תאריך]]),MONTH(טבלה1[[#This Row],[תאריך]]),1)) -> 2024-07-01 | AP57: =IF(OR(טבלה3[[#This Row],[תווים]]="",טבלה3[[#This Row],[שכר לתווים]]=""),"", IF(טבלה3[[#This Row],[תווים שהוקלדו]]/טבלה3[[#This Row],[תווים]]*טבלה3[[#This Row],[שכר לתווים]]=0,"", טבלה3[[#This Row],[תווים שהוקלדו]]/טבלה3[[#This Row],[תווים]]*טבלה3[[#This Row],[שכר לתווים]])) ->  | AQ57: =IF(OR(טבלה3[[#This Row],[שכר]]="",טבלה3[[#This Row],[יעד]]=""),"", IF(טבלה3[[#This Row],[שכר]]>=טבלה3[[#This Row],[יעד]],"הגעת ליעד!", טבלה3[[#This Row],[שכר]]/טבלה3[[#This Row],[יעד]])) ->  | AU57: =IF(טבלה3[[#This Row],[שכר]]="","", IF(SUM(טבלה3[[#This Row],[שכר]])-SUM(טבלה3[[#This Row],[חיובים נוספים]]+טבלה3[[#This Row],[זיכויים / שולם]])=0,"", SUM(טבלה3[[#This Row],[שכר]])-SUM(טבלה3[[#This Row],[חיובים נוספים]]+טבלה3[[#This Row],[זיכויים / שולם]]))) -> 
B58: =IF(AND(טבלה1[[#This Row],[תאריך]]="",טבלה1[[#This Row],[התחלה]]="",טבלה1[[#This Row],[שם העבודה]]=""),"",ROW()-10) -> 48 | C58: =IF(טבלה1[[#This Row],[תאריך]]="","",IF(TEXT(טבלה1[[#This Row],[תאריך]],"DDD")="שבת","מוצ""ש",TEXT(טבלה1[[#This Row],[תאריך]],"DDD"))) -> יום א | D58: 2024-07-28 | E58: 01:14:05 | F58: הקלדה | G58: 01:14:06 | J58: =IF(IF(AND(טבלה1[[#This Row],[התחלה]]="",טבלה1[[#This Row],[סיום]]<>""),"",IF(AND(טבלה1[[#This Row],[התחלה]]<>"",טבלה1[[#This Row],[סיום]]=""), SUM(MOD(MOD(NOW(),1)-טבלה1[[#This Row],[התחלה]],1),טבלה1[[#This Row],[הוספת דקות]],-טבלה1[[#This Row],[הפחתת דקות]]), SUM(MOD(טבלה1[[#This Row],[סיום]]-טבלה1[[#This Row],[התחלה]],1),טבלה1[[#This Row],[הוספת דקות]],-טבלה1[[#This Row],[הפחתת דקות]])))<=0,"", IF(AND(טבלה1[[#This Row],[התחלה]]="",טבלה1[[#This Row],[סיום]]<>""),"",IF(AND(טבלה1[[#This Row],[התחלה]]<>"",טבלה1[[#This Row],[סיום]]=""), SUM(MOD(MOD(NOW(),1)-טבלה1[[#This Row],[התחלה]],1),טבלה1[[#This Row],[הוספת דקות]],-טבלה1[[#This Row],[הפחתת דקות]]), SUM(MOD(טבלה1[[#This Row],[סיום]]-טבלה1[[#This Row],[התחלה]],1),טבלה1[[#This Row],[הוספת דקות]],-טבלה1[[#This Row],[הפחתת דקות]])))) -> 1.157407407e-05 | K58: =IF(טבלה1[[#This Row],[שעות]]="","",IFERROR( IF(IF(AND(מטבע="שקלים",VLOOKUP(טבלה1[[#This Row],[שם העבודה]],טבלה2[],3,FALSE)="$"), VLOOKUP(טבלה1[[#This Row],[שם העבודה]],טבלה2[#All],2,FALSE)*טבלה1[[#This Row],[שעות]]*24*שער, IF(AND(מטבע="דולרים",VLOOKUP(טבלה1[[#This Row],[שם העבודה]],טבלה2[],3,FALSE)="₪"), VLOOKUP(טבלה1[[#This Row],[שם העבודה]],טבלה2[#All],2,FALSE)*טבלה1[[#This Row],[שעות]]*24/שער, VLOOKUP(טבלה1[[#This Row],[שם העבודה]],טבלה2[#All],2,FALSE)*טבלה1[[#This Row],[שעות]]*24))=0,"", IF(AND(מטבע="שקלים",VLOOKUP(טבלה1[[#This Row],[שם העבודה]],טבלה2[],3,FALSE)="$"), VLOOKUP(טבלה1[[#This Row],[שם העבודה]],טבלה2[#All],2,FALSE)*טבלה1[[#This Row],[שעות]]*24*שער, IF(AND(מטבע="דולרים",VLOOKUP(טבלה1[[#This Row],[שם העבודה]],טבלה2[],3,FALSE)="₪"), VLOOKUP(טבלה1[[#This Row],[שם העבודה]],טבלה2[#All],2,FALSE)*טבלה1[[#This Row],[שעות]]*24/שער, VLOOKUP(טבלה1[[#This Row],[שם העבודה]],טבלה2[#All],2,FALSE)*טבלה1[[#This Row],[שעות]]*24))),"")) -> 0.01388888889 | L58: =IF(טבלה1[[#This Row],[תאריך]]="","",DATE(YEAR(טבלה1[[#This Row],[תאריך]]),MONTH(טבלה1[[#This Row],[תאריך]]),1)) -> 2024-07-01 | AP58: =IF(OR(טבלה3[[#This Row],[תווים]]="",טבלה3[[#This Row],[שכר לתווים]]=""),"", IF(טבלה3[[#This Row],[תווים שהוקלדו]]/טבלה3[[#This Row],[תווים]]*טבלה3[[#This Row],[שכר לתווים]]=0,"", טבלה3[[#This Row],[תווים שהוקלדו]]/טבלה3[[#This Row],[תווים]]*טבלה3[[#This Row],[שכר לתווים]])) ->  | AQ58: =IF(OR(טבלה3[[#This Row],[שכר]]="",טבלה3[[#This Row],[יעד]]=""),"", IF(טבלה3[[#This Row],[שכר]]>=טבלה3[[#This Row],[יעד]],"הגעת ליעד!", טבלה3[[#This Row],[שכר]]/טבלה3[[#This Row],[יעד]])) ->  | AU58: =IF(טבלה3[[#This Row],[שכר]]="","", IF(SUM(טבלה3[[#This Row],[שכר]])-SUM(טבלה3[[#This Row],[חיובים נוספים]]+טבלה3[[#This Row],[זיכויים / שולם]])=0,"", SUM(טבלה3[[#This Row],[שכר]])-SUM(טבלה3[[#This Row],[חיובים נוספים]]+טבלה3[[#This Row],[זיכויים / שולם]]))) -> 
B59: =IF(AND(טבלה1[[#This Row],[תאריך]]="",טבלה1[[#This Row],[התחלה]]="",טבלה1[[#This Row],[שם העבודה]]=""),"",ROW()-10) -> 49 | C59: =IF(טבלה1[[#This Row],[תאריך]]="","",IF(TEXT(טבלה1[[#This Row],[תאריך]],"DDD")="שבת","מוצ""ש",TEXT(טבלה1[[#This Row],[תאריך]],"DDD"))) -> יום א | D59: 2024-07-28 | E59: 01:46:53 | F59: הקלדה | G59: 01:46:55 | J59: =IF(IF(AND(טבלה1[[#This Row],[התחלה]]="",טבלה1[[#This Row],[סיום]]<>""),"",IF(AND(טבלה1[[#This Row],[התחלה]]<>"",טבלה1[[#This Row],[סיום]]=""), SUM(MOD(MOD(NOW(),1)-טבלה1[[#This Row],[התחלה]],1),טבלה1[[#This Row],[הוספת דקות]],-טבלה1[[#This Row],[הפחתת דקות]]), SUM(MOD(טבלה1[[#This Row],[סיום]]-טבלה1[[#This Row],[התחלה]],1),טבלה1[[#This Row],[הוספת דקות]],-טבלה1[[#This Row],[הפחתת דקות]])))<=0,"", IF(AND(טבלה1[[#This Row],[התחלה]]="",טבלה1[[#This Row],[סיום]]<>""),"",IF(AND(טבלה1[[#This Row],[התחלה]]<>"",טבלה1[[#This Row],[סיום]]=""), SUM(MOD(MOD(NOW(),1)-טבלה1[[#This Row],[התחלה]],1),טבלה1[[#This Row],[הוספת דקות]],-טבלה1[[#This Row],[הפחתת דקות]]), SUM(MOD(טבלה1[[#This Row],[סיום]]-טבלה1[[#This Row],[התחלה]],1),טבלה1[[#This Row],[הוספת דקות]],-טבלה1[[#This Row],[הפחתת דקות]])))) -> 2.314814815e-05 | K59: =IF(טבלה1[[#This Row],[שעות]]="","",IFERROR( IF(IF(AND(מטבע="שקלים",VLOOKUP(טבלה1[[#This Row],[שם העבודה]],טבלה2[],3,FALSE)="$"), VLOOKUP(טבלה1[[#This Row],[שם העבודה]],טבלה2[#All],2,FALSE)*טבלה1[[#This Row],[שעות]]*24*שער, IF(AND(מטבע="דולרים",VLOOKUP(טבלה1[[#This Row],[שם העבודה]],טבלה2[],3,FALSE)="₪"), VLOOKUP(טבלה1[[#This Row],[שם העבודה]],טבלה2[#All],2,FALSE)*טבלה1[[#This Row],[שעות]]*24/שער, VLOOKUP(טבלה1[[#This Row],[שם העבודה]],טבלה2[#All],2,FALSE)*טבלה1[[#This Row],[שעות]]*24))=0,"", IF(AND(מטבע="שקלים",VLOOKUP(טבלה1[[#This Row],[שם העבודה]],טבלה2[],3,FALSE)="$"), VLOOKUP(טבלה1[[#This Row],[שם העבודה]],טבלה2[#All],2,FALSE)*טבלה1[[#This Row],[שעות]]*24*שער, IF(AND(מטבע="דולרים",VLOOKUP(טבלה1[[#This Row],[שם העבודה]],טבלה2[],3,FALSE)="₪"), VLOOKUP(טבלה1[[#This Row],[שם העבודה]],טבלה2[#All],2,FALSE)*טבלה1[[#This Row],[שעות]]*24/שער, VLOOKUP(טבלה1[[#This Row],[שם העבודה]],טבלה2[#All],2,FALSE)*טבלה1[[#This Row],[שעות]]*24))),"")) -> 0.02777777778 | L59: =IF(טבלה1[[#This Row],[תאריך]]="","",DATE(YEAR(טבלה1[[#This Row],[תאריך]]),MONTH(טבלה1[[#This Row],[תאריך]]),1)) -> 2024-07-01 | AP59: =IF(OR(טבלה3[[#This Row],[תווים]]="",טבלה3[[#This Row],[שכר לתווים]]=""),"", IF(טבלה3[[#This Row],[תווים שהוקלדו]]/טבלה3[[#This Row],[תווים]]*טבלה3[[#This Row],[שכר לתווים]]=0,"", טבלה3[[#This Row],[תווים שהוקלדו]]/טבלה3[[#This Row],[תווים]]*טבלה3[[#This Row],[שכר לתווים]])) ->  | AQ59: =IF(OR(טבלה3[[#This Row],[שכר]]="",טבלה3[[#This Row],[יעד]]=""),"", IF(טבלה3[[#This Row],[שכר]]>=טבלה3[[#This Row],[יעד]],"הגעת ליעד!", טבלה3[[#This Row],[שכר]]/טבלה3[[#This Row],[יעד]])) ->  | AU59: =IF(טבלה3[[#This Row],[שכר]]="","", IF(SUM(טבלה3[[#This Row],[שכר]])-SUM(טבלה3[[#This Row],[חיובים נוספים]]+טבלה3[[#This Row],[זיכויים / שולם]])=0,"", SUM(טבלה3[[#This Row],[שכר]])-SUM(טבלה3[[#This Row],[חיובים נוספים]]+טבלה3[[#This Row],[זיכויים / שולם]]))) -> 
B60: =IF(AND(טבלה1[[#This Row],[תאריך]]="",טבלה1[[#This Row],[התחלה]]="",טבלה1[[#This Row],[שם העבודה]]=""),"",ROW()-10) ->  | C60: =IF(טבלה1[[#This Row],[תאריך]]="","",IF(TEXT(טבלה1[[#This Row],[תאריך]],"DDD")="שבת","מוצ""ש",TEXT(טבלה1[[#This Row],[תאריך]],"DDD"))) ->  | J60: =IF(IF(AND(טבלה1[[#This Row],[התחלה]]="",טבלה1[[#This Row],[סיום]]<>""),"",IF(AND(טבלה1[[#This Row],[התחלה]]<>"",טבלה1[[#This Row],[סיום]]=""), SUM(MOD(MOD(NOW(),1)-טבלה1[[#This Row],[התחלה]],1),טבלה1[[#This Row],[הוספת דקות]],-טבלה1[[#This Row],[הפחתת דקות]]), SUM(MOD(טבלה1[[#This Row],[סיום]]-טבלה1[[#This Row],[התחלה]],1),טבלה1[[#This Row],[הוספת דקות]],-טבלה1[[#This Row],[הפחתת דקות]])))<=0,"", IF(AND(טבלה1[[#This Row],[התחלה]]="",טבלה1[[#This Row],[סיום]]<>""),"",IF(AND(טבלה1[[#This Row],[התחלה]]<>"",טבלה1[[#This Row],[סיום]]=""), SUM(MOD(MOD(NOW(),1)-טבלה1[[#This Row],[התחלה]],1),טבלה1[[#This Row],[הוספת דקות]],-טבלה1[[#This Row],[הפחתת דקות]]), SUM(MOD(טבלה1[[#This Row],[סיום]]-טבלה1[[#This Row],[התחלה]],1),טבלה1[[#This Row],[הוספת דקות]],-טבלה1[[#This Row],[הפחתת דקות]])))) ->  | K60: =IF(טבלה1[[#This Row],[שעות]]="","",IFERROR( IF(IF(AND(מטבע="שקלים",VLOOKUP(טבלה1[[#This Row],[שם העבודה]],טבלה2[],3,FALSE)="$"), VLOOKUP(טבלה1[[#This Row],[שם העבודה]],טבלה2[#All],2,FALSE)*טבלה1[[#This Row],[שעות]]*24*שער, IF(AND(מטבע="דולרים",VLOOKUP(טבלה1[[#This Row],[שם העבודה]],טבלה2[],3,FALSE)="₪"), VLOOKUP(טבלה1[[#This Row],[שם העבודה]],טבלה2[#All],2,FALSE)*טבלה1[[#This Row],[שעות]]*24/שער, VLOOKUP(טבלה1[[#This Row],[שם העבודה]],טבלה2[#All],2,FALSE)*טבלה1[[#This Row],[שעות]]*24))=0,"", IF(AND(מטבע="שקלים",VLOOKUP(טבלה1[[#This Row],[שם העבודה]],טבלה2[],3,FALSE)="$"), VLOOKUP(טבלה1[[#This Row],[שם העבודה]],טבלה2[#All],2,FALSE)*טבלה1[[#This Row],[שעות]]*24*שער, IF(AND(מטבע="דולרים",VLOOKUP(טבלה1[[#This Row],[שם העבודה]],טבלה2[],3,FALSE)="₪"), VLOOKUP(טבלה1[[#This Row],[שם העבודה]],טבלה2[#All],2,FALSE)*טבלה1[[#This Row],[שעות]]*24/שער, VLOOKUP(טבלה1[[#This Row],[שם העבודה]],טבלה2[#All],2,FALSE)*טבלה1[[#This Row],[שעות]]*24))),"")) ->  | L60: =IF(טבלה1[[#This Row],[תאריך]]="","",DATE(YEAR(טבלה1[[#This Row],[תאריך]]),MONTH(טבלה1[[#This Row],[תאריך]]),1)) ->  | AP60: =IF(OR(טבלה3[[#This Row],[תווים]]="",טבלה3[[#This Row],[שכר לתווים]]=""),"", IF(טבלה3[[#This Row],[תווים שהוקלדו]]/טבלה3[[#This Row],[תווים]]*טבלה3[[#This Row],[שכר לתווים]]=0,"", טבלה3[[#This Row],[תווים שהוקלדו]]/טבלה3[[#This Row],[תווים]]*טבלה3[[#This Row],[שכר לתווים]])) ->  | AQ60: =IF(OR(טבלה3[[#This Row],[שכר]]="",טבלה3[[#This Row],[יעד]]=""),"", IF(טבלה3[[#This Row],[שכר]]>=טבלה3[[#This Row],[יעד]],"הגעת ליעד!", טבלה3[[#This Row],[שכר]]/טבלה3[[#This Row],[יעד]])) ->  | AU60: =IF(טבלה3[[#This Row],[שכר]]="","", IF(SUM(טבלה3[[#This Row],[שכר]])-SUM(טבלה3[[#This Row],[חיובים נוספים]]+טבלה3[[#This Row],[זיכויים / שולם]])=0,"", SUM(טבלה3[[#This Row],[שכר]])-SUM(טבלה3[[#This Row],[חיובים נוספים]]+טבלה3[[#This Row],[זיכויים / שולם]]))) -> 
B61: =IF(AND(טבלה1[[#This Row],[תאריך]]="",טבלה1[[#This Row],[התחלה]]="",טבלה1[[#This Row],[שם העבודה]]=""),"",ROW()-10) ->  | C61: =IF(טבלה1[[#This Row],[תאריך]]="","",IF(TEXT(טבלה1[[#This Row],[תאריך]],"DDD")="שבת","מוצ""ש",TEXT(טבלה1[[#This Row],[תאריך]],"DDD"))) ->  | J61: =IF(IF(AND(טבלה1[[#This Row],[התחלה]]="",טבלה1[[#This Row],[סיום]]<>""),"",IF(AND(טבלה1[[#This Row],[התחלה]]<>"",טבלה1[[#This Row],[סיום]]=""), SUM(MOD(MOD(NOW(),1)-טבלה1[[#This Row],[התחלה]],1),טבלה1[[#This Row],[הוספת דקות]],-טבלה1[[#This Row],[הפחתת דקות]]), SUM(MOD(טבלה1[[#This Row],[סיום]]-טבלה1[[#This Row],[התחלה]],1),טבלה1[[#This Row],[הוספת דקות]],-טבלה1[[#This Row],[הפחתת דקות]])))<=0,"", IF(AND(טבלה1[[#This Row],[התחלה]]="",טבלה1[[#This Row],[סיום]]<>""),"",IF(AND(טבלה1[[#This Row],[התחלה]]<>"",טבלה1[[#This Row],[סיום]]=""), SUM(MOD(MOD(NOW(),1)-טבלה1[[#This Row],[התחלה]],1),טבלה1[[#This Row],[הוספת דקות]],-טבלה1[[#This Row],[הפחתת דקות]]), SUM(MOD(טבלה1[[#This Row],[סיום]]-טבלה1[[#This Row],[התחלה]],1),טבלה1[[#This Row],[הוספת דקות]],-טבלה1[[#This Row],[הפחתת דקות]])))) ->  | K61: =IF(טבלה1[[#This Row],[שעות]]="","",IFERROR( IF(IF(AND(מטבע="שקלים",VLOOKUP(טבלה1[[#This Row],[שם העבודה]],טבלה2[],3,FALSE)="$"), VLOOKUP(טבלה1[[#This Row],[שם העבודה]],טבלה2[#All],2,FALSE)*טבלה1[[#This Row],[שעות]]*24*שער, IF(AND(מטבע="דולרים",VLOOKUP(טבלה1[[#This Row],[שם העבודה]],טבלה2[],3,FALSE)="₪"), VLOOKUP(טבלה1[[#This Row],[שם העבודה]],טבלה2[#All],2,FALSE)*טבלה1[[#This Row],[שעות]]*24/שער, VLOOKUP(טבלה1[[#This Row],[שם העבודה]],טבלה2[#All],2,FALSE)*טבלה1[[#This Row],[שעות]]*24))=0,"", IF(AND(מטבע="שקלים",VLOOKUP(טבלה1[[#This Row],[שם העבודה]],טבלה2[],3,FALSE)="$"), VLOOKUP(טבלה1[[#This Row],[שם העבודה]],טבלה2[#All],2,FALSE)*טבלה1[[#This Row],[שעות]]*24*שער, IF(AND(מטבע="דולרים",VLOOKUP(טבלה1[[#This Row],[שם העבודה]],טבלה2[],3,FALSE)="₪"), VLOOKUP(טבלה1[[#This Row],[שם העבודה]],טבלה2[#All],2,FALSE)*טבלה1[[#This Row],[שעות]]*24/שער, VLOOKUP(טבלה1[[#This Row],[שם העבודה]],טבלה2[#All],2,FALSE)*טבלה1[[#This Row],[שעות]]*24))),"")) ->  | L61: =IF(טבלה1[[#This Row],[תאריך]]="","",DATE(YEAR(טבלה1[[#This Row],[תאריך]]),MONTH(טבלה1[[#This Row],[תאריך]]),1)) ->  | AP61: =IF(OR(טבלה3[[#This Row],[תווים]]="",טבלה3[[#This Row],[שכר לתווים]]=""),"", IF(טבלה3[[#This Row],[תווים שהוקלדו]]/טבלה3[[#This Row],[תווים]]*טבלה3[[#This Row],[שכר לתווים]]=0,"", טבלה3[[#This Row],[תווים שהוקלדו]]/טבלה3[[#This Row],[תווים]]*טבלה3[[#This Row],[שכר לתווים]])) ->  | AQ61: =IF(OR(טבלה3[[#This Row],[שכר]]="",טבלה3[[#This Row],[יעד]]=""),"", IF(טבלה3[[#This Row],[שכר]]>=טבלה3[[#This Row],[יעד]],"הגעת ליעד!", טבלה3[[#This Row],[שכר]]/טבלה3[[#This Row],[יעד]])) ->  | AU61: =IF(טבלה3[[#This Row],[שכר]]="","", IF(SUM(טבלה3[[#This Row],[שכר]])-SUM(טבלה3[[#This Row],[חיובים נוספים]]+טבלה3[[#This Row],[זיכויים / שולם]])=0,"", SUM(טבלה3[[#This Row],[שכר]])-SUM(טבלה3[[#This Row],[חיובים נוספים]]+טבלה3[[#This Row],[זיכויים / שולם]]))) -> 
B62: =IF(AND(טבלה1[[#This Row],[תאריך]]="",טבלה1[[#This Row],[התחלה]]="",טבלה1[[#This Row],[שם העבודה]]=""),"",ROW()-10) ->  | C62: =IF(טבלה1[[#This Row],[תאריך]]="","",IF(TEXT(טבלה1[[#This Row],[תאריך]],"DDD")="שבת","מוצ""ש",TEXT(טבלה1[[#This Row],[תאריך]],"DDD"))) ->  | J62: =IF(IF(AND(טבלה1[[#This Row],[התחלה]]="",טבלה1[[#This Row],[סיום]]<>""),"",IF(AND(טבלה1[[#This Row],[התחלה]]<>"",טבלה1[[#This Row],[סיום]]=""), SUM(MOD(MOD(NOW(),1)-טבלה1[[#This Row],[התחלה]],1),טבלה1[[#This Row],[הוספת דקות]],-טבלה1[[#This Row],[הפחתת דקות]]), SUM(MOD(טבלה1[[#This Row],[סיום]]-טבלה1[[#This Row],[התחלה]],1),טבלה1[[#This Row],[הוספת דקות]],-טבלה1[[#This Row],[הפחתת דקות]])))<=0,"", IF(AND(טבלה1[[#This Row],[התחלה]]="",טבלה1[[#This Row],[סיום]]<>""),"",IF(AND(טבלה1[[#This Row],[התחלה]]<>"",טבלה1[[#This Row],[סיום]]=""), SUM(MOD(MOD(NOW(),1)-טבלה1[[#This Row],[התחלה]],1),טבלה1[[#This Row],[הוספת דקות]],-טבלה1[[#This Row],[הפחתת דקות]]), SUM(MOD(טבלה1[[#This Row],[סיום]]-טבלה1[[#This Row],[התחלה]],1),טבלה1[[#This Row],[הוספת דקות]],-טבלה1[[#This Row],[הפחתת דקות]])))) ->  | K62: =IF(טבלה1[[#This Row],[שעות]]="","",IFERROR( IF(IF(AND(מטבע="שקלים",VLOOKUP(טבלה1[[#This Row],[שם העבודה]],טבלה2[],3,FALSE)="$"), VLOOKUP(טבלה1[[#This Row],[שם העבודה]],טבלה2[#All],2,FALSE)*טבלה1[[#This Row],[שעות]]*24*שער, IF(AND(מטבע="דולרים",VLOOKUP(טבלה1[[#This Row],[שם העבודה]],טבלה2[],3,FALSE)="₪"), VLOOKUP(טבלה1[[#This Row],[שם העבודה]],טבלה2[#All],2,FALSE)*טבלה1[[#This Row],[שעות]]*24/שער, VLOOKUP(טבלה1[[#This Row],[שם העבודה]],טבלה2[#All],2,FALSE)*טבלה1[[#This Row],[שעות]]*24))=0,"", IF(AND(מטבע="שקלים",VLOOKUP(טבלה1[[#This Row],[שם העבודה]],טבלה2[],3,FALSE)="$"), VLOOKUP(טבלה1[[#This Row],[שם העבודה]],טבלה2[#All],2,FALSE)*טבלה1[[#This Row],[שעות]]*24*שער, IF(AND(מטבע="דולרים",VLOOKUP(טבלה1[[#This Row],[שם העבודה]],טבלה2[],3,FALSE)="₪"), VLOOKUP(טבלה1[[#This Row],[שם העבודה]],טבלה2[#All],2,FALSE)*טבלה1[[#This Row],[שעות]]*24/שער, VLOOKUP(טבלה1[[#This Row],[שם העבודה]],טבלה2[#All],2,FALSE)*טבלה1[[#This Row],[שעות]]*24))),"")) ->  | L62: =IF(טבלה1[[#This Row],[תאריך]]="","",DATE(YEAR(טבלה1[[#This Row],[תאריך]]),MONTH(טבלה1[[#This Row],[תאריך]]),1)) ->  | AP62: =IF(OR(טבלה3[[#This Row],[תווים]]="",טבלה3[[#This Row],[שכר לתווים]]=""),"", IF(טבלה3[[#This Row],[תווים שהוקלדו]]/טבלה3[[#This Row],[תווים]]*טבלה3[[#This Row],[שכר לתווים]]=0,"", טבלה3[[#This Row],[תווים שהוקלדו]]/טבלה3[[#This Row],[תווים]]*טבלה3[[#This Row],[שכר לתווים]])) ->  | AQ62: =IF(OR(טבלה3[[#This Row],[שכר]]="",טבלה3[[#This Row],[יעד]]=""),"", IF(טבלה3[[#This Row],[שכר]]>=טבלה3[[#This Row],[יעד]],"הגעת ליעד!", טבלה3[[#This Row],[שכר]]/טבלה3[[#This Row],[יעד]])) ->  | AU62: =IF(טבלה3[[#This Row],[שכר]]="","", IF(SUM(טבלה3[[#This Row],[שכר]])-SUM(טבלה3[[#This Row],[חיובים נוספים]]+טבלה3[[#This Row],[זיכויים / שולם]])=0,"", SUM(טבלה3[[#This Row],[שכר]])-SUM(טבלה3[[#This Row],[חיובים נוספים]]+טבלה3[[#This Row],[זיכויים / שולם]]))) -> 
B63: =IF(AND(טבלה1[[#This Row],[תאריך]]="",טבלה1[[#This Row],[התחלה]]="",טבלה1[[#This Row],[שם העבודה]]=""),"",ROW()-10) ->  | C63: =IF(טבלה1[[#This Row],[תאריך]]="","",IF(TEXT(טבלה1[[#This Row],[תאריך]],"DDD")="שבת","מוצ""ש",TEXT(טבלה1[[#This Row],[תאריך]],"DDD"))) ->  | J63: =IF(IF(AND(טבלה1[[#This Row],[התחלה]]="",טבלה1[[#This Row],[סיום]]<>""),"",IF(AND(טבלה1[[#This Row],[התחלה]]<>"",טבלה1[[#This Row],[סיום]]=""), SUM(MOD(MOD(NOW(),1)-טבלה1[[#This Row],[התחלה]],1),טבלה1[[#This Row],[הוספת דקות]],-טבלה1[[#This Row],[הפחתת דקות]]), SUM(MOD(טבלה1[[#This Row],[סיום]]-טבלה1[[#This Row],[התחלה]],1),טבלה1[[#This Row],[הוספת דקות]],-טבלה1[[#This Row],[הפחתת דקות]])))<=0,"", IF(AND(טבלה1[[#This Row],[התחלה]]="",טבלה1[[#This Row],[סיום]]<>""),"",IF(AND(טבלה1[[#This Row],[התחלה]]<>"",טבלה1[[#This Row],[סיום]]=""), SUM(MOD(MOD(NOW(),1)-טבלה1[[#This Row],[התחלה]],1),טבלה1[[#This Row],[הוספת דקות]],-טבלה1[[#This Row],[הפחתת דקות]]), SUM(MOD(טבלה1[[#This Row],[סיום]]-טבלה1[[#This Row],[התחלה]],1),טבלה1[[#This Row],[הוספת דקות]],-טבלה1[[#This Row],[הפחתת דקות]])))) ->  | K63: =IF(טבלה1[[#This Row],[שעות]]="","",IFERROR( IF(IF(AND(מטבע="שקלים",VLOOKUP(טבלה1[[#This Row],[שם העבודה]],טבלה2[],3,FALSE)="$"), VLOOKUP(טבלה1[[#This Row],[שם העבודה]],טבלה2[#All],2,FALSE)*טבלה1[[#This Row],[שעות]]*24*שער, IF(AND(מטבע="דולרים",VLOOKUP(טבלה1[[#This Row],[שם העבודה]],טבלה2[],3,FALSE)="₪"), VLOOKUP(טבלה1[[#This Row],[שם העבודה]],טבלה2[#All],2,FALSE)*טבלה1[[#This Row],[שעות]]*24/שער, VLOOKUP(טבלה1[[#This Row],[שם העבודה]],טבלה2[#All],2,FALSE)*טבלה1[[#This Row],[שעות]]*24))=0,"", IF(AND(מטבע="שקלים",VLOOKUP(טבלה1[[#This Row],[שם העבודה]],טבלה2[],3,FALSE)="$"), VLOOKUP(טבלה1[[#This Row],[שם העבודה]],טבלה2[#All],2,FALSE)*טבלה1[[#This Row],[שעות]]*24*שער, IF(AND(מטבע="דולרים",VLOOKUP(טבלה1[[#This Row],[שם העבודה]],טבלה2[],3,FALSE)="₪"), VLOOKUP(טבלה1[[#This Row],[שם העבודה]],טבלה2[#All],2,FALSE)*טבלה1[[#This Row],[שעות]]*24/שער, VLOOKUP(טבלה1[[#This Row],[שם העבודה]],טבלה2[#All],2,FALSE)*טבלה1[[#This Row],[שעות]]*24))),"")) ->  | L63: =IF(טבלה1[[#This Row],[תאריך]]="","",DATE(YEAR(טבלה1[[#This Row],[תאריך]]),MONTH(טבלה1[[#This Row],[תאריך]]),1)) ->  | AP63: =IF(OR(טבלה3[[#This Row],[תווים]]="",טבלה3[[#This Row],[שכר לתווים]]=""),"", IF(טבלה3[[#This Row],[תווים שהוקלדו]]/טבלה3[[#This Row],[תווים]]*טבלה3[[#This Row],[שכר לתווים]]=0,"", טבלה3[[#This Row],[תווים שהוקלדו]]/טבלה3[[#This Row],[תווים]]*טבלה3[[#This Row],[שכר לתווים]])) ->  | AQ63: =IF(OR(טבלה3[[#This Row],[שכר]]="",טבלה3[[#This Row],[יעד]]=""),"", IF(טבלה3[[#This Row],[שכר]]>=טבלה3[[#This Row],[יעד]],"הגעת ליעד!", טבלה3[[#This Row],[שכר]]/טבלה3[[#This Row],[יעד]])) ->  | AU63: =IF(טבלה3[[#This Row],[שכר]]="","", IF(SUM(טבלה3[[#This Row],[שכר]])-SUM(טבלה3[[#This Row],[חיובים נוספים]]+טבלה3[[#This Row],[זיכויים / שולם]])=0,"", SUM(טבלה3[[#This Row],[שכר]])-SUM(טבלה3[[#This Row],[חיובים נוספים]]+טבלה3[[#This Row],[זיכויים / שולם]]))) -> 
B64: =IF(AND(טבלה1[[#This Row],[תאריך]]="",טבלה1[[#This Row],[התחלה]]="",טבלה1[[#This Row],[שם העבודה]]=""),"",ROW()-10) ->  | C64: =IF(טבלה1[[#This Row],[תאריך]]="","",IF(TEXT(טבלה1[[#This Row],[תאריך]],"DDD")="שבת","מוצ""ש",TEXT(טבלה1[[#This Row],[תאריך]],"DDD"))) ->  | J64: =IF(IF(AND(טבלה1[[#This Row],[התחלה]]="",טבלה1[[#This Row],[סיום]]<>""),"",IF(AND(טבלה1[[#This Row],[התחלה]]<>"",טבלה1[[#This Row],[סיום]]=""), SUM(MOD(MOD(NOW(),1)-טבלה1[[#This Row],[התחלה]],1),טבלה1[[#This Row],[הוספת דקות]],-טבלה1[[#This Row],[הפחתת דקות]]), SUM(MOD(טבלה1[[#This Row],[סיום]]-טבלה1[[#This Row],[התחלה]],1),טבלה1[[#This Row],[הוספת דקות]],-טבלה1[[#This Row],[הפחתת דקות]])))<=0,"", IF(AND(טבלה1[[#This Row],[התחלה]]="",טבלה1[[#This Row],[סיום]]<>""),"",IF(AND(טבלה1[[#This Row],[התחלה]]<>"",טבלה1[[#This Row],[סיום]]=""), SUM(MOD(MOD(NOW(),1)-טבלה1[[#This Row],[התחלה]],1),טבלה1[[#This Row],[הוספת דקות]],-טבלה1[[#This Row],[הפחתת דקות]]), SUM(MOD(טבלה1[[#This Row],[סיום]]-טבלה1[[#This Row],[התחלה]],1),טבלה1[[#This Row],[הוספת דקות]],-טבלה1[[#This Row],[הפחתת דקות]])))) ->  | K64: =IF(טבלה1[[#This Row],[שעות]]="","",IFERROR( IF(IF(AND(מטבע="שקלים",VLOOKUP(טבלה1[[#This Row],[שם העבודה]],טבלה2[],3,FALSE)="$"), VLOOKUP(טבלה1[[#This Row],[שם העבודה]],טבלה2[#All],2,FALSE)*טבלה1[[#This Row],[שעות]]*24*שער, IF(AND(מטבע="דולרים",VLOOKUP(טבלה1[[#This Row],[שם העבודה]],טבלה2[],3,FALSE)="₪"), VLOOKUP(טבלה1[[#This Row],[שם העבודה]],טבלה2[#All],2,FALSE)*טבלה1[[#This Row],[שעות]]*24/שער, VLOOKUP(טבלה1[[#This Row],[שם העבודה]],טבלה2[#All],2,FALSE)*טבלה1[[#This Row],[שעות]]*24))=0,"", IF(AND(מטבע="שקלים",VLOOKUP(טבלה1[[#This Row],[שם העבודה]],טבלה2[],3,FALSE)="$"), VLOOKUP(טבלה1[[#This Row],[שם העבודה]],טבלה2[#All],2,FALSE)*טבלה1[[#This Row],[שעות]]*24*שער, IF(AND(מטבע="דולרים",VLOOKUP(טבלה1[[#This Row],[שם העבודה]],טבלה2[],3,FALSE)="₪"), VLOOKUP(טבלה1[[#This Row],[שם העבודה]],טבלה2[#All],2,FALSE)*טבלה1[[#This Row],[שעות]]*24/שער, VLOOKUP(טבלה1[[#This Row],[שם העבודה]],טבלה2[#All],2,FALSE)*טבלה1[[#This Row],[שעות]]*24))),"")) ->  | L64: =IF(טבלה1[[#This Row],[תאריך]]="","",DATE(YEAR(טבלה1[[#This Row],[תאריך]]),MONTH(טבלה1[[#This Row],[תאריך]]),1)) ->  | AP64: =IF(OR(טבלה3[[#This Row],[תווים]]="",טבלה3[[#This Row],[שכר לתווים]]=""),"", IF(טבלה3[[#This Row],[תווים שהוקלדו]]/טבלה3[[#This Row],[תווים]]*טבלה3[[#This Row],[שכר לתווים]]=0,"", טבלה3[[#This Row],[תווים שהוקלדו]]/טבלה3[[#This Row],[תווים]]*טבלה3[[#This Row],[שכר לתווים]])) ->  | AQ64: =IF(OR(טבלה3[[#This Row],[שכר]]="",טבלה3[[#This Row],[יעד]]=""),"", IF(טבלה3[[#This Row],[שכר]]>=טבלה3[[#This Row],[יעד]],"הגעת ליעד!", טבלה3[[#This Row],[שכר]]/טבלה3[[#This Row],[יעד]])) ->  | AU64: =IF(טבלה3[[#This Row],[שכר]]="","", IF(SUM(טבלה3[[#This Row],[שכר]])-SUM(טבלה3[[#This Row],[חיובים נוספים]]+טבלה3[[#This Row],[זיכויים / שולם]])=0,"", SUM(טבלה3[[#This Row],[שכר]])-SUM(טבלה3[[#This Row],[חיובים נוספים]]+טבלה3[[#This Row],[זיכויים / שולם]]))) -> 
B65: =IF(AND(טבלה1[[#This Row],[תאריך]]="",טבלה1[[#This Row],[התחלה]]="",טבלה1[[#This Row],[שם העבודה]]=""),"",ROW()-10) ->  | C65: =IF(טבלה1[[#This Row],[תאריך]]="","",IF(TEXT(טבלה1[[#This Row],[תאריך]],"DDD")="שבת","מוצ""ש",TEXT(טבלה1[[#This Row],[תאריך]],"DDD"))) ->  | J65: =IF(IF(AND(טבלה1[[#This Row],[התחלה]]="",טבלה1[[#This Row],[סיום]]<>""),"",IF(AND(טבלה1[[#This Row],[התחלה]]<>"",טבלה1[[#This Row],[סיום]]=""), SUM(MOD(MOD(NOW(),1)-טבלה1[[#This Row],[התחלה]],1),טבלה1[[#This Row],[הוספת דקות]],-טבלה1[[#This Row],[הפחתת דקות]]), SUM(MOD(טבלה1[[#This Row],[סיום]]-טבלה1[[#This Row],[התחלה]],1),טבלה1[[#This Row],[הוספת דקות]],-טבלה1[[#This Row],[הפחתת דקות]])))<=0,"", IF(AND(טבלה1[[#This Row],[התחלה]]="",טבלה1[[#This Row],[סיום]]<>""),"",IF(AND(טבלה1[[#This Row],[התחלה]]<>"",טבלה1[[#This Row],[סיום]]=""), SUM(MOD(MOD(NOW(),1)-טבלה1[[#This Row],[התחלה]],1),טבלה1[[#This Row],[הוספת דקות]],-טבלה1[[#This Row],[הפחתת דקות]]), SUM(MOD(טבלה1[[#This Row],[סיום]]-טבלה1[[#This Row],[התחלה]],1),טבלה1[[#This Row],[הוספת דקות]],-טבלה1[[#This Row],[הפחתת דקות]])))) ->  | K65: =IF(טבלה1[[#This Row],[שעות]]="","",IFERROR( IF(IF(AND(מטבע="שקלים",VLOOKUP(טבלה1[[#This Row],[שם העבודה]],טבלה2[],3,FALSE)="$"), VLOOKUP(טבלה1[[#This Row],[שם העבודה]],טבלה2[#All],2,FALSE)*טבלה1[[#This Row],[שעות]]*24*שער, IF(AND(מטבע="דולרים",VLOOKUP(טבלה1[[#This Row],[שם העבודה]],טבלה2[],3,FALSE)="₪"), VLOOKUP(טבלה1[[#This Row],[שם העבודה]],טבלה2[#All],2,FALSE)*טבלה1[[#This Row],[שעות]]*24/שער, VLOOKUP(טבלה1[[#This Row],[שם העבודה]],טבלה2[#All],2,FALSE)*טבלה1[[#This Row],[שעות]]*24))=0,"", IF(AND(מטבע="שקלים",VLOOKUP(טבלה1[[#This Row],[שם העבודה]],טבלה2[],3,FALSE)="$"), VLOOKUP(טבלה1[[#This Row],[שם העבודה]],טבלה2[#All],2,FALSE)*טבלה1[[#This Row],[שעות]]*24*שער, IF(AND(מטבע="דולרים",VLOOKUP(טבלה1[[#This Row],[שם העבודה]],טבלה2[],3,FALSE)="₪"), VLOOKUP(טבלה1[[#This Row],[שם העבודה]],טבלה2[#All],2,FALSE)*טבלה1[[#This Row],[שעות]]*24/שער, VLOOKUP(טבלה1[[#This Row],[שם העבודה]],טבלה2[#All],2,FALSE)*טבלה1[[#This Row],[שעות]]*24))),"")) ->  | L65: =IF(טבלה1[[#This Row],[תאריך]]="","",DATE(YEAR(טבלה1[[#This Row],[תאריך]]),MONTH(טבלה1[[#This Row],[תאריך]]),1)) ->  | AP65: =IF(OR(טבלה3[[#This Row],[תווים]]="",טבלה3[[#This Row],[שכר לתווים]]=""),"", IF(טבלה3[[#This Row],[תווים שהוקלדו]]/טבלה3[[#This Row],[תווים]]*טבלה3[[#This Row],[שכר לתווים]]=0,"", טבלה3[[#This Row],[תווים שהוקלדו]]/טבלה3[[#This Row],[תווים]]*טבלה3[[#This Row],[שכר לתווים]])) ->  | AQ65: =IF(OR(טבלה3[[#This Row],[שכר]]="",טבלה3[[#This Row],[יעד]]=""),"", IF(טבלה3[[#This Row],[שכר]]>=טבלה3[[#This Row],[יעד]],"הגעת ליעד!", טבלה3[[#This Row],[שכר]]/טבלה3[[#This Row],[יעד]])) ->  | AU65: =IF(טבלה3[[#This Row],[שכר]]="","", IF(SUM(טבלה3[[#This Row],[שכר]])-SUM(טבלה3[[#This Row],[חיובים נוספים]]+טבלה3[[#This Row],[זיכויים / שולם]])=0,"", SUM(טבלה3[[#This Row],[שכר]])-SUM(טבלה3[[#This Row],[חיובים נוספים]]+טבלה3[[#This Row],[זיכויים / שולם]]))) -> 
B66: =IF(AND(טבלה1[[#This Row],[תאריך]]="",טבלה1[[#This Row],[התחלה]]="",טבלה1[[#This Row],[שם העבודה]]=""),"",ROW()-10) ->  | C66: =IF(טבלה1[[#This Row],[תאריך]]="","",IF(TEXT(טבלה1[[#This Row],[תאריך]],"DDD")="שבת","מוצ""ש",TEXT(טבלה1[[#This Row],[תאריך]],"DDD"))) ->  | J66: =IF(IF(AND(טבלה1[[#This Row],[התחלה]]="",טבלה1[[#This Row],[סיום]]<>""),"",IF(AND(טבלה1[[#This Row],[התחלה]]<>"",טבלה1[[#This Row],[סיום]]=""), SUM(MOD(MOD(NOW(),1)-טבלה1[[#This Row],[התחלה]],1),טבלה1[[#This Row],[הוספת דקות]],-טבלה1[[#This Row],[הפחתת דקות]]), SUM(MOD(טבלה1[[#This Row],[סיום]]-טבלה1[[#This Row],[התחלה]],1),טבלה1[[#This Row],[הוספת דקות]],-טבלה1[[#This Row],[הפחתת דקות]])))<=0,"", IF(AND(טבלה1[[#This Row],[התחלה]]="",טבלה1[[#This Row],[סיום]]<>""),"",IF(AND(טבלה1[[#This Row],[התחלה]]<>"",טבלה1[[#This Row],[סיום]]=""), SUM(MOD(MOD(NOW(),1)-טבלה1[[#This Row],[התחלה]],1),טבלה1[[#This Row],[הוספת דקות]],-טבלה1[[#This Row],[הפחתת דקות]]), SUM(MOD(טבלה1[[#This Row],[סיום]]-טבלה1[[#This Row],[התחלה]],1),טבלה1[[#This Row],[הוספת דקות]],-טבלה1[[#This Row],[הפחתת דקות]])))) ->  | K66: =IF(טבלה1[[#This Row],[שעות]]="","",IFERROR( IF(IF(AND(מטבע="שקלים",VLOOKUP(טבלה1[[#This Row],[שם העבודה]],טבלה2[],3,FALSE)="$"), VLOOKUP(טבלה1[[#This Row],[שם העבודה]],טבלה2[#All],2,FALSE)*טבלה1[[#This Row],[שעות]]*24*שער, IF(AND(מטבע="דולרים",VLOOKUP(טבלה1[[#This Row],[שם העבודה]],טבלה2[],3,FALSE)="₪"), VLOOKUP(טבלה1[[#This Row],[שם העבודה]],טבלה2[#All],2,FALSE)*טבלה1[[#This Row],[שעות]]*24/שער, VLOOKUP(טבלה1[[#This Row],[שם העבודה]],טבלה2[#All],2,FALSE)*טבלה1[[#This Row],[שעות]]*24))=0,"", IF(AND(מטבע="שקלים",VLOOKUP(טבלה1[[#This Row],[שם העבודה]],טבלה2[],3,FALSE)="$"), VLOOKUP(טבלה1[[#This Row],[שם העבודה]],טבלה2[#All],2,FALSE)*טבלה1[[#This Row],[שעות]]*24*שער, IF(AND(מטבע="דולרים",VLOOKUP(טבלה1[[#This Row],[שם העבודה]],טבלה2[],3,FALSE)="₪"), VLOOKUP(טבלה1[[#This Row],[שם העבודה]],טבלה2[#All],2,FALSE)*טבלה1[[#This Row],[שעות]]*24/שער, VLOOKUP(טבלה1[[#This Row],[שם העבודה]],טבלה2[#All],2,FALSE)*טבלה1[[#This Row],[שעות]]*24))),"")) ->  | L66: =IF(טבלה1[[#This Row],[תאריך]]="","",DATE(YEAR(טבלה1[[#This Row],[תאריך]]),MONTH(טבלה1[[#This Row],[תאריך]]),1)) ->  | AP66: =IF(OR(טבלה3[[#This Row],[תווים]]="",טבלה3[[#This Row],[שכר לתווים]]=""),"", IF(טבלה3[[#This Row],[תווים שהוקלדו]]/טבלה3[[#This Row],[תווים]]*טבלה3[[#This Row],[שכר לתווים]]=0,"", טבלה3[[#This Row],[תווים שהוקלדו]]/טבלה3[[#This Row],[תווים]]*טבלה3[[#This Row],[שכר לתווים]])) ->  | AQ66: =IF(OR(טבלה3[[#This Row],[שכר]]="",טבלה3[[#This Row],[יעד]]=""),"", IF(טבלה3[[#This Row],[שכר]]>=טבלה3[[#This Row],[יעד]],"הגעת ליעד!", טבלה3[[#This Row],[שכר]]/טבלה3[[#This Row],[יעד]])) ->  | AU66: =IF(טבלה3[[#This Row],[שכר]]="","", IF(SUM(טבלה3[[#This Row],[שכר]])-SUM(טבלה3[[#This Row],[חיובים נוספים]]+טבלה3[[#This Row],[זיכויים / שולם]])=0,"", SUM(טבלה3[[#This Row],[שכר]])-SUM(טבלה3[[#This Row],[חיובים נוספים]]+טבלה3[[#This Row],[זיכויים / שולם]]))) -> 
B67: =IF(AND(טבלה1[[#This Row],[תאריך]]="",טבלה1[[#This Row],[התחלה]]="",טבלה1[[#This Row],[שם העבודה]]=""),"",ROW()-10) ->  | C67: =IF(טבלה1[[#This Row],[תאריך]]="","",IF(TEXT(טבלה1[[#This Row],[תאריך]],"DDD")="שבת","מוצ""ש",TEXT(טבלה1[[#This Row],[תאריך]],"DDD"))) ->  | J67: =IF(IF(AND(טבלה1[[#This Row],[התחלה]]="",טבלה1[[#This Row],[סיום]]<>""),"",IF(AND(טבלה1[[#This Row],[התחלה]]<>"",טבלה1[[#This Row],[סיום]]=""), SUM(MOD(MOD(NOW(),1)-טבלה1[[#This Row],[התחלה]],1),טבלה1[[#This Row],[הוספת דקות]],-טבלה1[[#This Row],[הפחתת דקות]]), SUM(MOD(טבלה1[[#This Row],[סיום]]-טבלה1[[#This Row],[התחלה]],1),טבלה1[[#This Row],[הוספת דקות]],-טבלה1[[#This Row],[הפחתת דקות]])))<=0,"", IF(AND(טבלה1[[#This Row],[התחלה]]="",טבלה1[[#This Row],[סיום]]<>""),"",IF(AND(טבלה1[[#This Row],[התחלה]]<>"",טבלה1[[#This Row],[סיום]]=""), SUM(MOD(MOD(NOW(),1)-טבלה1[[#This Row],[התחלה]],1),טבלה1[[#This Row],[הוספת דקות]],-טבלה1[[#This Row],[הפחתת דקות]]), SUM(MOD(טבלה1[[#This Row],[סיום]]-טבלה1[[#This Row],[התחלה]],1),טבלה1[[#This Row],[הוספת דקות]],-טבלה1[[#This Row],[הפחתת דקות]])))) ->  | K67: =IF(טבלה1[[#This Row],[שעות]]="","",IFERROR( IF(IF(AND(מטבע="שקלים",VLOOKUP(טבלה1[[#This Row],[שם העבודה]],טבלה2[],3,FALSE)="$"), VLOOKUP(טבלה1[[#This Row],[שם העבודה]],טבלה2[#All],2,FALSE)*טבלה1[[#This Row],[שעות]]*24*שער, IF(AND(מטבע="דולרים",VLOOKUP(טבלה1[[#This Row],[שם העבודה]],טבלה2[],3,FALSE)="₪"), VLOOKUP(טבלה1[[#This Row],[שם העבודה]],טבלה2[#All],2,FALSE)*טבלה1[[#This Row],[שעות]]*24/שער, VLOOKUP(טבלה1[[#This Row],[שם העבודה]],טבלה2[#All],2,FALSE)*טבלה1[[#This Row],[שעות]]*24))=0,"", IF(AND(מטבע="שקלים",VLOOKUP(טבלה1[[#This Row],[שם העבודה]],טבלה2[],3,FALSE)="$"), VLOOKUP(טבלה1[[#This Row],[שם העבודה]],טבלה2[#All],2,FALSE)*טבלה1[[#This Row],[שעות]]*24*שער, IF(AND(מטבע="דולרים",VLOOKUP(טבלה1[[#This Row],[שם העבודה]],טבלה2[],3,FALSE)="₪"), VLOOKUP(טבלה1[[#This Row],[שם העבודה]],טבלה2[#All],2,FALSE)*טבלה1[[#This Row],[שעות]]*24/שער, VLOOKUP(טבלה1[[#This Row],[שם העבודה]],טבלה2[#All],2,FALSE)*טבלה1[[#This Row],[שעות]]*24))),"")) ->  | L67: =IF(טבלה1[[#This Row],[תאריך]]="","",DATE(YEAR(טבלה1[[#This Row],[תאריך]]),MONTH(טבלה1[[#This Row],[תאריך]]),1)) ->  | AP67: =IF(OR(טבלה3[[#This Row],[תווים]]="",טבלה3[[#This Row],[שכר לתווים]]=""),"", IF(טבלה3[[#This Row],[תווים שהוקלדו]]/טבלה3[[#This Row],[תווים]]*טבלה3[[#This Row],[שכר לתווים]]=0,"", טבלה3[[#This Row],[תווים שהוקלדו]]/טבלה3[[#This Row],[תווים]]*טבלה3[[#This Row],[שכר לתווים]])) ->  | AQ67: =IF(OR(טבלה3[[#This Row],[שכר]]="",טבלה3[[#This Row],[יעד]]=""),"", IF(טבלה3[[#This Row],[שכר]]>=טבלה3[[#This Row],[יעד]],"הגעת ליעד!", טבלה3[[#This Row],[שכר]]/טבלה3[[#This Row],[יעד]])) ->  | AU67: =IF(טבלה3[[#This Row],[שכר]]="","", IF(SUM(טבלה3[[#This Row],[שכר]])-SUM(טבלה3[[#This Row],[חיובים נוספים]]+טבלה3[[#This Row],[זיכויים / שולם]])=0,"", SUM(טבלה3[[#This Row],[שכר]])-SUM(טבלה3[[#This Row],[חיובים נוספים]]+טבלה3[[#This Row],[זיכויים / שולם]]))) -> 
B68: =IF(AND(טבלה1[[#This Row],[תאריך]]="",טבלה1[[#This Row],[התחלה]]="",טבלה1[[#This Row],[שם העבודה]]=""),"",ROW()-10) ->  | C68: =IF(טבלה1[[#This Row],[תאריך]]="","",IF(TEXT(טבלה1[[#This Row],[תאריך]],"DDD")="שבת","מוצ""ש",TEXT(טבלה1[[#This Row],[תאריך]],"DDD"))) ->  | J68: =IF(IF(AND(טבלה1[[#This Row],[התחלה]]="",טבלה1[[#This Row],[סיום]]<>""),"",IF(AND(טבלה1[[#This Row],[התחלה]]<>"",טבלה1[[#This Row],[סיום]]=""), SUM(MOD(MOD(NOW(),1)-טבלה1[[#This Row],[התחלה]],1),טבלה1[[#This Row],[הוספת דקות]],-טבלה1[[#This Row],[הפחתת דקות]]), SUM(MOD(טבלה1[[#This Row],[סיום]]-טבלה1[[#This Row],[התחלה]],1),טבלה1[[#This Row],[הוספת דקות]],-טבלה1[[#This Row],[הפחתת דקות]])))<=0,"", IF(AND(טבלה1[[#This Row],[התחלה]]="",טבלה1[[#This Row],[סיום]]<>""),"",IF(AND(טבלה1[[#This Row],[התחלה]]<>"",טבלה1[[#This Row],[סיום]]=""), SUM(MOD(MOD(NOW(),1)-טבלה1[[#This Row],[התחלה]],1),טבלה1[[#This Row],[הוספת דקות]],-טבלה1[[#This Row],[הפחתת דקות]]), SUM(MOD(טבלה1[[#This Row],[סיום]]-טבלה1[[#This Row],[התחלה]],1),טבלה1[[#This Row],[הוספת דקות]],-טבלה1[[#This Row],[הפחתת דקות]])))) ->  | K68: =IF(טבלה1[[#This Row],[שעות]]="","",IFERROR( IF(IF(AND(מטבע="שקלים",VLOOKUP(טבלה1[[#This Row],[שם העבודה]],טבלה2[],3,FALSE)="$"), VLOOKUP(טבלה1[[#This Row],[שם העבודה]],טבלה2[#All],2,FALSE)*טבלה1[[#This Row],[שעות]]*24*שער, IF(AND(מטבע="דולרים",VLOOKUP(טבלה1[[#This Row],[שם העבודה]],טבלה2[],3,FALSE)="₪"), VLOOKUP(טבלה1[[#This Row],[שם העבודה]],טבלה2[#All],2,FALSE)*טבלה1[[#This Row],[שעות]]*24/שער, VLOOKUP(טבלה1[[#This Row],[שם העבודה]],טבלה2[#All],2,FALSE)*טבלה1[[#This Row],[שעות]]*24))=0,"", IF(AND(מטבע="שקלים",VLOOKUP(טבלה1[[#This Row],[שם העבודה]],טבלה2[],3,FALSE)="$"), VLOOKUP(טבלה1[[#This Row],[שם העבודה]],טבלה2[#All],2,FALSE)*טבלה1[[#This Row],[שעות]]*24*שער, IF(AND(מטבע="דולרים",VLOOKUP(טבלה1[[#This Row],[שם העבודה]],טבלה2[],3,FALSE)="₪"), VLOOKUP(טבלה1[[#This Row],[שם העבודה]],טבלה2[#All],2,FALSE)*טבלה1[[#This Row],[שעות]]*24/שער, VLOOKUP(טבלה1[[#This Row],[שם העבודה]],טבלה2[#All],2,FALSE)*טבלה1[[#This Row],[שעות]]*24))),"")) ->  | L68: =IF(טבלה1[[#This Row],[תאריך]]="","",DATE(YEAR(טבלה1[[#This Row],[תאריך]]),MONTH(טבלה1[[#This Row],[תאריך]]),1)) ->  | AP68: =IF(OR(טבלה3[[#This Row],[תווים]]="",טבלה3[[#This Row],[שכר לתווים]]=""),"", IF(טבלה3[[#This Row],[תווים שהוקלדו]]/טבלה3[[#This Row],[תווים]]*טבלה3[[#This Row],[שכר לתווים]]=0,"", טבלה3[[#This Row],[תווים שהוקלדו]]/טבלה3[[#This Row],[תווים]]*טבלה3[[#This Row],[שכר לתווים]])) ->  | AQ68: =IF(OR(טבלה3[[#This Row],[שכר]]="",טבלה3[[#This Row],[יעד]]=""),"", IF(טבלה3[[#This Row],[שכר]]>=טבלה3[[#This Row],[יעד]],"הגעת ליעד!", טבלה3[[#This Row],[שכר]]/טבלה3[[#This Row],[יעד]])) ->  | AU68: =IF(טבלה3[[#This Row],[שכר]]="","", IF(SUM(טבלה3[[#This Row],[שכר]])-SUM(טבלה3[[#This Row],[חיובים נוספים]]+טבלה3[[#This Row],[זיכויים / שולם]])=0,"", SUM(טבלה3[[#This Row],[שכר]])-SUM(טבלה3[[#This Row],[חיובים נוספים]]+טבלה3[[#This Row],[זיכויים / שולם]]))) -> 
B69: =IF(AND(טבלה1[[#This Row],[תאריך]]="",טבלה1[[#This Row],[התחלה]]="",טבלה1[[#This Row],[שם העבודה]]=""),"",ROW()-10) ->  | C69: =IF(טבלה1[[#This Row],[תאריך]]="","",IF(TEXT(טבלה1[[#This Row],[תאריך]],"DDD")="שבת","מוצ""ש",TEXT(טבלה1[[#This Row],[תאריך]],"DDD"))) ->  | J69: =IF(IF(AND(טבלה1[[#This Row],[התחלה]]="",טבלה1[[#This Row],[סיום]]<>""),"",IF(AND(טבלה1[[#This Row],[התחלה]]<>"",טבלה1[[#This Row],[סיום]]=""), SUM(MOD(MOD(NOW(),1)-טבלה1[[#This Row],[התחלה]],1),טבלה1[[#This Row],[הוספת דקות]],-טבלה1[[#This Row],[הפחתת דקות]]), SUM(MOD(טבלה1[[#This Row],[סיום]]-טבלה1[[#This Row],[התחלה]],1),טבלה1[[#This Row],[הוספת דקות]],-טבלה1[[#This Row],[הפחתת דקות]])))<=0,"", IF(AND(טבלה1[[#This Row],[התחלה]]="",טבלה1[[#This Row],[סיום]]<>""),"",IF(AND(טבלה1[[#This Row],[התחלה]]<>"",טבלה1[[#This Row],[סיום]]=""), SUM(MOD(MOD(NOW(),1)-טבלה1[[#This Row],[התחלה]],1),טבלה1[[#This Row],[הוספת דקות]],-טבלה1[[#This Row],[הפחתת דקות]]), SUM(MOD(טבלה1[[#This Row],[סיום]]-טבלה1[[#This Row],[התחלה]],1),טבלה1[[#This Row],[הוספת דקות]],-טבלה1[[#This Row],[הפחתת דקות]])))) ->  | K69: =IF(טבלה1[[#This Row],[שעות]]="","",IFERROR( IF(IF(AND(מטבע="שקלים",VLOOKUP(טבלה1[[#This Row],[שם העבודה]],טבלה2[],3,FALSE)="$"), VLOOKUP(טבלה1[[#This Row],[שם העבודה]],טבלה2[#All],2,FALSE)*טבלה1[[#This Row],[שעות]]*24*שער, IF(AND(מטבע="דולרים",VLOOKUP(טבלה1[[#This Row],[שם העבודה]],טבלה2[],3,FALSE)="₪"), VLOOKUP(טבלה1[[#This Row],[שם העבודה]],טבלה2[#All],2,FALSE)*טבלה1[[#This Row],[שעות]]*24/שער, VLOOKUP(טבלה1[[#This Row],[שם העבודה]],טבלה2[#All],2,FALSE)*טבלה1[[#This Row],[שעות]]*24))=0,"", IF(AND(מטבע="שקלים",VLOOKUP(טבלה1[[#This Row],[שם העבודה]],טבלה2[],3,FALSE)="$"), VLOOKUP(טבלה1[[#This Row],[שם העבודה]],טבלה2[#All],2,FALSE)*טבלה1[[#This Row],[שעות]]*24*שער, IF(AND(מטבע="דולרים",VLOOKUP(טבלה1[[#This Row],[שם העבודה]],טבלה2[],3,FALSE)="₪"), VLOOKUP(טבלה1[[#This Row],[שם העבודה]],טבלה2[#All],2,FALSE)*טבלה1[[#This Row],[שעות]]*24/שער, VLOOKUP(טבלה1[[#This Row],[שם העבודה]],טבלה2[#All],2,FALSE)*טבלה1[[#This Row],[שעות]]*24))),"")) ->  | L69: =IF(טבלה1[[#This Row],[תאריך]]="","",DATE(YEAR(טבלה1[[#This Row],[תאריך]]),MONTH(טבלה1[[#This Row],[תאריך]]),1)) ->  | AP69: =IF(OR(טבלה3[[#This Row],[תווים]]="",טבלה3[[#This Row],[שכר לתווים]]=""),"", IF(טבלה3[[#This Row],[תווים שהוקלדו]]/טבלה3[[#This Row],[תווים]]*טבלה3[[#This Row],[שכר לתווים]]=0,"", טבלה3[[#This Row],[תווים שהוקלדו]]/טבלה3[[#This Row],[תווים]]*טבלה3[[#This Row],[שכר לתווים]])) ->  | AQ69: =IF(OR(טבלה3[[#This Row],[שכר]]="",טבלה3[[#This Row],[יעד]]=""),"", IF(טבלה3[[#This Row],[שכר]]>=טבלה3[[#This Row],[יעד]],"הגעת ליעד!", טבלה3[[#This Row],[שכר]]/טבלה3[[#This Row],[יעד]])) ->  | AU69: =IF(טבלה3[[#This Row],[שכר]]="","", IF(SUM(טבלה3[[#This Row],[שכר]])-SUM(טבלה3[[#This Row],[חיובים נוספים]]+טבלה3[[#This Row],[זיכויים / שולם]])=0,"", SUM(טבלה3[[#This Row],[שכר]])-SUM(טבלה3[[#This Row],[חיובים נוספים]]+טבלה3[[#This Row],[זיכויים / שולם]]))) -> 
B70: =IF(AND(טבלה1[[#This Row],[תאריך]]="",טבלה1[[#This Row],[התחלה]]="",טבלה1[[#This Row],[שם העבודה]]=""),"",ROW()-10) ->  | C70: =IF(טבלה1[[#This Row],[תאריך]]="","",IF(TEXT(טבלה1[[#This Row],[תאריך]],"DDD")="שבת","מוצ""ש",TEXT(טבלה1[[#This Row],[תאריך]],"DDD"))) ->  | J70: =IF(IF(AND(טבלה1[[#This Row],[התחלה]]="",טבלה1[[#This Row],[סיום]]<>""),"",IF(AND(טבלה1[[#This Row],[התחלה]]<>"",טבלה1[[#This Row],[סיום]]=""), SUM(MOD(MOD(NOW(),1)-טבלה1[[#This Row],[התחלה]],1),טבלה1[[#This Row],[הוספת דקות]],-טבלה1[[#This Row],[הפחתת דקות]]), SUM(MOD(טבלה1[[#This Row],[סיום]]-טבלה1[[#This Row],[התחלה]],1),טבלה1[[#This Row],[הוספת דקות]],-טבלה1[[#This Row],[הפחתת דקות]])))<=0,"", IF(AND(טבלה1[[#This Row],[התחלה]]="",טבלה1[[#This Row],[סיום]]<>""),"",IF(AND(טבלה1[[#This Row],[התחלה]]<>"",טבלה1[[#This Row],[סיום]]=""), SUM(MOD(MOD(NOW(),1)-טבלה1[[#This Row],[התחלה]],1),טבלה1[[#This Row],[הוספת דקות]],-טבלה1[[#This Row],[הפחתת דקות]]), SUM(MOD(טבלה1[[#This Row],[סיום]]-טבלה1[[#This Row],[התחלה]],1),טבלה1[[#This Row],[הוספת דקות]],-טבלה1[[#This Row],[הפחתת דקות]])))) ->  | K70: =IF(טבלה1[[#This Row],[שעות]]="","",IFERROR( IF(IF(AND(מטבע="שקלים",VLOOKUP(טבלה1[[#This Row],[שם העבודה]],טבלה2[],3,FALSE)="$"), VLOOKUP(טבלה1[[#This Row],[שם העבודה]],טבלה2[#All],2,FALSE)*טבלה1[[#This Row],[שעות]]*24*שער, IF(AND(מטבע="דולרים",VLOOKUP(טבלה1[[#This Row],[שם העבודה]],טבלה2[],3,FALSE)="₪"), VLOOKUP(טבלה1[[#This Row],[שם העבודה]],טבלה2[#All],2,FALSE)*טבלה1[[#This Row],[שעות]]*24/שער, VLOOKUP(טבלה1[[#This Row],[שם העבודה]],טבלה2[#All],2,FALSE)*טבלה1[[#This Row],[שעות]]*24))=0,"", IF(AND(מטבע="שקלים",VLOOKUP(טבלה1[[#This Row],[שם העבודה]],טבלה2[],3,FALSE)="$"), VLOOKUP(טבלה1[[#This Row],[שם העבודה]],טבלה2[#All],2,FALSE)*טבלה1[[#This Row],[שעות]]*24*שער, IF(AND(מטבע="דולרים",VLOOKUP(טבלה1[[#This Row],[שם העבודה]],טבלה2[],3,FALSE)="₪"), VLOOKUP(טבלה1[[#This Row],[שם העבודה]],טבלה2[#All],2,FALSE)*טבלה1[[#This Row],[שעות]]*24/שער, VLOOKUP(טבלה1[[#This Row],[שם העבודה]],טבלה2[#All],2,FALSE)*טבלה1[[#This Row],[שעות]]*24))),"")) ->  | L70: =IF(טבלה1[[#This Row],[תאריך]]="","",DATE(YEAR(טבלה1[[#This Row],[תאריך]]),MONTH(טבלה1[[#This Row],[תאריך]]),1)) -> 
B71: =IF(AND(טבלה1[[#This Row],[תאריך]]="",טבלה1[[#This Row],[התחלה]]="",טבלה1[[#This Row],[שם העבודה]]=""),"",ROW()-10) ->  | C71: =IF(טבלה1[[#This Row],[תאריך]]="","",IF(TEXT(טבלה1[[#This Row],[תאריך]],"DDD")="שבת","מוצ""ש",TEXT(טבלה1[[#This Row],[תאריך]],"DDD"))) ->  | J71: =IF(IF(AND(טבלה1[[#This Row],[התחלה]]="",טבלה1[[#This Row],[סיום]]<>""),"",IF(AND(טבלה1[[#This Row],[התחלה]]<>"",טבלה1[[#This Row],[סיום]]=""), SUM(MOD(MOD(NOW(),1)-טבלה1[[#This Row],[התחלה]],1),טבלה1[[#This Row],[הוספת דקות]],-טבלה1[[#This Row],[הפחתת דקות]]), SUM(MOD(טבלה1[[#This Row],[סיום]]-טבלה1[[#This Row],[התחלה]],1),טבלה1[[#This Row],[הוספת דקות]],-טבלה1[[#This Row],[הפחתת דקות]])))<=0,"", IF(AND(טבלה1[[#This Row],[התחלה]]="",טבלה1[[#This Row],[סיום]]<>""),"",IF(AND(טבלה1[[#This Row],[התחלה]]<>"",טבלה1[[#This Row],[סיום]]=""), SUM(MOD(MOD(NOW(),1)-טבלה1[[#This Row],[התחלה]],1),טבלה1[[#This Row],[הוספת דקות]],-טבלה1[[#This Row],[הפחתת דקות]]), SUM(MOD(טבלה1[[#This Row],[סיום]]-טבלה1[[#This Row],[התחלה]],1),טבלה1[[#This Row],[הוספת דקות]],-טבלה1[[#This Row],[הפחתת דקות]])))) ->  | K71: =IF(טבלה1[[#This Row],[שעות]]="","",IFERROR( IF(IF(AND(מטבע="שקלים",VLOOKUP(טבלה1[[#This Row],[שם העבודה]],טבלה2[],3,FALSE)="$"), VLOOKUP(טבלה1[[#This Row],[שם העבודה]],טבלה2[#All],2,FALSE)*טבלה1[[#This Row],[שעות]]*24*שער, IF(AND(מטבע="דולרים",VLOOKUP(טבלה1[[#This Row],[שם העבודה]],טבלה2[],3,FALSE)="₪"), VLOOKUP(טבלה1[[#This Row],[שם העבודה]],טבלה2[#All],2,FALSE)*טבלה1[[#This Row],[שעות]]*24/שער, VLOOKUP(טבלה1[[#This Row],[שם העבודה]],טבלה2[#All],2,FALSE)*טבלה1[[#This Row],[שעות]]*24))=0,"", IF(AND(מטבע="שקלים",VLOOKUP(טבלה1[[#This Row],[שם העבודה]],טבלה2[],3,FALSE)="$"), VLOOKUP(טבלה1[[#This Row],[שם העבודה]],טבלה2[#All],2,FALSE)*טבלה1[[#This Row],[שעות]]*24*שער, IF(AND(מטבע="דולרים",VLOOKUP(טבלה1[[#This Row],[שם העבודה]],טבלה2[],3,FALSE)="₪"), VLOOKUP(טבלה1[[#This Row],[שם העבודה]],טבלה2[#All],2,FALSE)*טבלה1[[#This Row],[שעות]]*24/שער, VLOOKUP(טבלה1[[#This Row],[שם העבודה]],טבלה2[#All],2,FALSE)*טבלה1[[#This Row],[שעות]]*24))),"")) ->  | L71: =IF(טבלה1[[#This Row],[תאריך]]="","",DATE(YEAR(טבלה1[[#This Row],[תאריך]]),MONTH(טבלה1[[#This Row],[תאריך]]),1)) -> 
B72: =IF(AND(טבלה1[[#This Row],[תאריך]]="",טבלה1[[#This Row],[התחלה]]="",טבלה1[[#This Row],[שם העבודה]]=""),"",ROW()-10) ->  | C72: =IF(טבלה1[[#This Row],[תאריך]]="","",IF(TEXT(טבלה1[[#This Row],[תאריך]],"DDD")="שבת","מוצ""ש",TEXT(טבלה1[[#This Row],[תאריך]],"DDD"))) ->  | J72: =IF(IF(AND(טבלה1[[#This Row],[התחלה]]="",טבלה1[[#This Row],[סיום]]<>""),"",IF(AND(טבלה1[[#This Row],[התחלה]]<>"",טבלה1[[#This Row],[סיום]]=""), SUM(MOD(MOD(NOW(),1)-טבלה1[[#This Row],[התחלה]],1),טבלה1[[#This Row],[הוספת דקות]],-טבלה1[[#This Row],[הפחתת דקות]]), SUM(MOD(טבלה1[[#This Row],[סיום]]-טבלה1[[#This Row],[התחלה]],1),טבלה1[[#This Row],[הוספת דקות]],-טבלה1[[#This Row],[הפחתת דקות]])))<=0,"", IF(AND(טבלה1[[#This Row],[התחלה]]="",טבלה1[[#This Row],[סיום]]<>""),"",IF(AND(טבלה1[[#This Row],[התחלה]]<>"",טבלה1[[#This Row],[סיום]]=""), SUM(MOD(MOD(NOW(),1)-טבלה1[[#This Row],[התחלה]],1),טבלה1[[#This Row],[הוספת דקות]],-טבלה1[[#This Row],[הפחתת דקות]]), SUM(MOD(טבלה1[[#This Row],[סיום]]-טבלה1[[#This Row],[התחלה]],1),טבלה1[[#This Row],[הוספת דקות]],-טבלה1[[#This Row],[הפחתת דקות]])))) ->  | K72: =IF(טבלה1[[#This Row],[שעות]]="","",IFERROR( IF(IF(AND(מטבע="שקלים",VLOOKUP(טבלה1[[#This Row],[שם העבודה]],טבלה2[],3,FALSE)="$"), VLOOKUP(טבלה1[[#This Row],[שם העבודה]],טבלה2[#All],2,FALSE)*טבלה1[[#This Row],[שעות]]*24*שער, IF(AND(מטבע="דולרים",VLOOKUP(טבלה1[[#This Row],[שם העבודה]],טבלה2[],3,FALSE)="₪"), VLOOKUP(טבלה1[[#This Row],[שם העבודה]],טבלה2[#All],2,FALSE)*טבלה1[[#This Row],[שעות]]*24/שער, VLOOKUP(טבלה1[[#This Row],[שם העבודה]],טבלה2[#All],2,FALSE)*טבלה1[[#This Row],[שעות]]*24))=0,"", IF(AND(מטבע="שקלים",VLOOKUP(טבלה1[[#This Row],[שם העבודה]],טבלה2[],3,FALSE)="$"), VLOOKUP(טבלה1[[#This Row],[שם העבודה]],טבלה2[#All],2,FALSE)*טבלה1[[#This Row],[שעות]]*24*שער, IF(AND(מטבע="דולרים",VLOOKUP(טבלה1[[#This Row],[שם העבודה]],טבלה2[],3,FALSE)="₪"), VLOOKUP(טבלה1[[#This Row],[שם העבודה]],טבלה2[#All],2,FALSE)*טבלה1[[#This Row],[שעות]]*24/שער, VLOOKUP(טבלה1[[#This Row],[שם העבודה]],טבלה2[#All],2,FALSE)*טבלה1[[#This Row],[שעות]]*24))),"")) ->  | L72: =IF(טבלה1[[#This Row],[תאריך]]="","",DATE(YEAR(טבלה1[[#This Row],[תאריך]]),MONTH(טבלה1[[#This Row],[תאריך]]),1)) -> 
B73: =IF(AND(טבלה1[[#This Row],[תאריך]]="",טבלה1[[#This Row],[התחלה]]="",טבלה1[[#This Row],[שם העבודה]]=""),"",ROW()-10) ->  | C73: =IF(טבלה1[[#This Row],[תאריך]]="","",IF(TEXT(טבלה1[[#This Row],[תאריך]],"DDD")="שבת","מוצ""ש",TEXT(טבלה1[[#This Row],[תאריך]],"DDD"))) ->  | J73: =IF(IF(AND(טבלה1[[#This Row],[התחלה]]="",טבלה1[[#This Row],[סיום]]<>""),"",IF(AND(טבלה1[[#This Row],[התחלה]]<>"",טבלה1[[#This Row],[סיום]]=""), SUM(MOD(MOD(NOW(),1)-טבלה1[[#This Row],[התחלה]],1),טבלה1[[#This Row],[הוספת דקות]],-טבלה1[[#This Row],[הפחתת דקות]]), SUM(MOD(טבלה1[[#This Row],[סיום]]-טבלה1[[#This Row],[התחלה]],1),טבלה1[[#This Row],[הוספת דקות]],-טבלה1[[#This Row],[הפחתת דקות]])))<=0,"", IF(AND(טבלה1[[#This Row],[התחלה]]="",טבלה1[[#This Row],[סיום]]<>""),"",IF(AND(טבלה1[[#This Row],[התחלה]]<>"",טבלה1[[#This Row],[סיום]]=""), SUM(MOD(MOD(NOW(),1)-טבלה1[[#This Row],[התחלה]],1),טבלה1[[#This Row],[הוספת דקות]],-טבלה1[[#This Row],[הפחתת דקות]]), SUM(MOD(טבלה1[[#This Row],[סיום]]-טבלה1[[#This Row],[התחלה]],1),טבלה1[[#This Row],[הוספת דקות]],-טבלה1[[#This Row],[הפחתת דקות]])))) ->  | K73: =IF(טבלה1[[#This Row],[שעות]]="","",IFERROR( IF(IF(AND(מטבע="שקלים",VLOOKUP(טבלה1[[#This Row],[שם העבודה]],טבלה2[],3,FALSE)="$"), VLOOKUP(טבלה1[[#This Row],[שם העבודה]],טבלה2[#All],2,FALSE)*טבלה1[[#This Row],[שעות]]*24*שער, IF(AND(מטבע="דולרים",VLOOKUP(טבלה1[[#This Row],[שם העבודה]],טבלה2[],3,FALSE)="₪"), VLOOKUP(טבלה1[[#This Row],[שם העבודה]],טבלה2[#All],2,FALSE)*טבלה1[[#This Row],[שעות]]*24/שער, VLOOKUP(טבלה1[[#This Row],[שם העבודה]],טבלה2[#All],2,FALSE)*טבלה1[[#This Row],[שעות]]*24))=0,"", IF(AND(מטבע="שקלים",VLOOKUP(טבלה1[[#This Row],[שם העבודה]],טבלה2[],3,FALSE)="$"), VLOOKUP(טבלה1[[#This Row],[שם העבודה]],טבלה2[#All],2,FALSE)*טבלה1[[#This Row],[שעות]]*24*שער, IF(AND(מטבע="דולרים",VLOOKUP(טבלה1[[#This Row],[שם העבודה]],טבלה2[],3,FALSE)="₪"), VLOOKUP(טבלה1[[#This Row],[שם העבודה]],טבלה2[#All],2,FALSE)*טבלה1[[#This Row],[שעות]]*24/שער, VLOOKUP(טבלה1[[#This Row],[שם העבודה]],טבלה2[#All],2,FALSE)*טבלה1[[#This Row],[שעות]]*24))),"")) ->  | L73: =IF(טבלה1[[#This Row],[תאריך]]="","",DATE(YEAR(טבלה1[[#This Row],[תאריך]]),MONTH(טבלה1[[#This Row],[תאריך]]),1)) -> 
B74: =IF(AND(טבלה1[[#This Row],[תאריך]]="",טבלה1[[#This Row],[התחלה]]="",טבלה1[[#This Row],[שם העבודה]]=""),"",ROW()-10) ->  | C74: =IF(טבלה1[[#This Row],[תאריך]]="","",IF(TEXT(טבלה1[[#This Row],[תאריך]],"DDD")="שבת","מוצ""ש",TEXT(טבלה1[[#This Row],[תאריך]],"DDD"))) ->  | J74: =IF(IF(AND(טבלה1[[#This Row],[התחלה]]="",טבלה1[[#This Row],[סיום]]<>""),"",IF(AND(טבלה1[[#This Row],[התחלה]]<>"",טבלה1[[#This Row],[סיום]]=""), SUM(MOD(MOD(NOW(),1)-טבלה1[[#This Row],[התחלה]],1),טבלה1[[#This Row],[הוספת דקות]],-טבלה1[[#This Row],[הפחתת דקות]]), SUM(MOD(טבלה1[[#This Row],[סיום]]-טבלה1[[#This Row],[התחלה]],1),טבלה1[[#This Row],[הוספת דקות]],-טבלה1[[#This Row],[הפחתת דקות]])))<=0,"", IF(AND(טבלה1[[#This Row],[התחלה]]="",טבלה1[[#This Row],[סיום]]<>""),"",IF(AND(טבלה1[[#This Row],[התחלה]]<>"",טבלה1[[#This Row],[סיום]]=""), SUM(MOD(MOD(NOW(),1)-טבלה1[[#This Row],[התחלה]],1),טבלה1[[#This Row],[הוספת דקות]],-טבלה1[[#This Row],[הפחתת דקות]]), SUM(MOD(טבלה1[[#This Row],[סיום]]-טבלה1[[#This Row],[התחלה]],1),טבלה1[[#This Row],[הוספת דקות]],-טבלה1[[#This Row],[הפחתת דקות]])))) ->  | K74: =IF(טבלה1[[#This Row],[שעות]]="","",IFERROR( IF(IF(AND(מטבע="שקלים",VLOOKUP(טבלה1[[#This Row],[שם העבודה]],טבלה2[],3,FALSE)="$"), VLOOKUP(טבלה1[[#This Row],[שם העבודה]],טבלה2[#All],2,FALSE)*טבלה1[[#This Row],[שעות]]*24*שער, IF(AND(מטבע="דולרים",VLOOKUP(טבלה1[[#This Row],[שם העבודה]],טבלה2[],3,FALSE)="₪"), VLOOKUP(טבלה1[[#This Row],[שם העבודה]],טבלה2[#All],2,FALSE)*טבלה1[[#This Row],[שעות]]*24/שער, VLOOKUP(טבלה1[[#This Row],[שם העבודה]],טבלה2[#All],2,FALSE)*טבלה1[[#This Row],[שעות]]*24))=0,"", IF(AND(מטבע="שקלים",VLOOKUP(טבלה1[[#This Row],[שם העבודה]],טבלה2[],3,FALSE)="$"), VLOOKUP(טבלה1[[#This Row],[שם העבודה]],טבלה2[#All],2,FALSE)*טבלה1[[#This Row],[שעות]]*24*שער, IF(AND(מטבע="דולרים",VLOOKUP(טבלה1[[#This Row],[שם העבודה]],טבלה2[],3,FALSE)="₪"), VLOOKUP(טבלה1[[#This Row],[שם העבודה]],טבלה2[#All],2,FALSE)*טבלה1[[#This Row],[שעות]]*24/שער, VLOOKUP(טבלה1[[#This Row],[שם העבודה]],טבלה2[#All],2,FALSE)*טבלה1[[#This Row],[שעות]]*24))),"")) ->  | L74: =IF(טבלה1[[#This Row],[תאריך]]="","",DATE(YEAR(טבלה1[[#This Row],[תאריך]]),MONTH(טבלה1[[#This Row],[תאריך]]),1)) -> 
B75: =IF(AND(טבלה1[[#This Row],[תאריך]]="",טבלה1[[#This Row],[התחלה]]="",טבלה1[[#This Row],[שם העבודה]]=""),"",ROW()-10) ->  | C75: =IF(טבלה1[[#This Row],[תאריך]]="","",IF(TEXT(טבלה1[[#This Row],[תאריך]],"DDD")="שבת","מוצ""ש",TEXT(טבלה1[[#This Row],[תאריך]],"DDD"))) ->  | J75: =IF(IF(AND(טבלה1[[#This Row],[התחלה]]="",טבלה1[[#This Row],[סיום]]<>""),"",IF(AND(טבלה1[[#This Row],[התחלה]]<>"",טבלה1[[#This Row],[סיום]]=""), SUM(MOD(MOD(NOW(),1)-טבלה1[[#This Row],[התחלה]],1),טבלה1[[#This Row],[הוספת דקות]],-טבלה1[[#This Row],[הפחתת דקות]]), SUM(MOD(טבלה1[[#This Row],[סיום]]-טבלה1[[#This Row],[התחלה]],1),טבלה1[[#This Row],[הוספת דקות]],-טבלה1[[#This Row],[הפחתת דקות]])))<=0,"", IF(AND(טבלה1[[#This Row],[התחלה]]="",טבלה1[[#This Row],[סיום]]<>""),"",IF(AND(טבלה1[[#This Row],[התחלה]]<>"",טבלה1[[#This Row],[סיום]]=""), SUM(MOD(MOD(NOW(),1)-טבלה1[[#This Row],[התחלה]],1),טבלה1[[#This Row],[הוספת דקות]],-טבלה1[[#This Row],[הפחתת דקות]]), SUM(MOD(טבלה1[[#This Row],[סיום]]-טבלה1[[#This Row],[התחלה]],1),טבלה1[[#This Row],[הוספת דקות]],-טבלה1[[#This Row],[הפחתת דקות]])))) ->  | K75: =IF(טבלה1[[#This Row],[שעות]]="","",IFERROR( IF(IF(AND(מטבע="שקלים",VLOOKUP(טבלה1[[#This Row],[שם העבודה]],טבלה2[],3,FALSE)="$"), VLOOKUP(טבלה1[[#This Row],[שם העבודה]],טבלה2[#All],2,FALSE)*טבלה1[[#This Row],[שעות]]*24*שער, IF(AND(מטבע="דולרים",VLOOKUP(טבלה1[[#This Row],[שם העבודה]],טבלה2[],3,FALSE)="₪"), VLOOKUP(טבלה1[[#This Row],[שם העבודה]],טבלה2[#All],2,FALSE)*טבלה1[[#This Row],[שעות]]*24/שער, VLOOKUP(טבלה1[[#This Row],[שם העבודה]],טבלה2[#All],2,FALSE)*טבלה1[[#This Row],[שעות]]*24))=0,"", IF(AND(מטבע="שקלים",VLOOKUP(טבלה1[[#This Row],[שם העבודה]],טבלה2[],3,FALSE)="$"), VLOOKUP(טבלה1[[#This Row],[שם העבודה]],טבלה2[#All],2,FALSE)*טבלה1[[#This Row],[שעות]]*24*שער, IF(AND(מטבע="דולרים",VLOOKUP(טבלה1[[#This Row],[שם העבודה]],טבלה2[],3,FALSE)="₪"), VLOOKUP(טבלה1[[#This Row],[שם העבודה]],טבלה2[#All],2,FALSE)*טבלה1[[#This Row],[שעות]]*24/שער, VLOOKUP(טבלה1[[#This Row],[שם העבודה]],טבלה2[#All],2,FALSE)*טבלה1[[#This Row],[שעות]]*24))),"")) ->  | L75: =IF(טבלה1[[#This Row],[תאריך]]="","",DATE(YEAR(טבלה1[[#This Row],[תאריך]]),MONTH(טבלה1[[#This Row],[תאריך]]),1)) -> 
B76: =IF(AND(טבלה1[[#This Row],[תאריך]]="",טבלה1[[#This Row],[התחלה]]="",טבלה1[[#This Row],[שם העבודה]]=""),"",ROW()-10) ->  | C76: =IF(טבלה1[[#This Row],[תאריך]]="","",IF(TEXT(טבלה1[[#This Row],[תאריך]],"DDD")="שבת","מוצ""ש",TEXT(טבלה1[[#This Row],[תאריך]],"DDD"))) ->  | J76: =IF(IF(AND(טבלה1[[#This Row],[התחלה]]="",טבלה1[[#This Row],[סיום]]<>""),"",IF(AND(טבלה1[[#This Row],[התחלה]]<>"",טבלה1[[#This Row],[סיום]]=""), SUM(MOD(MOD(NOW(),1)-טבלה1[[#This Row],[התחלה]],1),טבלה1[[#This Row],[הוספת דקות]],-טבלה1[[#This Row],[הפחתת דקות]]), SUM(MOD(טבלה1[[#This Row],[סיום]]-טבלה1[[#This Row],[התחלה]],1),טבלה1[[#This Row],[הוספת דקות]],-טבלה1[[#This Row],[הפחתת דקות]])))<=0,"", IF(AND(טבלה1[[#This Row],[התחלה]]="",טבלה1[[#This Row],[סיום]]<>""),"",IF(AND(טבלה1[[#This Row],[התחלה]]<>"",טבלה1[[#This Row],[סיום]]=""), SUM(MOD(MOD(NOW(),1)-טבלה1[[#This Row],[התחלה]],1),טבלה1[[#This Row],[הוספת דקות]],-טבלה1[[#This Row],[הפחתת דקות]]), SUM(MOD(טבלה1[[#This Row],[סיום]]-טבלה1[[#This Row],[התחלה]],1),טבלה1[[#This Row],[הוספת דקות]],-טבלה1[[#This Row],[הפחתת דקות]])))) ->  | K76: =IF(טבלה1[[#This Row],[שעות]]="","",IFERROR( IF(IF(AND(מטבע="שקלים",VLOOKUP(טבלה1[[#This Row],[שם העבודה]],טבלה2[],3,FALSE)="$"), VLOOKUP(טבלה1[[#This Row],[שם העבודה]],טבלה2[#All],2,FALSE)*טבלה1[[#This Row],[שעות]]*24*שער, IF(AND(מטבע="דולרים",VLOOKUP(טבלה1[[#This Row],[שם העבודה]],טבלה2[],3,FALSE)="₪"), VLOOKUP(טבלה1[[#This Row],[שם העבודה]],טבלה2[#All],2,FALSE)*טבלה1[[#This Row],[שעות]]*24/שער, VLOOKUP(טבלה1[[#This Row],[שם העבודה]],טבלה2[#All],2,FALSE)*טבלה1[[#This Row],[שעות]]*24))=0,"", IF(AND(מטבע="שקלים",VLOOKUP(טבלה1[[#This Row],[שם העבודה]],טבלה2[],3,FALSE)="$"), VLOOKUP(טבלה1[[#This Row],[שם העבודה]],טבלה2[#All],2,FALSE)*טבלה1[[#This Row],[שעות]]*24*שער, IF(AND(מטבע="דולרים",VLOOKUP(טבלה1[[#This Row],[שם העבודה]],טבלה2[],3,FALSE)="₪"), VLOOKUP(טבלה1[[#This Row],[שם העבודה]],טבלה2[#All],2,FALSE)*טבלה1[[#This Row],[שעות]]*24/שער, VLOOKUP(טבלה1[[#This Row],[שם העבודה]],טבלה2[#All],2,FALSE)*טבלה1[[#This Row],[שעות]]*24))),"")) ->  | L76: =IF(טבלה1[[#This Row],[תאריך]]="","",DATE(YEAR(טבלה1[[#This Row],[תאריך]]),MONTH(טבלה1[[#This Row],[תאריך]]),1)) -> 
B77: =IF(AND(טבלה1[[#This Row],[תאריך]]="",טבלה1[[#This Row],[התחלה]]="",טבלה1[[#This Row],[שם העבודה]]=""),"",ROW()-10) ->  | C77: =IF(טבלה1[[#This Row],[תאריך]]="","",IF(TEXT(טבלה1[[#This Row],[תאריך]],"DDD")="שבת","מוצ""ש",TEXT(טבלה1[[#This Row],[תאריך]],"DDD"))) ->  | J77: =IF(IF(AND(טבלה1[[#This Row],[התחלה]]="",טבלה1[[#This Row],[סיום]]<>""),"",IF(AND(טבלה1[[#This Row],[התחלה]]<>"",טבלה1[[#This Row],[סיום]]=""), SUM(MOD(MOD(NOW(),1)-טבלה1[[#This Row],[התחלה]],1),טבלה1[[#This Row],[הוספת דקות]],-טבלה1[[#This Row],[הפחתת דקות]]), SUM(MOD(טבלה1[[#This Row],[סיום]]-טבלה1[[#This Row],[התחלה]],1),טבלה1[[#This Row],[הוספת דקות]],-טבלה1[[#This Row],[הפחתת דקות]])))<=0,"", IF(AND(טבלה1[[#This Row],[התחלה]]="",טבלה1[[#This Row],[סיום]]<>""),"",IF(AND(טבלה1[[#This Row],[התחלה]]<>"",טבלה1[[#This Row],[סיום]]=""), SUM(MOD(MOD(NOW(),1)-טבלה1[[#This Row],[התחלה]],1),טבלה1[[#This Row],[הוספת דקות]],-טבלה1[[#This Row],[הפחתת דקות]]), SUM(MOD(טבלה1[[#This Row],[סיום]]-טבלה1[[#This Row],[התחלה]],1),טבלה1[[#This Row],[הוספת דקות]],-טבלה1[[#This Row],[הפחתת דקות]])))) ->  | K77: =IF(טבלה1[[#This Row],[שעות]]="","",IFERROR( IF(IF(AND(מטבע="שקלים",VLOOKUP(טבלה1[[#This Row],[שם העבודה]],טבלה2[],3,FALSE)="$"), VLOOKUP(טבלה1[[#This Row],[שם העבודה]],טבלה2[#All],2,FALSE)*טבלה1[[#This Row],[שעות]]*24*שער, IF(AND(מטבע="דולרים",VLOOKUP(טבלה1[[#This Row],[שם העבודה]],טבלה2[],3,FALSE)="₪"), VLOOKUP(טבלה1[[#This Row],[שם העבודה]],טבלה2[#All],2,FALSE)*טבלה1[[#This Row],[שעות]]*24/שער, VLOOKUP(טבלה1[[#This Row],[שם העבודה]],טבלה2[#All],2,FALSE)*טבלה1[[#This Row],[שעות]]*24))=0,"", IF(AND(מטבע="שקלים",VLOOKUP(טבלה1[[#This Row],[שם העבודה]],טבלה2[],3,FALSE)="$"), VLOOKUP(טבלה1[[#This Row],[שם העבודה]],טבלה2[#All],2,FALSE)*טבלה1[[#This Row],[שעות]]*24*שער, IF(AND(מטבע="דולרים",VLOOKUP(טבלה1[[#This Row],[שם העבודה]],טבלה2[],3,FALSE)="₪"), VLOOKUP(טבלה1[[#This Row],[שם העבודה]],טבלה2[#All],2,FALSE)*טבלה1[[#This Row],[שעות]]*24/שער, VLOOKUP(טבלה1[[#This Row],[שם העבודה]],טבלה2[#All],2,FALSE)*טבלה1[[#This Row],[שעות]]*24))),"")) ->  | L77: =IF(טבלה1[[#This Row],[תאריך]]="","",DATE(YEAR(טבלה1[[#This Row],[תאריך]]),MONTH(טבלה1[[#This Row],[תאריך]]),1)) -> 
B78: =IF(AND(טבלה1[[#This Row],[תאריך]]="",טבלה1[[#This Row],[התחלה]]="",טבלה1[[#This Row],[שם העבודה]]=""),"",ROW()-10) ->  | C78: =IF(טבלה1[[#This Row],[תאריך]]="","",IF(TEXT(טבלה1[[#This Row],[תאריך]],"DDD")="שבת","מוצ""ש",TEXT(טבלה1[[#This Row],[תאריך]],"DDD"))) ->  | J78: =IF(IF(AND(טבלה1[[#This Row],[התחלה]]="",טבלה1[[#This Row],[סיום]]<>""),"",IF(AND(טבלה1[[#This Row],[התחלה]]<>"",טבלה1[[#This Row],[סיום]]=""), SUM(MOD(MOD(NOW(),1)-טבלה1[[#This Row],[התחלה]],1),טבלה1[[#This Row],[הוספת דקות]],-טבלה1[[#This Row],[הפחתת דקות]]), SUM(MOD(טבלה1[[#This Row],[סיום]]-טבלה1[[#This Row],[התחלה]],1),טבלה1[[#This Row],[הוספת דקות]],-טבלה1[[#This Row],[הפחתת דקות]])))<=0,"", IF(AND(טבלה1[[#This Row],[התחלה]]="",טבלה1[[#This Row],[סיום]]<>""),"",IF(AND(טבלה1[[#This Row],[התחלה]]<>"",טבלה1[[#This Row],[סיום]]=""), SUM(MOD(MOD(NOW(),1)-טבלה1[[#This Row],[התחלה]],1),טבלה1[[#This Row],[הוספת דקות]],-טבלה1[[#This Row],[הפחתת דקות]]), SUM(MOD(טבלה1[[#This Row],[סיום]]-טבלה1[[#This Row],[התחלה]],1),טבלה1[[#This Row],[הוספת דקות]],-טבלה1[[#This Row],[הפחתת דקות]])))) ->  | K78: =IF(טבלה1[[#This Row],[שעות]]="","",IFERROR( IF(IF(AND(מטבע="שקלים",VLOOKUP(טבלה1[[#This Row],[שם העבודה]],טבלה2[],3,FALSE)="$"), VLOOKUP(טבלה1[[#This Row],[שם העבודה]],טבלה2[#All],2,FALSE)*טבלה1[[#This Row],[שעות]]*24*שער, IF(AND(מטבע="דולרים",VLOOKUP(טבלה1[[#This Row],[שם העבודה]],טבלה2[],3,FALSE)="₪"), VLOOKUP(טבלה1[[#This Row],[שם העבודה]],טבלה2[#All],2,FALSE)*טבלה1[[#This Row],[שעות]]*24/שער, VLOOKUP(טבלה1[[#This Row],[שם העבודה]],טבלה2[#All],2,FALSE)*טבלה1[[#This Row],[שעות]]*24))=0,"", IF(AND(מטבע="שקלים",VLOOKUP(טבלה1[[#This Row],[שם העבודה]],טבלה2[],3,FALSE)="$"), VLOOKUP(טבלה1[[#This Row],[שם העבודה]],טבלה2[#All],2,FALSE)*טבלה1[[#This Row],[שעות]]*24*שער, IF(AND(מטבע="דולרים",VLOOKUP(טבלה1[[#This Row],[שם העבודה]],טבלה2[],3,FALSE)="₪"), VLOOKUP(טבלה1[[#This Row],[שם העבודה]],טבלה2[#All],2,FALSE)*טבלה1[[#This Row],[שעות]]*24/שער, VLOOKUP(טבלה1[[#This Row],[שם העבודה]],טבלה2[#All],2,FALSE)*טבלה1[[#This Row],[שעות]]*24))),"")) ->  | L78: =IF(טבלה1[[#This Row],[תאריך]]="","",DATE(YEAR(טבלה1[[#This Row],[תאריך]]),MONTH(טבלה1[[#This Row],[תאריך]]),1)) -> 
B79: =IF(AND(טבלה1[[#This Row],[תאריך]]="",טבלה1[[#This Row],[התחלה]]="",טבלה1[[#This Row],[שם העבודה]]=""),"",ROW()-10) ->  | C79: =IF(טבלה1[[#This Row],[תאריך]]="","",IF(TEXT(טבלה1[[#This Row],[תאריך]],"DDD")="שבת","מוצ""ש",TEXT(טבלה1[[#This Row],[תאריך]],"DDD"))) ->  | J79: =IF(IF(AND(טבלה1[[#This Row],[התחלה]]="",טבלה1[[#This Row],[סיום]]<>""),"",IF(AND(טבלה1[[#This Row],[התחלה]]<>"",טבלה1[[#This Row],[סיום]]=""), SUM(MOD(MOD(NOW(),1)-טבלה1[[#This Row],[התחלה]],1),טבלה1[[#This Row],[הוספת דקות]],-טבלה1[[#This Row],[הפחתת דקות]]), SUM(MOD(טבלה1[[#This Row],[סיום]]-טבלה1[[#This Row],[התחלה]],1),טבלה1[[#This Row],[הוספת דקות]],-טבלה1[[#This Row],[הפחתת דקות]])))<=0,"", IF(AND(טבלה1[[#This Row],[התחלה]]="",טבלה1[[#This Row],[סיום]]<>""),"",IF(AND(טבלה1[[#This Row],[התחלה]]<>"",טבלה1[[#This Row],[סיום]]=""), SUM(MOD(MOD(NOW(),1)-טבלה1[[#This Row],[התחלה]],1),טבלה1[[#This Row],[הוספת דקות]],-טבלה1[[#This Row],[הפחתת דקות]]), SUM(MOD(טבלה1[[#This Row],[סיום]]-טבלה1[[#This Row],[התחלה]],1),טבלה1[[#This Row],[הוספת דקות]],-טבלה1[[#This Row],[הפחתת דקות]])))) ->  | K79: =IF(טבלה1[[#This Row],[שעות]]="","",IFERROR( IF(IF(AND(מטבע="שקלים",VLOOKUP(טבלה1[[#This Row],[שם העבודה]],טבלה2[],3,FALSE)="$"), VLOOKUP(טבלה1[[#This Row],[שם העבודה]],טבלה2[#All],2,FALSE)*טבלה1[[#This Row],[שעות]]*24*שער, IF(AND(מטבע="דולרים",VLOOKUP(טבלה1[[#This Row],[שם העבודה]],טבלה2[],3,FALSE)="₪"), VLOOKUP(טבלה1[[#This Row],[שם העבודה]],טבלה2[#All],2,FALSE)*טבלה1[[#This Row],[שעות]]*24/שער, VLOOKUP(טבלה1[[#This Row],[שם העבודה]],טבלה2[#All],2,FALSE)*טבלה1[[#This Row],[שעות]]*24))=0,"", IF(AND(מטבע="שקלים",VLOOKUP(טבלה1[[#This Row],[שם העבודה]],טבלה2[],3,FALSE)="$"), VLOOKUP(טבלה1[[#This Row],[שם העבודה]],טבלה2[#All],2,FALSE)*טבלה1[[#This Row],[שעות]]*24*שער, IF(AND(מטבע="דולרים",VLOOKUP(טבלה1[[#This Row],[שם העבודה]],טבלה2[],3,FALSE)="₪"), VLOOKUP(טבלה1[[#This Row],[שם העבודה]],טבלה2[#All],2,FALSE)*טבלה1[[#This Row],[שעות]]*24/שער, VLOOKUP(טבלה1[[#This Row],[שם העבודה]],טבלה2[#All],2,FALSE)*טבלה1[[#This Row],[שעות]]*24))),"")) ->  | L79: =IF(טבלה1[[#This Row],[תאריך]]="","",DATE(YEAR(טבלה1[[#This Row],[תאריך]]),MONTH(טבלה1[[#This Row],[תאריך]]),1)) -> 
B80: =IF(AND(טבלה1[[#This Row],[תאריך]]="",טבלה1[[#This Row],[התחלה]]="",טבלה1[[#This Row],[שם העבודה]]=""),"",ROW()-10) ->  | C80: =IF(טבלה1[[#This Row],[תאריך]]="","",IF(TEXT(טבלה1[[#This Row],[תאריך]],"DDD")="שבת","מוצ""ש",TEXT(טבלה1[[#This Row],[תאריך]],"DDD"))) ->  | J80: =IF(IF(AND(טבלה1[[#This Row],[התחלה]]="",טבלה1[[#This Row],[סיום]]<>""),"",IF(AND(טבלה1[[#This Row],[התחלה]]<>"",טבלה1[[#This Row],[סיום]]=""), SUM(MOD(MOD(NOW(),1)-טבלה1[[#This Row],[התחלה]],1),טבלה1[[#This Row],[הוספת דקות]],-טבלה1[[#This Row],[הפחתת דקות]]), SUM(MOD(טבלה1[[#This Row],[סיום]]-טבלה1[[#This Row],[התחלה]],1),טבלה1[[#This Row],[הוספת דקות]],-טבלה1[[#This Row],[הפחתת דקות]])))<=0,"", IF(AND(טבלה1[[#This Row],[התחלה]]="",טבלה1[[#This Row],[סיום]]<>""),"",IF(AND(טבלה1[[#This Row],[התחלה]]<>"",טבלה1[[#This Row],[סיום]]=""), SUM(MOD(MOD(NOW(),1)-טבלה1[[#This Row],[התחלה]],1),טבלה1[[#This Row],[הוספת דקות]],-טבלה1[[#This Row],[הפחתת דקות]]), SUM(MOD(טבלה1[[#This Row],[סיום]]-טבלה1[[#This Row],[התחלה]],1),טבלה1[[#This Row],[הוספת דקות]],-טבלה1[[#This Row],[הפחתת דקות]])))) ->  | K80: =IF(טבלה1[[#This Row],[שעות]]="","",IFERROR( IF(IF(AND(מטבע="שקלים",VLOOKUP(טבלה1[[#This Row],[שם העבודה]],טבלה2[],3,FALSE)="$"), VLOOKUP(טבלה1[[#This Row],[שם העבודה]],טבלה2[#All],2,FALSE)*טבלה1[[#This Row],[שעות]]*24*שער, IF(AND(מטבע="דולרים",VLOOKUP(טבלה1[[#This Row],[שם העבודה]],טבלה2[],3,FALSE)="₪"), VLOOKUP(טבלה1[[#This Row],[שם העבודה]],טבלה2[#All],2,FALSE)*טבלה1[[#This Row],[שעות]]*24/שער, VLOOKUP(טבלה1[[#This Row],[שם העבודה]],טבלה2[#All],2,FALSE)*טבלה1[[#This Row],[שעות]]*24))=0,"", IF(AND(מטבע="שקלים",VLOOKUP(טבלה1[[#This Row],[שם העבודה]],טבלה2[],3,FALSE)="$"), VLOOKUP(טבלה1[[#This Row],[שם העבודה]],טבלה2[#All],2,FALSE)*טבלה1[[#This Row],[שעות]]*24*שער, IF(AND(מטבע="דולרים",VLOOKUP(טבלה1[[#This Row],[שם העבודה]],טבלה2[],3,FALSE)="₪"), VLOOKUP(טבלה1[[#This Row],[שם העבודה]],טבלה2[#All],2,FALSE)*טבלה1[[#This Row],[שעות]]*24/שער, VLOOKUP(טבלה1[[#This Row],[שם העבודה]],טבלה2[#All],2,FALSE)*טבלה1[[#This Row],[שעות]]*24))),"")) ->  | L80: =IF(טבלה1[[#This Row],[תאריך]]="","",DATE(YEAR(טבלה1[[#This Row],[תאריך]]),MONTH(טבלה1[[#This Row],[תאריך]]),1)) -> 
B81: =IF(AND(טבלה1[[#This Row],[תאריך]]="",טבלה1[[#This Row],[התחלה]]="",טבלה1[[#This Row],[שם העבודה]]=""),"",ROW()-10) ->  | C81: =IF(טבלה1[[#This Row],[תאריך]]="","",IF(TEXT(טבלה1[[#This Row],[תאריך]],"DDD")="שבת","מוצ""ש",TEXT(טבלה1[[#This Row],[תאריך]],"DDD"))) ->  | J81: =IF(IF(AND(טבלה1[[#This Row],[התחלה]]="",טבלה1[[#This Row],[סיום]]<>""),"",IF(AND(טבלה1[[#This Row],[התחלה]]<>"",טבלה1[[#This Row],[סיום]]=""), SUM(MOD(MOD(NOW(),1)-טבלה1[[#This Row],[התחלה]],1),טבלה1[[#This Row],[הוספת דקות]],-טבלה1[[#This Row],[הפחתת דקות]]), SUM(MOD(טבלה1[[#This Row],[סיום]]-טבלה1[[#This Row],[התחלה]],1),טבלה1[[#This Row],[הוספת דקות]],-טבלה1[[#This Row],[הפחתת דקות]])))<=0,"", IF(AND(טבלה1[[#This Row],[התחלה]]="",טבלה1[[#This Row],[סיום]]<>""),"",IF(AND(טבלה1[[#This Row],[התחלה]]<>"",טבלה1[[#This Row],[סיום]]=""), SUM(MOD(MOD(NOW(),1)-טבלה1[[#This Row],[התחלה]],1),טבלה1[[#This Row],[הוספת דקות]],-טבלה1[[#This Row],[הפחתת דקות]]), SUM(MOD(טבלה1[[#This Row],[סיום]]-טבלה1[[#This Row],[התחלה]],1),טבלה1[[#This Row],[הוספת דקות]],-טבלה1[[#This Row],[הפחתת דקות]])))) ->  | K81: =IF(טבלה1[[#This Row],[שעות]]="","",IFERROR( IF(IF(AND(מטבע="שקלים",VLOOKUP(טבלה1[[#This Row],[שם העבודה]],טבלה2[],3,FALSE)="$"), VLOOKUP(טבלה1[[#This Row],[שם העבודה]],טבלה2[#All],2,FALSE)*טבלה1[[#This Row],[שעות]]*24*שער, IF(AND(מטבע="דולרים",VLOOKUP(טבלה1[[#This Row],[שם העבודה]],טבלה2[],3,FALSE)="₪"), VLOOKUP(טבלה1[[#This Row],[שם העבודה]],טבלה2[#All],2,FALSE)*טבלה1[[#This Row],[שעות]]*24/שער, VLOOKUP(טבלה1[[#This Row],[שם העבודה]],טבלה2[#All],2,FALSE)*טבלה1[[#This Row],[שעות]]*24))=0,"", IF(AND(מטבע="שקלים",VLOOKUP(טבלה1[[#This Row],[שם העבודה]],טבלה2[],3,FALSE)="$"), VLOOKUP(טבלה1[[#This Row],[שם העבודה]],טבלה2[#All],2,FALSE)*טבלה1[[#This Row],[שעות]]*24*שער, IF(AND(מטבע="דולרים",VLOOKUP(טבלה1[[#This Row],[שם העבודה]],טבלה2[],3,FALSE)="₪"), VLOOKUP(טבלה1[[#This Row],[שם העבודה]],טבלה2[#All],2,FALSE)*טבלה1[[#This Row],[שעות]]*24/שער, VLOOKUP(טבלה1[[#This Row],[שם העבודה]],טבלה2[#All],2,FALSE)*טבלה1[[#This Row],[שעות]]*24))),"")) ->  | L81: =IF(טבלה1[[#This Row],[תאריך]]="","",DATE(YEAR(טבלה1[[#This Row],[תאריך]]),MONTH(טבלה1[[#This Row],[תאריך]]),1)) -> 
B82: =IF(AND(טבלה1[[#This Row],[תאריך]]="",טבלה1[[#This Row],[התחלה]]="",טבלה1[[#This Row],[שם העבודה]]=""),"",ROW()-10) ->  | C82: =IF(טבלה1[[#This Row],[תאריך]]="","",IF(TEXT(טבלה1[[#This Row],[תאריך]],"DDD")="שבת","מוצ""ש",TEXT(טבלה1[[#This Row],[תאריך]],"DDD"))) ->  | J82: =IF(IF(AND(טבלה1[[#This Row],[התחלה]]="",טבלה1[[#This Row],[סיום]]<>""),"",IF(AND(טבלה1[[#This Row],[התחלה]]<>"",טבלה1[[#This Row],[סיום]]=""), SUM(MOD(MOD(NOW(),1)-טבלה1[[#This Row],[התחלה]],1),טבלה1[[#This Row],[הוספת דקות]],-טבלה1[[#This Row],[הפחתת דקות]]), SUM(MOD(טבלה1[[#This Row],[סיום]]-טבלה1[[#This Row],[התחלה]],1),טבלה1[[#This Row],[הוספת דקות]],-טבלה1[[#This Row],[הפחתת דקות]])))<=0,"", IF(AND(טבלה1[[#This Row],[התחלה]]="",טבלה1[[#This Row],[סיום]]<>""),"",IF(AND(טבלה1[[#This Row],[התחלה]]<>"",טבלה1[[#This Row],[סיום]]=""), SUM(MOD(MOD(NOW(),1)-טבלה1[[#This Row],[התחלה]],1),טבלה1[[#This Row],[הוספת דקות]],-טבלה1[[#This Row],[הפחתת דקות]]), SUM(MOD(טבלה1[[#This Row],[סיום]]-טבלה1[[#This Row],[התחלה]],1),טבלה1[[#This Row],[הוספת דקות]],-טבלה1[[#This Row],[הפחתת דקות]])))) ->  | K82: =IF(טבלה1[[#This Row],[שעות]]="","",IFERROR( IF(IF(AND(מטבע="שקלים",VLOOKUP(טבלה1[[#This Row],[שם העבודה]],טבלה2[],3,FALSE)="$"), VLOOKUP(טבלה1[[#This Row],[שם העבודה]],טבלה2[#All],2,FALSE)*טבלה1[[#This Row],[שעות]]*24*שער, IF(AND(מטבע="דולרים",VLOOKUP(טבלה1[[#This Row],[שם העבודה]],טבלה2[],3,FALSE)="₪"), VLOOKUP(טבלה1[[#This Row],[שם העבודה]],טבלה2[#All],2,FALSE)*טבלה1[[#This Row],[שעות]]*24/שער, VLOOKUP(טבלה1[[#This Row],[שם העבודה]],טבלה2[#All],2,FALSE)*טבלה1[[#This Row],[שעות]]*24))=0,"", IF(AND(מטבע="שקלים",VLOOKUP(טבלה1[[#This Row],[שם העבודה]],טבלה2[],3,FALSE)="$"), VLOOKUP(טבלה1[[#This Row],[שם העבודה]],טבלה2[#All],2,FALSE)*טבלה1[[#This Row],[שעות]]*24*שער, IF(AND(מטבע="דולרים",VLOOKUP(טבלה1[[#This Row],[שם העבודה]],טבלה2[],3,FALSE)="₪"), VLOOKUP(טבלה1[[#This Row],[שם העבודה]],טבלה2[#All],2,FALSE)*טבלה1[[#This Row],[שעות]]*24/שער, VLOOKUP(טבלה1[[#This Row],[שם העבודה]],טבלה2[#All],2,FALSE)*טבלה1[[#This Row],[שעות]]*24))),"")) ->  | L82: =IF(טבלה1[[#This Row],[תאריך]]="","",DATE(YEAR(טבלה1[[#This Row],[תאריך]]),MONTH(טבלה1[[#This Row],[תאריך]]),1)) -> 
B83: =IF(AND(טבלה1[[#This Row],[תאריך]]="",טבלה1[[#This Row],[התחלה]]="",טבלה1[[#This Row],[שם העבודה]]=""),"",ROW()-10) ->  | C83: =IF(טבלה1[[#This Row],[תאריך]]="","",IF(TEXT(טבלה1[[#This Row],[תאריך]],"DDD")="שבת","מוצ""ש",TEXT(טבלה1[[#This Row],[תאריך]],"DDD"))) ->  | J83: =IF(IF(AND(טבלה1[[#This Row],[התחלה]]="",טבלה1[[#This Row],[סיום]]<>""),"",IF(AND(טבלה1[[#This Row],[התחלה]]<>"",טבלה1[[#This Row],[סיום]]=""), SUM(MOD(MOD(NOW(),1)-טבלה1[[#This Row],[התחלה]],1),טבלה1[[#This Row],[הוספת דקות]],-טבלה1[[#This Row],[הפחתת דקות]]), SUM(MOD(טבלה1[[#This Row],[סיום]]-טבלה1[[#This Row],[התחלה]],1),טבלה1[[#This Row],[הוספת דקות]],-טבלה1[[#This Row],[הפחתת דקות]])))<=0,"", IF(AND(טבלה1[[#This Row],[התחלה]]="",טבלה1[[#This Row],[סיום]]<>""),"",IF(AND(טבלה1[[#This Row],[התחלה]]<>"",טבלה1[[#This Row],[סיום]]=""), SUM(MOD(MOD(NOW(),1)-טבלה1[[#This Row],[התחלה]],1),טבלה1[[#This Row],[הוספת דקות]],-טבלה1[[#This Row],[הפחתת דקות]]), SUM(MOD(טבלה1[[#This Row],[סיום]]-טבלה1[[#This Row],[התחלה]],1),טבלה1[[#This Row],[הוספת דקות]],-טבלה1[[#This Row],[הפחתת דקות]])))) ->  | K83: =IF(טבלה1[[#This Row],[שעות]]="","",IFERROR( IF(IF(AND(מטבע="שקלים",VLOOKUP(טבלה1[[#This Row],[שם העבודה]],טבלה2[],3,FALSE)="$"), VLOOKUP(טבלה1[[#This Row],[שם העבודה]],טבלה2[#All],2,FALSE)*טבלה1[[#This Row],[שעות]]*24*שער, IF(AND(מטבע="דולרים",VLOOKUP(טבלה1[[#This Row],[שם העבודה]],טבלה2[],3,FALSE)="₪"), VLOOKUP(טבלה1[[#This Row],[שם העבודה]],טבלה2[#All],2,FALSE)*טבלה1[[#This Row],[שעות]]*24/שער, VLOOKUP(טבלה1[[#This Row],[שם העבודה]],טבלה2[#All],2,FALSE)*טבלה1[[#This Row],[שעות]]*24))=0,"", IF(AND(מטבע="שקלים",VLOOKUP(טבלה1[[#This Row],[שם העבודה]],טבלה2[],3,FALSE)="$"), VLOOKUP(טבלה1[[#This Row],[שם העבודה]],טבלה2[#All],2,FALSE)*טבלה1[[#This Row],[שעות]]*24*שער, IF(AND(מטבע="דולרים",VLOOKUP(טבלה1[[#This Row],[שם העבודה]],טבלה2[],3,FALSE)="₪"), VLOOKUP(טבלה1[[#This Row],[שם העבודה]],טבלה2[#All],2,FALSE)*טבלה1[[#This Row],[שעות]]*24/שער, VLOOKUP(טבלה1[[#This Row],[שם העבודה]],טבלה2[#All],2,FALSE)*טבלה1[[#This Row],[שעות]]*24))),"")) ->  | L83: =IF(טבלה1[[#This Row],[תאריך]]="","",DATE(YEAR(טבלה1[[#This Row],[תאריך]]),MONTH(טבלה1[[#This Row],[תאריך]]),1)) -> 
B84: =IF(AND(טבלה1[[#This Row],[תאריך]]="",טבלה1[[#This Row],[התחלה]]="",טבלה1[[#This Row],[שם העבודה]]=""),"",ROW()-10) ->  | C84: =IF(טבלה1[[#This Row],[תאריך]]="","",IF(TEXT(טבלה1[[#This Row],[תאריך]],"DDD")="שבת","מוצ""ש",TEXT(טבלה1[[#This Row],[תאריך]],"DDD"))) ->  | J84: =IF(IF(AND(טבלה1[[#This Row],[התחלה]]="",טבלה1[[#This Row],[סיום]]<>""),"",IF(AND(טבלה1[[#This Row],[התחלה]]<>"",טבלה1[[#This Row],[סיום]]=""), SUM(MOD(MOD(NOW(),1)-טבלה1[[#This Row],[התחלה]],1),טבלה1[[#This Row],[הוספת דקות]],-טבלה1[[#This Row],[הפחתת דקות]]), SUM(MOD(טבלה1[[#This Row],[סיום]]-טבלה1[[#This Row],[התחלה]],1),טבלה1[[#This Row],[הוספת דקות]],-טבלה1[[#This Row],[הפחתת דקות]])))<=0,"", IF(AND(טבלה1[[#This Row],[התחלה]]="",טבלה1[[#This Row],[סיום]]<>""),"",IF(AND(טבלה1[[#This Row],[התחלה]]<>"",טבלה1[[#This Row],[סיום]]=""), SUM(MOD(MOD(NOW(),1)-טבלה1[[#This Row],[התחלה]],1),טבלה1[[#This Row],[הוספת דקות]],-טבלה1[[#This Row],[הפחתת דקות]]), SUM(MOD(טבלה1[[#This Row],[סיום]]-טבלה1[[#This Row],[התחלה]],1),טבלה1[[#This Row],[הוספת דקות]],-טבלה1[[#This Row],[הפחתת דקות]])))) ->  | K84: =IF(טבלה1[[#This Row],[שעות]]="","",IFERROR( IF(IF(AND(מטבע="שקלים",VLOOKUP(טבלה1[[#This Row],[שם העבודה]],טבלה2[],3,FALSE)="$"), VLOOKUP(טבלה1[[#This Row],[שם העבודה]],טבלה2[#All],2,FALSE)*טבלה1[[#This Row],[שעות]]*24*שער, IF(AND(מטבע="דולרים",VLOOKUP(טבלה1[[#This Row],[שם העבודה]],טבלה2[],3,FALSE)="₪"), VLOOKUP(טבלה1[[#This Row],[שם העבודה]],טבלה2[#All],2,FALSE)*טבלה1[[#This Row],[שעות]]*24/שער, VLOOKUP(טבלה1[[#This Row],[שם העבודה]],טבלה2[#All],2,FALSE)*טבלה1[[#This Row],[שעות]]*24))=0,"", IF(AND(מטבע="שקלים",VLOOKUP(טבלה1[[#This Row],[שם העבודה]],טבלה2[],3,FALSE)="$"), VLOOKUP(טבלה1[[#This Row],[שם העבודה]],טבלה2[#All],2,FALSE)*טבלה1[[#This Row],[שעות]]*24*שער, IF(AND(מטבע="דולרים",VLOOKUP(טבלה1[[#This Row],[שם העבודה]],טבלה2[],3,FALSE)="₪"), VLOOKUP(טבלה1[[#This Row],[שם העבודה]],טבלה2[#All],2,FALSE)*טבלה1[[#This Row],[שעות]]*24/שער, VLOOKUP(טבלה1[[#This Row],[שם העבודה]],טבלה2[#All],2,FALSE)*טבלה1[[#This Row],[שעות]]*24))),"")) ->  | L84: =IF(טבלה1[[#This Row],[תאריך]]="","",DATE(YEAR(טבלה1[[#This Row],[תאריך]]),MONTH(טבלה1[[#This Row],[תאריך]]),1)) -> 
B85: =IF(AND(טבלה1[[#This Row],[תאריך]]="",טבלה1[[#This Row],[התחלה]]="",טבלה1[[#This Row],[שם העבודה]]=""),"",ROW()-10) ->  | C85: =IF(טבלה1[[#This Row],[תאריך]]="","",IF(TEXT(טבלה1[[#This Row],[תאריך]],"DDD")="שבת","מוצ""ש",TEXT(טבלה1[[#This Row],[תאריך]],"DDD"))) ->  | J85: =IF(IF(AND(טבלה1[[#This Row],[התחלה]]="",טבלה1[[#This Row],[סיום]]<>""),"",IF(AND(טבלה1[[#This Row],[התחלה]]<>"",טבלה1[[#This Row],[סיום]]=""), SUM(MOD(MOD(NOW(),1)-טבלה1[[#This Row],[התחלה]],1),טבלה1[[#This Row],[הוספת דקות]],-טבלה1[[#This Row],[הפחתת דקות]]), SUM(MOD(טבלה1[[#This Row],[סיום]]-טבלה1[[#This Row],[התחלה]],1),טבלה1[[#This Row],[הוספת דקות]],-טבלה1[[#This Row],[הפחתת דקות]])))<=0,"", IF(AND(טבלה1[[#This Row],[התחלה]]="",טבלה1[[#This Row],[סיום]]<>""),"",IF(AND(טבלה1[[#This Row],[התחלה]]<>"",טבלה1[[#This Row],[סיום]]=""), SUM(MOD(MOD(NOW(),1)-טבלה1[[#This Row],[התחלה]],1),טבלה1[[#This Row],[הוספת דקות]],-טבלה1[[#This Row],[הפחתת דקות]]), SUM(MOD(טבלה1[[#This Row],[סיום]]-טבלה1[[#This Row],[התחלה]],1),טבלה1[[#This Row],[הוספת דקות]],-טבלה1[[#This Row],[הפחתת דקות]])))) ->  | K85: =IF(טבלה1[[#This Row],[שעות]]="","",IFERROR( IF(IF(AND(מטבע="שקלים",VLOOKUP(טבלה1[[#This Row],[שם העבודה]],טבלה2[],3,FALSE)="$"), VLOOKUP(טבלה1[[#This Row],[שם העבודה]],טבלה2[#All],2,FALSE)*טבלה1[[#This Row],[שעות]]*24*שער, IF(AND(מטבע="דולרים",VLOOKUP(טבלה1[[#This Row],[שם העבודה]],טבלה2[],3,FALSE)="₪"), VLOOKUP(טבלה1[[#This Row],[שם העבודה]],טבלה2[#All],2,FALSE)*טבלה1[[#This Row],[שעות]]*24/שער, VLOOKUP(טבלה1[[#This Row],[שם העבודה]],טבלה2[#All],2,FALSE)*טבלה1[[#This Row],[שעות]]*24))=0,"", IF(AND(מטבע="שקלים",VLOOKUP(טבלה1[[#This Row],[שם העבודה]],טבלה2[],3,FALSE)="$"), VLOOKUP(טבלה1[[#This Row],[שם העבודה]],טבלה2[#All],2,FALSE)*טבלה1[[#This Row],[שעות]]*24*שער, IF(AND(מטבע="דולרים",VLOOKUP(טבלה1[[#This Row],[שם העבודה]],טבלה2[],3,FALSE)="₪"), VLOOKUP(טבלה1[[#This Row],[שם העבודה]],טבלה2[#All],2,FALSE)*טבלה1[[#This Row],[שעות]]*24/שער, VLOOKUP(טבלה1[[#This Row],[שם העבודה]],טבלה2[#All],2,FALSE)*טבלה1[[#This Row],[שעות]]*24))),"")) ->  | L85: =IF(טבלה1[[#This Row],[תאריך]]="","",DATE(YEAR(טבלה1[[#This Row],[תאריך]]),MONTH(טבלה1[[#This Row],[תאריך]]),1)) -> 
B86: =IF(AND(טבלה1[[#This Row],[תאריך]]="",טבלה1[[#This Row],[התחלה]]="",טבלה1[[#This Row],[שם העבודה]]=""),"",ROW()-10) ->  | C86: =IF(טבלה1[[#This Row],[תאריך]]="","",IF(TEXT(טבלה1[[#This Row],[תאריך]],"DDD")="שבת","מוצ""ש",TEXT(טבלה1[[#This Row],[תאריך]],"DDD"))) ->  | J86: =IF(IF(AND(טבלה1[[#This Row],[התחלה]]="",טבלה1[[#This Row],[סיום]]<>""),"",IF(AND(טבלה1[[#This Row],[התחלה]]<>"",טבלה1[[#This Row],[סיום]]=""), SUM(MOD(MOD(NOW(),1)-טבלה1[[#This Row],[התחלה]],1),טבלה1[[#This Row],[הוספת דקות]],-טבלה1[[#This Row],[הפחתת דקות]]), SUM(MOD(טבלה1[[#This Row],[סיום]]-טבלה1[[#This Row],[התחלה]],1),טבלה1[[#This Row],[הוספת דקות]],-טבלה1[[#This Row],[הפחתת דקות]])))<=0,"", IF(AND(טבלה1[[#This Row],[התחלה]]="",טבלה1[[#This Row],[סיום]]<>""),"",IF(AND(טבלה1[[#This Row],[התחלה]]<>"",טבלה1[[#This Row],[סיום]]=""), SUM(MOD(MOD(NOW(),1)-טבלה1[[#This Row],[התחלה]],1),טבלה1[[#This Row],[הוספת דקות]],-טבלה1[[#This Row],[הפחתת דקות]]), SUM(MOD(טבלה1[[#This Row],[סיום]]-טבלה1[[#This Row],[התחלה]],1),טבלה1[[#This Row],[הוספת דקות]],-טבלה1[[#This Row],[הפחתת דקות]])))) ->  | K86: =IF(טבלה1[[#This Row],[שעות]]="","",IFERROR( IF(IF(AND(מטבע="שקלים",VLOOKUP(טבלה1[[#This Row],[שם העבודה]],טבלה2[],3,FALSE)="$"), VLOOKUP(טבלה1[[#This Row],[שם העבודה]],טבלה2[#All],2,FALSE)*טבלה1[[#This Row],[שעות]]*24*שער, IF(AND(מטבע="דולרים",VLOOKUP(טבלה1[[#This Row],[שם העבודה]],טבלה2[],3,FALSE)="₪"), VLOOKUP(טבלה1[[#This Row],[שם העבודה]],טבלה2[#All],2,FALSE)*טבלה1[[#This Row],[שעות]]*24/שער, VLOOKUP(טבלה1[[#This Row],[שם העבודה]],טבלה2[#All],2,FALSE)*טבלה1[[#This Row],[שעות]]*24))=0,"", IF(AND(מטבע="שקלים",VLOOKUP(טבלה1[[#This Row],[שם העבודה]],טבלה2[],3,FALSE)="$"), VLOOKUP(טבלה1[[#This Row],[שם העבודה]],טבלה2[#All],2,FALSE)*טבלה1[[#This Row],[שעות]]*24*שער, IF(AND(מטבע="דולרים",VLOOKUP(טבלה1[[#This Row],[שם העבודה]],טבלה2[],3,FALSE)="₪"), VLOOKUP(טבלה1[[#This Row],[שם העבודה]],טבלה2[#All],2,FALSE)*טבלה1[[#This Row],[שעות]]*24/שער, VLOOKUP(טבלה1[[#This Row],[שם העבודה]],טבלה2[#All],2,FALSE)*טבלה1[[#This Row],[שעות]]*24))),"")) ->  | L86: =IF(טבלה1[[#This Row],[תאריך]]="","",DATE(YEAR(טבלה1[[#This Row],[תאריך]]),MONTH(טבלה1[[#This Row],[תאריך]]),1)) -> 
B87: =IF(AND(טבלה1[[#This Row],[תאריך]]="",טבלה1[[#This Row],[התחלה]]="",טבלה1[[#This Row],[שם העבודה]]=""),"",ROW()-10) ->  | C87: =IF(טבלה1[[#This Row],[תאריך]]="","",IF(TEXT(טבלה1[[#This Row],[תאריך]],"DDD")="שבת","מוצ""ש",TEXT(טבלה1[[#This Row],[תאריך]],"DDD"))) ->  | J87: =IF(IF(AND(טבלה1[[#This Row],[התחלה]]="",טבלה1[[#This Row],[סיום]]<>""),"",IF(AND(טבלה1[[#This Row],[התחלה]]<>"",טבלה1[[#This Row],[סיום]]=""), SUM(MOD(MOD(NOW(),1)-טבלה1[[#This Row],[התחלה]],1),טבלה1[[#This Row],[הוספת דקות]],-טבלה1[[#This Row],[הפחתת דקות]]), SUM(MOD(טבלה1[[#This Row],[סיום]]-טבלה1[[#This Row],[התחלה]],1),טבלה1[[#This Row],[הוספת דקות]],-טבלה1[[#This Row],[הפחתת דקות]])))<=0,"", IF(AND(טבלה1[[#This Row],[התחלה]]="",טבלה1[[#This Row],[סיום]]<>""),"",IF(AND(טבלה1[[#This Row],[התחלה]]<>"",טבלה1[[#This Row],[סיום]]=""), SUM(MOD(MOD(NOW(),1)-טבלה1[[#This Row],[התחלה]],1),טבלה1[[#This Row],[הוספת דקות]],-טבלה1[[#This Row],[הפחתת דקות]]), SUM(MOD(טבלה1[[#This Row],[סיום]]-טבלה1[[#This Row],[התחלה]],1),טבלה1[[#This Row],[הוספת דקות]],-טבלה1[[#This Row],[הפחתת דקות]])))) ->  | K87: =IF(טבלה1[[#This Row],[שעות]]="","",IFERROR( IF(IF(AND(מטבע="שקלים",VLOOKUP(טבלה1[[#This Row],[שם העבודה]],טבלה2[],3,FALSE)="$"), VLOOKUP(טבלה1[[#This Row],[שם העבודה]],טבלה2[#All],2,FALSE)*טבלה1[[#This Row],[שעות]]*24*שער, IF(AND(מטבע="דולרים",VLOOKUP(טבלה1[[#This Row],[שם העבודה]],טבלה2[],3,FALSE)="₪"), VLOOKUP(טבלה1[[#This Row],[שם העבודה]],טבלה2[#All],2,FALSE)*טבלה1[[#This Row],[שעות]]*24/שער, VLOOKUP(טבלה1[[#This Row],[שם העבודה]],טבלה2[#All],2,FALSE)*טבלה1[[#This Row],[שעות]]*24))=0,"", IF(AND(מטבע="שקלים",VLOOKUP(טבלה1[[#This Row],[שם העבודה]],טבלה2[],3,FALSE)="$"), VLOOKUP(טבלה1[[#This Row],[שם העבודה]],טבלה2[#All],2,FALSE)*טבלה1[[#This Row],[שעות]]*24*שער, IF(AND(מטבע="דולרים",VLOOKUP(טבלה1[[#This Row],[שם העבודה]],טבלה2[],3,FALSE)="₪"), VLOOKUP(טבלה1[[#This Row],[שם העבודה]],טבלה2[#All],2,FALSE)*טבלה1[[#This Row],[שעות]]*24/שער, VLOOKUP(טבלה1[[#This Row],[שם העבודה]],טבלה2[#All],2,FALSE)*טבלה1[[#This Row],[שעות]]*24))),"")) ->  | L87: =IF(טבלה1[[#This Row],[תאריך]]="","",DATE(YEAR(טבלה1[[#This Row],[תאריך]]),MONTH(טבלה1[[#This Row],[תאריך]]),1)) -> 
B88: =IF(AND(טבלה1[[#This Row],[תאריך]]="",טבלה1[[#This Row],[התחלה]]="",טבלה1[[#This Row],[שם העבודה]]=""),"",ROW()-10) ->  | C88: =IF(טבלה1[[#This Row],[תאריך]]="","",IF(TEXT(טבלה1[[#This Row],[תאריך]],"DDD")="שבת","מוצ""ש",TEXT(טבלה1[[#This Row],[תאריך]],"DDD"))) ->  | J88: =IF(IF(AND(טבלה1[[#This Row],[התחלה]]="",טבלה1[[#This Row],[סיום]]<>""),"",IF(AND(טבלה1[[#This Row],[התחלה]]<>"",טבלה1[[#This Row],[סיום]]=""), SUM(MOD(MOD(NOW(),1)-טבלה1[[#This Row],[התחלה]],1),טבלה1[[#This Row],[הוספת דקות]],-טבלה1[[#This Row],[הפחתת דקות]]), SUM(MOD(טבלה1[[#This Row],[סיום]]-טבלה1[[#This Row],[התחלה]],1),טבלה1[[#This Row],[הוספת דקות]],-טבלה1[[#This Row],[הפחתת דקות]])))<=0,"", IF(AND(טבלה1[[#This Row],[התחלה]]="",טבלה1[[#This Row],[סיום]]<>""),"",IF(AND(טבלה1[[#This Row],[התחלה]]<>"",טבלה1[[#This Row],[סיום]]=""), SUM(MOD(MOD(NOW(),1)-טבלה1[[#This Row],[התחלה]],1),טבלה1[[#This Row],[הוספת דקות]],-טבלה1[[#This Row],[הפחתת דקות]]), SUM(MOD(טבלה1[[#This Row],[סיום]]-טבלה1[[#This Row],[התחלה]],1),טבלה1[[#This Row],[הוספת דקות]],-טבלה1[[#This Row],[הפחתת דקות]])))) ->  | K88: =IF(טבלה1[[#This Row],[שעות]]="","",IFERROR( IF(IF(AND(מטבע="שקלים",VLOOKUP(טבלה1[[#This Row],[שם העבודה]],טבלה2[],3,FALSE)="$"), VLOOKUP(טבלה1[[#This Row],[שם העבודה]],טבלה2[#All],2,FALSE)*טבלה1[[#This Row],[שעות]]*24*שער, IF(AND(מטבע="דולרים",VLOOKUP(טבלה1[[#This Row],[שם העבודה]],טבלה2[],3,FALSE)="₪"), VLOOKUP(טבלה1[[#This Row],[שם העבודה]],טבלה2[#All],2,FALSE)*טבלה1[[#This Row],[שעות]]*24/שער, VLOOKUP(טבלה1[[#This Row],[שם העבודה]],טבלה2[#All],2,FALSE)*טבלה1[[#This Row],[שעות]]*24))=0,"", IF(AND(מטבע="שקלים",VLOOKUP(טבלה1[[#This Row],[שם העבודה]],טבלה2[],3,FALSE)="$"), VLOOKUP(טבלה1[[#This Row],[שם העבודה]],טבלה2[#All],2,FALSE)*טבלה1[[#This Row],[שעות]]*24*שער, IF(AND(מטבע="דולרים",VLOOKUP(טבלה1[[#This Row],[שם העבודה]],טבלה2[],3,FALSE)="₪"), VLOOKUP(טבלה1[[#This Row],[שם העבודה]],טבלה2[#All],2,FALSE)*טבלה1[[#This Row],[שעות]]*24/שער, VLOOKUP(טבלה1[[#This Row],[שם העבודה]],טבלה2[#All],2,FALSE)*טבלה1[[#This Row],[שעות]]*24))),"")) ->  | L88: =IF(טבלה1[[#This Row],[תאריך]]="","",DATE(YEAR(טבלה1[[#This Row],[תאריך]]),MONTH(טבלה1[[#This Row],[תאריך]]),1)) -> 
B89: =IF(AND(טבלה1[[#This Row],[תאריך]]="",טבלה1[[#This Row],[התחלה]]="",טבלה1[[#This Row],[שם העבודה]]=""),"",ROW()-10) ->  | C89: =IF(טבלה1[[#This Row],[תאריך]]="","",IF(TEXT(טבלה1[[#This Row],[תאריך]],"DDD")="שבת","מוצ""ש",TEXT(טבלה1[[#This Row],[תאריך]],"DDD"))) ->  | J89: =IF(IF(AND(טבלה1[[#This Row],[התחלה]]="",טבלה1[[#This Row],[סיום]]<>""),"",IF(AND(טבלה1[[#This Row],[התחלה]]<>"",טבלה1[[#This Row],[סיום]]=""), SUM(MOD(MOD(NOW(),1)-טבלה1[[#This Row],[התחלה]],1),טבלה1[[#This Row],[הוספת דקות]],-טבלה1[[#This Row],[הפחתת דקות]]), SUM(MOD(טבלה1[[#This Row],[סיום]]-טבלה1[[#This Row],[התחלה]],1),טבלה1[[#This Row],[הוספת דקות]],-טבלה1[[#This Row],[הפחתת דקות]])))<=0,"", IF(AND(טבלה1[[#This Row],[התחלה]]="",טבלה1[[#This Row],[סיום]]<>""),"",IF(AND(טבלה1[[#This Row],[התחלה]]<>"",טבלה1[[#This Row],[סיום]]=""), SUM(MOD(MOD(NOW(),1)-טבלה1[[#This Row],[התחלה]],1),טבלה1[[#This Row],[הוספת דקות]],-טבלה1[[#This Row],[הפחתת דקות]]), SUM(MOD(טבלה1[[#This Row],[סיום]]-טבלה1[[#This Row],[התחלה]],1),טבלה1[[#This Row],[הוספת דקות]],-טבלה1[[#This Row],[הפחתת דקות]])))) ->  | K89: =IF(טבלה1[[#This Row],[שעות]]="","",IFERROR( IF(IF(AND(מטבע="שקלים",VLOOKUP(טבלה1[[#This Row],[שם העבודה]],טבלה2[],3,FALSE)="$"), VLOOKUP(טבלה1[[#This Row],[שם העבודה]],טבלה2[#All],2,FALSE)*טבלה1[[#This Row],[שעות]]*24*שער, IF(AND(מטבע="דולרים",VLOOKUP(טבלה1[[#This Row],[שם העבודה]],טבלה2[],3,FALSE)="₪"), VLOOKUP(טבלה1[[#This Row],[שם העבודה]],טבלה2[#All],2,FALSE)*טבלה1[[#This Row],[שעות]]*24/שער, VLOOKUP(טבלה1[[#This Row],[שם העבודה]],טבלה2[#All],2,FALSE)*טבלה1[[#This Row],[שעות]]*24))=0,"", IF(AND(מטבע="שקלים",VLOOKUP(טבלה1[[#This Row],[שם העבודה]],טבלה2[],3,FALSE)="$"), VLOOKUP(טבלה1[[#This Row],[שם העבודה]],טבלה2[#All],2,FALSE)*טבלה1[[#This Row],[שעות]]*24*שער, IF(AND(מטבע="דולרים",VLOOKUP(טבלה1[[#This Row],[שם העבודה]],טבלה2[],3,FALSE)="₪"), VLOOKUP(טבלה1[[#This Row],[שם העבודה]],טבלה2[#All],2,FALSE)*טבלה1[[#This Row],[שעות]]*24/שער, VLOOKUP(טבלה1[[#This Row],[שם העבודה]],טבלה2[#All],2,FALSE)*טבלה1[[#This Row],[שעות]]*24))),"")) ->  | L89: =IF(טבלה1[[#This Row],[תאריך]]="","",DATE(YEAR(טבלה1[[#This Row],[תאריך]]),MONTH(טבלה1[[#This Row],[תאריך]]),1)) -> 
B90: =IF(AND(טבלה1[[#This Row],[תאריך]]="",טבלה1[[#This Row],[התחלה]]="",טבלה1[[#This Row],[שם העבודה]]=""),"",ROW()-10) ->  | C90: =IF(טבלה1[[#This Row],[תאריך]]="","",IF(TEXT(טבלה1[[#This Row],[תאריך]],"DDD")="שבת","מוצ""ש",TEXT(טבלה1[[#This Row],[תאריך]],"DDD"))) ->  | J90: =IF(IF(AND(טבלה1[[#This Row],[התחלה]]="",טבלה1[[#This Row],[סיום]]<>""),"",IF(AND(טבלה1[[#This Row],[התחלה]]<>"",טבלה1[[#This Row],[סיום]]=""), SUM(MOD(MOD(NOW(),1)-טבלה1[[#This Row],[התחלה]],1),טבלה1[[#This Row],[הוספת דקות]],-טבלה1[[#This Row],[הפחתת דקות]]), SUM(MOD(טבלה1[[#This Row],[סיום]]-טבלה1[[#This Row],[התחלה]],1),טבלה1[[#This Row],[הוספת דקות]],-טבלה1[[#This Row],[הפחתת דקות]])))<=0,"", IF(AND(טבלה1[[#This Row],[התחלה]]="",טבלה1[[#This Row],[סיום]]<>""),"",IF(AND(טבלה1[[#This Row],[התחלה]]<>"",טבלה1[[#This Row],[סיום]]=""), SUM(MOD(MOD(NOW(),1)-טבלה1[[#This Row],[התחלה]],1),טבלה1[[#This Row],[הוספת דקות]],-טבלה1[[#This Row],[הפחתת דקות]]), SUM(MOD(טבלה1[[#This Row],[סיום]]-טבלה1[[#This Row],[התחלה]],1),טבלה1[[#This Row],[הוספת דקות]],-טבלה1[[#This Row],[הפחתת דקות]])))) ->  | K90: =IF(טבלה1[[#This Row],[שעות]]="","",IFERROR( IF(IF(AND(מטבע="שקלים",VLOOKUP(טבלה1[[#This Row],[שם העבודה]],טבלה2[],3,FALSE)="$"), VLOOKUP(טבלה1[[#This Row],[שם העבודה]],טבלה2[#All],2,FALSE)*טבלה1[[#This Row],[שעות]]*24*שער, IF(AND(מטבע="דולרים",VLOOKUP(טבלה1[[#This Row],[שם העבודה]],טבלה2[],3,FALSE)="₪"), VLOOKUP(טבלה1[[#This Row],[שם העבודה]],טבלה2[#All],2,FALSE)*טבלה1[[#This Row],[שעות]]*24/שער, VLOOKUP(טבלה1[[#This Row],[שם העבודה]],טבלה2[#All],2,FALSE)*טבלה1[[#This Row],[שעות]]*24))=0,"", IF(AND(מטבע="שקלים",VLOOKUP(טבלה1[[#This Row],[שם העבודה]],טבלה2[],3,FALSE)="$"), VLOOKUP(טבלה1[[#This Row],[שם העבודה]],טבלה2[#All],2,FALSE)*טבלה1[[#This Row],[שעות]]*24*שער, IF(AND(מטבע="דולרים",VLOOKUP(טבלה1[[#This Row],[שם העבודה]],טבלה2[],3,FALSE)="₪"), VLOOKUP(טבלה1[[#This Row],[שם העבודה]],טבלה2[#All],2,FALSE)*טבלה1[[#This Row],[שעות]]*24/שער, VLOOKUP(טבלה1[[#This Row],[שם העבודה]],טבלה2[#All],2,FALSE)*טבלה1[[#This Row],[שעות]]*24))),"")) ->  | L90: =IF(טבלה1[[#This Row],[תאריך]]="","",DATE(YEAR(טבלה1[[#This Row],[תאריך]]),MONTH(טבלה1[[#This Row],[תאריך]]),1)) -> 
B91: =IF(AND(טבלה1[[#This Row],[תאריך]]="",טבלה1[[#This Row],[התחלה]]="",טבלה1[[#This Row],[שם העבודה]]=""),"",ROW()-10) ->  | C91: =IF(טבלה1[[#This Row],[תאריך]]="","",IF(TEXT(טבלה1[[#This Row],[תאריך]],"DDD")="שבת","מוצ""ש",TEXT(טבלה1[[#This Row],[תאריך]],"DDD"))) ->  | J91: =IF(IF(AND(טבלה1[[#This Row],[התחלה]]="",טבלה1[[#This Row],[סיום]]<>""),"",IF(AND(טבלה1[[#This Row],[התחלה]]<>"",טבלה1[[#This Row],[סיום]]=""), SUM(MOD(MOD(NOW(),1)-טבלה1[[#This Row],[התחלה]],1),טבלה1[[#This Row],[הוספת דקות]],-טבלה1[[#This Row],[הפחתת דקות]]), SUM(MOD(טבלה1[[#This Row],[סיום]]-טבלה1[[#This Row],[התחלה]],1),טבלה1[[#This Row],[הוספת דקות]],-טבלה1[[#This Row],[הפחתת דקות]])))<=0,"", IF(AND(טבלה1[[#This Row],[התחלה]]="",טבלה1[[#This Row],[סיום]]<>""),"",IF(AND(טבלה1[[#This Row],[התחלה]]<>"",טבלה1[[#This Row],[סיום]]=""), SUM(MOD(MOD(NOW(),1)-טבלה1[[#This Row],[התחלה]],1),טבלה1[[#This Row],[הוספת דקות]],-טבלה1[[#This Row],[הפחתת דקות]]), SUM(MOD(טבלה1[[#This Row],[סיום]]-טבלה1[[#This Row],[התחלה]],1),טבלה1[[#This Row],[הוספת דקות]],-טבלה1[[#This Row],[הפחתת דקות]])))) ->  | K91: =IF(טבלה1[[#This Row],[שעות]]="","",IFERROR( IF(IF(AND(מטבע="שקלים",VLOOKUP(טבלה1[[#This Row],[שם העבודה]],טבלה2[],3,FALSE)="$"), VLOOKUP(טבלה1[[#This Row],[שם העבודה]],טבלה2[#All],2,FALSE)*טבלה1[[#This Row],[שעות]]*24*שער, IF(AND(מטבע="דולרים",VLOOKUP(טבלה1[[#This Row],[שם העבודה]],טבלה2[],3,FALSE)="₪"), VLOOKUP(טבלה1[[#This Row],[שם העבודה]],טבלה2[#All],2,FALSE)*טבלה1[[#This Row],[שעות]]*24/שער, VLOOKUP(טבלה1[[#This Row],[שם העבודה]],טבלה2[#All],2,FALSE)*טבלה1[[#This Row],[שעות]]*24))=0,"", IF(AND(מטבע="שקלים",VLOOKUP(טבלה1[[#This Row],[שם העבודה]],טבלה2[],3,FALSE)="$"), VLOOKUP(טבלה1[[#This Row],[שם העבודה]],טבלה2[#All],2,FALSE)*טבלה1[[#This Row],[שעות]]*24*שער, IF(AND(מטבע="דולרים",VLOOKUP(טבלה1[[#This Row],[שם העבודה]],טבלה2[],3,FALSE)="₪"), VLOOKUP(טבלה1[[#This Row],[שם העבודה]],טבלה2[#All],2,FALSE)*טבלה1[[#This Row],[שעות]]*24/שער, VLOOKUP(טבלה1[[#This Row],[שם העבודה]],טבלה2[#All],2,FALSE)*טבלה1[[#This Row],[שעות]]*24))),"")) ->  | L91: =IF(טבלה1[[#This Row],[תאריך]]="","",DATE(YEAR(טבלה1[[#This Row],[תאריך]]),MONTH(טבלה1[[#This Row],[תאריך]]),1)) -> 
B92: =IF(AND(טבלה1[[#This Row],[תאריך]]="",טבלה1[[#This Row],[התחלה]]="",טבלה1[[#This Row],[שם העבודה]]=""),"",ROW()-10) ->  | C92: =IF(טבלה1[[#This Row],[תאריך]]="","",IF(TEXT(טבלה1[[#This Row],[תאריך]],"DDD")="שבת","מוצ""ש",TEXT(טבלה1[[#This Row],[תאריך]],"DDD"))) ->  | J92: =IF(IF(AND(טבלה1[[#This Row],[התחלה]]="",טבלה1[[#This Row],[סיום]]<>""),"",IF(AND(טבלה1[[#This Row],[התחלה]]<>"",טבלה1[[#This Row],[סיום]]=""), SUM(MOD(MOD(NOW(),1)-טבלה1[[#This Row],[התחלה]],1),טבלה1[[#This Row],[הוספת דקות]],-טבלה1[[#This Row],[הפחתת דקות]]), SUM(MOD(טבלה1[[#This Row],[סיום]]-טבלה1[[#This Row],[התחלה]],1),טבלה1[[#This Row],[הוספת דקות]],-טבלה1[[#This Row],[הפחתת דקות]])))<=0,"", IF(AND(טבלה1[[#This Row],[התחלה]]="",טבלה1[[#This Row],[סיום]]<>""),"",IF(AND(טבלה1[[#This Row],[התחלה]]<>"",טבלה1[[#This Row],[סיום]]=""), SUM(MOD(MOD(NOW(),1)-טבלה1[[#This Row],[התחלה]],1),טבלה1[[#This Row],[הוספת דקות]],-טבלה1[[#This Row],[הפחתת דקות]]), SUM(MOD(טבלה1[[#This Row],[סיום]]-טבלה1[[#This Row],[התחלה]],1),טבלה1[[#This Row],[הוספת דקות]],-טבלה1[[#This Row],[הפחתת דקות]])))) ->  | K92: =IF(טבלה1[[#This Row],[שעות]]="","",IFERROR( IF(IF(AND(מטבע="שקלים",VLOOKUP(טבלה1[[#This Row],[שם העבודה]],טבלה2[],3,FALSE)="$"), VLOOKUP(טבלה1[[#This Row],[שם העבודה]],טבלה2[#All],2,FALSE)*טבלה1[[#This Row],[שעות]]*24*שער, IF(AND(מטבע="דולרים",VLOOKUP(טבלה1[[#This Row],[שם העבודה]],טבלה2[],3,FALSE)="₪"), VLOOKUP(טבלה1[[#This Row],[שם העבודה]],טבלה2[#All],2,FALSE)*טבלה1[[#This Row],[שעות]]*24/שער, VLOOKUP(טבלה1[[#This Row],[שם העבודה]],טבלה2[#All],2,FALSE)*טבלה1[[#This Row],[שעות]]*24))=0,"", IF(AND(מטבע="שקלים",VLOOKUP(טבלה1[[#This Row],[שם העבודה]],טבלה2[],3,FALSE)="$"), VLOOKUP(טבלה1[[#This Row],[שם העבודה]],טבלה2[#All],2,FALSE)*טבלה1[[#This Row],[שעות]]*24*שער, IF(AND(מטבע="דולרים",VLOOKUP(טבלה1[[#This Row],[שם העבודה]],טבלה2[],3,FALSE)="₪"), VLOOKUP(טבלה1[[#This Row],[שם העבודה]],טבלה2[#All],2,FALSE)*טבלה1[[#This Row],[שעות]]*24/שער, VLOOKUP(טבלה1[[#This Row],[שם העבודה]],טבלה2[#All],2,FALSE)*טבלה1[[#This Row],[שעות]]*24))),"")) ->  | L92: =IF(טבלה1[[#This Row],[תאריך]]="","",DATE(YEAR(טבלה1[[#This Row],[תאריך]]),MONTH(טבלה1[[#This Row],[תאריך]]),1)) -> 
B93: =IF(AND(טבלה1[[#This Row],[תאריך]]="",טבלה1[[#This Row],[התחלה]]="",טבלה1[[#This Row],[שם העבודה]]=""),"",ROW()-10) ->  | C93: =IF(טבלה1[[#This Row],[תאריך]]="","",IF(TEXT(טבלה1[[#This Row],[תאריך]],"DDD")="שבת","מוצ""ש",TEXT(טבלה1[[#This Row],[תאריך]],"DDD"))) ->  | J93: =IF(IF(AND(טבלה1[[#This Row],[התחלה]]="",טבלה1[[#This Row],[סיום]]<>""),"",IF(AND(טבלה1[[#This Row],[התחלה]]<>"",טבלה1[[#This Row],[סיום]]=""), SUM(MOD(MOD(NOW(),1)-טבלה1[[#This Row],[התחלה]],1),טבלה1[[#This Row],[הוספת דקות]],-טבלה1[[#This Row],[הפחתת דקות]]), SUM(MOD(טבלה1[[#This Row],[סיום]]-טבלה1[[#This Row],[התחלה]],1),טבלה1[[#This Row],[הוספת דקות]],-טבלה1[[#This Row],[הפחתת דקות]])))<=0,"", IF(AND(טבלה1[[#This Row],[התחלה]]="",טבלה1[[#This Row],[סיום]]<>""),"",IF(AND(טבלה1[[#This Row],[התחלה]]<>"",טבלה1[[#This Row],[סיום]]=""), SUM(MOD(MOD(NOW(),1)-טבלה1[[#This Row],[התחלה]],1),טבלה1[[#This Row],[הוספת דקות]],-טבלה1[[#This Row],[הפחתת דקות]]), SUM(MOD(טבלה1[[#This Row],[סיום]]-טבלה1[[#This Row],[התחלה]],1),טבלה1[[#This Row],[הוספת דקות]],-טבלה1[[#This Row],[הפחתת דקות]])))) ->  | K93: =IF(טבלה1[[#This Row],[שעות]]="","",IFERROR( IF(IF(AND(מטבע="שקלים",VLOOKUP(טבלה1[[#This Row],[שם העבודה]],טבלה2[],3,FALSE)="$"), VLOOKUP(טבלה1[[#This Row],[שם העבודה]],טבלה2[#All],2,FALSE)*טבלה1[[#This Row],[שעות]]*24*שער, IF(AND(מטבע="דולרים",VLOOKUP(טבלה1[[#This Row],[שם העבודה]],טבלה2[],3,FALSE)="₪"), VLOOKUP(טבלה1[[#This Row],[שם העבודה]],טבלה2[#All],2,FALSE)*טבלה1[[#This Row],[שעות]]*24/שער, VLOOKUP(טבלה1[[#This Row],[שם העבודה]],טבלה2[#All],2,FALSE)*טבלה1[[#This Row],[שעות]]*24))=0,"", IF(AND(מטבע="שקלים",VLOOKUP(טבלה1[[#This Row],[שם העבודה]],טבלה2[],3,FALSE)="$"), VLOOKUP(טבלה1[[#This Row],[שם העבודה]],טבלה2[#All],2,FALSE)*טבלה1[[#This Row],[שעות]]*24*שער, IF(AND(מטבע="דולרים",VLOOKUP(טבלה1[[#This Row],[שם העבודה]],טבלה2[],3,FALSE)="₪"), VLOOKUP(טבלה1[[#This Row],[שם העבודה]],טבלה2[#All],2,FALSE)*טבלה1[[#This Row],[שעות]]*24/שער, VLOOKUP(טבלה1[[#This Row],[שם העבודה]],טבלה2[#All],2,FALSE)*טבלה1[[#This Row],[שעות]]*24))),"")) ->  | L93: =IF(טבלה1[[#This Row],[תאריך]]="","",DATE(YEAR(טבלה1[[#This Row],[תאריך]]),MONTH(טבלה1[[#This Row],[תאריך]]),1)) -> 
B94: =IF(AND(טבלה1[[#This Row],[תאריך]]="",טבלה1[[#This Row],[התחלה]]="",טבלה1[[#This Row],[שם העבודה]]=""),"",ROW()-10) ->  | C94: =IF(טבלה1[[#This Row],[תאריך]]="","",IF(TEXT(טבלה1[[#This Row],[תאריך]],"DDD")="שבת","מוצ""ש",TEXT(טבלה1[[#This Row],[תאריך]],"DDD"))) ->  | J94: =IF(IF(AND(טבלה1[[#This Row],[התחלה]]="",טבלה1[[#This Row],[סיום]]<>""),"",IF(AND(טבלה1[[#This Row],[התחלה]]<>"",טבלה1[[#This Row],[סיום]]=""), SUM(MOD(MOD(NOW(),1)-טבלה1[[#This Row],[התחלה]],1),טבלה1[[#This Row],[הוספת דקות]],-טבלה1[[#This Row],[הפחתת דקות]]), SUM(MOD(טבלה1[[#This Row],[סיום]]-טבלה1[[#This Row],[התחלה]],1),טבלה1[[#This Row],[הוספת דקות]],-טבלה1[[#This Row],[הפחתת דקות]])))<=0,"", IF(AND(טבלה1[[#This Row],[התחלה]]="",טבלה1[[#This Row],[סיום]]<>""),"",IF(AND(טבלה1[[#This Row],[התחלה]]<>"",טבלה1[[#This Row],[סיום]]=""), SUM(MOD(MOD(NOW(),1)-טבלה1[[#This Row],[התחלה]],1),טבלה1[[#This Row],[הוספת דקות]],-טבלה1[[#This Row],[הפחתת דקות]]), SUM(MOD(טבלה1[[#This Row],[סיום]]-טבלה1[[#This Row],[התחלה]],1),טבלה1[[#This Row],[הוספת דקות]],-טבלה1[[#This Row],[הפחתת דקות]])))) ->  | K94: =IF(טבלה1[[#This Row],[שעות]]="","",IFERROR( IF(IF(AND(מטבע="שקלים",VLOOKUP(טבלה1[[#This Row],[שם העבודה]],טבלה2[],3,FALSE)="$"), VLOOKUP(טבלה1[[#This Row],[שם העבודה]],טבלה2[#All],2,FALSE)*טבלה1[[#This Row],[שעות]]*24*שער, IF(AND(מטבע="דולרים",VLOOKUP(טבלה1[[#This Row],[שם העבודה]],טבלה2[],3,FALSE)="₪"), VLOOKUP(טבלה1[[#This Row],[שם העבודה]],טבלה2[#All],2,FALSE)*טבלה1[[#This Row],[שעות]]*24/שער, VLOOKUP(טבלה1[[#This Row],[שם העבודה]],טבלה2[#All],2,FALSE)*טבלה1[[#This Row],[שעות]]*24))=0,"", IF(AND(מטבע="שקלים",VLOOKUP(טבלה1[[#This Row],[שם העבודה]],טבלה2[],3,FALSE)="$"), VLOOKUP(טבלה1[[#This Row],[שם העבודה]],טבלה2[#All],2,FALSE)*טבלה1[[#This Row],[שעות]]*24*שער, IF(AND(מטבע="דולרים",VLOOKUP(טבלה1[[#This Row],[שם העבודה]],טבלה2[],3,FALSE)="₪"), VLOOKUP(טבלה1[[#This Row],[שם העבודה]],טבלה2[#All],2,FALSE)*טבלה1[[#This Row],[שעות]]*24/שער, VLOOKUP(טבלה1[[#This Row],[שם העבודה]],טבלה2[#All],2,FALSE)*טבלה1[[#This Row],[שעות]]*24))),"")) ->  | L94: =IF(טבלה1[[#This Row],[תאריך]]="","",DATE(YEAR(טבלה1[[#This Row],[תאריך]]),MONTH(טבלה1[[#This Row],[תאריך]]),1)) -> 
B95: =IF(AND(טבלה1[[#This Row],[תאריך]]="",טבלה1[[#This Row],[התחלה]]="",טבלה1[[#This Row],[שם העבודה]]=""),"",ROW()-10) ->  | C95: =IF(טבלה1[[#This Row],[תאריך]]="","",IF(TEXT(טבלה1[[#This Row],[תאריך]],"DDD")="שבת","מוצ""ש",TEXT(טבלה1[[#This Row],[תאריך]],"DDD"))) ->  | J95: =IF(IF(AND(טבלה1[[#This Row],[התחלה]]="",טבלה1[[#This Row],[סיום]]<>""),"",IF(AND(טבלה1[[#This Row],[התחלה]]<>"",טבלה1[[#This Row],[סיום]]=""), SUM(MOD(MOD(NOW(),1)-טבלה1[[#This Row],[התחלה]],1),טבלה1[[#This Row],[הוספת דקות]],-טבלה1[[#This Row],[הפחתת דקות]]), SUM(MOD(טבלה1[[#This Row],[סיום]]-טבלה1[[#This Row],[התחלה]],1),טבלה1[[#This Row],[הוספת דקות]],-טבלה1[[#This Row],[הפחתת דקות]])))<=0,"", IF(AND(טבלה1[[#This Row],[התחלה]]="",טבלה1[[#This Row],[סיום]]<>""),"",IF(AND(טבלה1[[#This Row],[התחלה]]<>"",טבלה1[[#This Row],[סיום]]=""), SUM(MOD(MOD(NOW(),1)-טבלה1[[#This Row],[התחלה]],1),טבלה1[[#This Row],[הוספת דקות]],-טבלה1[[#This Row],[הפחתת דקות]]), SUM(MOD(טבלה1[[#This Row],[סיום]]-טבלה1[[#This Row],[התחלה]],1),טבלה1[[#This Row],[הוספת דקות]],-טבלה1[[#This Row],[הפחתת דקות]])))) ->  | K95: =IF(טבלה1[[#This Row],[שעות]]="","",IFERROR( IF(IF(AND(מטבע="שקלים",VLOOKUP(טבלה1[[#This Row],[שם העבודה]],טבלה2[],3,FALSE)="$"), VLOOKUP(טבלה1[[#This Row],[שם העבודה]],טבלה2[#All],2,FALSE)*טבלה1[[#This Row],[שעות]]*24*שער, IF(AND(מטבע="דולרים",VLOOKUP(טבלה1[[#This Row],[שם העבודה]],טבלה2[],3,FALSE)="₪"), VLOOKUP(טבלה1[[#This Row],[שם העבודה]],טבלה2[#All],2,FALSE)*טבלה1[[#This Row],[שעות]]*24/שער, VLOOKUP(טבלה1[[#This Row],[שם העבודה]],טבלה2[#All],2,FALSE)*טבלה1[[#This Row],[שעות]]*24))=0,"", IF(AND(מטבע="שקלים",VLOOKUP(טבלה1[[#This Row],[שם העבודה]],טבלה2[],3,FALSE)="$"), VLOOKUP(טבלה1[[#This Row],[שם העבודה]],טבלה2[#All],2,FALSE)*טבלה1[[#This Row],[שעות]]*24*שער, IF(AND(מטבע="דולרים",VLOOKUP(טבלה1[[#This Row],[שם העבודה]],טבלה2[],3,FALSE)="₪"), VLOOKUP(טבלה1[[#This Row],[שם העבודה]],טבלה2[#All],2,FALSE)*טבלה1[[#This Row],[שעות]]*24/שער, VLOOKUP(טבלה1[[#This Row],[שם העבודה]],טבלה2[#All],2,FALSE)*טבלה1[[#This Row],[שעות]]*24))),"")) ->  | L95: =IF(טבלה1[[#This Row],[תאריך]]="","",DATE(YEAR(טבלה1[[#This Row],[תאריך]]),MONTH(טבלה1[[#This Row],[תאריך]]),1)) -> 
B96: =IF(AND(טבלה1[[#This Row],[תאריך]]="",טבלה1[[#This Row],[התחלה]]="",טבלה1[[#This Row],[שם העבודה]]=""),"",ROW()-10) ->  | C96: =IF(טבלה1[[#This Row],[תאריך]]="","",IF(TEXT(טבלה1[[#This Row],[תאריך]],"DDD")="שבת","מוצ""ש",TEXT(טבלה1[[#This Row],[תאריך]],"DDD"))) ->  | J96: =IF(IF(AND(טבלה1[[#This Row],[התחלה]]="",טבלה1[[#This Row],[סיום]]<>""),"",IF(AND(טבלה1[[#This Row],[התחלה]]<>"",טבלה1[[#This Row],[סיום]]=""), SUM(MOD(MOD(NOW(),1)-טבלה1[[#This Row],[התחלה]],1),טבלה1[[#This Row],[הוספת דקות]],-טבלה1[[#This Row],[הפחתת דקות]]), SUM(MOD(טבלה1[[#This Row],[סיום]]-טבלה1[[#This Row],[התחלה]],1),טבלה1[[#This Row],[הוספת דקות]],-טבלה1[[#This Row],[הפחתת דקות]])))<=0,"", IF(AND(טבלה1[[#This Row],[התחלה]]="",טבלה1[[#This Row],[סיום]]<>""),"",IF(AND(טבלה1[[#This Row],[התחלה]]<>"",טבלה1[[#This Row],[סיום]]=""), SUM(MOD(MOD(NOW(),1)-טבלה1[[#This Row],[התחלה]],1),טבלה1[[#This Row],[הוספת דקות]],-טבלה1[[#This Row],[הפחתת דקות]]), SUM(MOD(טבלה1[[#This Row],[סיום]]-טבלה1[[#This Row],[התחלה]],1),טבלה1[[#This Row],[הוספת דקות]],-טבלה1[[#This Row],[הפחתת דקות]])))) ->  | K96: =IF(טבלה1[[#This Row],[שעות]]="","",IFERROR( IF(IF(AND(מטבע="שקלים",VLOOKUP(טבלה1[[#This Row],[שם העבודה]],טבלה2[],3,FALSE)="$"), VLOOKUP(טבלה1[[#This Row],[שם העבודה]],טבלה2[#All],2,FALSE)*טבלה1[[#This Row],[שעות]]*24*שער, IF(AND(מטבע="דולרים",VLOOKUP(טבלה1[[#This Row],[שם העבודה]],טבלה2[],3,FALSE)="₪"), VLOOKUP(טבלה1[[#This Row],[שם העבודה]],טבלה2[#All],2,FALSE)*טבלה1[[#This Row],[שעות]]*24/שער, VLOOKUP(טבלה1[[#This Row],[שם העבודה]],טבלה2[#All],2,FALSE)*טבלה1[[#This Row],[שעות]]*24))=0,"", IF(AND(מטבע="שקלים",VLOOKUP(טבלה1[[#This Row],[שם העבודה]],טבלה2[],3,FALSE)="$"), VLOOKUP(טבלה1[[#This Row],[שם העבודה]],טבלה2[#All],2,FALSE)*טבלה1[[#This Row],[שעות]]*24*שער, IF(AND(מטבע="דולרים",VLOOKUP(טבלה1[[#This Row],[שם העבודה]],טבלה2[],3,FALSE)="₪"), VLOOKUP(טבלה1[[#This Row],[שם העבודה]],טבלה2[#All],2,FALSE)*טבלה1[[#This Row],[שעות]]*24/שער, VLOOKUP(טבלה1[[#This Row],[שם העבודה]],טבלה2[#All],2,FALSE)*טבלה1[[#This Row],[שעות]]*24))),"")) ->  | L96: =IF(טבלה1[[#This Row],[תאריך]]="","",DATE(YEAR(טבלה1[[#This Row],[תאריך]]),MONTH(טבלה1[[#This Row],[תאריך]]),1)) -> 
B97: =IF(AND(טבלה1[[#This Row],[תאריך]]="",טבלה1[[#This Row],[התחלה]]="",טבלה1[[#This Row],[שם העבודה]]=""),"",ROW()-10) ->  | C97: =IF(טבלה1[[#This Row],[תאריך]]="","",IF(TEXT(טבלה1[[#This Row],[תאריך]],"DDD")="שבת","מוצ""ש",TEXT(טבלה1[[#This Row],[תאריך]],"DDD"))) ->  | J97: =IF(IF(AND(טבלה1[[#This Row],[התחלה]]="",טבלה1[[#This Row],[סיום]]<>""),"",IF(AND(טבלה1[[#This Row],[התחלה]]<>"",טבלה1[[#This Row],[סיום]]=""), SUM(MOD(MOD(NOW(),1)-טבלה1[[#This Row],[התחלה]],1),טבלה1[[#This Row],[הוספת דקות]],-טבלה1[[#This Row],[הפחתת דקות]]), SUM(MOD(טבלה1[[#This Row],[סיום]]-טבלה1[[#This Row],[התחלה]],1),טבלה1[[#This Row],[הוספת דקות]],-טבלה1[[#This Row],[הפחתת דקות]])))<=0,"", IF(AND(טבלה1[[#This Row],[התחלה]]="",טבלה1[[#This Row],[סיום]]<>""),"",IF(AND(טבלה1[[#This Row],[התחלה]]<>"",טבלה1[[#This Row],[סיום]]=""), SUM(MOD(MOD(NOW(),1)-טבלה1[[#This Row],[התחלה]],1),טבלה1[[#This Row],[הוספת דקות]],-טבלה1[[#This Row],[הפחתת דקות]]), SUM(MOD(טבלה1[[#This Row],[סיום]]-טבלה1[[#This Row],[התחלה]],1),טבלה1[[#This Row],[הוספת דקות]],-טבלה1[[#This Row],[הפחתת דקות]])))) ->  | K97: =IF(טבלה1[[#This Row],[שעות]]="","",IFERROR( IF(IF(AND(מטבע="שקלים",VLOOKUP(טבלה1[[#This Row],[שם העבודה]],טבלה2[],3,FALSE)="$"), VLOOKUP(טבלה1[[#This Row],[שם העבודה]],טבלה2[#All],2,FALSE)*טבלה1[[#This Row],[שעות]]*24*שער, IF(AND(מטבע="דולרים",VLOOKUP(טבלה1[[#This Row],[שם העבודה]],טבלה2[],3,FALSE)="₪"), VLOOKUP(טבלה1[[#This Row],[שם העבודה]],טבלה2[#All],2,FALSE)*טבלה1[[#This Row],[שעות]]*24/שער, VLOOKUP(טבלה1[[#This Row],[שם העבודה]],טבלה2[#All],2,FALSE)*טבלה1[[#This Row],[שעות]]*24))=0,"", IF(AND(מטבע="שקלים",VLOOKUP(טבלה1[[#This Row],[שם העבודה]],טבלה2[],3,FALSE)="$"), VLOOKUP(טבלה1[[#This Row],[שם העבודה]],טבלה2[#All],2,FALSE)*טבלה1[[#This Row],[שעות]]*24*שער, IF(AND(מטבע="דולרים",VLOOKUP(טבלה1[[#This Row],[שם העבודה]],טבלה2[],3,FALSE)="₪"), VLOOKUP(טבלה1[[#This Row],[שם העבודה]],טבלה2[#All],2,FALSE)*טבלה1[[#This Row],[שעות]]*24/שער, VLOOKUP(טבלה1[[#This Row],[שם העבודה]],טבלה2[#All],2,FALSE)*טבלה1[[#This Row],[שעות]]*24))),"")) ->  | L97: =IF(טבלה1[[#This Row],[תאריך]]="","",DATE(YEAR(טבלה1[[#This Row],[תאריך]]),MONTH(טבלה1[[#This Row],[תאריך]]),1)) -> 
